Workbook

Sheet Title
B2: Central Hydrogen Production - Project Information
B5: Title: | C5: Current (2010) Hydrogen from Natural Gas without CO2 Capture and Sequestration
B6: Authors: | C6: US DOE/NETL MD Rutkowski
B7: Contact: | C7: Marc Melaina
B8: Contact phone: | C8: 303 275 3836
B9: Contact e-mail: | C9: marc.melaina@nrel.gov
B10: Organization: | C10: NREL
B11: Date: | C11: 2012-01-31
B12: Web Site: | C12: http://www.hydrogen.energy.gov/h2a_production.html
B14: Plant Design Capacity (kg/day): | C14: 379387
B15: Start-up Year: | C15: 2010
B16: Primary Product Feedstock Source: | C16: Industrial Natural Gas
B17: Secondary Feedstock Source: | C17: None
B18: Process Energy Source: | C18: Standard fossil energy sources
B19: Conversion Technology: | C19: Steam reformer, quench, shift, PSA
B20: Primary By-Product: | C20: Steam export
B21: Secondary By-Product: | C21: No
B22: Based on Number of Plants Installed per Year (per manufacturer): | C22: None
B23: H2 Onsite Storage Type | C23: N/A
B24: Assumed plant location: | C24: Mid USA
B26: Reporting Spreadsheet Change History:
B27: Date spreadsheet created / modified | C27: Name | D27: Comments
B28: 2015-03-17T08:57:15.780 | C28: Michael Penev, NREL | D28: replaced model buttons
B29: 2015-03-17T08:57:15.780 | C29: Michael Penev, NREL | D29: Implemented closed-form cash flow calculations
B30: 2015-03-17T08:57:15.780 | C30: Michael Penev, NREL | D30: Implemented new tornado plots generator
B31: 2015-03-17T08:57:15.780 | C31: Michael Penev, NREL | D31: Implemented waterfall plots generator
B32: 2015-03-17T08:57:15.780 | C32: Michael Penev, NREL | D32: Added instant results display in the Input_Sheet_Template
B33: 2015-03-17T08:57:15.780 | C33: Michael Penev, NREL | D33: Fixed depreciation routine
B35: 2013-06-17 | C35: NREL - G. Saur | D35: Fixed Feedstock cost to reference AEO 2009 reference case
D36: H2A version 3
B37: 2011-12-05 | C37: NREL - D. Steward | D37: Ported to new model structure
D38: H2A version 2
B39: 2008-09-22 | C39: NREL - D. Steward | D39: H2A Version 2.1 updates
B40: 2008-05-23 | C40: NREL - D. Steward | D40: Tornado chart
B41: 2008-03-14 | C41: NREL - D. Steward | D41: Ported to new model structure
D42: H2A version 1
B43: 2006-06-07 | C43: NREL - updated for release
B44: 2005-09-14 | C44: Mike Rutkowski
B45: 2005-06-27 | C45: MD Rutkowski, Revise Capital and Feedstock $
B46: 2005-06-17 | C46: MD Rutkowski
B47: 2005-02-23 | C47: NJ Kuehn
B48: 2004-10-11 | C48: MD Rutkowski

Sheet Description
B2: Central Hydrogen Production - Description
B6: Purpose:
B7: Steam reforming of hydrocarbons continues to be the most efficient, economical, and widely used process for production of hydrogen and hydrogen/carbon monoxide mixtures. The purpose of this analysis is to assess the economic production of hydrogen from the steam reforming of natural gas.
B10: System Description:
B11: Natural gas is fed to the plant from the pipeline at a pressure of 450 psia. The gas is generally sulfur-free, but odorizers with mercaptans must be cleaned from the gas to prevent contamination of the reformer catalyst. The desulfurized natural gas feedstock is mixed with process steam to be reacted over a nickel based catalyst contained inside of a system of high alloy steel tubes. The reforming reaction is strongly endothermic, and the metallurgy of the tubes usually limits the reaction temperature to 1400-1700oF. The flue gas path of the fired reformer is integrated with additional boiler surfaces to produce about 700,000 lb/hour steam. Of this, about 450,000 lb/hour is superheated to 450 psia and 750°F, to be added to the incoming natural gas. Additional steam from the boiler is sent off-site. After the reformer, the process gas mixture of CO and H2 passes through a heat recovery step and is fed into a water gas shift reactor to produce additional H2.
B12: The Pressure Swing Adsorption (PSA) process is used for hydrogen purification, based on the ability to produce high purity hydrogen, low amounts of CO and CO2 and ease of operation. Shifted gas is fed directly to the PSA unit where hydrogen is purified up to approximately 99.6%. based on the ability to produce high purity hydrogen, low amounts of CO and CO2 and ease of operation. Shifted gas is fed directly to the PSA unit where hydrogen is purified up to approximately 99.6%.
B14: Analysis Methodology Summary:
B15: Material and energy balances in ASPEN Plus; Installed equipment costing based on grass roots estimate of commercial offering; O&M collaborated with KIC
B18: Plant Ownership and Entity Type Assumptions:
B19: Corporate ownership, 100% equity
B21: References:
B22: Hydrogen from Natural Gas Reforming, November 2003, DOE/FE/NETL
B23: Original H2A Case Study - h2a_central_natural_gas_current_final.xls, M. Rutkowski

Sheet ProcessFlow
B2: Central Hydrogen Production - Process Flow Diagram
B6: Process Flow Diagram
D9: Energy efficiencies for individual process steps (add rows as appropriate) | E9: Value | F9: Basis | G9: Reference
D10: SMR Efficiency | E10: 0.82 | F10: LHV efficiency of energy in gasifier product gas coming out of gasifier divided by energy in coal fed to gasifier. | G10: Aspen Plus® Model
D11: Shift Reactor Conversion | E11: 0.9 | F11: Molar percent of CO converted to CO2 | G11: Haldor Topsoe commercial catalyst spec.
D12: PSA Hydrogen Separation | E12: 0.8 | F12: Percent hydrogen rercovered from PSA feed gas | G12: UOP commercial PSA design spec.
B29: Stream Summaries
B31: STREAM NUMBER | C31: 1 | D31: 2 | E31: 3 | F31: 4 | G31: 5
C32: Natural Gas | D32: Steam | E32: Air | F32: Hydrogen | G32: Stack Gas
B33: Mole Fraction
B34: Ar | C34: 0 | D34: 0 | E34: 0.0093 | F34: 0 | G34: 0.00727519
B35: CH4 | C35: 0.9 | D35: 0 | E35: 0 | F35: 0 | G35: 0
B36: C2H6 | C36: 0.05 | D36: 0 | E36: 0 | F36: 0 | G36: 0
B37: CO2 | C37: 0 | D37: 0 | E37: 0.0004 | F37: 0.00130863 | G37: 0.1676519
B38: H2 | C38: 0 | D38: 0 | E38: 0 | F38: 0.9947193 | G38: 0
B39: H2O | C39: 0 | D39: 1 | E39: 0.0101 | F39: 0 | G39: 0.1834629
B40: N2 | C40: 0.05 | D40: 0 | E40: 0.7724 | F40: 0.00397204 | G40: 0.6115443
B41: O2 | C41: 0 | D41: 0 | E41: 0.2078 | F41: 0 | G41: 0.0300657
B43: NOx | C43: ---- | D43: ---- | E43: ---- | F43: ---- | G43: 20 ppm
B45: Total Flow (lbmol/hr) | C45: 6980.5 | D45: 24431.75 | E45: 29489.45 | F45: 16102.31 | G45: 37696.85
B46: Total Flow (lb/hr) | C46: 121060 | D46: 440145 | E46: 851008 | F46: 35008 | G46: 1095760
B48: Temperature (°F) | C48: 59 | D48: 750 | E48: 60 | F48: 108 | G48: 280.0408
B49: Pressure (psia) | C49: 450 | D49: 450 | E49: 14.696 | F49: 346 | G49: 14.7

Sheet Input_Sheet_Template
A1: 2
B2: H2A Hydrogen Production Cash Flow Analysis Tool v3.1
A3: title | B3: Central Natural Gas Reforming - Current Timeframe
B5: Table of Contents
B6: View and edit project information
B8: H2A cell color coding
B10: Use H2A default values
B14: Technical Operating Parameters and Specifications
B15: Financial Input Values
B16: Energy Feedstocks, Utilities and Byproducts | H16: Cash Flow NPV (Error if not 0)
B17: Capital Cost | H17: =+NPV -> 1.157662044e-06
B18: Fixed Operating Costs
B19: Variable Operating Costs - Other Materials and Byproducts
B20: Variable Operating Costs - Other Variable Operating Costs
B24: Technical Operating Parameters and Specifications | E24: Notes
A25: cap_factor | B25: Operating Capacity Factor (%) | C25: =0.9*sensitivity_01 -> 0.9
A26: design_cap | B26: Plant Design Capacity (kg of H2/day) | C26: =379387*sensitivity_02 -> 379387
B27: Plant Output (kg/day) | C27: =design_cap*cap_factor -> 341448.3
A28: Soutput_kgyear | B28: Plant Output (kg/year) | C28: =output_kgpday*365 -> 124628629.5
B29: Financial Input Values | E29: Notes
A30: ref_year | B30: Reference year | C30: 2007
A31: startup_year | B31: Assumed start-up year | C31: 2010
B32: Basis year | C32: 2005 | D32: Costs must be entered in basis year dollars
A33: construct | B33: Length of Construction Period (years) | C33: 3
A34: percent_cap1 | B34: % of Capital Spent in 1st Year of Construction | C34: 0.08
A35: percent_cap2 | B35: % of Capital Spent in 2nd Year of Construction | C35: 0.6
A36: percent_cap3 | B36: % of Capital Spent in 3rd Year of Construction | C36: 0.32
A37: percent_cap4 | B37: % of Capital Spent in 4th Year of Construction
A38: start_time | B38: Start-up Time (years) | C38: 1
A39: plant_life | B39: Plant life (years) | C39: 40
A40: anal_period | B40: Analysis period (years) | C40: 40
A41: depr_length | B41: Depreciation Schedule Length (years) | C41: 20
A42: depr_type | B42: Depreciation Type | C42: MACRS
A43: equity | B43: % Equity Financing | C43: 1
A44: debt_interest | B44: Interest rate on debt, if applicable (%) | C44: 0.06
A45: debt_period | B45: Debt period (years) | C45: =+depr_length -> 20
A46: percnt_fixed | B46: % of Fixed Operating Costs During Start-up (%) | C46: 0.75
A47: percnt_revs | B47: % of Revenues During Start-up (%) | C47: 0.5
A48: percnt_var | B48: % of Variable Operating Costs During Start-up (%) | C48: 0.75
A49: decom_percent | B49: Decommissioning costs (% of depreciable capital investment) | C49: 0.1
A50: salvage_perct | B50: Salvage value (% of total capital investment) | C50: 0.1
A51: inflation_rate | B51: Inflation rate (%) | C51: 0.019
A52: real_irr | B52: After-tax Real IRR (%) | C52: =0.1*sensitivity_03 -> 0.1
A53: state_tax_rate | B53: State Taxes (%) | C53: 0.06
A54: fed_tax_rate | B54: Federal Taxes (%) | C54: 0.35
A55: Stotal_tax_rate | B55: Total Tax Rate (%) | C55: =fed_tax_rate+state_tax_rate*(1-fed_tax_rate) -> 0.389
A56: WorkingCap | B56: WORKING CAPITAL (% of yearly change in operating costs) | C56: 0.15
B57: Energy Feedstocks, Utilities, and Byproducts
B58: Select the Price Table to Use
B59: AEO_2009_Reference_Case | F59: To use a new feedstock, utility or byproduct, select the price table and product from the dropdown lists and enter the usage (or byproduct) amount. Click the "Add" button to add the product to the "In Use" list. Important; only materials on the "In Use" list will be used in H2A calculations. To delete materials from the list, click the "Delete" button below
B60: Select the Use
B61: feedstock | C61: =IF(OR(TMP_FeedType="Feedstock",TMP_FeedType = "Utility")," Enter usage in","Enter production in") -> Enter usage in | D61: =VLOOKUP(TMP_FeedName,INDIRECT(TMP_PriceTable),4,FALSE) -> mmBtu
B62: Select the Feed Type
B63: Industrial Natural Gas
B65: =SELECTED_FEED -> feedstock | C65: =TMP_FeedName -> Industrial Natural Gas
B66: ="Price Conversion Factor (GJ/"&TMP_Units&")" -> Price Conversion Factor (GJ/mmBtu) | C66: =VLOOKUP(TMP_FeedName,MASTER_PROPERTY_TABLE,9,FALSE) -> 1.055
B67: ="Price in Startup Year ($" & ref_year & ")/" & TMP_Units -> Price in Startup Year ($2007)/mmBtu | C67: =HLOOKUP(startup_year,INDIRECT(TMP_PriceTable),MATCH(TMP_FeedName,INDIRECT(Energy_Feed_List),0),FALSE)*TMP_Conversion -> 6.091885901
B68: =IF(OR(TMP_FeedType="Feedstock",TMP_FeedType = "Utility"),"Usage ("&TMP_Units&"/kg H2)","Production ("&TMP_Units&"/kg H2)") -> Usage (mmBtu/kg H2) | C68: 0.15625
B69: =IF(OR(TMP_FeedType = "Feedstock",TMP_FeedType = "Utility"), "Cost in Startup Year","Income in Startup Year") -> Cost in Startup Year | C69: =design_cap*365*cap_factor*TMP_Usage*TMP_StartPrice -> 118628654.8
B70: Lookup Prices | C70: no
B72: Energy feedstocks, utilities, and byproducts currently in use
A73: START_TOP
B74: feedstock | C74: Price Conversion Factor (GJ/mmBtu) | D74: Price in Startup Year ($2007)/mmBtu | E74: Usage (mmBtu/kg H2) | F74: Cost in Startup Year | G74: Lookup Prices
B75: Industrial Natural Gas | C75: 1.055 | D75: 5.730142136 | E75: =0.15625*sensitivity_04 -> 0.15625 | F75: 111584337.7 | G75: yes
A76: START_FEED
B77: utility | C77: Price Conversion Factor (GJ/kWh) | D77: Price in Startup Year ($2007)/kWh | E77: Usage (kWh/kg H2) | F77: Cost in Startup Year | G77: Lookup Prices
B78: Industrial Electricity | C78: 0.0036 | D78: 0.05742314849 | E78: =0.569*sensitivity_05 -> 0.569 | F78: 4072087.362 | G78: yes
A79: START_UTILITY
A80: START_BYPROD
F81: Total
A82: Total_Energy_Feed_Cost | B82: Total Energy Feedstock Cost ($/year) | F82: =SUM(Dynamic_Feed_Total) -> 111584337.7
A83: Total_Energy_Utilities_Cost | B83: Total Energy Utilities Cost ($/year) | F83: =SUM(Dynamic_Utilities_Total) -> 4072087.362
A84: Total_Energy_Byproduct_Credit | B84: Total Energy Byproduct Credit ($/year) | F84: =SUM(Dynamic_Byproduct_Total) -> 0
D85: Notes:
B87: Capital Costs | E87: Notes
A88: direct_cap | B88: H2A Total Direct Capital Cost | C88: =Det_scaled_cap -> 152547215.9 | E88: Click to enter details on the Cost Detail Sheet
B89: H2A Carbon Sequestration Total Direct Capital Cost | E89: Click to enter details on the Carbon Sequestration calculation sheet.
B91: Indirect Depreciable Capital Costs | C91: ="Enter values in basis year (" & BasisYear & ") dollars" -> Enter values in basis year (2005) dollars | D91: Combined Plant Scaling and Escalation Factor | E91: ="Reference Year ("& ref_year & ") Dollars" -> Reference Year (2007) Dollars
A92: Site_prep | B92: Site Preparation ($) (may change to construction costs) | C92: =0.02*(direct_cap+CO2_seq)/(CEPCIinflator*CPIinflator) -> 2696873.856 | D92: =CEPCIinflator*CPIinflator -> 1.131289219 | E92: =C92*D92 -> 3050944.318
A93: Engin | B93: Engineering & design ($) | C93: =0.1*(direct_cap+CO2_seq)/(CEPCIinflator*CPIinflator) -> 13484369.28 | D93: 1.131289219 | E93: =C93*D93 -> 15254721.59
A94: Process_cont | B94: Process contingency ($) | D94: 1.131289219 | E94: 0
A95: Project_cont | B95: Project contingency ($) | C95: =0.15*(direct_cap+CO2_seq)/(CEPCIinflator*CPIinflator) -> 20226553.92 | D95: 1.131289219 | E95: 22882082.39
A96: Other_indirect | B96: Other (Depreciable) capital ($) | D96: 1.131289219 | E96: 0
A97: Fees | B97: One-time Licensing Fees ($) | D97: 1.131289219 | E97: 0
A98: Permitting | B98: Up-Front Permitting Costs ($) (legal and contractors fees included here) | C98: =0.15*(direct_cap+CO2_seq)/(CEPCIinflator*CPIinflator) -> 20226553.92 | D98: 1.131289219 | E98: 22882082.39
A99: Sdepr_cap | B99: Total Depreciable Capital Costs | E99: =direct_cap+CO2_seq+SUM($E$92:$E$98) -> 216617046.6
D100: Combined Plant Scaling and Escalation Factor
B101: Non-Depreciable Capital Costs | C101: ="Enter values in basis year (" & BasisYear & ") dollars" -> Enter values in basis year (2005) dollars | E101: ="Reference Year ("& ref_year & ") Dollars" -> Reference Year (2007) Dollars
A102: acre_cost | B102: Cost of land ($/acre) | C102: 50000 | D102: =CPIinflator -> 0.9616369142 | E102: =C102*D102 -> 48081.84571
A103: acres | B103: Land required (acres) | C103: 10 | D103: =Scale_Factor *1 -> 1 | E103: =C103*D103 -> 10
A104: Sland_cost | B104: Land Cost ($) | E104: =acre_cost*acres -> 480818.4571
B105: Other non depreciable capital costs | D105: =CPIinflator -> 0.9616369142 | E105: =C105*D105 -> 0
A106: Snon_dep_cap | B106: Total Non-Depreciable Capital Costs | E106: =land_cost+$E$105 -> 480818.4571
A108: Stotal_cap | B108: Total Capital Costs | C108: =(depr_cap+non_dep_cap)*sensitivity_06 -> 217097865.1
B110: Fixed Operating Costs | C110: ="Enter values in basis year (" & BasisYear & ") dollars" -> Enter values in basis year (2005) dollars | D110: Combined Plant Scaling and Escalation Factor | E110: ="Reference Year ("& ref_year & ") Dollars" -> Reference Year (2007) Dollars
A111: FTEs | B111: Total plant staff (number of FTEs employed by plant) | C111: 20 | D111: =Scale_Ratio^0.25 -> 1 | E111: =C111*D111 -> 20
A112: FTE_cost | B112: Burdened labor cost, including overhead ($/man-hr) | C112: 50 | D112: =VLOOKUP(ref_year,Tbl_labor_indexes,2,FALSE)/VLOOKUP(BasisYear,Tbl_labor_indexes,2,FALSE) -> 0.9938993391 | E112: =C112*D112 -> 49.69496695
A113: Slabor_cost | B113: Labor cost, $/year | E113: =FTEs*2080*FTE_cost -> 2067310.625
A114: overhead_rate | B114: G&A rate (% of labor cost) | C114: 0.2
A115: Soverhead_GA | B115: G&A ($/year) | E115: =labor_cost*overhead_rate -> 413462.1251
A116: licensing | B116: Licensing, Permits and Fees ($/year) | C116: 0 | D116: =Scale_Factor *CEPCIinflator*CPIinflator -> 1.131289219 | E116: =C116*D116 -> 0
A117: tax_ins_rate | B117: Property tax and insurance rate (% of total capital investment per year) | C117: 0.02
A118: Stax_insurance | B118: Property taxes and insurance ($/year) | E118: =tax_ins_rate*total_cap -> 4341957.301
A119: rent | B119: Rent ($/year) | C119: 0 | D119: =Scale_Factor *CPIinflator -> 0.9616369142 | E119: =C119*D119 -> 0
A120: material | B120: Material costs for maintenance and repairs ($/year) | C120: 810097 | D120: =Scale_Factor *CEPCIinflator*CPIinflator -> 1.131289219 | E120: =C120*D120 -> 916454.0024
A121: prod_maint | B121: Production Maintenance and Repairs ($/year) | C121: 0 | D121: =Scale_Factor *CEPCIinflator*CPIinflator -> 1.131289219 | E121: =C121*D121 -> 0
A122: other_fees | B122: Other Fees ($/year) | C122: 0 | D122: =Scale_Ratio * CEPCIinflator*CPIinflator -> 1.131289219 | E122: =C122*D122 -> 0
A123: other_fixed | B123: Other Fixed O&M Costs ($/year) | C123: 0 | D123: =Scale_Factor *CEPCIinflator*CPIinflator -> 1.131289219 | E123: =C123*D123 -> 0
A124: Sfixed | B124: Total Fixed Operating Costs | E124: =(labor_cost+overhead_GA+tax_insurance+licensing+SUM(E119:E123))*sensitivity_07 -> 7739184.054
B126: Variable Operating Costs
B127: Other Materials and Byproducts
B129: Select the Material
B130: Cooling Water
B131: Feed or utility | C131: =B130 -> Cooling Water
B132: ="$(" & ref_year & ")/ " & VLOOKUP(TMP_NonE_Feed,Tbl_Other_Inputs_and_Byproducts,2,FALSE) -> $(2007)/ gal | C132: =HLOOKUP(startup_year,Tbl_Other_Inputs_and_Byproducts,MATCH(TMP_NonE_Feed,Other_Inputs_List,0),FALSE) -> 8.627496263e-05
B133: =IF(TMP_NonE_Type="Feed or utility","Usage per kg H2","Production per kg H2") -> Usage per kg H2 | C133: 5
B134: =IF(TMP_NonE_Type = "Feed or utility", "Cost in Startup Year","Income in Startup Year") -> Cost in Startup Year | C134: =design_cap*365*cap_factor*TMP_NonE_Usage*TMP_NonE_StartPrice -> 53761.65176
B135: Lookup Prices | C135: Yes
A136: START_NONE_TOP
B137: Feed or utility | C137: $(2007)/ gal | D137: Usage per kg H2 | E137: Cost in Startup Year | F137: Lookup Prices
B138: Demineralized Water | C138: 0.005422997651 | D138: 3.355 | E138: 2267512.867 | F138: Yes
B139: Feed or utility | C139: $(2007)/ gal | D139: Usage per kg H2 | E139: Cost in Startup Year | F139: Lookup Prices
B140: Cooling Water | C140: 8.627496263e-05 | D140: 1.495 | E140: 16074.73388 | F140: Yes
A141: START_NONE_FEED
A142: START_NONE_BYPROD
B143: Total Non Energy Utility and Material Costs ($/year) | C143: =SUM(Dynamic_NonE_Feed_Total) -> 2283587.6
A144: total_non_energy_byproduct_credit | B144: Total Non Energy Byproduct Credits ($/year) | C144: =SUM(Dynamic_NonE_Byprod_Total) -> 0
A146: Stotal_feedstock | B146: Total Feedstock Costs ($/year) | C146: =Total_Energy_Feed_Cost -> 111584337.7
A147: Stotal_utilities | B147: Total Utility Costs ($/year) | C147: =Total_Energy_Utilities_Cost+Total_Non_Energy_Feed_Cost -> 6355674.962
A148: Stotal_byproducts | B148: Total Byproduct Credits ($/year) | C148: =Total_Energy_Byproduct_Credit+total_non_energy_byproduct_credit -> 0
B149: Other Variable operating costs (for the first year) | C149: ="Enter values in basis year (" & BasisYear & ") dollars" -> Enter values in basis year (2005) dollars | D149: Combined Plant Scaling and Escalation Factor | E149: ="Reference Year ("& ref_year & ") Dollars" -> Reference Year (2007) Dollars
A150: var_misc | B150: Other variable operating costs (e.g. environmental surcharges) ($/year) | C150: 2123000 | D150: =Scale_Ratio * VLOOKUP(ref_year,Chemical_price_indexes,2,FALSE)/VLOOKUP(BasisYear,Chemical_price_indexes,2,FALSE) -> 1.085424453 | E150: =C150*D150 -> 2304356.113 | F150: Original ($2005) SMR Catalyst @ $7.00/lb, SCR @ $10.00/lb, PSA Sorbent, Shift Catalyst @ $5.24/lb; $2,123,000
A151: total_other_raw | B151: Other Material Costs ($/year) | C151: 0 | D151: =Scale_Ratio * VLOOKUP(ref_year,Chemical_price_indexes,2,FALSE)/VLOOKUP(BasisYear,Chemical_price_indexes,2,FALSE) -> 1.085424453 | E151: =C151*D151 -> 0
A152: waste_treat | B152: Waste treatment costs ($/year) | C152: 0 | D152: =Scale_Ratio * VLOOKUP(ref_year,Chemical_price_indexes,2,FALSE)/VLOOKUP(BasisYear,Chemical_price_indexes,2,FALSE) -> 1.085424453 | E152: =C152*D152 -> 0
A153: solidwaste_treat | B153: Solid waste disposal costs ($/year) | C153: 0 | D153: =Scale_Ratio * VLOOKUP(ref_year,Chemical_price_indexes,2,FALSE)/VLOOKUP(BasisYear,Chemical_price_indexes,2,FALSE) -> 1.085424453 | E153: =C153*D153 -> 0
A154: replace_factor | B154: Total Unplanned Replacement Capital Cost Factor (% of total direct depreciable costs/year) | C154: 0.005 | E154: Value added to match other central cases. Use this value for all central cases
A155: royalties | B155: Royalties ($/year) | C155: 0 | D155: =Scale_Ratio * CPIinflator -> 0.9616369142 | E155: 0
A156: operator_profit | B156: Operator Profit ($/year) | C156: 0 | D156: =Scale_Ratio * CPIinflator -> 0.9616369142 | E156: 0
A157: tax_credit | B157: Subsidies, Tax Incentives ($/year) | C157: 0 | D157: =Scale_Ratio * CPIinflator -> 0.9616369142 | E157: 0
A158: CO2_seq | B158: CO2 sequestration O&M costs and credits ($/year)
B159: Process Carbon Tax ($/metric ton carbon produced as CO2) | C159: 0 | D159: =CPIinflator -> 0.9616369142 | E159: 0
B160: Process Carbon Tax ($/year) | E160: =ROUND(Proc_CO2_tax*12/44*Proc_CO2_MTpY,-2) -> 0
B161: Upstream Carbon Tax ($/metric ton upstream GHG CO2 eq) | C161: 0 | D161: =CPIinflator -> 0.9616369142 | E161: 0
B162: Upstream Carbon Tax ($/year) | E162: =ROUND(Upstream_CO2_tax/1000*Upstream_GHG_total*output_kgyear,2) -> 0
A163: Stotal_var | B163: Total Variable Operating Costs ($/year) | E163: =ROUND(total_feedstock+total_utilities+total_other_raw-total_byproducts+var_misc+waste_treat+solidwaste_treat+royalties+operator_profit-tax_credit+CO2_OandMcost+Proc_CO2_taxpYear + Upstream_CO2_taxpYear,-2) -> 120244400

Sheet Replacement Costs
A2: Replacement Costs
C5: Color Key
A9: ="NOTE: Enter costs in year "&TEXT(BasisYear,"0")&" $ - Do not inflate" -> NOTE: Enter costs in year 2005 $ - Do not inflate
A10: NOTE: All replacement costs are assumed to be equity financed.
A13: Unplanned Yearly Replacement Capital (Depreciable)
C14: Comments | E14: Source | F14: Information
A15: Total Unplanned Replacement Capital Cost Factor (% of total depreciable capital costs/year) | B15: =replace_factor -> 0.005 | F15: Enter a fixed percentage. This input is meant to include, in the Cash Flow Analysis, a factor for unplanned capital expenditures.
A16: Actual Year | B16: Analysis Year | C16: Operations Year | D16: Specified Yearly Replacement Costs | E16: Specified Yearly Replacement Costs | F16: Unplanned Replacement Costs | G16: Total Yearly Replacement Costs | H16: Uninstalled costs | I16: Installation factor | J16: Comments: | K16: Data source:
D17: ="Year "&TEXT(BasisYear,"0")&" $" -> Year 2005 $ | E17: ="Year "&TEXT(ref_year,"0")&" $" -> Year 2007 $ | F17: ="Year "&TEXT(ref_year,"0")&" $" -> Year 2007 $ | G17: Inflated to Start-up Year
A18: =IF(C18<>"",'Cash Flow Analysis'!A65,"") -> 2007 | B18: =construct+1 -> 4 | C18: 1 | E18: =D18*CPIinflator*CEPCIinflator -> 0 | F18: =IF(C18>anal_period,0,IF(replace_factor<>"",replace_factor*depr_cap,0)) -> 1083085.233 | G18: =(E18+F18)*((1+inflation_rate)^(startup_year-ref_year)) -> 1146001.501
A19: =IF(C19<>"",'Cash Flow Analysis'!A66,"") -> 2008 | B19: =IF(B18<anal_period+construct,B18+1,"") -> 5 | C19: =IF(B19="","",C18+1) -> 2 | E19: 0 | F19: 1083085.233 | G19: 1146001.501
A20: =IF(C20<>"",'Cash Flow Analysis'!A67,"") -> 2009 | B20: 6 | C20: 3 | E20: 0 | F20: 1083085.233 | G20: 1146001.501
A21: =IF(C21<>"",'Cash Flow Analysis'!A68,"") -> 2010 | B21: 7 | C21: 4 | E21: 0 | F21: 1083085.233 | G21: 1146001.501
A22: =IF(C22<>"",'Cash Flow Analysis'!A69,"") -> 2011 | B22: 8 | C22: 5 | E22: 0 | F22: 1083085.233 | G22: 1146001.501
A23: =IF(C23<>"",'Cash Flow Analysis'!A70,"") -> 2012 | B23: 9 | C23: 6 | E23: 0 | F23: 1083085.233 | G23: 1146001.501
A24: =IF(C24<>"",'Cash Flow Analysis'!A71,"") -> 2013 | B24: 10 | C24: 7 | E24: 0 | F24: 1083085.233 | G24: 1146001.501
A25: =IF(C25<>"",'Cash Flow Analysis'!A72,"") -> 2014 | B25: 11 | C25: 8 | E25: 0 | F25: 1083085.233 | G25: 1146001.501
A26: =IF(C26<>"",'Cash Flow Analysis'!A73,"") -> 2015 | B26: 12 | C26: 9 | E26: 0 | F26: 1083085.233 | G26: 1146001.501
A27: =IF(C27<>"",'Cash Flow Analysis'!A74,"") -> 2016 | B27: 13 | C27: 10 | E27: 0 | F27: 1083085.233 | G27: 1146001.501
A28: =IF(C28<>"",'Cash Flow Analysis'!A75,"") -> 2017 | B28: 14 | C28: 11 | E28: 0 | F28: 1083085.233 | G28: 1146001.501
A29: =IF(C29<>"",'Cash Flow Analysis'!A76,"") -> 2018 | B29: 15 | C29: 12 | E29: 0 | F29: 1083085.233 | G29: 1146001.501
A30: =IF(C30<>"",'Cash Flow Analysis'!A77,"") -> 2019 | B30: 16 | C30: 13 | E30: 0 | F30: 1083085.233 | G30: 1146001.501
A31: =IF(C31<>"",'Cash Flow Analysis'!A78,"") -> 2020 | B31: 17 | C31: 14 | E31: 0 | F31: 1083085.233 | G31: 1146001.501
A32: =IF(C32<>"",'Cash Flow Analysis'!A79,"") -> 2021 | B32: 18 | C32: 15 | E32: 0 | F32: 1083085.233 | G32: 1146001.501
A33: =IF(C33<>"",'Cash Flow Analysis'!A80,"") -> 2022 | B33: 19 | C33: 16 | E33: 0 | F33: 1083085.233 | G33: 1146001.501
A34: =IF(C34<>"",'Cash Flow Analysis'!A81,"") -> 2023 | B34: 20 | C34: 17 | E34: 0 | F34: 1083085.233 | G34: 1146001.501
A35: =IF(C35<>"",'Cash Flow Analysis'!A82,"") -> 2024 | B35: 21 | C35: 18 | E35: 0 | F35: 1083085.233 | G35: 1146001.501
A36: =IF(C36<>"",'Cash Flow Analysis'!A83,"") -> 2025 | B36: 22 | C36: 19 | E36: 0 | F36: 1083085.233 | G36: 1146001.501
A37: =IF(C37<>"",'Cash Flow Analysis'!A84,"") -> 2026 | B37: 23 | C37: 20 | E37: 0 | F37: 1083085.233 | G37: 1146001.501
A38: =IF(C38<>"",'Cash Flow Analysis'!A85,"") -> 2027 | B38: 24 | C38: 21 | E38: 0 | F38: 1083085.233 | G38: 1146001.501
A39: =IF(C39<>"",'Cash Flow Analysis'!A86,"") -> 2028 | B39: 25 | C39: 22 | E39: 0 | F39: 1083085.233 | G39: 1146001.501
A40: =IF(C40<>"",'Cash Flow Analysis'!A87,"") -> 2029 | B40: 26 | C40: 23 | E40: 0 | F40: 1083085.233 | G40: 1146001.501
A41: =IF(C41<>"",'Cash Flow Analysis'!A88,"") -> 2030 | B41: 27 | C41: 24 | E41: 0 | F41: 1083085.233 | G41: 1146001.501
A42: =IF(C42<>"",'Cash Flow Analysis'!A89,"") -> 2031 | B42: 28 | C42: 25 | E42: 0 | F42: 1083085.233 | G42: 1146001.501
A43: =IF(C43<>"",'Cash Flow Analysis'!A90,"") -> 2032 | B43: 29 | C43: 26 | E43: 0 | F43: 1083085.233 | G43: 1146001.501
A44: =IF(C44<>"",'Cash Flow Analysis'!A91,"") -> 2033 | B44: 30 | C44: 27 | E44: 0 | F44: 1083085.233 | G44: 1146001.501
A45: =IF(C45<>"",'Cash Flow Analysis'!A92,"") -> 2034 | B45: 31 | C45: 28 | E45: 0 | F45: 1083085.233 | G45: 1146001.501
A46: =IF(C46<>"",'Cash Flow Analysis'!A93,"") -> 2035 | B46: 32 | C46: 29 | E46: 0 | F46: 1083085.233 | G46: 1146001.501
A47: =IF(C47<>"",'Cash Flow Analysis'!A94,"") -> 2036 | B47: 33 | C47: 30 | E47: 0 | F47: 1083085.233 | G47: 1146001.501
A48: =IF(C48<>"",'Cash Flow Analysis'!A95,"") -> 2037 | B48: 34 | C48: 31 | E48: 0 | F48: 1083085.233 | G48: 1146001.501
A49: =IF(C49<>"",'Cash Flow Analysis'!A96,"") -> 2038 | B49: 35 | C49: 32 | E49: 0 | F49: 1083085.233 | G49: 1146001.501
A50: =IF(C50<>"",'Cash Flow Analysis'!A97,"") -> 2039 | B50: 36 | C50: 33 | E50: 0 | F50: 1083085.233 | G50: 1146001.501
A51: =IF(C51<>"",'Cash Flow Analysis'!A98,"") -> 2040 | B51: 37 | C51: 34 | E51: 0 | F51: 1083085.233 | G51: 1146001.501
A52: =IF(C52<>"",'Cash Flow Analysis'!A99,"") -> 2041 | B52: 38 | C52: 35 | E52: 0 | F52: 1083085.233 | G52: 1146001.501
A53: =IF(C53<>"",'Cash Flow Analysis'!A100,"") -> 2042 | B53: 39 | C53: 36 | E53: 0 | F53: 1083085.233 | G53: 1146001.501
A54: =IF(C54<>"",'Cash Flow Analysis'!A101,"") -> 2043 | B54: 40 | C54: 37 | E54: 0 | F54: 1083085.233 | G54: 1146001.501
A55: =IF(C55<>"",'Cash Flow Analysis'!A102,"") -> 2044 | B55: 41 | C55: 38 | E55: 0 | F55: 1083085.233 | G55: 1146001.501
A56: =IF(C56<>"",'Cash Flow Analysis'!A103,"") -> 2045 | B56: 42 | C56: 39 | E56: 0 | F56: 1083085.233 | G56: 1146001.501
A57: =IF(C57<>"",'Cash Flow Analysis'!A104,"") -> 2046 | B57: 43 | C57: 40 | E57: 0 | F57: 1083085.233 | G57: 1146001.501

Sheet Capital Costs
B2: Capital Costs
C4: Color Key
B7: Design Plant Hydrogen Production (kg/day) | C7: 379387 | D7: Capital costs for the design plant (baseline) are entered on this sheet. Use the Plant Scaling sheet to set scaling parameters for scaling up or down in size from the baseline plant. Enter the output kg/day for the plant you wish to analyze on the Input Sheet
D8: Comments
B9: Basis year for capital costs | C9: =BasisYear -> 2005
B10: Enter current year for capital costs | C10: 2010
B11: ="CEPCI Inflator ("&BasisYear&" to "&CurrentYear&")" -> CEPCI Inflator (2005 to 2010) | C11: =VLOOKUP(CurrentYear,Tbl_PlantCostIndexes,2,FALSE)/VLOOKUP(BasisYear,Tbl_PlantCostIndexes,2,FALSE) -> 1.176420333 | D11: The Chemical Engineering Plant Cost Index (CEPCI) is used to adjust the capital cost of the H2 Production facility from the basis year to the current year.
B12: ="Consumer Price Inflator ("&CurrentYear&" to "&ref_year&")" -> Consumer Price Inflator (2010 to 2007) | C12: =VLOOKUP(ref_year,DeflatorTable,2,FALSE)/VLOOKUP(CurrentYear,DeflatorTable,2,FALSE) -> 0.9616369142 | D12: The Consumer Price Inflator (CPI) is used to deflate all dollars from the current year to the Reference Year.
B14: ="CAPITAL INVESTMENT (Inputs REQUIRED in Basis Year, (" & BasisYear & ") $)" -> CAPITAL INVESTMENT (Inputs REQUIRED in Basis Year, (2005) $)
B15: Major pieces/systems of equipment | C15: ="Baseline Uninstalled Costs $"&BasisYear&" Dollars" -> Baseline Uninstalled Costs $2005 Dollars | D15: ="Baseline Uninstalled Costs $"&ref_year&" Dollars" -> Baseline Uninstalled Costs $2007 Dollars | E15: Installation Cost Factor | F15: Baseline Installed Costs | G15: Comments | H15: Data Source
B16: Process Plant Equipment | C16: 49969788 | D16: =C16*CEPCIinflator*CPIinflator -> 56530282.44 | E16: 1.92 | F16: =D16*E16 -> 108538142.3
B17: Balance of Plant and Offsites | C17: 19964651 | D17: 22585794.44 | E17: 1.92 | F17: =D17*E17 -> 43364725.32
B18: SCR NOx Control on Stack | C18: 296651 | D18: 335598.0781 | E18: 1.92 | F18: 644348.31
D19: 0 | F19: 0
D20: 0 | F20: 0
D21: 0 | F21: 0
D22: 0 | F22: 0
D23: 0 | F23: 0
D24: 0 | F24: 0
D25: 0 | F25: 0
D26: 0 | F26: 0
D27: 0 | F27: 0
D28: 0 | F28: 0
D29: 0 | F29: 0
D30: 0 | F30: 0
D31: 0 | F31: 0
D32: 0 | F32: 0
D33: 0 | F33: 0
D34: 0 | F34: 0
D35: 0 | F35: 0
C36: =SUM(C16:C35) -> 70231090 | D36: =SUM(D16:D35) -> 79451674.95 | F36: =SUM(F16:F35) -> 152547215.9

Sheet Plant Scaling
B1: leave this sheet as is for scaled costs
B2: Plant Scaling Factors
B3: Baseline Design Capacity (kg H2/day) | C3: =Baseline_Design_Capacity -> 379387 | D3: Design capacity for original H2A case. Imported from capital cost sheet
B4: Scale Ratio | C4: =design_cap/Baseline_Design_Capacity -> 1 | D4: Ratio of new design capacity (enter on Input Sheet) to the Baseline Design Capacity. Used for linear scaling
B5: Scale Factor | C5: =$G$27/Det_direct_cap -> 1 | D5: Ratio of total scaled installed capital capital cost to total baseline installed capital costs. Used for exponential scaling.
B6: Default Scaling Factor Exponent | C6: 0.6 | D6: Scaling factor exponent used for scaling all capital equipment where an individual factor has not been entered below.
B7: Lower Limit for Scaling Capacity (kg H2/day) | C7: 235000 | D7: http://www.chemicals-technology.com/projects/air-products-plant/
B8: Upper Limit for Scaling Capacity (kg H2/day) | C8: 425000 | D8: http://hydrogen.pnl.gov/filedownloads/hydrogen/datasheets/hydrogen_production_capacity_by_state.xls
B11: ="CAPITAL INVESTMENT (Inputs REQUIRED in Reference Year, (" & ref_year & ") $)" -> CAPITAL INVESTMENT (Inputs REQUIRED in Reference Year, (2007) $)
B12: Major pieces/systems of equipment | C12: Baseline Uninstalled Costs | D12: Scaling Factor Exponent | E12: Scaled Uninstalled Costs | F12: Installation Cost Factor | G12: Installed Cost (scaled) | H12: Installed Cost (baseline) | I12: Comments | J12: Data Source
B13: ='Capital Costs'!B16 -> Process Plant Equipment | C13: ='Capital Costs'!D16 -> 56530282.44 | E13: =IF($D13="",$C13*Scale_Ratio^Scaling_Factor_Exponent,$C13*Scale_Ratio^$D13) -> 56530282.44 | F13: ='Capital Costs'!E16 -> 1.92 | G13: =$E13*$F13 -> 108538142.3 | H13: =C13*F13 -> 108538142.3
B14: ='Capital Costs'!B17 -> Balance of Plant and Offsites | C14: ='Capital Costs'!D17 -> 22585794.44 | E14: 22585794.44 | F14: ='Capital Costs'!E17 -> 1.92 | G14: =$E14*$F14 -> 43364725.32 | H14: =C14*F14 -> 43364725.32
B15: ='Capital Costs'!B18 -> SCR NOx Control on Stack | C15: ='Capital Costs'!D18 -> 335598.0781 | E15: 335598.0781 | F15: ='Capital Costs'!E18 -> 1.92 | G15: 644348.31 | H15: 644348.31
B16: ='Capital Costs'!B19 -> 0 | C16: ='Capital Costs'!D19 -> 0 | E16: 0 | F16: ='Capital Costs'!E19 -> 0 | G16: 0 | H16: 0
B17: ='Capital Costs'!B20 -> 0 | C17: ='Capital Costs'!D20 -> 0 | E17: 0 | F17: ='Capital Costs'!E20 -> 0 | G17: 0 | H17: 0
B18: ='Capital Costs'!B21 -> 0 | C18: ='Capital Costs'!D21 -> 0 | E18: 0 | F18: ='Capital Costs'!E21 -> 0 | G18: 0 | H18: 0
B19: ='Capital Costs'!B22 -> 0 | C19: ='Capital Costs'!D22 -> 0 | E19: 0 | F19: ='Capital Costs'!E22 -> 0 | G19: 0 | H19: 0
B20: ='Capital Costs'!B23 -> 0 | C20: ='Capital Costs'!D23 -> 0 | E20: 0 | F20: ='Capital Costs'!E23 -> 0 | G20: 0 | H20: 0
B21: ='Capital Costs'!B24 -> 0 | C21: ='Capital Costs'!D24 -> 0 | E21: 0 | F21: ='Capital Costs'!E24 -> 0 | G21: 0 | H21: 0
B22: ='Capital Costs'!B25 -> 0 | C22: ='Capital Costs'!D25 -> 0 | E22: 0 | F22: ='Capital Costs'!E25 -> 0 | G22: 0 | H22: 0
B23: ='Capital Costs'!B26 -> 0 | C23: ='Capital Costs'!D26 -> 0 | E23: 0 | F23: ='Capital Costs'!E26 -> 0 | G23: 0 | H23: 0
B24: ='Capital Costs'!B27 -> 0 | C24: ='Capital Costs'!D27 -> 0 | E24: 0 | F24: ='Capital Costs'!E27 -> 0 | G24: 0 | H24: 0
B25: ='Capital Costs'!B28 -> 0 | C25: ='Capital Costs'!D28 -> 0 | E25: 0 | F25: ='Capital Costs'!E28 -> 0 | G25: 0 | H25: 0
B26: ='Capital Costs'!B29 -> 0 | C26: ='Capital Costs'!D29 -> 0 | E26: 0 | F26: ='Capital Costs'!E29 -> 0 | G26: 0 | H26: 0
B27: TOTALS (including scaling) | C27: =SUM(C13:C26) -> 79451674.95 | E27: =SUM(E13:E26) -> 79451674.95 | G27: =SUM(G13:G26) -> 152547215.9 | H27: =SUM(H13:H26) -> 152547215.9
B30: Plant Scaling Method | C30: Variable Name | D30: Select Method | F30: Baseline Value | G30: Notes
A31: Engin | B31: Engineering & design ($) | C31: Engin | D31: Skip | E31: 1 | F31: 15166643.78 | G31: In the base case, indirect capital costs are calculated as a percentage of direct capital costs and are therefore automatically scaled when capital costs are scaled.
A32: Site_prep | B32: Site Preparation ($) | C32: Site_prep | D32: Skip | E32: 1 | F32: 3033328.76 | G32: A value of 1 in the reference year escalation column indicates that the value will not be escalated, either because the value is already escalated or escalation is not appropriate for this value.
A33: Process_cont | B33: Process contingency ($) | C33: Process_cont | D33: Skip | E33: 1 | F33: 0
A34: Project_cont | B34: Project contingency ($) | C34: Project_cont | D34: Skip | E34: 1 | F34: 22749965.66
A35: Fees | B35: One-time Licensing Fees ($) | C35: Fees | D35: Skip | E35: 1 | F35: 0
A36: Other_indirect | B36: Other (Depreciable) capital ($) | C36: Other_indirect | D36: Skip | E36: 1 | F36: 0
A37: Permitting | B37: Up-Front Permitting Costs ($) | C37: Permitting | D37: Skip | E37: 1 | F37: 22749965.66
B38: Cost of Land ($/acre) | C38: acre_cost | D38: Use Baseline Value | E38: CPIinflator | F38: 47804.23 | G38: escalate using consumer price indexes
A39: acres | B39: Land required (acres) | C39: acres | D39: Use Scale Factor | E39: 1 | F39: 10
A40: FTEs | B40: Total plant staff (number of FTEs employed by plant) | C40: FTEs | D40: 0.25 | E40: 1 | F40: 20 | G40: Peters and Timmerhaus, Plant Design and Economics for Chemical Engineers 3rd Edition, McGraw Hill, 1980. Operating labor cost estimation, p. 195
B41: Burdened labor cost, including overhead ($/man-hr) | C41: FTE_cost | D41: Use Baseline Value | E41: VLOOKUP(ref_year,Tbl_labor_indexes,2,FALSE)/VLOOKUP(BasisYear,Tbl_labor_indexes,2,FALSE) | F41: 49.7
A42: licensing | B42: Licensing, Permits and Fees ($/year) | C42: licensing | D42: Use Scale Factor | E42: CEPCIinflator*CPIinflator | F42: 0 | G42: usually based on project costs
A43: rent | B43: Rent ($/year) | C43: rent | D43: Use Scale Factor | E43: CPIinflator | F43: 0
A44: material | B44: Material costs for maintenance and repairs ($/year) | C44: material | D44: Use Scale Factor | E44: CEPCIinflator*CPIinflator | F44: 911162.57
A45: prod_maint | B45: Production Maintenance and Repairs ($/year) | C45: prod_maint | D45: Use Scale Factor | E45: CEPCIinflator*CPIinflator | F45: 0
A46: other_fees | B46: Other Fees ($/year) | C46: other_fees | D46: Use Scale Ratio | E46: CEPCIinflator*CPIinflator | F46: 0
A47: other_fixed | B47: Other Fixed O&M Costs ($/year) | C47: other_fixed | D47: Use Scale Factor | E47: CEPCIinflator*CPIinflator | F47: 0
A48: var_misc | B48: Other variable operating costs ($/year) | C48: var_misc | D48: Use Scale Ratio | E48: VLOOKUP(ref_year,Chemical_price_indexes,2,FALSE)/VLOOKUP(BasisYear,Chemical_price_indexes,2,FALSE) | F48: 2304356.11 | G48: escalate using chemical price indexes
B49: Other Material Costs ($/year) | C49: total_other_raw | D49: Use Scale Ratio | E49: VLOOKUP(ref_year,Chemical_price_indexes,2,FALSE)/VLOOKUP(BasisYear,Chemical_price_indexes,2,FALSE) | F49: 0 | G49: escalate using chemical price indexes
A50: waste_treat | B50: Waste treatment costs ($/year) | C50: waste_treat | D50: Use Scale Ratio | E50: VLOOKUP(ref_year,Chemical_price_indexes,2,FALSE)/VLOOKUP(BasisYear,Chemical_price_indexes,2,FALSE) | F50: 0 | G50: escalate using chemical price indexes
A51: solidwaste_treat | B51: Solid waste disposal costs ($/year) | C51: solidwaste_treat | D51: Use Scale Ratio | E51: VLOOKUP(ref_year,Chemical_price_indexes,2,FALSE)/VLOOKUP(BasisYear,Chemical_price_indexes,2,FALSE) | F51: 0 | G51: escalate using chemical price indexes
A52: royalties | B52: Royalties ($/year) | C52: royalties | D52: Use Scale Ratio | E52: CPIinflator | F52: 0 | G52: escalate using general consumer price indexes
A53: operator_profit | B53: Operator Profit ($/year) | C53: operator_profit | D53: Use Scale Ratio | E53: CPIinflator | F53: 0 | G53: escalate using general consumer price indexes
A54: tax_credit | B54: Subsidies, Tax Incentives ($/year) | C54: tax_credit | D54: Use Scale Ratio | E54: CPIinflator | F54: 0 | G54: escalate using general consumer price indexes
A55: CO2_OandMCost | B55: CO2 sequestration O&M costs ($/year) | C55: CO2_OandMCost | D55: Skip | E55: CEPCIinflator*CPIinflator | F55: 0

Sheet Carbon Sequestration
B2: To Use Carbon Sequestration Click 'Link to Detail Sheet' in the Input Sheet Capital Cost Section
B4: Carbon Sequestration Calculation Information
B5: Costs for carbon (CO2) compression, transport to the sequestration site and injection are calculated in this section. Capital and operating costs for carbon capture are assumed to be included in the capital and operating costs for the production facility and are not included here. For H2A analysis of hydrogen production processes, it is assumed that only carbon contained in the process feedstock can be captured. Carbon contained in fuels such as natural gas used for steam generation (i.e., as a utility) cannot be captured. Therefore, only CO2 emissions from feedstocks are shown below. CO2 emissions from fuels used as utilities are included in the total emissions from the process shown on the Results sheet. All feedstocks and utilities should be specified before completing this section. See the QuickStart Guide for information on the derivation of the equations used in this section.
B7: Table of Contents
B8: Color Key
B11: Use default values (checkboxes)
B15: Carbon Sequestration Input Values
B16: Summary of Output Values
B17: Carbon Sequestration Calculations
B20: Carbon Sequestration Information | H20: Summary of Output Values (CO2 Seq. costs are reported on Results Tab as part of total H2 Production cost)
B21: CO2 Produced from Feedstock (metric tons CO2/year) | C21: =Feed_CO2_MTpY -> 1157000 | D21: CO2 emissions are based on the carbon content of the feed. See the Physical Properties Table for specific values | H21: Capital Costs
B22: CO2 Produced from Feedstock (kg CO2/kg H2) | C22: =Feed_CO2_kgpkgH2 -> 9.283231604 | H22: CO2 Compressor | J22: =$C$78 -> 32463439.06
B23: CO2 Mass Flowrate (metric tons/day) | C23: =Feed_CO2_MTpY/365*CO2_Capture_Efficiency -> 2852.876712 | H23: CO2 Injection (Site and wells) | J23: =$C$105 -> 2443283.18
B24: Electricity Cost ($/kWh) | C24: =HLOOKUP(startup_year,INDIRECT(TMP_PriceTable),MATCH("Industrial Electricity",INDIRECT(Energy_Feed_List),0),FALSE)*VLOOKUP("kWh",CC_feedconversion,2,FALSE) -> 0.05742314849 | D24: Price for industrial electricity in the startup year | H24: CO2 Pipeline | J24: =$C$116 -> 73488061.37
B25: Carbon Sequestration Electricity Usage (kWh/kg H2) | C25: =IF(C21=0,0,($C$47)*cap_factor*24*365/output_kgyear) -> 0.80781275 | J25: =SUM(J22:J24) -> 108394783.6 | K25: Total
H26: Approx. Uninstalled Equipment Cost | J26: =IF(CO2_inUse = "To Use Carbon Sequestration Click 'Link to Detail Sheet' in the Input Sheet Capital Cost Section",0,J22/1.2+J23/1.5+J24/(CO2_Location_factor*CO2_Terrain_factor)) -> 0
B27: Carbon Sequestration Input Values | H27: Approx. Indirect Capital Costs | J27: =Det_CO2_seq/(direct_cap+ CO2_seq)*(Site_prep+Engin+Process_cont+Project_cont+Other_indirect+Fees+Permitting) -> 45525809.12
B28: Carbon Capture Efficiency (%) | C28: 0.9 | H28: Electrical Costs (annual cost)
B29: CO2 capture process outlet pressure (psia) | C29: 14.7 | E29: Inlet pressure for compression | H29: CO2 Compressor | J29: =$C$75 -> 5781167.117
B30: CO2 capture credit ($/metric ton CO2 captured) | C30: 0 | H30: CO2 Injection (Site and wells) | J30: 0
B31: Operation and maintenance factor for compressors and pumps | C31: 0.04 | H31: CO2 Pipeline | J31: 0
B32: Operation and maintenance factor for CO2 pipeline | C32: 0.025 | J32: =SUM(J29:J31) -> 5781167.117 | K32: Total
B33: Capital cost for site screening and evaluation (per well) | C33: 1857773 | E33: ="enter value in basis year (" & BasisYear & ") dollars" -> enter value in basis year (2005) dollars | H33: O&M (annual cost)
B34: Number of injection wells | C34: 1 | H34: CO2 Capture Credit | J34: =-Feed_CO2_MTpY*CO2_Capture_Efficiency*CO2_credit -> 0
B35: Well depth (m) | C35: 1524 | H35: CO2 Compressor | J35: =$C$86 -> 1298537.562
B36: Location factor | C36: 1 | E36: 1 - USA, Canada, Europe, Japan, Australia; 1.2 UK | H36: CO2 Injection (Site and wells) | J36: =$C$112 -> 84199.00771
B37: Terrain Type | C37: <20% Mountainous | H37: CO2 Pipeline | J37: =$C$120 -> 1837201.534
B38: Terrain factor | C38: =VLOOKUP(C37,CO2_Terrain_2,2,FALSE) -> 1.3 | H38: Total Excluding Electricity | J38: =SUM(J34:J37) -> 3219938.104 | K38: Total
B39: Total CO2 pipeline length (miles) | C39: 100 | H39: Property tax and insurance | J39: =Det_CO2_seq*tax_ins_rate -> 2167895.672
B40: After Tax Real Capital Recovery Factor | C40: =(real_irr*(1+real_irr)^anal_period)/(((real_irr+1)^anal_period)-1) -> 0.1022594144 | H40: Carbon Sequestration Energy Charge ($/tonne CO2 sequestered) | K40: =ROUND(CO2_eCostpY/(Feed_CO2_MTpY*CO2_Capture_Efficiency),1) -> 5.6
B41: Real Present Value of Depreciation | C41: =INDEX(MACRS_Table,MATCH("NPV - Real IRR",recovery_year,0),MATCH(depr_length,recovery_period,0))*(1+real_irr) -> 0.4866640288 | H41: Carbon Sequestration O&M Charge ($/tonne CO2 sequestered) | K41: =ROUND((Det_CO2_OandMcost+ CCS_tax_insurance)/(Feed_CO2_MTpY*CO2_Capture_Efficiency),1) -> 5.2
B42: Approx Capital Charge Rate | C42: =(CO2_cap_rec*(1-total_tax_rate*CO2_depr_factor))/(1-total_tax_rate) -> 0.1356799488 | H42: Approx Carbon Seq. Cap. Charge ($/tonne CO2 sequestered) | K42: =ROUND((Det_CO2_seq+CO2_aprx_indCap)*CO2_cap_charge_rate/(Feed_CO2_MTpY*CO2_Capture_Efficiency),1) -> 20.1
H43: Total | K43: =SUM(K40:K42) -> 30.9
B45: Carbon Sequestration Calculations
B46: CO2 Compressor Costs
B47: Power Requirement | C47: =C61+E61+G61+I61+C67+E67+G67+I67+C73+E73+G73+I73 -> 12769.73566 | D47: kW
B48: Wsi = (1000/(24*3600))*(m*Zs*R*Tin/(M*his)*(ks/(ks-1))*[(CR)^((ks-1)/ks) - 1]
B49: where
B50: CRmax (maximum allowable compression ratio) | C50: 1.8
B51: Outlet Pressure Desired | C51: 15 | D51: MPa
B52: N stages needed: | C52: =ROUNDUP(LN(C51/C59)/LN(C50),0) -> 9
B53: Tin (inlet temperature) | C53: =273.15+50 -> 323.15 | D53: K
B54: hin (isentropic efficiency) | C54: 0.74
B55: CR needed | C55: =+EXP(LN(C51/C59)/(C52)) -> 1.742366551
B56: Stage 1 | D56: Stage 2 | F56: Stage 3 | H56: Stage 4
B57: Z1 (compressability factor or CO2) | C57: =TREND(OFFSET('HyARC Physical Property Data'!$A$182,MATCH(AVERAGE(C59:C60),'HyARC Physical Property Data'!$A$183:$A$260,1),1,2,1),OFFSET('HyARC Physical Property Data'!$A$182,MATCH(AVERAGE(C59:C60),'HyARC Physical Property Data'!$A$183:$A$260,1),0,2,1),AVERAGE(C59:C60)) -> 0.9947457325 | D57: Z2 | E57: =TREND(OFFSET('HyARC Physical Property Data'!$A$182,MATCH(AVERAGE(E59:E60),'HyARC Physical Property Data'!$A$183:$A$260,1),1,2,1),OFFSET('HyARC Physical Property Data'!$A$182,MATCH(AVERAGE(E59:E60),'HyARC Physical Property Data'!$A$183:$A$260,1),0,2,1),AVERAGE(E59:E60)) -> 0.9908279131 | F57: Z3 | G57: =TREND(OFFSET('HyARC Physical Property Data'!$A$182,MATCH(AVERAGE(G59:G60),'HyARC Physical Property Data'!$A$183:$A$260,1),1,2,1),OFFSET('HyARC Physical Property Data'!$A$182,MATCH(AVERAGE(G59:G60),'HyARC Physical Property Data'!$A$183:$A$260,1),0,2,1),AVERAGE(G59:G60)) -> 0.9839629577 | H57: Z4 | I57: =TREND(OFFSET('HyARC Physical Property Data'!$A$182,MATCH(AVERAGE(I59:I60),'HyARC Physical Property Data'!$A$183:$A$260,1),1,2,1),OFFSET('HyARC Physical Property Data'!$A$182,MATCH(AVERAGE(I59:I60),'HyARC Physical Property Data'!$A$183:$A$260,1),0,2,1),AVERAGE(I59:I60)) -> 0.9718809997
B58: k1 (ratio of Specific Heats for CO2) | C58: =TREND(OFFSET('HyARC Physical Property Data'!$A$182,MATCH(AVERAGE(C59:C60),'HyARC Physical Property Data'!$A$183:$A$260,1),2,2,1),OFFSET('HyARC Physical Property Data'!$A$182,MATCH(AVERAGE(C59:C60),'HyARC Physical Property Data'!$A$183:$A$260,1),0,2,1),AVERAGE(C59:C60)) -> 1.283698366 | D58: k2 | E58: =TREND(OFFSET('HyARC Physical Property Data'!$A$182,MATCH(AVERAGE(E59:E60),'HyARC Physical Property Data'!$A$183:$A$260,1),2,2,1),OFFSET('HyARC Physical Property Data'!$A$182,MATCH(AVERAGE(E59:E60),'HyARC Physical Property Data'!$A$183:$A$260,1),0,2,1),AVERAGE(E59:E60)) -> 1.288250682 | F58: k3 | G58: =TREND(OFFSET('HyARC Physical Property Data'!$A$182,MATCH(AVERAGE(G59:G60),'HyARC Physical Property Data'!$A$183:$A$260,1),2,2,1),OFFSET('HyARC Physical Property Data'!$A$182,MATCH(AVERAGE(G59:G60),'HyARC Physical Property Data'!$A$183:$A$260,1),0,2,1),AVERAGE(G59:G60)) -> 1.29644301 | H58: k4 | I58: =TREND(OFFSET('HyARC Physical Property Data'!$A$182,MATCH(AVERAGE(I59:I60),'HyARC Physical Property Data'!$A$183:$A$260,1),2,2,1),OFFSET('HyARC Physical Property Data'!$A$182,MATCH(AVERAGE(I59:I60),'HyARC Physical Property Data'!$A$183:$A$260,1),0,2,1),AVERAGE(I59:I60)) -> 1.311433612
B59: Pinitial (stage inlet pressure) MPa | C59: =CO2_Pin_psia/MPa_to_psi -> 0.1013527489 | D59: Pinitial | E59: =+C60 -> 0.1765936396 | F59: Pinitial | G59: =+E60 -> 0.3076908508 | H59: Pinitial | I59: =+G60 -> 0.5361102466
B60: Pfinal (stage outlet pressure) MPa | C60: =+C59*$C$55 -> 0.1765936396 | D60: Pfinal | E60: =+E59*$C$55 -> 0.3076908508 | F60: Pfinal | G60: =+G59*$C$55 -> 0.5361102466 | H60: Pfinal | I60: =+I59*$C$55 -> 0.9341005614
B61: W1 (stage power) kW | C61: =+IF(C60<=$C$51,(1000/(24*3600))*(CO2_flowrate*C57*8.314*$C53/(44.01*$C54)*(C58/(C58-1))*($C$55^((C58-1)/C58)-1)),0) -> 1600.718575 | D61: W2 | E61: =+IF(E60<=$C$51,(1000/(24*3600))*(CO2_flowrate*E57*8.314*$C53/(44.01*$C54)*(E58/(E58-1))*($C$55^((E58-1)/E58)-1)),0) -> 1595.658174 | F61: W3 | G61: =+IF(G60<=$C$51,(1000/(24*3600))*(CO2_flowrate*G57*8.314*$C53/(44.01*$C54)*(G58/(G58-1))*($C$55^((G58-1)/G58)-1)),0) -> 1586.807225 | H61: W4 | I61: =+IF(I60<=$C$51,(1000/(24*3600))*(CO2_flowrate*I57*8.314*$C53/(44.01*$C54)*(I58/(I58-1))*($C$55^((I58-1)/I58)-1)),0) -> 1571.247116
B62: Stage 5 | D62: Stage 6 | F62: Stage 7 | H62: Stage 8
B63: Z5 | C63: =TREND(OFFSET('HyARC Physical Property Data'!$A$182,MATCH(AVERAGE(C65:C66),'HyARC Physical Property Data'!$A$183:$A$260,1),1,2,1),OFFSET('HyARC Physical Property Data'!$A$182,MATCH(AVERAGE(C65:C66),'HyARC Physical Property Data'!$A$183:$A$260,1),0,2,1),AVERAGE(C65:C66)) -> 0.9504244127 | D63: Z6 | E63: =TREND(OFFSET('HyARC Physical Property Data'!$A$182,MATCH(AVERAGE(E65:E66),'HyARC Physical Property Data'!$A$183:$A$260,1),1,2,1),OFFSET('HyARC Physical Property Data'!$A$182,MATCH(AVERAGE(E65:E66),'HyARC Physical Property Data'!$A$183:$A$260,1),0,2,1),AVERAGE(E65:E66)) -> 0.9116803068 | F63: Z7 | G63: =TREND(OFFSET('HyARC Physical Property Data'!$A$182,MATCH(AVERAGE(G65:G66),'HyARC Physical Property Data'!$A$183:$A$260,1),1,2,1),OFFSET('HyARC Physical Property Data'!$A$182,MATCH(AVERAGE(G65:G66),'HyARC Physical Property Data'!$A$183:$A$260,1),0,2,1),AVERAGE(G65:G66)) -> 0.8392298824 | H63: Z8 | I63: =TREND(OFFSET('HyARC Physical Property Data'!$A$182,MATCH(AVERAGE(I65:I66),'HyARC Physical Property Data'!$A$183:$A$260,1),1,2,1),OFFSET('HyARC Physical Property Data'!$A$182,MATCH(AVERAGE(I65:I66),'HyARC Physical Property Data'!$A$183:$A$260,1),0,2,1),AVERAGE(I65:I66)) -> 0.6902279245
B64: k5 | C64: =TREND(OFFSET('HyARC Physical Property Data'!$A$182,MATCH(AVERAGE(C65:C66),'HyARC Physical Property Data'!$A$183:$A$260,1),2,2,1),OFFSET('HyARC Physical Property Data'!$A$182,MATCH(AVERAGE(C65:C66),'HyARC Physical Property Data'!$A$183:$A$260,1),0,2,1),AVERAGE(C65:C66)) -> 1.340297783 | D64: k6 | E64: =TREND(OFFSET('HyARC Physical Property Data'!$A$182,MATCH(AVERAGE(E65:E66),'HyARC Physical Property Data'!$A$183:$A$260,1),2,2,1),OFFSET('HyARC Physical Property Data'!$A$182,MATCH(AVERAGE(E65:E66),'HyARC Physical Property Data'!$A$183:$A$260,1),0,2,1),AVERAGE(E65:E66)) -> 1.400419604 | F64: k7 | G64: =TREND(OFFSET('HyARC Physical Property Data'!$A$182,MATCH(AVERAGE(G65:G66),'HyARC Physical Property Data'!$A$183:$A$260,1),2,2,1),OFFSET('HyARC Physical Property Data'!$A$182,MATCH(AVERAGE(G65:G66),'HyARC Physical Property Data'!$A$183:$A$260,1),0,2,1),AVERAGE(G65:G66)) -> 1.548820652 | H64: k8 | I64: =TREND(OFFSET('HyARC Physical Property Data'!$A$182,MATCH(AVERAGE(I65:I66),'HyARC Physical Property Data'!$A$183:$A$260,1),2,2,1),OFFSET('HyARC Physical Property Data'!$A$182,MATCH(AVERAGE(I65:I66),'HyARC Physical Property Data'!$A$183:$A$260,1),0,2,1),AVERAGE(I65:I66)) -> 2.130524055
B65: Pinitial | C65: =+I60 -> 0.9341005614 | D65: Pinitial | E65: =+C66 -> 1.627545574 | F65: Pinitial | G65: =+E66 -> 2.835780968 | H65: Pinitial | I65: =+G66 -> 4.940969905
B66: Pfinal | C66: =+C65*$C$55 -> 1.627545574 | D66: Pfinal | E66: =+E65*$C$55 -> 2.835780968 | F66: Pfinal | G66: =+G65*$C$55 -> 4.940969905 | H66: Pfinal | I66: =+I65*$C$55 -> 8.608980693
B67: W5 | C67: =+IF(C66<=$C$51,(1000/(24*3600))*(CO2_flowrate*C63*8.314*$C53/(44.01*$C54)*(C64/(C64-1))*($C$55^((C64-1)/C64)-1)),0) -> 1543.739145 | D67: W6 | E67: =+IF(E66<=$C$51,(1000/(24*3600))*(CO2_flowrate*E63*8.314*$C53/(44.01*$C54)*(E64/(E64-1))*($C$55^((E64-1)/E64)-1)),0) -> 1494.367194 | F67: W7 | G67: =+IF(G66<=$C$51,(1000/(24*3600))*(CO2_flowrate*G63*8.314*$C53/(44.01*$C54)*(G64/(G64-1))*($C$55^((G64-1)/G64)-1)),0) -> 1402.778924 | H67: W8 | I67: =+IF(I66<=$C$51,(1000/(24*3600))*(CO2_flowrate*I63*8.314*$C53/(44.01*$C54)*(I64/(I64-1))*($C$55^((I64-1)/I64)-1)),0) -> 1214.017156
B68: Stage 9 | D68: Stage 10 | F68: Stage 11 | H68: Stage 12
B69: Z9 | C69: =TREND(OFFSET('HyARC Physical Property Data'!$A$182,MATCH(AVERAGE(C71:C72),'HyARC Physical Property Data'!$A$183:$A$260,1),1,2,1),OFFSET('HyARC Physical Property Data'!$A$182,MATCH(AVERAGE(C71:C72),'HyARC Physical Property Data'!$A$183:$A$260,1),0,2,1),AVERAGE(C71:C72)) -> 0.3995210482 | D69: Z10 | E69: =TREND(OFFSET('HyARC Physical Property Data'!$A$182,MATCH(AVERAGE(E71:E72),'HyARC Physical Property Data'!$A$183:$A$260,1),1,2,1),OFFSET('HyARC Physical Property Data'!$A$182,MATCH(AVERAGE(E71:E72),'HyARC Physical Property Data'!$A$183:$A$260,1),0,2,1),AVERAGE(E71:E72)) -> 0.410443722 | F69: Z11 | G69: =TREND(OFFSET('HyARC Physical Property Data'!$A$182,MATCH(AVERAGE(G71:G72),'HyARC Physical Property Data'!$A$183:$A$260,1),1,2,1),OFFSET('HyARC Physical Property Data'!$A$182,MATCH(AVERAGE(G71:G72),'HyARC Physical Property Data'!$A$183:$A$260,1),0,2,1),AVERAGE(G71:G72)) -> 0.410443722 | H69: Z12 | I69: =TREND(OFFSET('HyARC Physical Property Data'!$A$182,MATCH(AVERAGE(I71:I72),'HyARC Physical Property Data'!$A$183:$A$260,1),1,2,1),OFFSET('HyARC Physical Property Data'!$A$182,MATCH(AVERAGE(I71:I72),'HyARC Physical Property Data'!$A$183:$A$260,1),0,2,1),AVERAGE(I71:I72)) -> 0.410443722
B70: k9 | C70: =TREND(OFFSET('HyARC Physical Property Data'!$A$182,MATCH(AVERAGE(C71:C72),'HyARC Physical Property Data'!$A$183:$A$260,1),2,2,1),OFFSET('HyARC Physical Property Data'!$A$182,MATCH(AVERAGE(C71:C72),'HyARC Physical Property Data'!$A$183:$A$260,1),0,2,1),AVERAGE(C71:C72)) -> 4.961451678 | D70: k10 | E70: =TREND(OFFSET('HyARC Physical Property Data'!$A$182,MATCH(AVERAGE(E71:E72),'HyARC Physical Property Data'!$A$183:$A$260,1),2,2,1),OFFSET('HyARC Physical Property Data'!$A$182,MATCH(AVERAGE(E71:E72),'HyARC Physical Property Data'!$A$183:$A$260,1),0,2,1),AVERAGE(E71:E72)) -> 3.207074358 | F70: k11 | G70: =TREND(OFFSET('HyARC Physical Property Data'!$A$182,MATCH(AVERAGE(G71:G72),'HyARC Physical Property Data'!$A$183:$A$260,1),2,2,1),OFFSET('HyARC Physical Property Data'!$A$182,MATCH(AVERAGE(G71:G72),'HyARC Physical Property Data'!$A$183:$A$260,1),0,2,1),AVERAGE(G71:G72)) -> 3.207074358 | H70: k12 | I70: =TREND(OFFSET('HyARC Physical Property Data'!$A$182,MATCH(AVERAGE(I71:I72),'HyARC Physical Property Data'!$A$183:$A$260,1),2,2,1),OFFSET('HyARC Physical Property Data'!$A$182,MATCH(AVERAGE(I71:I72),'HyARC Physical Property Data'!$A$183:$A$260,1),0,2,1),AVERAGE(I71:I72)) -> 3.207074358
B71: Pinitial | C71: =+I66 -> 8.608980693 | D71: Pinitial | E71: =+C72 -> 15 | F71: Pinitial | G71: =+E72 -> 26.13549827 | H71: Pinitial | I71: =+G72 -> 45.53761798
B72: Pfinal | C72: =+C71*$C$55 -> 15 | D72: Pfinal | E72: =+E71*$C$55 -> 26.13549827 | F72: Pfinal | G72: =+G71*$C$55 -> 45.53761798 | H72: Pfinal | I72: =+I71*$C$55 -> 79.34322239
B73: W9 | C73: =+IF(C72<=$C$51,(1000/(24*3600))*(CO2_flowrate*C69*8.314*$C53/(44.01*$C54)*(C70/(C70-1))*($C$55^((C70-1)/C70)-1)),0) -> 760.4021482 | D73: W10 | E73: =+IF(E72<=$C$51,(1000/(24*3600))*(CO2_flowrate*E69*8.314*$C53/(44.01*$C54)*(E70/(E70-1))*($C$55^((E70-1)/E70)-1)),0) -> 0 | F73: W11 | G73: =+IF(G72<=$C$51,(1000/(24*3600))*(CO2_flowrate*G69*8.314*$C53/(44.01*$C54)*(G70/(G70-1))*($C$55^((G70-1)/G70)-1)),0) -> 0 | H73: W12 | I73: =+IF(I72<=$C$51,(1000/(24*3600))*(CO2_flowrate*I69*8.314*$C53/(44.01*$C54)*(I70/(I70-1))*($C$55^((I70-1)/I70)-1)),0) -> 0
B75: Electrical Costs | C75: =CO2_eCost*C47*cap_factor*24*365 -> 5781167.117 | D75: $/yr
B76: Ecomp = electricity cost*Wcomp*(capacity factor*24*365)
B78: Capital Costs | C78: =C81*C82*((0.13*10^6)*(C81^-0.71)+(1.4*10^6)*(C81^-0.6)*(LN(C83/C84)))*CEPCIinflator*CPIinflator -> 32463439.06 | D78: $
B79: Ccomp = mtrain*Ntrain*[(0.13x10^6)*(mtrain)^-0.71+(1.40x10^6)*(mtrain)^-0.60*ln(Pcut-off/Pinitial)]
B80: where
B81: mtrain (compressor train mass flow) | C81: =(1000*CO2_flowrate)/(24*3600*C82) -> 33.01940639 | D81: kg/s
B82: Ntrain (number of paralel compressor trains) | C82: =ROUNDUP(C47/40000,0) -> 1
B83: Pcut-off | C83: =C51*145.038 -> 2175.57 | D83: psi
B84: Pinitial | C84: =C59*145.038 -> 14.7 | D84: psi
B86: O&M Costs | C86: =C89*C78 -> 1298537.562 | D86: $/yr
B87: O&Mannual = Ccomp*O&Mfactor
B88: where
B89: O&Mfactor | C89: 0.04
B97: CO2 Injection Costs
B98: Capital Costs
B99: Capital cost of site screening and evaluation | C99: =CO2_SiteCap*CO2_Nwells -> 1857773
B101: Cequip = number of wells*[49,433*(CO2 flowrate/(280*Nwell))^0.5] | C101: =CO2_Nwells*(49433*(CO2_flowrate/(280*CO2_Nwells))^0.5) -> 157789.992
B103: Cdrill = Nwell*10^6*0.1063*e^(0.0008*d) | C103: =CO2_Nwells*10^6*0.1063*EXP(0.0008*CO2_WellDepth) -> 359770.1248
B105: Cinj = Csite+Cequip+Cdrill | C105: =(C103+C101)*CEPCIinflator*CPIinflator+C99 -> 2443283.18
B107: O&M Costs
B108: O&Mdaily | C108: =CO2_Nwells*7596 -> 7596 | D108: Nwell*7596
B109: O&Mcons | C109: =CO2_Nwells*20295 -> 20295 | D109: Nwell*20295
B110: O&Msur | C110: =CO2_Nwells*(15420*(CO2_flowrate/(280*CO2_Nwells))^0.5) -> 49220.59508 | D110: Nwell*[15,420*(m/(280*Nwell))^0.5]
B111: O&Msubsur | C111: =CO2_Nwells*(5669*(CO2_WellDepth/1219)) -> 7087.412633 | D111: Nwell*(5669*(d/1219))
B112: O&Mtotal | C112: =SUM(C108:C111) -> 84199.00771 | D112: $/yr
B114: CO2 Pipeline Costs
B115: Capital Cost Requirement
B116: Ccap=location factor*terrain factor*pipeline length(m)*(9970*(CO2 flowrate^0.35)*(pipeline length(m)^0.13)) | C116: =CO2_Location_factor*CO2_Terrain_factor*CO2_PipeLength*1.6*(9970*(CO2_flowrate^0.35)*((CO2_PipeLength*1.6)^0.13))*CEPCIinflator*CPIinflator -> 73488061.37 | D116: $
B117: Pipeline capital cost per mile | C117: =C116/CO2_PipeLength -> 734880.6137 | D117: $/mi
B119: O&M Costs
B120: O&Mannual = Ccap*O&Mfactor | C120: =C116*CO2_PipeFactor -> 1837201.534 | D120: $/yr

Sheet Results
B2: Table of Contents
B3: Specific Item Cost Calculation
B4: Energy Data
B5: Production Process Energy Efficiency
B6: Upstream Energy Usage
B7: Emissions Summary
B8: Production Process GHG Emissions Summary
B9: Production Process GHG Emissions
B10: Upstream GHG Emissions
B12: H2a Analysis Results
B14: COST RESULTS
B15: Lang Factor | C15: =total_cap/(ProcEqpCap+CCSEqpCap) -> 2.73245171
B17: Specific Item Cost Calculation | F17: =IF(CO2_inUse = "Carbon Sequestration","Approximate Carbon Sequestration Costs*","Carbon Sequestration is not included in this case") -> Carbon Sequestration is not included in this case
B18: Cost Component | C18: Cost Contribution ($/kg) | D18: Percentage of H2 Cost | F18: Cost Component | G18: Cost Contribution ($/ kg H2) | H18: Cost Contribution ($/ tonne CO2 Sequestered)
B19: Capital Costs | C19: ='Cash Flow Analysis'!D119 -> 0.3319095582 | D19: ='Cash Flow Analysis'!C119 -> 0.194902536 | F19: Capital Costs | G19: =IF(CO2_inUse = "Carbon Sequestration",ROUND((Det_CO2_seq+CO2_aprx_indCap)*CO2_cap_charge_rate/output_kgyear,2),"") ->  | H19: =IF(CO2_inUse = "Carbon Sequestration",CO2_capptonneCO2,"") -> 
B20: Decommissioning Costs | C20: ='Cash Flow Analysis'!D120 -> 0.0004118524049 | D20: ='Cash Flow Analysis'!C120 -> 0.0002418462384 | F20: O&M Cost | G20: =IF(CO2_inUse = "Carbon Sequestration",ROUND(Det_CO2_OandMcost/output_kgyear,2),"") ->  | H20: =IF(CO2_inUse = "Carbon Sequestration",CO2_OandMptonneCO2,"") -> 
B21: Fixed O&M | C21: ='Cash Flow Analysis'!D121 -> 0.06361152059 | D21: ='Cash Flow Analysis'!C121 -> 0.0373536898 | F21: Energy Cost | G21: =IF(CO2_inUse = "Carbon Sequestration",ROUND(CO2_eCostpY/output_kgyear,2),"") ->  | H21: =IF(CO2_inUse = "Carbon Sequestration",CO2_energyptonneCO2,"") -> 
B22: Feedstock Costs | C22: ='Cash Flow Analysis'!D122 -> 1.232915279 | D22: ='Cash Flow Analysis'!C122 -> 0.723987329 | F22: Total | G22: =SUM(G19:G21) -> 0 | H22: =SUM(H19:H21) -> 0
B23: Other Raw Material Costs | C23: ='Cash Flow Analysis'!D123 -> 0 | D23: ='Cash Flow Analysis'!C123 -> 0 | F23: *Carbon sequestration costs presented in this table do not include carbon capture capital and operating costs.
B24: Byproduct Credits | C24: ='Cash Flow Analysis'!D124 -> 0 | D24: ='Cash Flow Analysis'!C124 -> 0
B25: Other Variable Costs (including utilities) | C25: ='Cash Flow Analysis'!D125 -> 0.07410324993 | D25: ='Cash Flow Analysis'!C125 -> 0.04351459902
B26: Total | C26: =SUM(C19:C25) -> 1.70295146
B28: ENERGY
B30: Energy Data
B31: Feedstock | C31: Energy Input (GJ/kg H2) | D31: Energy Input (kWh/kg H2) | E31: LHV (GJ/usage unit) | F31: Usage (/kg H2) | G31: Unit | H31: Unit System Conversion Factor | I31: Real levelized cost
B32: =IF('Cash Flow Analysis'!$B$131=0,"",'Cash Flow Analysis'!$B$131) -> Industrial Natural Gas | C32: =IF($B$32="","",$E$32*$F$32*$H$32) -> 0.16484375 | D32: =IF($B32="","",$C32*1000*MJ_to_kWh) -> 45.78993056 | E32: =IF($B$32<>"",VLOOKUP($B$32,MASTER_PROPERTY_TABLE,MATCH("H2A LHV (GJ/ H2A usage input unit)",key_MPTable,0),FALSE),"") -> 1.055 | F32: =IF('Cash Flow Analysis'!$B$133="","",'Cash Flow Analysis'!$B$133) -> 0.15625 | G32: =IF($B$32<>"",VLOOKUP($B$32,MASTER_PROPERTY_TABLE,MATCH("H2A Usage Input Unit/ kg H2",key_MPTable,0),FALSE),"") -> mmBtu | H32: =IF($B32="","",IF(VLOOKUP($B32,MASTER_PROPERTY_TABLE,MATCH("Unit System",key_MPTable,0),FALSE)="English",mmBTU_to_GJ,1)) -> 1 | I32: =+'Cash Flow Analysis'!$B$233 -> 8.349024984
B33: =IF('Cash Flow Analysis'!$C$131=0,"",'Cash Flow Analysis'!$C$131) ->  | C33: =IF($B$33="","",$E$33*$F$33*$H$33) ->  | D33: =IF($B33="","",$C33*1000*MJ_to_kWh) ->  | E33: =IF($B$33<>"",VLOOKUP($B$33,MASTER_PROPERTY_TABLE,MATCH("H2A LHV (GJ/ H2A usage input unit)",key_MPTable,0),FALSE),"") ->  | F33: =IF('Cash Flow Analysis'!$C$133="","",'Cash Flow Analysis'!$C$133) ->  | G33: =IF($B$33<>"",VLOOKUP($B$33,MASTER_PROPERTY_TABLE,MATCH("H2A Usage Input Unit/ kg H2",key_MPTable,0),FALSE),"") ->  | H33: =IF($B$33="","",IF(VLOOKUP($B$33,MASTER_PROPERTY_TABLE,MATCH("Unit System",key_MPTable,0),FALSE)="English",mmBTU_to_GJ,1)) ->  | I33: =+'Cash Flow Analysis'!$C$233 -> 
B34: =IF('Cash Flow Analysis'!$D$131=0,"",'Cash Flow Analysis'!$D$131) ->  | C34: =IF($B$34="","",$E$34*$F$34*$H$34) ->  | D34: =IF($B34="","",$C34*1000*MJ_to_kWh) ->  | E34: =IF($B$34<>"",VLOOKUP($B$34,MASTER_PROPERTY_TABLE,MATCH("H2A LHV (GJ/ H2A usage input unit)",key_MPTable,0),FALSE),"") ->  | F34: =IF('Cash Flow Analysis'!$D$133="","",'Cash Flow Analysis'!$D$133) ->  | G34: =IF($B$34<>"",VLOOKUP($B$34,MASTER_PROPERTY_TABLE,MATCH("H2A Usage Input Unit/ kg H2",key_MPTable,0),FALSE),"") ->  | H34: =IF($B$34="","",IF(VLOOKUP($B$34,MASTER_PROPERTY_TABLE,MATCH("Unit System",key_MPTable,0),FALSE)="English",mmBTU_to_GJ,1)) ->  | I34: =+'Cash Flow Analysis'!$D$233 -> 
B35: =IF('Cash Flow Analysis'!$E$131=0,"",'Cash Flow Analysis'!$E$131) ->  | C35: =IF($B$35="","",$E$35*$F$35*$H$35) ->  | D35: =IF($B35="","",$C35*1000*MJ_to_kWh) ->  | E35: =IF($B$35<>"",VLOOKUP($B$35,MASTER_PROPERTY_TABLE,MATCH("H2A LHV (GJ/ H2A usage input unit)",key_MPTable,0),FALSE),"") ->  | F35: =IF('Cash Flow Analysis'!$E$133="","",'Cash Flow Analysis'!$E$133) ->  | G35: =IF($B$35<>"",VLOOKUP($B$35,MASTER_PROPERTY_TABLE,MATCH("H2A Usage Input Unit/ kg H2",key_MPTable,0),FALSE),"") ->  | H35: =IF($B$35="","",IF(VLOOKUP($B$35,MASTER_PROPERTY_TABLE,MATCH("Unit System",key_MPTable,0),FALSE)="English",mmBTU_to_GJ,1)) ->  | I35: =+'Cash Flow Analysis'!$E$233 -> 
B36: Utility
B37: =IF('Cash Flow Analysis'!$F$131=0,"",'Cash Flow Analysis'!$F$131) -> Industrial Electricity | C37: =IF($B$37="","",$E$37*$F$37*$H$37) -> 0.0020484 | D37: =IF($B37="","",$C37*1000*MJ_to_kWh) -> 0.569 | E37: =IF($B37<>"",VLOOKUP($B37,MASTER_PROPERTY_TABLE,MATCH("H2A LHV (GJ/ H2A usage input unit)",key_MPTable,0),FALSE),"") -> 0.0036 | F37: =IF('Cash Flow Analysis'!$F$133="","",'Cash Flow Analysis'!$F$133) -> 0.569 | G37: =IF($B$37<>"",VLOOKUP($B$37,MASTER_PROPERTY_TABLE,MATCH("H2A Usage Input Unit/ kg H2",key_MPTable,0),FALSE),"") -> kWh | H37: =IF($B$37="","",IF(VLOOKUP($B$37,MASTER_PROPERTY_TABLE,MATCH("Unit System",key_MPTable,0),FALSE)="English",mmBTU_to_GJ,1)) -> 1 | I37: =+'Cash Flow Analysis'!$F$233 -> 0.06767509856
B38: =IF('Cash Flow Analysis'!$G$131=0,"",'Cash Flow Analysis'!$G$131) ->  | C38: =IF($B$38="","",$E$38*$F$38*$H$38) ->  | D38: =IF($B38="","",$C38*1000*MJ_to_kWh) ->  | E38: =IF($B38<>"",VLOOKUP($B38,MASTER_PROPERTY_TABLE,MATCH("H2A LHV (GJ/ H2A usage input unit)",key_MPTable,0),FALSE),"") ->  | F38: =IF('Cash Flow Analysis'!$G$133="","",'Cash Flow Analysis'!$G$133) ->  | G38: =IF($B$38<>"",VLOOKUP($B$38,MASTER_PROPERTY_TABLE,MATCH("H2A Usage Input Unit/ kg H2",key_MPTable,0),FALSE),"") ->  | H38: =IF($B$38="","",IF(VLOOKUP($B$38,MASTER_PROPERTY_TABLE,MATCH("Unit System",key_MPTable,0),FALSE)="English",mmBTU_to_GJ,1)) ->  | I38: =+'Cash Flow Analysis'!$G$233 -> 
B39: =IF('Cash Flow Analysis'!$H$131=0,"",'Cash Flow Analysis'!$H$131) ->  | C39: =IF($B$39="","",$E$39*$F$39*$H$39) ->  | D39: =IF($B39="","",$C39*1000*MJ_to_kWh) ->  | E39: =IF($B39<>"",VLOOKUP($B39,MASTER_PROPERTY_TABLE,MATCH("H2A LHV (GJ/ H2A usage input unit)",key_MPTable,0),FALSE),"") ->  | F39: =IF('Cash Flow Analysis'!$H$133="","",'Cash Flow Analysis'!$H$133) ->  | G39: =IF($B$39<>"",VLOOKUP($B$39,MASTER_PROPERTY_TABLE,MATCH("H2A Usage Input Unit/ kg H2",key_MPTable,0),FALSE),"") ->  | H39: =IF($B$39="","",IF(VLOOKUP($B$39,MASTER_PROPERTY_TABLE,MATCH("Unit System",key_MPTable,0),FALSE)="English",mmBTU_to_GJ,1)) ->  | I39: =+'Cash Flow Analysis'!$H$233 -> 
B40: =IF('Cash Flow Analysis'!$I$131=0,"",'Cash Flow Analysis'!$I$131) ->  | C40: =IF($B$40="","",$E$40*$F$40*$H$40) ->  | D40: =IF($B40="","",$C40*1000*MJ_to_kWh) ->  | E40: =IF($B40<>"",VLOOKUP($B40,MASTER_PROPERTY_TABLE,MATCH("H2A LHV (GJ/ H2A usage input unit)",key_MPTable,0),FALSE),"") ->  | F40: =IF('Cash Flow Analysis'!$I$133="","",'Cash Flow Analysis'!$I$133) ->  | G40: =IF($B$40<>"",VLOOKUP($B$40,MASTER_PROPERTY_TABLE,MATCH("H2A Usage Input Unit/ kg H2",key_MPTable,0),FALSE),"") ->  | H40: =IF($B$40="","",IF(VLOOKUP($B$40,MASTER_PROPERTY_TABLE,MATCH("Unit System",key_MPTable,0),FALSE)="English",mmBTU_to_GJ,1)) ->  | I40: =+'Cash Flow Analysis'!$I$233 -> 
B41: Carbon Sequestration
B42: =IF('Cash Flow Analysis'!$J$131=0,"",'Cash Flow Analysis'!$J$131) ->  | C42: =IF($B$42="","",$E$42*$F$42*$H$42) ->  | D42: =IF($B42="","",$C42*1000*MJ_to_kWh) ->  | E42: =IF($B42<>"",VLOOKUP($B42,MASTER_PROPERTY_TABLE,MATCH("H2A LHV (GJ/ H2A usage input unit)",key_MPTable,0),FALSE),"") ->  | F42: =CO2_CashFlow_eUse -> 0 | G42: =IF($B$42<>"",VLOOKUP($B$42,MASTER_PROPERTY_TABLE,MATCH("H2A Usage Input Unit/ kg H2",key_MPTable,0),FALSE),"") ->  | H42: =IF($B42="","",IF(VLOOKUP($B42,MASTER_PROPERTY_TABLE,MATCH("Unit System",key_MPTable,0),FALSE)="English",mmBTU_to_GJ,1)) -> 
C43: Energy Output (GJ/kg H2) | D43: Energy Output (kWh/kg H2) | E43: LHV (GJ/usage unit) | F43: Production (/kg H2) | G43: Unit | H43: Unit System Conversion Factor
B44: Hydrogen (1 kg) | C44: =kgH2_to_GJ -> 0.1202116383 | D44: =IF($B44="","",$C44*1000*MJ_to_kWh) -> 33.39212175 | E44: =kgH2_to_GJ -> 0.1202116383 | F44: 1 | G44: kg | H44: 1
B46: Byproducts
B47: =IF('Cash Flow Analysis'!$K$131=0,"",'Cash Flow Analysis'!$K$131) ->  | C47: =IF($B$47="","",$E$47*$F$47*$H$47) ->  | D47: =IF($B47="","",$C47*1000*MJ_to_kWh) ->  | E47: =IF($B47<>"",VLOOKUP($B47,MASTER_PROPERTY_TABLE,MATCH("H2A LHV (GJ/ H2A usage input unit)",key_MPTable,0),FALSE),"") ->  | F47: =IF('Cash Flow Analysis'!$K$133="","",'Cash Flow Analysis'!$K$133) ->  | G47: =IF($B$47<>"",VLOOKUP($B$47,MASTER_PROPERTY_TABLE,MATCH("H2A Usage Input Unit/ kg H2",key_MPTable,0),FALSE),"") ->  | H47: =IF($B$47="","",IF(VLOOKUP($B$47,MASTER_PROPERTY_TABLE,MATCH("Unit System",key_MPTable,0),FALSE)="English",mmBTU_to_GJ,1)) ->  | I47: =+'Cash Flow Analysis'!$K$233 -> 
B48: =IF('Cash Flow Analysis'!$L$131=0,"",'Cash Flow Analysis'!$L$131) ->  | C48: =IF($B$48="","",$E$48*$F$48*$H$48) ->  | D48: =IF($B48="","",$C48*1000*MJ_to_kWh) ->  | E48: =IF($B48<>"",VLOOKUP($B48,MASTER_PROPERTY_TABLE,MATCH("H2A LHV (GJ/ H2A usage input unit)",key_MPTable,0),FALSE),"") ->  | F48: =IF('Cash Flow Analysis'!$L$133="","",'Cash Flow Analysis'!$L$133) ->  | G48: =IF($B$48<>"",VLOOKUP($B$48,MASTER_PROPERTY_TABLE,MATCH("H2A Usage Input Unit/ kg H2",key_MPTable,0),FALSE),"") ->  | H48: =IF($B$48="","",IF(VLOOKUP($B$48,MASTER_PROPERTY_TABLE,MATCH("Unit System",key_MPTable,0),FALSE)="English",mmBTU_to_GJ,1)) ->  | I48: =+'Cash Flow Analysis'!$L$233 -> 
B49: =IF('Cash Flow Analysis'!$M$131=0,"",'Cash Flow Analysis'!$M$131) ->  | C49: =IF($B$49="","",$E$49*$F$49*$H$49) ->  | D49: =IF($B49="","",$C49*1000*MJ_to_kWh) ->  | E49: =IF($B49<>"",VLOOKUP($B49,MASTER_PROPERTY_TABLE,MATCH("H2A LHV (GJ/ H2A usage input unit)",key_MPTable,0),FALSE),"") ->  | F49: =IF('Cash Flow Analysis'!$M$133="","",'Cash Flow Analysis'!$M$133) ->  | G49: =IF($B$49<>"",VLOOKUP($B$49,MASTER_PROPERTY_TABLE,MATCH("H2A Usage Input Unit/ kg H2",key_MPTable,0),FALSE),"") ->  | H49: =IF($B$49="","",IF(VLOOKUP($B$49,MASTER_PROPERTY_TABLE,MATCH("Unit System",key_MPTable,0),FALSE)="English",mmBTU_to_GJ,1)) ->  | I49: =+'Cash Flow Analysis'!$M$233 -> 
B50: =IF('Cash Flow Analysis'!$N$131=0,"",'Cash Flow Analysis'!$N$131) ->  | C50: =IF($B$50="","",$E$50*$F$50*$H$50) ->  | D50: =IF($B50="","",$C50*1000*MJ_to_kWh) ->  | E50: =IF($B50<>"",VLOOKUP($B50,MASTER_PROPERTY_TABLE,MATCH("H2A LHV (GJ/ H2A usage input unit)",key_MPTable,0),FALSE),"") ->  | F50: =IF('Cash Flow Analysis'!$N$133="","",'Cash Flow Analysis'!$N$133) ->  | G50: =IF($B$50<>"",VLOOKUP($B$50,MASTER_PROPERTY_TABLE,MATCH("H2A Usage Input Unit/ kg H2",key_MPTable,0),FALSE),"") ->  | H50: =IF($B$50="","",IF(VLOOKUP($B$50,MASTER_PROPERTY_TABLE,MATCH("Unit System",key_MPTable,0),FALSE)="English",mmBTU_to_GJ,1)) ->  | I50: =+'Cash Flow Analysis'!$N$233 -> 
B52: Production Process Energy Efficiency | D52: =(C56+C57)/(C53+C54+C55) -> 0.7202953422
B53: Feedstock energy input (GJ)/kg H2 | C53: =SUM(C32:C35) -> 0.16484375
B54: Utility energy input (GJ/kg H2) | C54: =SUM(C37:C40) -> 0.0020484
B55: Carbon sequestration energy input (GJ/kg H2) | C55: =IF(C42="",0,C42) -> 0
B56: Hydrogen energy output (GJ/kg) | C56: =C44 -> 0.1202116383
B57: Byproduct energy output (GJ/kg H2) | C57: =SUM(C47:C50) -> 0
B59: Upstream Energy Usage (GJ/kg H2)
B60: Feedstock | C60: Total Energy | D60: Fossil Fuels | E60: Petroleum
B61: =B32 -> Industrial Natural Gas | C61: =IF($B61="","",$C32/1000000*VLOOKUP($B61,Tbl_Emissions,3,FALSE)) -> 0.01757674717 | D61: =IF($B61="","",$C32/1000000*VLOOKUP($B61,Tbl_Emissions,4,FALSE)) -> 0.01747689617 | E61: =IF($B61="","",$C32/1000000*VLOOKUP($B61,Tbl_Emissions,5,FALSE)) -> 0.0007042127431
B62: =B33 ->  | C62: =IF($B62="","",$C33/1000000*VLOOKUP($B62,Tbl_Emissions,3,FALSE)) ->  | D62: =IF($B62="","",$C33/1000000*VLOOKUP($B62,Tbl_Emissions,4,FALSE)) ->  | E62: =IF($B62="","",$C33/1000000*VLOOKUP($B62,Tbl_Emissions,5,FALSE)) -> 
B63: =B34 ->  | C63: =IF($B63="","",$C34/1000000*VLOOKUP($B63,Tbl_Emissions,3,FALSE)) ->  | D63: =IF($B63="","",$C34/1000000*VLOOKUP($B63,Tbl_Emissions,4,FALSE)) ->  | E63: =IF($B63="","",$C34/1000000*VLOOKUP($B63,Tbl_Emissions,5,FALSE)) -> 
B64: =B35 ->  | C64: =IF($B64="","",$C35/1000000*VLOOKUP($B64,Tbl_Emissions,3,FALSE)) ->  | D64: =IF($B64="","",$C35/1000000*VLOOKUP($B64,Tbl_Emissions,4,FALSE)) ->  | E64: =IF($B64="","",$C35/1000000*VLOOKUP($B64,Tbl_Emissions,5,FALSE)) -> 
B65: Utility
B66: =B37 -> Industrial Electricity | C66: =IF($B66="","",$C37/1000000*VLOOKUP($B66,Tbl_Emissions,3,FALSE)) -> 0.00288713915 | D66: =IF($B66="","",$C37/1000000*VLOOKUP($B66,Tbl_Emissions,4,FALSE)) -> 0.002816075302 | E66: =IF($B66="","",$C37/1000000*VLOOKUP($B66,Tbl_Emissions,5,FALSE)) -> 9.860856962e-05
B67: =B38 ->  | C67: =IF($B67="","",$C38/1000000*VLOOKUP($B67,Tbl_Emissions,3,FALSE)) ->  | D67: =IF($B67="","",$C38/1000000*VLOOKUP($B67,Tbl_Emissions,4,FALSE)) ->  | E67: =IF($B67="","",$C38/1000000*VLOOKUP($B67,Tbl_Emissions,5,FALSE)) -> 
B68: =B39 ->  | C68: =IF($B68="","",$C39/1000000*VLOOKUP($B68,Tbl_Emissions,3,FALSE)) ->  | D68: =IF($B68="","",$C39/1000000*VLOOKUP($B68,Tbl_Emissions,4,FALSE)) ->  | E68: =IF($B68="","",$C39/1000000*VLOOKUP($B68,Tbl_Emissions,5,FALSE)) -> 
B69: =B40 ->  | C69: =IF($B69="","",$C40/1000000*VLOOKUP($B69,Tbl_Emissions,3,FALSE)) ->  | D69: =IF($B69="","",$C40/1000000*VLOOKUP($B69,Tbl_Emissions,4,FALSE)) ->  | E69: =IF($B69="","",$C40/1000000*VLOOKUP($B69,Tbl_Emissions,5,FALSE)) -> 
B70: Carbon Sequestration
B71: =B42 ->  | C71: =IF($B71="","",$C42/1000000*VLOOKUP($B71,Tbl_Emissions,3,FALSE)) ->  | D71: =IF($B71="","",$C42/1000000*VLOOKUP($B71,Tbl_Emissions,4,FALSE)) ->  | E71: =IF($B71="","",$C42/1000000*VLOOKUP($B71,Tbl_Emissions,5,FALSE)) -> 
B74: EMISSIONS
B76: Emissions Summary | D76: CO2 | E76: CH4 | F76: N2O | G76: Total GHG (CO2 eq)
B77: Total upstream emissions (kg/kg H2) | D77: =C121 -> 1.415116303 | E77: =D121 -> 0.03734980702 | F77: =E121 -> 0.0001967514128 | G77: =F121 -> 2.407493399
B78: Total process emissions (kg/kg H2) | D78: =D89 -> 9.283231604 | E78: =E89 -> 0 | F78: =F89 -> 0 | G78: =G89 -> 9.283231604
B80: Total well to pump emissions (kg/kg H2) | D80: =SUM(D77:D79) -> 10.69834791 | E80: =SUM(E77:E79) -> 0.03734980702 | F80: =SUM(F77:F79) -> 0.0001967514128 | G80: =SUM(G77:G79) -> 11.690725
B82: Production Process GHG Emissions Summary | D82: CO2 | E82: CH4 | F82: N2O | G82: Total GHG (CO2 eq)
B83: Total Process Pollutants Produced (kg /kg H2) | D83: =SUM(C95:C105) -> 9.283231604 | E83: =SUM(D95:D105) -> 0 | F83: =SUM(E95:E105) -> 0 | G83: =SUM(F95:F105) -> 9.283231604
B84: Total Process Pollutants Produced (metric tons/year) | D84: =ROUND(D83*output_kgyear/1000,-2) -> 1157000 | E84: =ROUND(E83*output_kgyear/1000,-2) -> 0 | F84: =ROUND(F83*output_kgyear/1000,-2) -> 0 | G84: =ROUND(G83*output_kgyear/1000,-2) -> 1157000
B85: Total Feedstock Pollutants Produced (kg /kg H2) | D85: =SUM(C95:C98) -> 9.283231604 | E85: =SUM(D95:D98) -> 0 | F85: =SUM(E95:E98) -> 0 | G85: =SUM(F95:F98) -> 9.283231604
B86: Total Feedstock Pollutants Produced (metric tons /year) | D86: =ROUND(D85*output_kgyear/1000,-2) -> 1157000 | E86: =ROUND(E85*output_kgyear/1000,-2) -> 0 | F86: =ROUND(F85*output_kgyear/1000,-2) -> 0 | G86: =ROUND(G85*output_kgyear/1000,-2) -> 1157000
B87: CO2 Captured (kg/kg H2)* | D87: =IF(CO2_CashFlow_eUse>0,D85*CO2_Capture_Efficiency,0) -> 0
B88: CO2 Captured (metric tons/year)* | D88: =ROUND(D87*output_kgyear/1000,-2) -> 0
B89: Total Process Emissions (kg/kg H2) | D89: =D83-D87 -> 9.283231604 | E89: =E83-E87 -> 0 | F89: =F83-F87 -> 0 | G89: =D89*GHG_CO2_factor + E89*GHG_CH4_factor + F89*GHG_N2O_factor -> 9.283231604
B90: Total Process Emissions (metric tons/year) | D90: =ROUND(D89*output_kgyear/1000,-2) -> 1157000 | E90: =ROUND(E89*output_kgyear/1000,-2) -> 0 | F90: =ROUND(F89*output_kgyear/1000,-2) -> 0 | G90: =ROUND(G89*output_kgyear/1000,-2) -> 1157000
B91: *Carbon sequestration values are only calculated if the detailed Carbon Sequestration sheet is used.
B93: Production Process GHG Emissions (/kg H2)
B94: Feedstock | C94: CO2 | D94: CH4 | E94: N2O | F94: Total GHG (CO2 eq)
B95: =B32 -> Industrial Natural Gas | C95: =IF($B95="","",VLOOKUP($B95,MASTER_PROPERTY_TABLE,MATCH("CO2 Emissions Factor (kg CO2 produced/GJ feed)",key_MPTable,0),FALSE)*$E32*$F32) -> 9.283231604 | D95: =IF($B95="","",VLOOKUP($B95,MASTER_PROPERTY_TABLE,MATCH("CH4 Emissions Factor (kg CH4 produced/GJ or mmBtu feed)",key_MPTable,0),FALSE)*$E32*$F32) -> 0 | E95: =IF($B95="","",VLOOKUP($B95,MASTER_PROPERTY_TABLE,MATCH("N2O Emissions Factor (kg N2O produced/GJ or mmBtu feed)",key_MPTable,0),FALSE)*$E32*$F32) -> 0 | F95: =IF($B95="","",$C95*GHG_CO2_factor+$D95*GHG_CH4_factor+$E95*GHG_N2O_factor) -> 9.283231604
B96: =B33 ->  | C96: =IF($B96="","",VLOOKUP($B96,MASTER_PROPERTY_TABLE,MATCH("CO2 Emissions Factor (kg CO2 produced/GJ feed)",key_MPTable,0),FALSE)*$E33*$F33) ->  | D96: =IF($B96="","",VLOOKUP($B96,MASTER_PROPERTY_TABLE,MATCH("CH4 Emissions Factor (kg CH4 produced/GJ or mmBtu feed)",key_MPTable,0),FALSE)*$E33*$F33) ->  | E96: =IF($B96="","",VLOOKUP($B96,MASTER_PROPERTY_TABLE,MATCH("N2O Emissions Factor (kg N2O produced/GJ or mmBtu feed)",key_MPTable,0),FALSE)*$E33*$F33) ->  | F96: =IF($B96="","",$C96*GHG_CO2_factor+$D96*GHG_CH4_factor+$E96*GHG_N2O_factor) -> 
B97: =B34 ->  | C97: =IF($B97="","",VLOOKUP($B97,MASTER_PROPERTY_TABLE,MATCH("CO2 Emissions Factor (kg CO2 produced/GJ feed)",key_MPTable,0),FALSE)*$E34*$F34) ->  | D97: =IF($B97="","",VLOOKUP($B97,MASTER_PROPERTY_TABLE,MATCH("CH4 Emissions Factor (kg CH4 produced/GJ or mmBtu feed)",key_MPTable,0),FALSE)*$E34*$F34) ->  | E97: =IF($B97="","",VLOOKUP($B97,MASTER_PROPERTY_TABLE,MATCH("N2O Emissions Factor (kg N2O produced/GJ or mmBtu feed)",key_MPTable,0),FALSE)*$E34*$F34) ->  | F97: =IF($B97="","",$C97*GHG_CO2_factor+$D97*GHG_CH4_factor+$E97*GHG_N2O_factor) -> 
B98: =B35 ->  | C98: =IF($B98="","",VLOOKUP($B98,MASTER_PROPERTY_TABLE,MATCH("CO2 Emissions Factor (kg CO2 produced/GJ feed)",key_MPTable,0),FALSE)*$E35*$F35) ->  | D98: =IF($B98="","",VLOOKUP($B98,MASTER_PROPERTY_TABLE,MATCH("CH4 Emissions Factor (kg CH4 produced/GJ or mmBtu feed)",key_MPTable,0),FALSE)*$E35*$F35) ->  | E98: =IF($B98="","",VLOOKUP($B98,MASTER_PROPERTY_TABLE,MATCH("N2O Emissions Factor (kg N2O produced/GJ or mmBtu feed)",key_MPTable,0),FALSE)*$E35*$F35) ->  | F98: =IF($B98="","",$C98*GHG_CO2_factor+$D98*GHG_CH4_factor+$E98*GHG_N2O_factor) -> 
B99: Utility
B100: =B37 -> Industrial Electricity | C100: =IF($B100="","",VLOOKUP($B100,MASTER_PROPERTY_TABLE,MATCH("CO2 Emissions Factor (kg CO2 produced/GJ feed)",key_MPTable,0),FALSE)*$E37*$F37) -> 0 | D100: =IF($B100="","",VLOOKUP($B100,MASTER_PROPERTY_TABLE,MATCH("CH4 Emissions Factor (kg CH4 produced/GJ or mmBtu feed)",key_MPTable,0),FALSE)*$E37*$F37) -> 0 | E100: =IF($B100="","",VLOOKUP($B100,MASTER_PROPERTY_TABLE,MATCH("N2O Emissions Factor (kg N2O produced/GJ or mmBtu feed)",key_MPTable,0),FALSE)*$E37*$F37) -> 0 | F100: =IF($B100="","",$C100*GHG_CO2_factor+$D100*GHG_CH4_factor+$E100*GHG_N2O_factor) -> 0
B101: =B38 ->  | C101: =IF($B101="","",VLOOKUP($B101,MASTER_PROPERTY_TABLE,MATCH("CO2 Emissions Factor (kg CO2 produced/GJ feed)",key_MPTable,0),FALSE)*$E38*$F38) ->  | D101: =IF($B101="","",VLOOKUP($B101,MASTER_PROPERTY_TABLE,MATCH("CH4 Emissions Factor (kg CH4 produced/GJ or mmBtu feed)",key_MPTable,0),FALSE)*$E38*$F38) ->  | E101: =IF($B101="","",VLOOKUP($B101,MASTER_PROPERTY_TABLE,MATCH("N2O Emissions Factor (kg N2O produced/GJ or mmBtu feed)",key_MPTable,0),FALSE)*$E38*$F38) ->  | F101: =IF($B101="","",$C101*GHG_CO2_factor+$D101*GHG_CH4_factor+$E101*GHG_N2O_factor) -> 
B102: =B39 ->  | C102: =IF($B102="","",VLOOKUP($B102,MASTER_PROPERTY_TABLE,MATCH("CO2 Emissions Factor (kg CO2 produced/GJ feed)",key_MPTable,0),FALSE)*$E39*$F39) ->  | D102: =IF($B102="","",VLOOKUP($B102,MASTER_PROPERTY_TABLE,MATCH("CH4 Emissions Factor (kg CH4 produced/GJ or mmBtu feed)",key_MPTable,0),FALSE)*$E39*$F39) ->  | E102: =IF($B102="","",VLOOKUP($B102,MASTER_PROPERTY_TABLE,MATCH("N2O Emissions Factor (kg N2O produced/GJ or mmBtu feed)",key_MPTable,0),FALSE)*$E39*$F39) ->  | F102: =IF($B102="","",$C102*GHG_CO2_factor+$D102*GHG_CH4_factor+$E102*GHG_N2O_factor) -> 
B103: =B40 ->  | C103: =IF($B103="","",VLOOKUP($B103,MASTER_PROPERTY_TABLE,MATCH("CO2 Emissions Factor (kg CO2 produced/GJ feed)",key_MPTable,0),FALSE)*$E40*$F40) ->  | D103: =IF($B103="","",VLOOKUP($B103,MASTER_PROPERTY_TABLE,MATCH("CH4 Emissions Factor (kg CH4 produced/GJ or mmBtu feed)",key_MPTable,0),FALSE)*$E40*$F40) ->  | E103: =IF($B103="","",VLOOKUP($B103,MASTER_PROPERTY_TABLE,MATCH("N2O Emissions Factor (kg N2O produced/GJ or mmBtu feed)",key_MPTable,0),FALSE)*$E40*$F40) ->  | F103: =IF($B103="","",$C103*GHG_CO2_factor+$D103*GHG_CH4_factor+$E103*GHG_N2O_factor) -> 
B104: Carbon Sequestration
B105: =B42 ->  | C105: =IF($B105="","",VLOOKUP($B105,MASTER_PROPERTY_TABLE,MATCH("CO2 Emissions Factor (kg CO2 produced/GJ feed)",key_MPTable,0),FALSE)*$E42*$F42) ->  | D105: =IF($B105="","",VLOOKUP($B105,MASTER_PROPERTY_TABLE,MATCH("CH4 Emissions Factor (kg CH4 produced/GJ or mmBtu feed)",key_MPTable,0),FALSE)*$E42*$F42) ->  | E105: =IF($B105="","",VLOOKUP($B105,MASTER_PROPERTY_TABLE,MATCH("N2O Emissions Factor (kg N2O produced/GJ or mmBtu feed)",key_MPTable,0),FALSE)*$E42*$F42) ->  | F105: =IF($B105="","",$C105*GHG_CO2_factor+$D105*GHG_CH4_factor+$E105*GHG_N2O_factor) -> 
B108: Upstream GHG Emissions (kg/kg H2)
B109: Feedstock | C109: CO2 | D109: CH4 | E109: N2O | F109: Total GHG (CO2 eq)
B110: =B32 -> Industrial Natural Gas | C110: =IF($B110="","",$C32*VLOOKUP($B110,Tbl_Emissions,6,FALSE)) -> 1.060021095 | D110: =IF($B110="","",$C32*VLOOKUP($B110,Tbl_Emissions,7,FALSE)) -> 0.03673452553 | E110: =IF($B110="","",$C32*VLOOKUP($B110,Tbl_Emissions,8,FALSE)) -> 0.0001912375276 | F110: =IF($B110="","",$C110*GHG_CO2_factor+$D110*GHG_CH4_factor+$E110*GHG_N2O_factor) -> 2.035373016
B111: =B33 ->  | C111: =IF($B111="","",$C33*VLOOKUP($B111,Tbl_Emissions,6,FALSE)) ->  | D111: =IF($B111="","",$C33*VLOOKUP($B111,Tbl_Emissions,7,FALSE)) ->  | E111: =IF($B111="","",$C33*VLOOKUP($B111,Tbl_Emissions,8,FALSE)) ->  | F111: =IF($B111="","",$C111*GHG_CO2_factor+$D111*GHG_CH4_factor+$E111*GHG_N2O_factor) -> 
B112: =B34 ->  | C112: =IF($B112="","",$C34*VLOOKUP($B112,Tbl_Emissions,6,FALSE)) ->  | D112: =IF($B112="","",$C34*VLOOKUP($B112,Tbl_Emissions,7,FALSE)) ->  | E112: =IF($B112="","",$C34*VLOOKUP($B112,Tbl_Emissions,8,FALSE)) ->  | F112: =IF($B112="","",$C112*GHG_CO2_factor+$D112*GHG_CH4_factor+$E112*GHG_N2O_factor) -> 
B113: =B35 ->  | C113: =IF($B113="","",$C35*VLOOKUP($B113,Tbl_Emissions,6,FALSE)) ->  | D113: =IF($B113="","",$C35*VLOOKUP($B113,Tbl_Emissions,7,FALSE)) ->  | E113: =IF($B113="","",$C35*VLOOKUP($B113,Tbl_Emissions,8,FALSE)) ->  | F113: =IF($B113="","",$C113*GHG_CO2_factor+$D113*GHG_CH4_factor+$E113*GHG_N2O_factor) -> 
B114: Utility
B115: =B37 -> Industrial Electricity | C115: =IF($B115="","",$C37*VLOOKUP($B115,Tbl_Emissions,6,FALSE)) -> 0.3550952081 | D115: =IF($B115="","",$C37*VLOOKUP($B115,Tbl_Emissions,7,FALSE)) -> 0.0006152814831 | E115: =IF($B115="","",$C37*VLOOKUP($B115,Tbl_Emissions,8,FALSE)) -> 5.513885179e-06 | F115: =IF($B115="","",$C115*GHG_CO2_factor+$D115*GHG_CH4_factor+$E115*GHG_N2O_factor) -> 0.3721203829
B116: =B38 ->  | C116: =IF($B116="","",$C38*VLOOKUP($B116,Tbl_Emissions,6,FALSE)) ->  | D116: =IF($B116="","",$C38*VLOOKUP($B116,Tbl_Emissions,7,FALSE)) ->  | E116: =IF($B116="","",$C38*VLOOKUP($B116,Tbl_Emissions,8,FALSE)) ->  | F116: =IF($B116="","",$C116*GHG_CO2_factor+$D116*GHG_CH4_factor+$E116*GHG_N2O_factor) -> 
B117: =B39 ->  | C117: =IF($B117="","",$C39*VLOOKUP($B117,Tbl_Emissions,6,FALSE)) ->  | D117: =IF($B117="","",$C39*VLOOKUP($B117,Tbl_Emissions,7,FALSE)) ->  | E117: =IF($B117="","",$C39*VLOOKUP($B117,Tbl_Emissions,8,FALSE)) ->  | F117: =IF($B117="","",$C117*GHG_CO2_factor+$D117*GHG_CH4_factor+$E117*GHG_N2O_factor) -> 
B118: =B40 ->  | C118: =IF($B118="","",$C40*VLOOKUP($B118,Tbl_Emissions,6,FALSE)) ->  | D118: =IF($B118="","",$C40*VLOOKUP($B118,Tbl_Emissions,7,FALSE)) ->  | E118: =IF($B118="","",$C40*VLOOKUP($B118,Tbl_Emissions,8,FALSE)) ->  | F118: =IF($B118="","",$C118*GHG_CO2_factor+$D118*GHG_CH4_factor+$E118*GHG_N2O_factor) -> 
B119: Carbon Sequestration
B120: =B42 ->  | C120: =IF($B120="","",$C42*VLOOKUP($B120,Tbl_Emissions,6,FALSE)) ->  | D120: =IF($B120="","",$C42*VLOOKUP($B120,Tbl_Emissions,7,FALSE)) ->  | E120: =IF($B120="","",$C42*VLOOKUP($B120,Tbl_Emissions,8,FALSE)) ->  | F120: =IF($B120="","",$C120*GHG_CO2_factor+$D120*GHG_CH4_factor+$E120*GHG_N2O_factor) -> 
B121: TOTAL | C121: =SUM(C110:C120) -> 1.415116303 | D121: =SUM(D110:D120) -> 0.03734980702 | E121: =SUM(E110:E120) -> 0.0001967514128 | F121: =SUM(F110:F120) -> 2.407493399

Sheet Tornado Charts
B2: Parameter | C2: Nominal | D2: Enter deviation % for lowering H2 cost | E2: Enter deviation % for increasing H2 cost | F2: Price-decreasing factor | G2: Price-increasing factor | H2: Price-decreasing value | I2: Price-increasing value
B3: Operating Capacity Factor | C3: =+cap_factor -> 0.9 | D3: 0.05 | E3: 0.05 | F3: =1+D3 -> 1.05 | G3: =1-E3 -> 0.95 | H3: =+C3*F3 -> 0.945 | I3: =+C3*G3 -> 0.855
B4: =+Input_Sheet_Template!B26 -> Plant Design Capacity (kg of H2/day) | C4: =+design_cap -> 379387 | D4: 0.05 | E4: 0.05 | F4: =1+D4 -> 1.05 | G4: =1-E4 -> 0.95 | H4: 398356.35 | I4: 360417.65
B5: After-tax Real IRR | C5: =+real_irr -> 0.1 | D5: 0.05 | E5: 0.05 | F5: =1-D5 -> 0.95 | G5: =1+E5 -> 1.05 | H5: 0.095 | I5: 0.105
B6: Feedstock Consumption (% of baseline) | C6: 1 | D6: 0.05 | E6: 0.05 | F6: =1-D6 -> 0.95 | G6: =1+E6 -> 1.05 | H6: 0.95 | I6: 1.05
B7: Utilities Consumption (% of baseline) | C7: 1 | D7: 0.05 | E7: 0.05 | F7: =1-D7 -> 0.95 | G7: 1.05 | H7: 0.95 | I7: 1.05
B8: Total Capital Investment | C8: =+total_cap -> 217097865.1 | D8: 0.05 | E8: 0.05 | F8: =1-D8 -> 0.95 | G8: 1.05 | H8: 206242971.8 | I8: 227952758.3
B9: Total Fixed Operating Cost | C9: =+fixed -> 7739184.054 | D9: 0.05 | E9: 0.05 | F9: =1-D9 -> 0.95 | G9: 1.05 | H9: 7352224.851 | I9: 8126143.257
B45: Visuals data formatting below
B47: Displayed case
B48: 1 | C48: =+OFFSET(C50,$B$48,0) -> 1 | D48: 1 | E48: 1 | F48: 1 | G48: =+OFFSET(G50,$B$48,0) -> 1 | H48: =+OFFSET(H50,$B$48,0) -> 1 | I48: =+OFFSET(I50,$B$48,0) -> 1 | K48: =+'Cash Flow Analysis'!F118 -> 1.70295146 | L48: =+'Cash Flow Analysis'!Q118 -> 0 | M48: =+'Cash Flow Analysis'!L118 -> 0.0004127665815 | N48: =+'Cash Flow Analysis'!H117 -> 0.2007169548 | O48: =+'Cash Flow Analysis'!I117 -> 0.009114140422 | P48: =+'Cash Flow Analysis'!J117 -> 0.0221030628 | Q48: =+'Cash Flow Analysis'!K117 -> 0.0005006369305 | R48: =+'Cash Flow Analysis'!M117 -> 0.0004118524049 | S48: =+'Cash Flow Analysis'!N117 -> 0.06361152059 | T48: =+'Cash Flow Analysis'!O117 -> 1.232915279 | U48: =+'Cash Flow Analysis'!P117 -> 0 | V48: =+'Cash Flow Analysis'!R117 -> 0.07410324993 | W48: =+'Cash Flow Analysis'!S117 -> 0 | X48: =+'Cash Flow Analysis'!X117 -> 0.09988752983 | Y48: =+'Cash Flow Analysis'!Z117 -> 0
B50: Case | C50: Operating Capacity Factor | D50: Plant Design Capacity (kg of H2/day) | E50: After-tax Real IRR (%) | F50: Feedstock Consumption | G50: Utilities Consumption | H50: Total Capital Investment | I50: Total Fixed Operating Cost | K50: Revenue from Hydrogen Sales | L50: Revenue from Byproduct Sales | M50: Salvage Value | N50: Initial Equity Depreciable Capital | O50: Yearly Replacement Costs | P50: Cash from Working Capital Reserve | Q50: Other Non-Depreciable Capital Costs | R50: Decommissioning Costs | S50: Fixed Operating Cost | T50: Feedstock Cost | U50: Other Raw Material Cost | V50: Other Variable Operating Costs | W50: Debt Interest | X50: Taxes | Y50: Principal Payment
B51: 1 | C51: 1 | D51: 1 | E51: 1 | F51: 1 | G51: 1 | H51: 1 | I51: 1 | K51: 1.70295146 | L51: 0 | M51: 0.0004127665815 | N51: 0.2007169548 | O51: 0.009114140422 | P51: 0.0221030628 | Q51: 0.0005006369305 | R51: 0.0004118524049 | S51: 0.06361152059 | T51: 1.232915279 | U51: 0 | V51: 0.07410324993 | W51: 0 | X51: 0.09988752983 | Y51: 0
B52: =+B51+1 -> 2 | C52: =+F3 -> 1.05 | D52: 1 | E52: 1 | F52: 1 | G52: 1 | H52: 1 | I52: 1 | K52: 1.684814364 | L52: 0 | M52: 0.00039311103 | N52: 0.1911590046 | O52: 0.008680133735 | P52: 0.02203960967 | Q52: 0.0004767970767 | R52: 0.0003922403856 | S52: 0.06058240056 | T52: 1.232915279 | U52: 0 | V52: 0.07320132394 | W52: 0 | X52: 0.09576068563 | Y52: 0
B53: =+B52+1 -> 3 | C53: =+G3 -> 0.95 | D53: 1 | E53: 1 | F53: 1 | G53: 1 | H53: 1 | I53: 1 | K53: 1.722997725 | L53: 0 | M53: 0.0004344911384 | N53: 0.2112810051 | O53: 0.009593832023 | P53: 0.02217319521 | Q53: 0.0005269862427 | R53: 0.0004335288472 | S53: 0.06695949536 | T53: 1.232915279 | U53: 0 | V53: 0.0751001155 | W53: 0 | X53: 0.1044487787 | Y53: 0
B54: 4 | C54: 1 | D54: =+F4 -> 1.05 | E54: 1 | F54: 1 | G54: 1 | H54: 1 | I54: 1 | K54: 1.695618479 | L54: 0 | M54: 0.0004047890995 | N54: 0.1968377263 | O54: 0.008937992705 | P54: 0.02207775316 | Q54: 0.0004909611906 | R54: 0.000403892591 | S54: 0.06204353896 | T54: 1.232915279 | U54: 0 | V54: 0.07410324993 | W54: 0 | X54: 0.09821287457 | Y54: 0
B55: 5 | C55: 1 | D55: =+G4 -> 0.95 | E55: 1 | F55: 1 | G55: 1 | H55: 1 | I55: 1 | K55: 1.710830787 | L55: 0 | M55: 0.000421322921 | N55: 0.2048776657 | O55: 0.00930306967 | P55: 0.02213043311 | Q55: 0.000511014756 | R55: 0.0004203897942 | S55: 0.0653071651 | T55: 1.232915279 | U55: 0 | V55: 0.07410324993 | W55: 0 | X55: 0.1016838432 | Y55: 0
B56: 6 | C56: 1 | D56: 1 | E56: =+F5 -> 0.95 | F56: 1 | G56: 1 | H56: 1 | I56: 1 | K56: 1.692315536 | L56: 0 | M56: 0.0004716963502 | N56: 0.1904726004 | O56: 0.009095813765 | P56: 0.02136191983 | Q56: 0.0004724774646 | R56: 0.0004706516586 | S56: 0.06354604404 | T56: 1.239617654 | U56: 0 | V56: 0.07412042293 | W56: 0 | X56: 0.09362964891 | Y56: 0
B57: 7 | C57: 1 | D57: 1 | E57: =+G5 -> 1.05 | F57: 1 | G57: 1 | H57: 1 | I57: 1 | K57: 1.714253444 | L57: 0 | M57: 0.0003608788438 | N57: 0.2111482756 | O57: 0.009132546914 | P57: 0.02283385091 | Q57: 0.0005295447631 | R57: 0.0003600795858 | S57: 0.06367728238 | T57: 1.226554377 | U57: 0 | V57: 0.07408979515 | W57: 0 | X57: 0.1062885709 | Y57: 0
B58: 8 | C58: 1 | D58: 1 | E58: 1 | F58: =+F6 -> 0.95 | G58: 1 | H58: 1 | I58: 1 | K58: 1.639678831 | L58: 0 | M58: 0.0004127665815 | N58: 0.2007169548 | O58: 0.009114140422 | P58: 0.02110904808 | Q58: 0.0005006369305 | R58: 0.0004118524049 | S58: 0.06361152059 | T58: 1.171269515 | U58: 0 | V58: 0.07410324993 | W58: 0 | X58: 0.09925467921 | Y58: 0
B59: 9 | C59: 1 | D59: 1 | E59: 1 | F59: =+G6 -> 1.05 | G59: 1 | H59: 1 | I59: 1 | K59: 1.766224089 | L59: 0 | M59: 0.0004127665815 | N59: 0.2007169548 | O59: 0.009114140422 | P59: 0.02309707752 | Q59: 0.0005006369305 | R59: 0.0004118524049 | S59: 0.06361152059 | T59: 1.294561043 | U59: 0 | V59: 0.07410324993 | W59: 0 | X59: 0.1005203804 | Y59: 0
B60: 10 | C60: 1 | D60: 1 | E60: 1 | F60: 1 | G60: =+F7 -> 0.95 | H60: 1 | I60: 1 | K60: 1.701083748 | L60: 0 | M60: 0.0004127665815 | N60: 0.2007169548 | O60: 0.009114140422 | P60: 0.02207369879 | Q60: 0.0005006369305 | R60: 0.0004118524049 | S60: 0.06361152059 | T60: 1.232915279 | U60: 0 | V60: 0.07228359677 | W60: 0 | X60: 0.0998688349 | Y60: 0
B61: 11 | C61: 1 | D61: 1 | E61: 1 | F61: 1 | G61: =+G6 -> 1.05 | H61: 1 | I61: 1 | K61: 1.704819172 | L61: 0 | M61: 0.0004127665815 | N61: 0.2007169548 | O61: 0.009114140422 | P61: 0.02213242681 | Q61: 0.0005006369305 | R61: 0.0004118524049 | S61: 0.06361152059 | T61: 1.232915279 | U61: 0 | V61: 0.07592290309 | W61: 0 | X61: 0.09990622475 | Y61: 0
B62: 12 | C62: 1 | D62: 1 | E62: 1 | F62: 1 | G62: 1 | H62: =+F8 -> 0.95 | I62: 1 | K62: 1.686938752 | L62: 0 | M62: 0.0003921282524 | N62: 0.1906588308 | O62: 0.009114140422 | P62: 0.02207425958 | Q62: 0.0005006369305 | R62: 0.0003912140758 | S62: 0.0618271044 | T62: 1.232915279 | U62: 0 | V62: 0.07410324993 | W62: 0 | X62: 0.09574616492 | Y62: 0
B63: 13 | C63: 1 | D63: 1 | E63: 1 | F63: 1 | G63: 1 | H63: =+G8 -> 1.05 | I63: 1 | K63: 1.718964168 | L63: 0 | M63: 0.0004334049105 | N63: 0.2107750788 | O63: 0.009114140422 | P63: 0.02213186602 | Q63: 0.0005006369305 | R63: 0.0004324907339 | S63: 0.06539593678 | T63: 1.232915279 | U63: 0 | V63: 0.07410324993 | W63: 0 | X63: 0.1040288947 | Y63: 0
B64: 14 | C64: 1 | D64: 1 | E64: 1 | F64: 1 | G64: 1 | H64: 1 | I64: =+F9 -> 0.95 | K64: 1.699686859 | L64: 0 | M64: 0.0004127665815 | N64: 0.2007169548 | O64: 0.009114140422 | P64: 0.02205172341 | Q64: 0.0005006369305 | R64: 0.0004118524049 | S64: 0.06043094456 | T64: 1.232915279 | U64: 0 | V64: 0.07410324993 | W64: 0 | X64: 0.09985484403 | Y64: 0
B65: 15 | C65: 1 | D65: 1 | E65: 1 | F65: 1 | G65: 1 | H65: 1 | I65: =+G9 -> 1.05 | K65: 1.706216061 | L65: 0 | M65: 0.0004127665815 | N65: 0.2007169548 | O65: 0.009114140422 | P65: 0.02215440219 | Q65: 0.0005006369305 | R65: 0.0004118524049 | S65: 0.06679209662 | T65: 1.232915279 | U65: 0 | V65: 0.07410324993 | W65: 0 | X65: 0.09992021563 | Y65: 0
B66: 16 | C66: =(C$72=1)*$F$3 +(C$72=2) +(C$72=3) +(C$72=4) +(C$72=5) -> 1 | D66: 1 | E66: 1 | F66: =(F$72=1)*$F$6 +(F$72=2) +(F$72=3) +(F$72=4) +(F$72=5) -> 0.95 | G66: =(G$72=1)*$F$7 +(G$72=2) +(G$72=3) +(G$72=4) +(G$72=5) -> 1 | H66: =(H$72=1)*$F$8 +(H$72=2) +(H$72=3) +(H$72=4) +(H$72=5) -> 1 | I66: =(I$72=1)*$F$9 +(I$72=2) +(I$72=3) +(I$72=4) +(I$72=5) -> 1 | K66: 1.639678831 | L66: 0 | M66: 0.0004127665815 | N66: 0.2007169548 | O66: 0.009114140422 | P66: 0.02110904808 | Q66: 0.0005006369305 | R66: 0.0004118524049 | S66: 0.06361152059 | T66: 1.171269515 | U66: 0 | V66: 0.07410324993 | W66: 0 | X66: 0.09925467921 | Y66: 0
B67: 17 | C67: =(C$72=1)*$F$3 +(C$72=2)*$F$3 +(C$72=3) +(C$72=4) +(C$72=5) -> 1.05 | D67: 1 | E67: 1 | F67: =(F$72=1)*$F$6 +(F$72=2)*$F$6 +(F$72=3) +(F$72=4) +(F$72=5) -> 0.95 | G67: =(G$72=1)*$F$7 +(G$72=2)*$F$7 +(G$72=3) +(G$72=4) +(G$72=5) -> 1 | H67: =(H$72=1)*$F$8 +(H$72=2)*$F$8 +(H$72=3) +(H$72=4) +(H$72=5) -> 1 | I67: =(I$72=1)*$F$9 +(I$72=2)*$F$9 +(I$72=3) +(I$72=4) +(I$72=5) -> 1 | K67: 1.621541734 | L67: 0 | M67: 0.00039311103 | N67: 0.1911590046 | O67: 0.008680133735 | P67: 0.02104559495 | Q67: 0.0004767970767 | R67: 0.0003922403856 | S67: 0.06058240056 | T67: 1.171269515 | U67: 0 | V67: 0.07320132394 | W67: 0 | X67: 0.09512783501 | Y67: 0
B68: 18 | C68: =(C$72=1)*$F$3 +(C$72=2)*$F$3 +(C$72=3)*$F$3 +(C$72=4) +(C$72=5) -> 1.05 | D68: 1 | E68: 1 | F68: =(F$72=1)*$F$6 +(F$72=2)*$F$6 +(F$72=3)*$F$6 +(F$72=4) +(F$72=5) -> 0.95 | G68: =(G$72=1)*$F$7 +(G$72=2)*$F$7 +(G$72=3)*$F$7 +(G$72=4) +(G$72=5) -> 1 | H68: =(H$72=1)*$F$8 +(H$72=2)*$F$8 +(H$72=3)*$F$8 +(H$72=4) +(H$72=5) -> 0.95 | I68: =(I$72=1)*$F$9 +(I$72=2)*$F$9 +(I$72=3)*$F$9 +(I$72=4) +(I$72=5) -> 1 | K68: 1.606291536 | L68: 0 | M68: 0.0003734554785 | N68: 0.1815798389 | O68: 0.008680133735 | P68: 0.02101816331 | Q68: 0.0004767970767 | R68: 0.0003725848341 | S68: 0.05888295658 | T68: 1.171269515 | U68: 0 | V68: 0.07320132394 | W68: 0 | X68: 0.09118367796 | Y68: 0
B69: 19 | C69: =(C$72=1)*$F$3 +(C$72=2)*$F$3 +(C$72=3)*$F$3 +(C$72=4)*$F$3 +(C$72=5) -> 1.05 | D69: 1 | E69: 1 | F69: =(F$72=1)*$F$6 +(F$72=2)*$F$6 +(F$72=3)*$F$6 +(F$72=4)*$F$6 +(F$72=5) -> 0.95 | G69: =(G$72=1)*$F$7 +(G$72=2)*$F$7 +(G$72=3)*$F$7 +(G$72=4)*$F$7 +(G$72=5) -> 1 | H69: =(H$72=1)*$F$8 +(H$72=2)*$F$8 +(H$72=3)*$F$8 +(H$72=4)*$F$8 +(H$72=5) -> 0.95 | I69: =(I$72=1)*$F$9 +(I$72=2)*$F$9 +(I$72=3)*$F$9 +(I$72=4)*$F$9 +(I$72=5) -> 0.95 | K69: 1.603269609 | L69: 0 | M69: 0.0003734554785 | N69: 0.1815798389 | O69: 0.008680133735 | P69: 0.02097064023 | Q69: 0.0004767970767 | R69: 0.0003725848341 | S69: 0.05593880875 | T69: 1.171269515 | U69: 0 | V69: 0.07320132394 | W69: 0 | X69: 0.09115342186 | Y69: 0
B70: 20 | C70: =(C$72=1)*$F$3 +(C$72=2)*$F$3 +(C$72=3)*$F$3 +(C$72=4)*$F$3 +(C$72=5)*$F$3 -> 1.05 | D70: 1 | E70: 1 | F70: =(F$72=1)*$F$6 +(F$72=2)*$F$6 +(F$72=3)*$F$6 +(F$72=4)*$F$6 +(F$72=5)*$F$6 -> 0.95 | G70: =(G$72=1)*$F$7 +(G$72=2)*$F$7 +(G$72=3)*$F$7 +(G$72=4)*$F$7 +(G$72=5)*$F$7 -> 0.95 | H70: =(H$72=1)*$F$8 +(H$72=2)*$F$8 +(H$72=3)*$F$8 +(H$72=4)*$F$8 +(H$72=5)*$F$8 -> 0.95 | I70: =(I$72=1)*$F$9 +(I$72=2)*$F$9 +(I$72=3)*$F$9 +(I$72=4)*$F$9 +(I$72=5)*$F$9 -> 0.95 | K70: 1.601401897 | L70: 0 | M70: 0.0003734554785 | N70: 0.1815798389 | O70: 0.008680133735 | P70: 0.02094127622 | Q70: 0.0004767970767 | R70: 0.0003725848341 | S70: 0.05593880875 | T70: 1.171269515 | U70: 0 | V70: 0.07138167078 | W70: 0 | X70: 0.09113472693 | Y70: 0
B72: Waterfall Chart Priority | C72: =6-RANK($N$101,($N$101,$N$104:$N$107)) -> 2 | F72: =6-RANK($N$104,($N$101,$N$104:$N$107)) -> 1 | G72: =6-RANK($N$105,($N$101,$N$104:$N$107)) -> 5 | H72: =6-RANK($N$106,($N$101,$N$104:$N$107)) -> 3 | I72: =6-RANK($N$107,($N$101,$N$104:$N$107)) -> 4
B74: Visualization data formatting
B76: parameter | C76: level | D76: Chart titles | E76: Revenue from Hydrogen Sales | F76: Revenue from Byproduct Sales | G76: Salvage Value | H76: Initial Equity Depreciable Capital | I76: Yearly Replacement Costs | J76: Cash for Working Capital Reserve | K76: Other Non-Depreciable Capital Costs | L76: Decommissioning Costs | M76: Fixed Operating Cost | N76: Feedstock Cost | O76: Other Raw Material Cost | P76: Other Variable Operating Costs | Q76: Debt Interest | R76: Taxes | S76: Principal Payment
B77: =+$B$3 -> Operating Capacity Factor | C77: =+H3 -> 0.945 | D77: =+B77&" = "&C77*100&"%" -> Operating Capacity Factor = 94.5% | E77: =+K52 -> 1.684814364 | F77: 0 | G77: 0.00039311103 | H77: 0.1911590046 | I77: 0.008680133735 | J77: 0.02203960967 | K77: 0.0004767970767 | L77: 0.0003922403856 | M77: 0.06058240056 | N77: 1.232915279 | O77: 0 | P77: 0.07320132394 | Q77: 0 | R77: 0.09576068563 | S77: 0
B78: =+$B$3 -> Operating Capacity Factor | C78: =+C3 -> 0.9 | D78: =+B78&" = "&C78*100&"%" -> Operating Capacity Factor = 90% | E78: =+K$51 -> 1.70295146 | F78: 0 | G78: 0.0004127665815 | H78: 0.2007169548 | I78: 0.009114140422 | J78: 0.0221030628 | K78: 0.0005006369305 | L78: 0.0004118524049 | M78: 0.06361152059 | N78: 1.232915279 | O78: 0 | P78: 0.07410324993 | Q78: 0 | R78: 0.09988752983 | S78: 0
B79: Operating Capacity Factor | C79: =+I3 -> 0.855 | D79: Operating Capacity Factor = 85.5% | E79: =+K53 -> 1.722997725 | F79: 0 | G79: 0.0004344911384 | H79: 0.2112810051 | I79: 0.009593832023 | J79: 0.02217319521 | K79: 0.0005269862427 | L79: 0.0004335288472 | M79: 0.06695949536 | N79: 1.232915279 | O79: 0 | P79: 0.0751001155 | Q79: 0 | R79: 0.1044487787 | S79: 0
B80: =+$B$4 -> Plant Design Capacity (kg of H2/day) | C80: =ROUND(H4,0) -> 398356 | D80: =+B80&" = "&TEXT(C80,"0,000") -> Plant Design Capacity (kg of H2/day) = 398,356 | E80: 1.695618479 | F80: 0 | G80: 0.0004047890995 | H80: 0.1968377263 | I80: 0.008937992705 | J80: 0.02207775316 | K80: 0.0004909611906 | L80: 0.000403892591 | M80: 0.06204353896 | N80: 1.232915279 | O80: 0 | P80: 0.07410324993 | Q80: 0 | R80: 0.09821287457 | S80: 0
B81: =+$B$4 -> Plant Design Capacity (kg of H2/day) | C81: =+ROUND(C4,0) -> 379387 | D81: =+B81&" = "&TEXT(C81,"0,000") -> Plant Design Capacity (kg of H2/day) = 379,387 | E81: =+K$51 -> 1.70295146 | F81: 0 | G81: 0.0004127665815 | H81: 0.2007169548 | I81: 0.009114140422 | J81: 0.0221030628 | K81: 0.0005006369305 | L81: 0.0004118524049 | M81: 0.06361152059 | N81: 1.232915279 | O81: 0 | P81: 0.07410324993 | Q81: 0 | R81: 0.09988752983 | S81: 0
B82: Plant Design Capacity (kg of H2/day) | C82: =ROUND(I4,0) -> 360418 | D82: Plant Design Capacity (kg of H2/day) = 360,418 | E82: =+K55 -> 1.710830787 | F82: 0 | G82: 0.000421322921 | H82: 0.2048776657 | I82: 0.00930306967 | J82: 0.02213043311 | K82: 0.000511014756 | L82: 0.0004203897942 | M82: 0.0653071651 | N82: 1.232915279 | O82: 0 | P82: 0.07410324993 | Q82: 0 | R82: 0.1016838432 | S82: 0
B83: =+$B$5 -> After-tax Real IRR | C83: =+ROUND(H5,2) -> 0.1 | D83: =+B83&" = "&C83*100&"%" -> After-tax Real IRR = 10% | E83: 1.692315536 | F83: 0 | G83: 0.0004716963502 | H83: 0.1904726004 | I83: 0.009095813765 | J83: 0.02136191983 | K83: 0.0004724774646 | L83: 0.0004706516586 | M83: 0.06354604404 | N83: 1.239617654 | O83: 0 | P83: 0.07412042293 | Q83: 0 | R83: 0.09362964891 | S83: 0
B84: =+$B$5 -> After-tax Real IRR | C84: =ROUND(C5,2) -> 0.1 | D84: After-tax Real IRR = 10% | E84: =+K$51 -> 1.70295146 | F84: 0 | G84: 0.0004127665815 | H84: 0.2007169548 | I84: 0.009114140422 | J84: 0.0221030628 | K84: 0.0005006369305 | L84: 0.0004118524049 | M84: 0.06361152059 | N84: 1.232915279 | O84: 0 | P84: 0.07410324993 | Q84: 0 | R84: 0.09988752983 | S84: 0
B85: After-tax Real IRR | C85: =ROUND(I5,2) -> 0.11 | D85: After-tax Real IRR = 11% | E85: =+K57 -> 1.714253444 | F85: 0 | G85: 0.0003608788438 | H85: 0.2111482756 | I85: 0.009132546914 | J85: 0.02283385091 | K85: 0.0005295447631 | L85: 0.0003600795858 | M85: 0.06367728238 | N85: 1.226554377 | O85: 0 | P85: 0.07408979515 | Q85: 0 | R85: 0.1062885709 | S85: 0
B86: =+$B$6 -> Feedstock Consumption (% of baseline) | C86: =+ROUND(H6,3) -> 0.95 | D86: =+B86&" = "&C86*100&"%" -> Feedstock Consumption (% of baseline) = 95% | E86: 1.639678831 | F86: 0 | G86: 0.0004127665815 | H86: 0.2007169548 | I86: 0.009114140422 | J86: 0.02110904808 | K86: 0.0005006369305 | L86: 0.0004118524049 | M86: 0.06361152059 | N86: 1.171269515 | O86: 0 | P86: 0.07410324993 | Q86: 0 | R86: 0.09925467921 | S86: 0
B87: =+$B$6 -> Feedstock Consumption (% of baseline) | C87: =+ROUND(C6,3) -> 1 | D87: =+B87&" = "&C87*100&"%" -> Feedstock Consumption (% of baseline) = 100% | E87: =+K$51 -> 1.70295146 | F87: 0 | G87: 0.0004127665815 | H87: 0.2007169548 | I87: 0.009114140422 | J87: 0.0221030628 | K87: 0.0005006369305 | L87: 0.0004118524049 | M87: 0.06361152059 | N87: 1.232915279 | O87: 0 | P87: 0.07410324993 | Q87: 0 | R87: 0.09988752983 | S87: 0
B88: Feedstock Consumption (% of baseline) | C88: =+ROUND(I6,3) -> 1.05 | D88: =+B88&" = "&C88*100&"%" -> Feedstock Consumption (% of baseline) = 105% | E88: =+K59 -> 1.766224089 | F88: 0 | G88: 0.0004127665815 | H88: 0.2007169548 | I88: 0.009114140422 | J88: 0.02309707752 | K88: 0.0005006369305 | L88: 0.0004118524049 | M88: 0.06361152059 | N88: 1.294561043 | O88: 0 | P88: 0.07410324993 | Q88: 0 | R88: 0.1005203804 | S88: 0
B89: =+$B$7 -> Utilities Consumption (% of baseline) | C89: =+ROUND(H7,3) -> 0.95 | D89: =+B89&" = "&C89*100&"%" -> Utilities Consumption (% of baseline) = 95% | E89: 1.701083748 | F89: 0 | G89: 0.0004127665815 | H89: 0.2007169548 | I89: 0.009114140422 | J89: 0.02207369879 | K89: 0.0005006369305 | L89: 0.0004118524049 | M89: 0.06361152059 | N89: 1.232915279 | O89: 0 | P89: 0.07228359677 | Q89: 0 | R89: 0.0998688349 | S89: 0
B90: =+$B$7 -> Utilities Consumption (% of baseline) | C90: =+ROUND(C7,3) -> 1 | D90: Utilities Consumption (% of baseline) = 100% | E90: =+K$51 -> 1.70295146 | F90: =+L$51 -> 0 | G90: 0.0004127665815 | H90: 0.2007169548 | I90: 0.009114140422 | J90: 0.0221030628 | K90: 0.0005006369305 | L90: 0.0004118524049 | M90: 0.06361152059 | N90: 1.232915279 | O90: 0 | P90: 0.07410324993 | Q90: 0 | R90: 0.09988752983 | S90: 0
B91: Utilities Consumption (% of baseline) | C91: =+ROUND(I7,3) -> 1.05 | D91: Utilities Consumption (% of baseline) = 105% | E91: =+K61 -> 1.704819172 | F91: 0 | G91: 0.0004127665815 | H91: 0.2007169548 | I91: 0.009114140422 | J91: 0.02213242681 | K91: 0.0005006369305 | L91: 0.0004118524049 | M91: 0.06361152059 | N91: 1.232915279 | O91: 0 | P91: 0.07592290309 | Q91: 0 | R91: 0.09990622475 | S91: 0
B92: =+$B$8 -> Total Capital Investment | C92: =+ROUND(H8,0) -> 206242972 | D92: =+B92&" = "&TEXT(C92/1000,"$0,000K") -> Total Capital Investment = $206,243K | E92: 1.686938752 | F92: 0 | G92: 0.0003921282524 | H92: 0.1906588308 | I92: 0.009114140422 | J92: 0.02207425958 | K92: 0.0005006369305 | L92: 0.0003912140758 | M92: 0.0618271044 | N92: 1.232915279 | O92: 0 | P92: 0.07410324993 | Q92: 0 | R92: 0.09574616492 | S92: 0
B93: =+$B$8 -> Total Capital Investment | C93: =+ROUND(C8,0) -> 217097865 | D93: Total Capital Investment = $217,098K | E93: =+K$51 -> 1.70295146 | F93: 0 | G93: 0.0004127665815 | H93: 0.2007169548 | I93: 0.009114140422 | J93: 0.0221030628 | K93: 0.0005006369305 | L93: 0.0004118524049 | M93: 0.06361152059 | N93: 1.232915279 | O93: 0 | P93: 0.07410324993 | Q93: 0 | R93: 0.09988752983 | S93: 0
B94: Total Capital Investment | C94: =+ROUND(I8,0) -> 227952758 | D94: Total Capital Investment = $227,953K | E94: =+K63 -> 1.718964168 | F94: 0 | G94: 0.0004334049105 | H94: 0.2107750788 | I94: 0.009114140422 | J94: 0.02213186602 | K94: 0.0005006369305 | L94: 0.0004324907339 | M94: 0.06539593678 | N94: 1.232915279 | O94: 0 | P94: 0.07410324993 | Q94: 0 | R94: 0.1040288947 | S94: 0
B95: =+$B$9 -> Total Fixed Operating Cost | C95: =+ROUND(H9,0) -> 7352225 | D95: Total Fixed Operating Cost = $7,352K | E95: 1.699686859 | F95: 0 | G95: 0.0004127665815 | H95: 0.2007169548 | I95: 0.009114140422 | J95: 0.02205172341 | K95: 0.0005006369305 | L95: 0.0004118524049 | M95: 0.06043094456 | N95: 1.232915279 | O95: 0 | P95: 0.07410324993 | Q95: 0 | R95: 0.09985484403 | S95: 0
B96: =+$B$9 -> Total Fixed Operating Cost | C96: =+ROUND(C9,0) -> 7739184 | D96: Total Fixed Operating Cost = $7,739K | E96: =+K$51 -> 1.70295146 | F96: 0 | G96: 0.0004127665815 | H96: 0.2007169548 | I96: 0.009114140422 | J96: 0.0221030628 | K96: 0.0005006369305 | L96: 0.0004118524049 | M96: 0.06361152059 | N96: 1.232915279 | O96: 0 | P96: 0.07410324993 | Q96: 0 | R96: 0.09988752983 | S96: 0
B97: Total Fixed Operating Cost | C97: =+ROUND(I9,0) -> 8126143 | D97: Total Fixed Operating Cost = $8,126K | E97: =+K65 -> 1.706216061 | F97: 0 | G97: 0.0004127665815 | H97: 0.2007169548 | I97: 0.009114140422 | J97: 0.02215440219 | K97: 0.0005006369305 | L97: 0.0004118524049 | M97: 0.06679209662 | N97: 1.232915279 | O97: 0 | P97: 0.07410324993 | Q97: 0 | R97: 0.09992021563 | S97: 0
B100: Standard Toranado | C100: Rank | D100: Titles | E100: Low cost price | F100: Default price | G100: High price | H100: dL0 | I100: dL1 | J100: dL2 | L100: Unsorted titles | M100: Results spread ($/kg) | N100: Importance ranking
C101: 1 | D101: =OFFSET(L$100,MATCH($C101,$N$101:$N$107,0),0) -> Feedstock Consumption (% of baseline) (95%, 100%, 105%) | E101: =OFFSET(E$76,MATCH($C101,$N$101:$N$107,0)*3-2,0) -> 1.639678831 | F101: =+$K$51 -> 1.70295146 | G101: =OFFSET(E$76,MATCH($C101,$N$101:$N$107,0)*3,0) -> 1.766224089 | H101: =+E101 -> 1.639678831 | I101: =+F101-E101 -> 0.06327262928 | J101: =+G101-F101 -> 0.06327262928 | L101: =+B3&" ("&TEXT(H3,"0%, ")&TEXT(C3,"0%, ")&TEXT(I3,"0%)") -> Operating Capacity Factor (95%, 90%, 86%) | M101: =ABS(K52-K53)+0.000000001 -> 0.03818336224 | N101: =+RANK(M101,$M$101:$M$107) -> 2
C102: 2 | D102: Operating Capacity Factor (95%, 90%, 86%) | E102: 1.684814364 | F102: 1.70295146 | G102: 1.722997725 | H102: =+E102 -> 1.684814364 | I102: =+F102-E102 -> 0.01813709659 | J102: =+G102-F102 -> 0.02004626465 | L102: =+B4&" ("&TEXT(H4,"0,000")&", "&TEXT(C4,"0,000")&", "&TEXT(I4,"0,000")&") " -> Plant Design Capacity (kg of H2/day) (398,356, 379,387, 360,418) | M102: =+ABS(K54-K55)+0.000000002 -> 0.01521231003 | N102: 5
C103: 3 | D103: Total Capital Investment ($206,243K, $217,098K, $227,953K) | E103: 1.686938752 | F103: 1.70295146 | G103: 1.718964168 | H103: 1.686938752 | I103: 0.01601270833 | J103: 0.01601270833 | L103: =+B5&" ("&TEXT(H5,"0%, ")&TEXT(C5,"0%, ")&TEXT(I5,"0%)") -> After-tax Real IRR (10%, 10%, 11%) | M103: =+ABS(K56-K57)+0.000000003 -> 0.02193791111 | N103: 4
C104: 4 | D104: After-tax Real IRR (10%, 10%, 11%) | E104: 1.692315536 | F104: 1.70295146 | G104: 1.714253444 | H104: 1.692315536 | I104: 0.01063592373 | J104: 0.01130198438 | L104: =+B6&" ("&TEXT(H6,"0%, ")&TEXT(C6,"0%, ")&TEXT(I6,"0%)") -> Feedstock Consumption (% of baseline) (95%, 100%, 105%) | M104: =+ABS(K58-K59)+0.000000004 -> 0.1265452626 | N104: 1
C105: 5 | D105: Plant Design Capacity (kg of H2/day) (398,356, 379,387, 360,418) | E105: 1.695618479 | F105: 1.70295146 | G105: 1.710830787 | H105: =+E105 -> 1.695618479 | I105: =+F105-E105 -> 0.007332980824 | J105: =+G105-F105 -> 0.00787932721 | L105: =+B7&" ("&TEXT(H7,"0%, ")&TEXT(C7,"0%, ")&TEXT(I7,"0%)") -> Utilities Consumption (% of baseline) (95%, 100%, 105%) | M105: =+ABS(K60-K61)+0.000000004 -> 0.00373542818 | N105: 7
C106: 6 | D106: Total Fixed Operating Cost ($7,352K, $7,739K, $8,126K) | E106: 1.699686859 | F106: 1.70295146 | G106: 1.706216061 | H106: 1.699686859 | I106: 0.003264601219 | J106: 0.003264601219 | L106: =+B8&" ("&TEXT(H8/1000,"$0,000K")&", "&TEXT(C8/1000,"$0,000K")&", "&TEXT(I8/1000,"$0,000K")&") " -> Total Capital Investment ($206,243K, $217,098K, $227,953K) | M106: =+ABS(K62-K63)+0.000000006 -> 0.03202542267 | N106: 3
C107: 7 | D107: Utilities Consumption (% of baseline) (95%, 100%, 105%) | E107: 1.701083748 | F107: 1.70295146 | G107: 1.704819172 | H107: 1.701083748 | I107: 0.00186771209 | J107: 0.00186771209 | L107: =+B9&" ("&TEXT(H9/1000,"$0,000K")&", "&TEXT(C9/1000,"$0,000K")&", "&TEXT(I9/1000,"$0,000K")&") " -> Total Fixed Operating Cost ($7,352K, $7,739K, $8,126K) | M107: =+ABS(K64-K65)+0.00000007 -> 0.006529272438 | N107: 6
B110: Simple bar chart | C110: Rank | D110: =+D76 -> Chart titles | E110: Hydrogen Sales | F110: Byproduct Sales | G110: Salvage Value | H110: =+H76 -> Initial Equity Depreciable Capital | I110: Yearly Replacement Costs | J110: Cash for Working Capital Reserve | K110: Other Non-Depreciable Capital Costs | L110: Decommissioning Costs | M110: Fixed Operating Cost | N110: Feedstock Cost | O110: Other Raw Material Cost | P110: Other Variable Operating Costs | Q110: Debt Interest | R110: Taxes | S110: Principal Payment
C111: 1 | D111: Base case | E111: =OFFSET(E$76,MATCH($C111,$N$101:$N$107,0)*3-1,0) -> 1.70295146 | F111: =OFFSET(F$76,MATCH($C111,$N$101:$N$107,0)*3-1,0) -> 0 | G111: =OFFSET(G$76,MATCH($C111,$N$101:$N$107,0)*3-1,0) -> 0.0004127665815
H112: =OFFSET(H$76,MATCH($C111,$N$101:$N$107,0)*3-1,0) -> 0.2007169548 | I112: 0.009114140422 | J112: 0.0221030628 | K112: 0.0005006369305 | L112: 0.0004118524049 | M112: 0.06361152059 | N112: 1.232915279 | O112: 0 | P112: 0.07410324993 | Q112: 0 | R112: 0.09988752983 | S112: 0
C115: 1 | D115: =OFFSET(D$76,MATCH($C115,$N$101:$N$107,0)*3-2,0) -> Feedstock Consumption (% of baseline) = 95% | E115: 1.639678831 | F115: 0 | G115: 0.0004127665815
H116: =OFFSET(H$76,MATCH($C115,$N$101:$N$107,0)*3-2,0) -> 0.2007169548 | I116: 0.009114140422 | J116: 0.02110904808 | K116: 0.0005006369305 | L116: 0.0004118524049 | M116: 0.06361152059 | N116: 1.171269515 | O116: 0 | P116: 0.07410324993 | Q116: 0 | R116: 0.09925467921 | S116: 0
C117: 1 | D117: =OFFSET(D$76,MATCH($C117,$N$101:$N$107,0)*3,0) -> Feedstock Consumption (% of baseline) = 105% | E117: 1.766224089 | F117: 0 | G117: 0.0004127665815
H118: =OFFSET(H$76,MATCH($C117,$N$101:$N$107,0)*3,0) -> 0.2007169548 | I118: 0.009114140422 | J118: 0.02309707752 | K118: 0.0005006369305 | L118: 0.0004118524049 | M118: 0.06361152059 | N118: 1.294561043 | O118: 0 | P118: 0.07410324993 | Q118: 0 | R118: 0.1005203804 | S118: 0
C120: 2 | D120: =OFFSET(D$76,MATCH($C120,$N$101:$N$107,0)*3-2,0) -> Operating Capacity Factor = 94.5% | E120: 1.684814364 | F120: 0 | G120: 0.00039311103
H121: =OFFSET(H$76,MATCH($C120,$N$101:$N$107,0)*3-2,0) -> 0.1911590046 | I121: 0.008680133735 | J121: 0.02203960967 | K121: 0.0004767970767 | L121: 0.0003922403856 | M121: 0.06058240056 | N121: 1.232915279 | O121: 0 | P121: 0.07320132394 | Q121: 0 | R121: 0.09576068563 | S121: 0
C122: 2 | D122: =OFFSET(D$76,MATCH($C122,$N$101:$N$107,0)*3,0) -> Operating Capacity Factor = 85.5% | E122: 1.722997725 | F122: 0 | G122: 0.0004344911384
H123: =OFFSET(H$76,MATCH($C122,$N$101:$N$107,0)*3,0) -> 0.2112810051 | I123: 0.009593832023 | J123: 0.02217319521 | K123: 0.0005269862427 | L123: 0.0004335288472 | M123: 0.06695949536 | N123: 1.232915279 | O123: 0 | P123: 0.0751001155 | Q123: 0 | R123: 0.1044487787 | S123: 0
C125: 3 | D125: =OFFSET(D$76,MATCH($C125,$N$101:$N$107,0)*3-2,0) -> Total Capital Investment = $206,243K | E125: 1.686938752 | F125: 0 | G125: 0.0003921282524
H126: =OFFSET(H$76,MATCH($C125,$N$101:$N$107,0)*3-2,0) -> 0.1906588308 | I126: 0.009114140422 | J126: 0.02207425958 | K126: 0.0005006369305 | L126: 0.0003912140758 | M126: 0.0618271044 | N126: 1.232915279 | O126: 0 | P126: 0.07410324993 | Q126: 0 | R126: 0.09574616492 | S126: 0
C127: 3 | D127: =OFFSET(D$76,MATCH($C127,$N$101:$N$107,0)*3,0) -> Total Capital Investment = $227,953K | E127: 1.718964168 | F127: 0 | G127: 0.0004334049105
H128: =OFFSET(H$76,MATCH($C127,$N$101:$N$107,0)*3,0) -> 0.2107750788 | I128: 0.009114140422 | J128: 0.02213186602 | K128: 0.0005006369305 | L128: 0.0004324907339 | M128: 0.06539593678 | N128: 1.232915279 | O128: 0 | P128: 0.07410324993 | Q128: 0 | R128: 0.1040288947 | S128: 0
C130: 4 | D130: =OFFSET(D$76,MATCH($C130,$N$101:$N$107,0)*3-2,0) -> After-tax Real IRR = 10% | E130: 1.692315536 | F130: 0 | G130: 0.0004716963502
H131: =OFFSET(H$76,MATCH($C130,$N$101:$N$107,0)*3-2,0) -> 0.1904726004 | I131: 0.009095813765 | J131: 0.02136191983 | K131: 0.0004724774646 | L131: 0.0004706516586 | M131: 0.06354604404 | N131: 1.239617654 | O131: 0 | P131: 0.07412042293 | Q131: 0 | R131: 0.09362964891 | S131: 0
C132: 4 | D132: =OFFSET(D$76,MATCH($C132,$N$101:$N$107,0)*3,0) -> After-tax Real IRR = 11% | E132: 1.714253444 | F132: 0 | G132: 0.0003608788438
H133: =OFFSET(H$76,MATCH($C132,$N$101:$N$107,0)*3,0) -> 0.2111482756 | I133: 0.009132546914 | J133: 0.02283385091 | K133: 0.0005295447631 | L133: 0.0003600795858 | M133: 0.06367728238 | N133: 1.226554377 | O133: 0 | P133: 0.07408979515 | Q133: 0 | R133: 0.1062885709 | S133: 0
C135: 5 | D135: =OFFSET(D$76,MATCH($C135,$N$101:$N$107,0)*3-2,0) -> Plant Design Capacity (kg of H2/day) = 398,356 | E135: 1.695618479 | F135: 0 | G135: 0.0004047890995
H136: =OFFSET(H$76,MATCH($C135,$N$101:$N$107,0)*3-2,0) -> 0.1968377263 | I136: 0.008937992705 | J136: 0.02207775316 | K136: 0.0004909611906 | L136: 0.000403892591 | M136: 0.06204353896 | N136: 1.232915279 | O136: 0 | P136: 0.07410324993 | Q136: 0 | R136: 0.09821287457 | S136: 0
C137: 5 | D137: =OFFSET(D$76,MATCH($C137,$N$101:$N$107,0)*3,0) -> Plant Design Capacity (kg of H2/day) = 360,418 | E137: 1.710830787 | F137: 0 | G137: 0.000421322921
H138: =OFFSET(H$76,MATCH($C137,$N$101:$N$107,0)*3,0) -> 0.2048776657 | I138: 0.00930306967 | J138: 0.02213043311 | K138: 0.000511014756 | L138: 0.0004203897942 | M138: 0.0653071651 | N138: 1.232915279 | O138: 0 | P138: 0.07410324993 | Q138: 0 | R138: 0.1016838432 | S138: 0
C140: 6 | D140: =OFFSET(D$76,MATCH($C140,$N$101:$N$107,0)*3-2,0) -> Total Fixed Operating Cost = $7,352K | E140: 1.699686859 | F140: 0 | G140: 0.0004127665815
H141: =OFFSET(H$76,MATCH($C140,$N$101:$N$107,0)*3-2,0) -> 0.2007169548 | I141: 0.009114140422 | J141: 0.02205172341 | K141: 0.0005006369305 | L141: 0.0004118524049 | M141: 0.06043094456 | N141: 1.232915279 | O141: 0 | P141: 0.07410324993 | Q141: 0 | R141: 0.09985484403 | S141: 0
C142: 6 | D142: =OFFSET(D$76,MATCH($C142,$N$101:$N$107,0)*3,0) -> Total Fixed Operating Cost = $8,126K | E142: 1.706216061 | F142: 0 | G142: 0.0004127665815
H143: =OFFSET(H$76,MATCH($C142,$N$101:$N$107,0)*3,0) -> 0.2007169548 | I143: 0.009114140422 | J143: 0.02215440219 | K143: 0.0005006369305 | L143: 0.0004118524049 | M143: 0.06679209662 | N143: 1.232915279 | O143: 0 | P143: 0.07410324993 | Q143: 0 | R143: 0.09992021563 | S143: 0
C145: 7 | D145: =OFFSET(D$76,MATCH($C145,$N$101:$N$107,0)*3-2,0) -> Utilities Consumption (% of baseline) = 95% | E145: 1.701083748 | F145: 0 | G145: 0.0004127665815
H146: =OFFSET(H$76,MATCH($C145,$N$101:$N$107,0)*3-2,0) -> 0.2007169548 | I146: 0.009114140422 | J146: 0.02207369879 | K146: 0.0005006369305 | L146: 0.0004118524049 | M146: 0.06361152059 | N146: 1.232915279 | O146: 0 | P146: 0.07228359677 | Q146: 0 | R146: 0.0998688349 | S146: 0
C147: 7 | D147: =OFFSET(D$76,MATCH($C147,$N$101:$N$107,0)*3,0) -> Utilities Consumption (% of baseline) = 105% | E147: 1.704819172 | F147: 0 | G147: 0.0004127665815
H148: =OFFSET(H$76,MATCH($C147,$N$101:$N$107,0)*3,0) -> 0.2007169548 | I148: 0.009114140422 | J148: 0.02213242681 | K148: 0.0005006369305 | L148: 0.0004118524049 | M148: 0.06361152059 | N148: 1.232915279 | O148: 0 | P148: 0.07592290309 | Q148: 0 | R148: 0.09990622475 | S148: 0
B152: Parado chart
D153: Unsorted
D154: Title | E154: Unsorted values | F154: Unsorted Ranking | G154: Sorted ranking | H154: Sorted titles | I154: Sorted values | K154: Grayed Titles | L154: Revenues $/kg H2 | M154: Expenses $/kg H2 | N154: Colored titles
B155: Revenues | C155: 1 | D155: Cost of Hydrogen | E155: =+K48+C155/10000000000 -> 1.70295146 | F155: =+RANK(E155,$E$155:$E$157) -> 1 | G155: 1 | H155: =OFFSET($D$154,MATCH($G155,$F$155:$F$157,0),0) -> Cost of Hydrogen | I155: =OFFSET($E$154,MATCH($G155,$F$155:$F$157,0),0)-OFFSET($C$154,MATCH($G155,$F$155:$F$157,0),0)/10000000000 -> 1.70295146 | K155: =+H155 -> Cost of Hydrogen | L155: =+I155 -> 1.70295146 | N155: =+IF(L155>0,K155,"") -> Cost of Hydrogen
C156: 2 | D156: =+F110 -> Byproduct Sales | E156: =+L48+C156/10000000000 -> 2e-10 | F156: =+RANK(E156,$E$155:$E$157) -> 3 | G156: 2 | H156: =OFFSET($D$154,MATCH($G156,$F$155:$F$157,0),0) -> Salvage Value | I156: =OFFSET($E$154,MATCH($G156,$F$155:$F$157,0),0)-OFFSET($C$154,MATCH($G156,$F$155:$F$157,0),0)/10000000000 -> 0.0004127665815 | K156: =+H156 -> Salvage Value | L156: =+I156 -> 0.0004127665815 | N156: =+IF(L156>0,K156,"") -> Salvage Value
C157: 3 | D157: =+G110 -> Salvage Value | E157: =+M48+C157/10000000000 -> 0.0004127668815 | F157: =+RANK(E157,$E$155:$E$157) -> 2 | G157: 3 | H157: =OFFSET($D$154,MATCH($G157,$F$155:$F$157,0),0) -> Byproduct Sales | I157: =OFFSET($E$154,MATCH($G157,$F$155:$F$157,0),0)-OFFSET($C$154,MATCH($G157,$F$155:$F$157,0),0)/10000000000 -> 0 | K157: Byproduct Sales | L157: 0
N158: =+IF(L158>0.01,K158,"") -> 
B159: Expenses | C159: 1 | D159: =+H110 -> Initial Equity Depreciable Capital | E159: =+N48+C159/10000000000 -> 0.2007169549 | F159: =+RANK(E159,$E$159:$E$170) -> 2 | G159: 1 | H159: =OFFSET($D$158,MATCH($G159,$F$159:$F$170,0),0) -> Feedstock Cost | I159: =OFFSET($E$158,MATCH($G159,$F$159:$F$170,0),0)-OFFSET($C$158,MATCH($G159,$F$159:$F$170,0),0)/10000000000 -> 1.232915279 | K159: Feedstock Cost | M159: =+I159 -> 1.232915279 | N159: =+IF(M159>0,K159,"") -> Feedstock Cost
C160: =+C159+1 -> 2 | D160: =+I110 -> Yearly Replacement Costs | E160: =+O48+C160/10000000000 -> 0.009114140622 | F160: 7 | G160: 2 | H160: Initial Equity Depreciable Capital | I160: 0.2007169548 | K160: Initial Equity Depreciable Capital | M160: =+I160 -> 0.2007169548 | N160: =+IF(M160>0,K160,"") -> Initial Equity Depreciable Capital
C161: =+C160+1 -> 3 | D161: =+J110 -> Cash for Working Capital Reserve | E161: =+P48+C161/10000000000 -> 0.0221030631 | F161: 6 | G161: 3 | H161: Taxes | I161: 0.09988752983 | K161: Taxes | M161: 0.09988752983 | N161: Taxes
C162: 4 | D162: =+K110 -> Other Non-Depreciable Capital Costs | E162: =+Q48+C162/10000000000 -> 0.0005006373305 | F162: 8 | G162: 4 | H162: Other Variable Operating Costs | I162: 0.07410324993 | K162: Other Variable Operating Costs | M162: 0.07410324993 | N162: Other Variable Operating Costs
C163: 5 | D163: =+L110 -> Decommissioning Costs | E163: =+R48+C163/10000000000 -> 0.0004118529049 | F163: 9 | G163: 5 | H163: Fixed Operating Cost | I163: 0.06361152059 | K163: Fixed Operating Cost | M163: 0.06361152059 | N163: Fixed Operating Cost
C164: 6 | D164: =+M110 -> Fixed Operating Cost | E164: =+S48+C164/10000000000 -> 0.06361152119 | F164: 5 | G164: 6 | H164: Cash for Working Capital Reserve | I164: 0.0221030628 | K164: Cash for Working Capital Reserve | M164: 0.0221030628 | N164: Cash for Working Capital Reserve
C165: 7 | D165: =+N110 -> Feedstock Cost | E165: =+T48+C165/10000000000 -> 1.23291528 | F165: 1 | G165: 7 | H165: Yearly Replacement Costs | I165: 0.009114140422 | K165: Yearly Replacement Costs | M165: 0.009114140422 | N165: Yearly Replacement Costs
C166: 8 | D166: =+O110 -> Other Raw Material Cost | E166: =+U48+C166/10000000000 -> 8e-10 | F166: 12 | G166: 8 | H166: Other Non-Depreciable Capital Costs | I166: 0.0005006369305 | K166: Other Non-Depreciable Capital Costs | M166: 0.0005006369305 | N166: Other Non-Depreciable Capital Costs
C167: 9 | D167: =+P110 -> Other Variable Operating Costs | E167: =+V48+C167/10000000000 -> 0.07410325083 | F167: 4 | G167: 9 | H167: Decommissioning Costs | I167: 0.0004118524049 | K167: Decommissioning Costs | M167: 0.0004118524049 | N167: Decommissioning Costs
C168: 10 | D168: =+Q110 -> Debt Interest | E168: =+W48+C168/10000000000 -> 1e-09 | F168: 11 | G168: 10 | H168: Principal Payment | I168: 0 | K168: Principal Payment | M168: 0
C169: 11 | D169: =+R110 -> Taxes | E169: =+X48+C169/10000000000 -> 0.09988753093 | F169: 3 | G169: 11 | H169: Debt Interest | I169: 0 | K169: Debt Interest | M169: 0
C170: 12 | D170: =+S110 -> Principal Payment | E170: =+Y48+C170/10000000000 -> 1.2e-09 | F170: 10 | G170: 12 | H170: Other Raw Material Cost | I170: 0 | K170: Other Raw Material Cost | M170: 0
K171: Total | L171: =+SUM(L155:L170) -> 1.703364227 | M171: =+SUM(M155:M170) -> 1.703364227 | N171: =+IF(M171<0.01,K171,"") -> 
B174: Waterfall Chart | D174: Values | E174: Base | F174: Decrease | G174: Increase
B175: 0 | C175: Baseline | D175: =+K51 -> 1.70295146 | E175: =+D175 -> 1.70295146
B176: 1 | C176: =OFFSET($B$50,0,MATCH($B176,$C$72:$I$72,0))& IF(OFFSET($F$2,MATCH($B176,$C$72:$I$72,0),0)<1, " = "&OFFSET($F$2,MATCH($B176,$C$72:$I$72,0),0)*100-100, " = +"&OFFSET($F$2,MATCH($B176,$C$72:$I$72,0),0)*100-100) &"%" -> Feedstock Consumption = -5% | D176: =+K66 -> 1.639678831 | E176: =+E175+G175-F176 -> 1.639678831 | F176: =+MAX(D175-D176,0) -> 0.06327262928 | G176: =+MAX(D176-D175,0) -> 0
B177: 2 | C177: =OFFSET($B$50,0,MATCH($B177,$C$72:$I$72,0))& IF(OFFSET($F$2,MATCH($B177,$C$72:$I$72,0),0)<1, " = "&OFFSET($F$2,MATCH($B177,$C$72:$I$72,0),0)*100-100, " = +"&OFFSET($F$2,MATCH($B177,$C$72:$I$72,0),0)*100-100) &"%" -> Operating Capacity Factor = +5% | D177: =+K67 -> 1.621541734 | E177: 1.621541734 | F177: =+MAX(D176-D177,0) -> 0.01813709659 | G177: =+MAX(D177-D176,0) -> 0
B178: 3 | C178: =OFFSET($B$50,0,MATCH($B178,$C$72:$I$72,0))& IF(OFFSET($F$2,MATCH($B178,$C$72:$I$72,0),0)<1, " = "&OFFSET($F$2,MATCH($B178,$C$72:$I$72,0),0)*100-100, " = +"&OFFSET($F$2,MATCH($B178,$C$72:$I$72,0),0)*100-100) &"%" -> Total Capital Investment = -5% | D178: =+K68 -> 1.606291536 | E178: 1.606291536 | F178: =+MAX(D177-D178,0) -> 0.01525019841 | G178: =+MAX(D178-D177,0) -> 0
B179: 4 | C179: =OFFSET($B$50,0,MATCH($B179,$C$72:$I$72,0))& IF(OFFSET($F$2,MATCH($B179,$C$72:$I$72,0),0)<1, " = "&OFFSET($F$2,MATCH($B179,$C$72:$I$72,0),0)*100-100, " = +"&OFFSET($F$2,MATCH($B179,$C$72:$I$72,0),0)*100-100) &"%" -> Total Fixed Operating Cost = -5% | D179: =+K69 -> 1.603269609 | E179: 1.603269609 | F179: =+MAX(D178-D179,0) -> 0.003021927003 | G179: =+MAX(D179-D178,0) -> 0
B180: 5 | C180: =OFFSET($B$50,0,MATCH($B180,$C$72:$I$72,0))& IF(OFFSET($F$2,MATCH($B180,$C$72:$I$72,0),0)<1, " = "&OFFSET($F$2,MATCH($B180,$C$72:$I$72,0),0)*100-100, " = +"&OFFSET($F$2,MATCH($B180,$C$72:$I$72,0),0)*100-100) &"%" -> Utilities Consumption = -5% | D180: =+K70 -> 1.601401897 | E180: 1.601401897 | F180: =+MAX(D179-D180,0) -> 0.00186771209 | G180: =+MAX(D180-D179,0) -> 0
B181: 6 | C181: Adjusted | D181: =+K70 -> 1.601401897 | E181: 1.601401897

Sheet Cash Flow Analysis
A2: TABLE OF CONTENTS
A3: DCF Calculations
A4: Yearly Cash Flow Calculations
A5: Specific Item Cost Calculation
A6: Feedstock, Utility, and Byproduct Cost Information
A15: DCF CALCULATION INPUTS: | D15: DCF CALCULATION OUTPUTS:
A16: Process | D16: ="Hydrogen Cost (Year "&TEXT(ref_year,"0")&" Real $/kg)" -> Hydrogen Cost (Year 2007 Real $/kg) | E16: =H2_price_nominal/INFLATION_FACTOR -> 1.70295146
A17: Actual Hydrogen Produced (kg/yr) | B17: =output_kgyear -> 124628629.5 | D17: Hydrogen Cost (Start-up Year Nominal $/kg) | E17: =+SUM(X57:AB57)/AC57*(1+inflation_rate)^construct -> 1.80187567
A18: Actual Hydrogen Energy Produced (MMBtu(LHV)/yr) | B18: =B17*H2_LHV_MJ_p_kg/1000/mmBTU_to_GJ -> 14200769.41 | D18: After Tax Real IRR | E18: =((E20+1)/(1+B30))-1 -> 0.1
A19: Actual Hydrogen Energy Produced (MJ(LHV)/yr) | B19: =B17*H2_LHV_MJ_p_kg -> 1.498181173e+10 | D19: Pre Tax Real IRR | E19: =((E21+1)/(1+B30))-1 -> 0.1659907403
A20: Design Capacity (kg/day) | B20: =design_cap -> 379387 | D20: After Tax Nominal IRR | E20: =IRR(AA65:AA113) -> 0.1209
A21: Design Capacity (kg/yr) | B21: =B20*365 -> 138476255 | D21: Pre Tax Nominal IRR | E21: =IRR(AC65:AC113) -> 0.1881445644
A22: Capacity Factor | B22: =cap_factor -> 0.9 | D22: After Tax Real Capital Recovery Factor | E22: =(real_irr*(1+real_irr)^anal_period)/(((1+real_irr)^anal_period)-1) -> 0.1022594144
D23: After Tax Nominal Capital Recovery Factor | E23: =(nominal_irr*(1+nominal_irr)^anal_period)/(((1+nominal_irr)^anal_period)-1) -> 0.1221714372
A24: Financial | D24: Total Real Fixed Charge Rate | E24: =(E22*(1-total_tax_rate*INDEX(Depreciation!B12:H37,MATCH("NPV - Real IRR",Depreciation!B12:B37,0),MATCH(depr_length,recovery_period,0))))/(1-total_tax_rate) -> 0.1385603187
A25: Start-up Year | B25: =startup_year -> 2010 | D25: Total Nominal Fixed Charge Rate | E25: =(E23*(1-total_tax_rate*INDEX(Depreciation!B12:H37,MATCH("NPV - Nominal IRR",Depreciation!B12:B37,0),MATCH(depr_length,recovery_period,0))))/(1-total_tax_rate) -> 0.1696965853
A26: After-Tax Real IRR | B26: =real_irr -> 0.1 | D26: NPV | E26: =NPV(nominal_irr,AA65:AA113) -> 1.157662044e-06
A27: After-Tax Nominal IRR | B27: =((1+B26)*(1+B30))-1 -> 0.1209
A28: Analysis Period (yrs) | B28: =anal_period -> 40
A29: Plant Life (yrs) | B29: =plant_life -> 40
A30: Inflation Rate | B30: =inflation_rate -> 0.019
A31: Debt Financing | B31: =100%-equity -> 0
A32: Equity Financing | B32: =equity -> 1
A33: Total Tax Rate | B33: =total_tax_rate -> 0.389
A35: Cost of Debt Financing
A36: Debt Financing Period (yrs) | B36: =debt_period -> 20
A37: Interest Rate on Debt | B37: =debt_interest -> 0.06
A39: Construction/Start Up Information
A40: Construction Period (yrs) | B40: =construct -> 3
A41: Start-up Period (yrs) | B41: =start_time -> 1
A42: % Revenue During Start-up | B42: =percnt_revs -> 0.5
A43: % Variable Costs During Start-up | B43: =percnt_var -> 0.75
A44: % Fixed Costs During Start-up | B44: =percnt_fixed -> 0.75
A46: Depreciation Parameters
A47: Depreciation Type | B47: =depr_type -> MACRS
A48: Depreciation Period (yrs) | B48: =depr_length -> 20
A50: Plant Costs (Inflated to Start-up Year $)
A51: Total Depreciable Capital Costs | B51: =(total_cap-non_dep_cap)*INFLATION_FACTOR -> 229200300.3
A52: Total Non-Depreciable Capital Costs | B52: =non_dep_cap*INFLATION_FACTOR -> 508749.1335
A53: Total Capital Investment | B53: =SUM(B51:B52) -> 229709049.4 | W53: Closed form formulas for calculating price of hydrogen.
A54: Decommissioning | B54: =decom_percent*depr_cap_infl -> 22920030.03 | X54: Capital Costs | Y54: Depr | Z54: Principal | AA54: Op costs | AB54: Tax incentives | AC54: H2 sales (kg)
A55: Salvage Value | B55: =salvage_perct*B53 -> 22970904.94 | W55: Discounted values | X55: =-SUM(H116:K116) -> 223233510.5 | Y55: =-U116 -> 72551595.95 | Z55: =-Z116 -> 0 | AA55: =-SUM(L116:S116) -> 1316370699 | AB55: =+AF116 -> 0 | AC55: =+AE116 -> 960413480.8
A56: Fixed Operating Costs ($/year) | B56: =fixed*INFLATION_FACTOR -> 8188752.164 | W56: Tax coefficient | X56: 1 | Y56: =-total_tax_rate -> -0.389 | Z56: 1 | AA56: =1-total_tax_rate -> 0.611 | AB56: -1 | AC56: =1-total_tax_rate -> 0.611
A57: Other Raw Material ($/year) | B57: =total_other_raw*INFLATION_FACTOR -> 0 | W57: LCOE cost contribution factors | X57: =+X55*X56 -> 223233510.5 | Y57: -28222570.82 | Z57: 0 | AA57: =+AA55*AA56 -> 804302496.9 | AB57: =+AB55*AB56 -> 0 | AC57: =+AC55*AC56 -> 586812636.8
A58: Other Variable O&M Costs (not including tax credits and incentives) | B58: =(var_misc+royalties+operator_profit+CO2_OandMcost+waste_treat+solidwaste_treat)*INFLATION_FACTOR -> 2438215.835
W59: Target after-tax nominal IRR | X59: =+(1+real_irr)*(1+inflation_rate)-1 -> 0.1209
W60: =+D16 -> Hydrogen Cost (Year 2007 Real $/kg) | X60: =+SUM(X57:AB57)/AC57*(1+inflation_rate)^construct/INFLATION_FACTOR -> 1.70295146
A63: CASH FLOW ANALYSIS
A64: Actual Year (beginning of year) | B64: Analysis Year | C64: Operation Year | D64: Plant Life | E64: Inflation Price Increase Factor | F64: Revenue from Hydrogen Sales | G64: Portion of Initial Depreciable Capital Investment Financed with Debt (value ONLY used in debt financing calculations) | H64: Initial Equity Depreciable Capital | I64: Yearly Replacement Costs | J64: Cash from Working Capital Reserve | K64: Other Non-Depreciable Capital Costs | L64: Salvage Value | M64: Decommissioning Costs | N64: Fixed Operating Cost | O64: Feedstock Cost | P64: Other Raw Material Cost | Q64: Revenue from Byproduct Sales | R64: Other Variable Operating Costs | S64: Debt Interest | T64: Pre-Depreciation Income | U64: Depreciation Charge | V64: Taxable Income | W64: Tax Rate | X64: Total Taxes | Y64: After-Tax Income | Z64: Principal Payment | AA64: After-Tax Post-Depreciation Cash Flow | AB64: Cumulative Cash Flow | AC64: Pre-Tax Cash Flow | AE64: H2 sales (kg/year) | AF64: Tax Credit
A65: =startup_year-construct -> 2007 | B65: 1 | C65: =IF(construct=0,1,-construct) -> -3 | D65: =IF(C65="","",IF(C65<=plant_life,C65,IF(D64=plant_life,1,D64+1))) -> -3 | E65: =IF(C65="","",(1+inflation_rate)^(A65-$B$25)) -> 0.9450993141 | F65: =IF(C65="","",IF(C65<0,0,IF(AND(C65=1,start_time<1),E65*(H2_price_nominal*output_kgyear*start_time*percnt_revs+H2_price_nominal*output_kgyear*(1-start_time)),IF(C65<=start_time,H2_price_nominal*E65*output_kgyear*percnt_revs,H2_price_nominal*output_kgyear*E65)))) -> 0 | G65: =-$B$31*depr_cap_infl*E65 -> 0 | H65: =IF(C65<0,-E65*equity*depr_cap_infl*percent_cap1,IF(C65=1,-E65*equity*depr_cap_infl,0)) -> -17329363.73 | I65: =IF(OR(C65<0,C65=""),"",-E65*INDEX('Replacement Costs'!$A$16:$G$57,MATCH(C65,'Replacement Costs'!$C$16:$C$57,0),MATCH("Total Yearly Replacement Costs",'Replacement Costs'!$A$16:$G$16,0))) ->  | J65: =IF(AND(C65>=1,C65<anal_period),WorkingCap*SUM(N65:R65)-WorkingCap*SUM(N64:R64),0) -> 0 | K65: =IF(C65=-construct,-E65*non_dep_infl,"") -> -480818.4571 | L65: =IF(C65=anal_period,salvage*E65,"") ->  | M65: =IF(D65=plant_life,-E65*decom,"") ->  | N65: =IF(C65="","",IF(C65<0,0,IF(AND(C65=1,start_time<1),-(inflated_fixed*percnt_fixed*start_time+(inflated_fixed*(1-start_time))),IF(C65<=start_time,-inflated_fixed*percnt_fixed*E65,-inflated_fixed*E65)))) -> 0 | O65: =IF(C65="","",IF(C65<0,0,IF(AND(C65=1,start_time<1),-(SUM(B139:E139)*output_kgyear*E65*percnt_var*start_time+SUM(B139:E139)*output_kgyear*E65*(1-start_time)),IF(C65<=start_time,-SUM(B139:E139)*output_kgyear*E65*percnt_var,-SUM(B139:E139)*output_kgyear*E65)))) -> 0 | P65: =IF(C65="","",IF(C65<0,0,IF(AND(C65=1,start_time<1),-(inflated_otherraw*E65*percnt_var*start_time+inflated_otherraw*E65*(1-start_time)),IF(C65<=start_time,-inflated_otherraw*E65*percnt_var,-(inflated_otherraw*E65))))) -> 0 | Q65: =IF(C65="","",IF(C65<0,0,IF(AND(C65=1,start_time<1),SUM(K139:N139,T139:V139)*output_kgyear*E65*percnt_var*start_time+SUM(K139:N139,T139:V139)*output_kgyear*E65*(1-start_time),IF(C65<=start_time,SUM(K139:N139,T139:V139)*output_kgyear*E65*percnt_var,SUM(K139:N139,T139:V139)*output_kgyear*E65)))) -> 0 | R65: =IF(C65="","",IF(C65<0,0,IF(AND(C65=1,start_time<1),-((SUM(F139:J139,P139:R139)*output_kgyear+inflated_othervar)*E65*percnt_var*start_time+(SUM(F139:J139,P139:R139)*output_kgyear+inflated_othervar)*E65*(1-start_time)),IF(C65<=start_time,-(SUM(F139:J139,P139:R139)*output_kgyear+inflated_othervar)*E65*percnt_var,-E65*(SUM(F139:J139,P139:R139)*output_kgyear+inflated_othervar))))) -> 0 | S65: =IF(B65="","",IF($B$31=0,"",-'Debt Financing Calculations'!E14)) ->  | T65: =IF(C65="","",F65+SUM(L65:S65)) -> 0 | U65: =IF(C65="","",IF(C65<-1,0,IF(C65=anal_period,-LOOKUP(C65,depr_yr,depr_cost)-Depreciation!$C$141-Depreciation!$B$166,-LOOKUP(C65,depr_yr,depr_cost)))) -> 0 | V65: =IF(C65="","",SUM(T65:U65)) -> 0 | W65: =IF(C65="","",$B$33) -> 0.389 | X65: =IF(C65="","",tax_credit-(V65*W65 +Upstream_CO2_taxpYear + Proc_CO2_taxpYear)) -> 0 | Y65: =IF(C65="","",SUM(T65,X65)) -> 0 | Z65: =IF(C65="","",IF($B$31=0,"",-'Debt Financing Calculations'!F14)) ->  | AA65: =IF(C65="","",SUM(H65,I65,J65,K65,T65,X65,Z65)) -> -17810182.18 | AB65: =AA65 -> -17810182.18 | AC65: =IF(C65="","",SUM(H65,I65,J65,K65,T65,Z65)) -> -17810182.18 | AE65: =IF(C65="","",IF(C65<0,0,IF(AND(C65=1,start_time<1),(output_kgyear*start_time*percnt_revs+output_kgyear*(1-start_time)),IF(C65<=start_time,output_kgyear*percnt_revs,output_kgyear)))) -> 0 | AF65: =IF(C65="","",tax_credit) -> 0
A66: =IF(B66<>"",A65+1,"") -> 2008 | B66: =IF(MAX($B$65:B65)<(construct+anal_period),B65+1,"") -> 2 | C66: =IF(B66="","",IF(C65=-1,1,C65+1)) -> -2 | D66: -2 | E66: 0.9630562011 | F66: 0 | H66: =IF(C66<0,-E66*equity*depr_cap_infl*percent_cap2,0) -> -132439662.3 | I66: =IF(OR(C66<0,C66=""),"",-E66*INDEX('Replacement Costs'!$A$16:$G$57,MATCH(C66,'Replacement Costs'!$C$16:$C$57,0),MATCH("Total Yearly Replacement Costs",'Replacement Costs'!$A$16:$G$16,0))) ->  | J66: =IF(AND(C66>=1,C66<anal_period),WorkingCap*SUM(N66:R66)-WorkingCap*SUM(N65:R65),IF(C66<0,0,IF(B66="","",-SUM(J$65:J65)))) -> 0 | N66: 0 | O66: 0 | P66: 0 | Q66: 0 | R66: 0 | S66: =IF(B66="","",IF($B$31=0,"",-'Debt Financing Calculations'!E15)) ->  | T66: 0 | U66: =IF(C66="","",IF(C66<-1,0,IF(C66=anal_period,-LOOKUP(C66,depr_yr,depr_cost)-Depreciation!$C$141-Depreciation!$B$166,-LOOKUP(C66,depr_yr,depr_cost)))) -> 0 | V66: 0 | W66: 0.389 | X66: 0 | Y66: 0 | Z66: =IF(C66="","",IF($B$31=0,"",-'Debt Financing Calculations'!F15)) ->  | AA66: -132439662.3 | AB66: =IF(C66="","",AB65+AA66) -> -150249844.5 | AC66: -132439662.3 | AE66: 0 | AF66: 0
A67: 2009 | B67: =IF(MAX($B$65:B66)<(construct+anal_period),B66+1,"") -> 3 | C67: -1 | D67: -1 | E67: 0.9813542689 | F67: 0 | H67: =IF(C67<0,-E67*equity*depr_cap_infl*percent_cap3,0) -> -71976541.8 | I67: =IF(OR(C67<0,C67=""),"",-E67*INDEX('Replacement Costs'!$A$16:$G$57,MATCH(C67,'Replacement Costs'!$C$16:$C$57,0),MATCH("Total Yearly Replacement Costs",'Replacement Costs'!$A$16:$G$16,0))) ->  | J67: =IF(AND(C67>=1,C67<anal_period),WorkingCap*SUM(N67:R67)-WorkingCap*SUM(N66:R66),IF(C67<0,0,IF(B67="","",-SUM(J$65:J66)))) -> 0 | N67: 0 | O67: 0 | P67: 0 | Q67: 0 | R67: 0 | S67: =IF(B67="","",IF($B$31=0,"",-'Debt Financing Calculations'!E16)) ->  | T67: 0 | U67: =IF(C67="","",IF(C67<-1,0,IF(C67=anal_period,-LOOKUP(C67,depr_yr,depr_cost)-Depreciation!$C$141-Depreciation!$B$166,-LOOKUP(C67,depr_yr,depr_cost)))) -> 0 | V67: 0 | W67: 0.389 | X67: 0 | Y67: 0 | Z67: =IF(C67="","",IF($B$31=0,"",-'Debt Financing Calculations'!F16)) ->  | AA67: -71976541.8 | AB67: -222226386.3 | AC67: -71976541.8 | AE67: 0 | AF67: 0
A68: 2010 | B68: =IF(MAX($B$65:B67)<(construct+anal_period),B67+1,"") -> 4 | C68: 1 | D68: 1 | E68: 1 | F68: 112282647.7 | H68: =IF(C68<0,-E68*equity*depr_cap_infl*percent_cap4,0) -> 0 | I68: =IF(OR(C68<0,C68=""),"",-E68*INDEX('Replacement Costs'!$A$16:$G$57,MATCH(C68,'Replacement Costs'!$C$16:$C$57,0),MATCH("Total Yearly Replacement Costs",'Replacement Costs'!$A$16:$G$16,0))) -> -1146001.501 | J68: =IF(AND(C68>=1,C68<anal_period),WorkingCap*SUM(N68:R68)-WorkingCap*SUM(N67:R67),IF(C68<0,0,IF(B68="","",-SUM(J$65:J67)))) -> -16073057.24 | N68: -6141564.123 | O68: -94139832.5 | P68: 0 | Q68: 0 | R68: -6872318.295 | S68: =IF(B68="","",IF($B$31=0,"",-'Debt Financing Calculations'!E17)) ->  | T68: 5128932.746 | U68: =IF(C68="","",IF(C68<-1,0,IF(C68=anal_period,-LOOKUP(C68,depr_yr,depr_cost)-Depreciation!$C$141-Depreciation!$B$166,-LOOKUP(C68,depr_yr,depr_cost)))) -> -8358433.849 | V68: -3229501.104 | W68: 0.389 | X68: 1256275.929 | Y68: 6385208.675 | Z68: =IF(C68="","",IF($B$31=0,"",-'Debt Financing Calculations'!F17)) ->  | AA68: -10833850.06 | AB68: -233060236.3 | AC68: -12090125.99 | AE68: 62314314.75 | AF68: 0
A69: 2011 | B69: =IF(MAX($B$65:B68)<(construct+anal_period),B68+1,"") -> 5 | C69: 2 | D69: 2 | E69: 1.019 | F69: 228832035.9 | H69: =IF(C69="","",0) -> 0 | I69: =IF(OR(C69<0,C69=""),"",-E69*INDEX('Replacement Costs'!$A$16:$G$57,MATCH(C69,'Replacement Costs'!$C$16:$C$57,0),MATCH("Total Yearly Replacement Costs",'Replacement Costs'!$A$16:$G$16,0))) -> -1167775.53 | J69: =IF(AND(C69>=1,C69<anal_period),WorkingCap*SUM(N69:R69)-WorkingCap*SUM(N68:R68),IF(C69<0,0,IF(B69="","",-SUM(J$65:J68)))) -> -6923691.446 | N69: -8344338.455 | O69: -135516341 | P69: 0 | Q69: 0 | R69: -9450978.466 | S69: =IF(B69="","",IF($B$31=0,"",-'Debt Financing Calculations'!E18)) ->  | T69: 75520378.04 | U69: =IF(C69="","",IF(C69<-1,0,IF(C69=anal_period,-LOOKUP(C69,depr_yr,depr_cost)-Depreciation!$C$141-Depreciation!$B$166,-LOOKUP(C69,depr_yr,depr_cost)))) -> -16134333.97 | V69: 59386044.07 | W69: 0.389 | X69: -23101171.14 | Y69: 52419206.9 | Z69: =IF(C69="","",IF($B$31=0,"",-'Debt Financing Calculations'!F18)) ->  | AA69: 44327739.92 | AB69: -188732496.4 | AC69: 67428911.07 | AE69: 124628629.5 | AF69: 0
A70: 2012 | B70: =IF(MAX($B$65:B69)<(construct+anal_period),B69+1,"") -> 6 | C70: 3 | D70: 3 | E70: 1.038361 | F70: 233179844.6 | H70: 0 | I70: =IF(OR(C70<0,C70=""),"",-E70*INDEX('Replacement Costs'!$A$16:$G$57,MATCH(C70,'Replacement Costs'!$C$16:$C$57,0),MATCH("Total Yearly Replacement Costs",'Replacement Costs'!$A$16:$G$16,0))) -> -1189963.265 | J70: =IF(AND(C70>=1,C70<anal_period),WorkingCap*SUM(N70:R70)-WorkingCap*SUM(N69:R69),IF(C70<0,0,IF(B70="","",-SUM(J$65:J69)))) -> -616152.4141 | N70: -8502880.886 | O70: -139314688.8 | P70: 0 | Q70: 0 | R70: -9601770.973 | S70: =IF(B70="","",IF($B$31=0,"",-'Debt Financing Calculations'!E19)) ->  | T70: 75760503.96 | U70: =IF(C70="","",IF(C70<-1,0,IF(C70=anal_period,-LOOKUP(C70,depr_yr,depr_cost)-Depreciation!$C$141-Depreciation!$B$166,-LOOKUP(C70,depr_yr,depr_cost)))) -> -15011395.42 | V70: 60749108.54 | W70: 0.389 | X70: -23631403.22 | Y70: 52129100.74 | Z70: =IF(C70="","",IF($B$31=0,"",-'Debt Financing Calculations'!F19)) ->  | AA70: 50322985.06 | AB70: -138409511.3 | AC70: 73954388.29 | AE70: 124628629.5 | AF70: 0
A71: 2013 | B71: =IF(MAX($B$65:B70)<(construct+anal_period),B70+1,"") -> 7 | C71: 4 | D71: 4 | E71: 1.058089859 | F71: 237610261.7 | H71: 0 | I71: =IF(OR(C71<0,C71=""),"",-E71*INDEX('Replacement Costs'!$A$16:$G$57,MATCH(C71,'Replacement Costs'!$C$16:$C$57,0),MATCH("Total Yearly Replacement Costs",'Replacement Costs'!$A$16:$G$16,0))) -> -1212572.567 | J71: =IF(AND(C71>=1,C71<anal_period),WorkingCap*SUM(N71:R71)-WorkingCap*SUM(N70:R70),IF(C71<0,0,IF(B71="","",-SUM(J$65:J70)))) -> -721228.3556 | N71: -8664435.623 | O71: -143798521.2 | P71: 0 | Q71: 0 | R71: -9764572.876 | S71: =IF(B71="","",IF($B$31=0,"",-'Debt Financing Calculations'!E20)) ->  | T71: 75382731.97 | U71: =IF(C71="","",IF(C71<-1,0,IF(C71=anal_period,-LOOKUP(C71,depr_yr,depr_cost)-Depreciation!$C$141-Depreciation!$B$166,-LOOKUP(C71,depr_yr,depr_cost)))) -> -13977359.53 | V71: 61405372.45 | W71: 0.389 | X71: -23886689.88 | Y71: 51496042.09 | Z71: =IF(C71="","",IF($B$31=0,"",-'Debt Financing Calculations'!F20)) ->  | AA71: 49562241.17 | AB71: -88847270.18 | AC71: 73448931.05 | AE71: 124628629.5 | AF71: 0
A72: 2014 | B72: =IF(MAX($B$65:B71)<(construct+anal_period),B71+1,"") -> 8 | C72: 5 | D72: 5 | E72: 1.078193566 | F72: 242124856.6 | H72: 0 | I72: =IF(OR(C72<0,C72=""),"",-E72*INDEX('Replacement Costs'!$A$16:$G$57,MATCH(C72,'Replacement Costs'!$C$16:$C$57,0),MATCH("Total Yearly Replacement Costs",'Replacement Costs'!$A$16:$G$16,0))) -> -1235611.446 | J72: =IF(AND(C72>=1,C72<anal_period),WorkingCap*SUM(N72:R72)-WorkingCap*SUM(N71:R71),IF(C72<0,0,IF(B72="","",-SUM(J$65:J71)))) -> -1043085.921 | N72: -8829059.9 | O72: -150370466.4 | P72: 0 | Q72: 0 | R72: -9981909.485 | S72: =IF(B72="","",IF($B$31=0,"",-'Debt Financing Calculations'!E21)) ->  | T72: 72943420.81 | U72: =IF(C72="","",IF(C72<-1,0,IF(C72=anal_period,-LOOKUP(C72,depr_yr,depr_cost)-Depreciation!$C$141-Depreciation!$B$166,-LOOKUP(C72,depr_yr,depr_cost)))) -> -13019253.74 | V72: 59924167.07 | W72: 0.389 | X72: -23310500.99 | Y72: 49632919.82 | Z72: =IF(C72="","",IF($B$31=0,"",-'Debt Financing Calculations'!F21)) ->  | AA72: 47354222.45 | AB72: -41493047.73 | AC72: 70664723.44 | AE72: 124628629.5 | AF72: 0
A73: 2015 | B73: =IF(MAX($B$65:B72)<(construct+anal_period),B72+1,"") -> 9 | C73: 6 | D73: 6 | E73: 1.098679244 | F73: 246725228.9 | H73: 0 | I73: =IF(OR(C73<0,C73=""),"",-E73*INDEX('Replacement Costs'!$A$16:$G$57,MATCH(C73,'Replacement Costs'!$C$16:$C$57,0),MATCH("Total Yearly Replacement Costs",'Replacement Costs'!$A$16:$G$16,0))) -> -1259088.063 | J73: =IF(AND(C73>=1,C73<anal_period),WorkingCap*SUM(N73:R73)-WorkingCap*SUM(N72:R72),IF(C73<0,0,IF(B73="","",-SUM(J$65:J72)))) -> -1313398.07 | N73: -8996812.038 | O73: -158735482.8 | P73: 0 | Q73: 0 | R73: -10205128.07 | S73: =IF(B73="","",IF($B$31=0,"",-'Debt Financing Calculations'!E22)) ->  | T73: 68787805.95 | U73: =IF(C73="","",IF(C73<-1,0,IF(C73=anal_period,-LOOKUP(C73,depr_yr,depr_cost)-Depreciation!$C$141-Depreciation!$B$166,-LOOKUP(C73,depr_yr,depr_cost)))) -> -12137416.55 | V73: 56650389.41 | W73: 0.389 | X73: -22037001.48 | Y73: 46750804.48 | Z73: =IF(C73="","",IF($B$31=0,"",-'Debt Financing Calculations'!F22)) ->  | AA73: 44178318.34 | AB73: 2685270.615 | AC73: 66215319.82 | AE73: 124628629.5 | AF73: 0
A74: 2016 | B74: =IF(MAX($B$65:B73)<(construct+anal_period),B73+1,"") -> 10 | C74: 7 | D74: 7 | E74: 1.11955415 | F74: 251413008.3 | H74: 0 | I74: =IF(OR(C74<0,C74=""),"",-E74*INDEX('Replacement Costs'!$A$16:$G$57,MATCH(C74,'Replacement Costs'!$C$16:$C$57,0),MATCH("Total Yearly Replacement Costs",'Replacement Costs'!$A$16:$G$16,0))) -> -1283010.737 | J74: =IF(AND(C74>=1,C74<anal_period),WorkingCap*SUM(N74:R74)-WorkingCap*SUM(N73:R73),IF(C74<0,0,IF(B74="","",-SUM(J$65:J73)))) -> -1221751.36 | N74: -9167751.467 | O74: -166430540.8 | P74: 0 | Q74: 0 | R74: -10484139.77 | S74: =IF(B74="","",IF($B$31=0,"",-'Debt Financing Calculations'!E23)) ->  | T74: 65330576.24 | U74: =IF(C74="","",IF(C74<-1,0,IF(C74=anal_period,-LOOKUP(C74,depr_yr,depr_cost)-Depreciation!$C$141-Depreciation!$B$166,-LOOKUP(C74,depr_yr,depr_cost)))) -> -11321048.3 | V74: 54009527.94 | W74: 0.389 | X74: -21009706.37 | Y74: 44320869.87 | Z74: =IF(C74="","",IF($B$31=0,"",-'Debt Financing Calculations'!F23)) ->  | AA74: 41816107.77 | AB74: 44501378.39 | AC74: 62825814.14 | AE74: 124628629.5 | AF74: 0
A75: 2017 | B75: =IF(MAX($B$65:B74)<(construct+anal_period),B74+1,"") -> 11 | C75: 8 | D75: 8 | E75: 1.140825679 | F75: 256189855.4 | H75: 0 | I75: =IF(OR(C75<0,C75=""),"",-E75*INDEX('Replacement Costs'!$A$16:$G$57,MATCH(C75,'Replacement Costs'!$C$16:$C$57,0),MATCH("Total Yearly Replacement Costs",'Replacement Costs'!$A$16:$G$16,0))) -> -1307387.941 | J75: =IF(AND(C75>=1,C75<anal_period),WorkingCap*SUM(N75:R75)-WorkingCap*SUM(N74:R74),IF(C75<0,0,IF(B75="","",-SUM(J$65:J74)))) -> -1286007.264 | N75: -9341938.744 | O75: -174544345.6 | P75: 0 | Q75: 0 | R75: -10769529.44 | S75: =IF(B75="","",IF($B$31=0,"",-'Debt Financing Calculations'!E24)) ->  | T75: 61534041.64 | U75: =IF(C75="","",IF(C75<-1,0,IF(C75=anal_period,-LOOKUP(C75,depr_yr,depr_cost)-Depreciation!$C$141-Depreciation!$B$166,-LOOKUP(C75,depr_yr,depr_cost)))) -> -10570442.08 | V75: 50963599.55 | W75: 0.389 | X75: -19824840.23 | Y75: 41709201.41 | Z75: =IF(C75="","",IF($B$31=0,"",-'Debt Financing Calculations'!F24)) ->  | AA75: 39115806.21 | AB75: 83617184.6 | AC75: 58940646.43 | AE75: 124628629.5 | AF75: 0
A76: 2018 | B76: =IF(MAX($B$65:B75)<(construct+anal_period),B75+1,"") -> 12 | C76: 9 | D76: 9 | E76: 1.162501366 | F76: 261057462.7 | H76: 0 | I76: =IF(OR(C76<0,C76=""),"",-E76*INDEX('Replacement Costs'!$A$16:$G$57,MATCH(C76,'Replacement Costs'!$C$16:$C$57,0),MATCH("Total Yearly Replacement Costs",'Replacement Costs'!$A$16:$G$16,0))) -> -1332228.311 | J76: =IF(AND(C76>=1,C76<anal_period),WorkingCap*SUM(N76:R76)-WorkingCap*SUM(N75:R75),IF(C76<0,0,IF(B76="","",-SUM(J$65:J75)))) -> -1348869.465 | N76: -9519435.581 | O76: -183065392.9 | P76: 0 | Q76: 0 | R76: -11063448.38 | S76: =IF(B76="","",IF($B$31=0,"",-'Debt Financing Calculations'!E25)) ->  | T76: 57409185.79 | U76: =IF(C76="","",IF(C76<-1,0,IF(C76=anal_period,-LOOKUP(C76,depr_yr,depr_cost)-Depreciation!$C$141-Depreciation!$B$166,-LOOKUP(C76,depr_yr,depr_cost)))) -> -10498848.37 | V76: 46910337.42 | W76: 0.389 | X76: -18248121.26 | Y76: 39161064.54 | Z76: =IF(C76="","",IF($B$31=0,"",-'Debt Financing Calculations'!F25)) ->  | AA76: 36479966.76 | AB76: 120097151.4 | AC76: 54728088.02 | AE76: 124628629.5 | AF76: 0
A77: 2019 | B77: =IF(MAX($B$65:B76)<(construct+anal_period),B76+1,"") -> 13 | C77: 10 | D77: 10 | E77: 1.184588892 | F77: 266017554.5 | H77: 0 | I77: =IF(OR(C77<0,C77=""),"",-E77*INDEX('Replacement Costs'!$A$16:$G$57,MATCH(C77,'Replacement Costs'!$C$16:$C$57,0),MATCH("Total Yearly Replacement Costs",'Replacement Costs'!$A$16:$G$16,0))) -> -1357540.649 | J77: =IF(AND(C77>=1,C77<anal_period),WorkingCap*SUM(N77:R77)-WorkingCap*SUM(N76:R76),IF(C77<0,0,IF(B77="","",-SUM(J$65:J76)))) -> -1621662.16 | N77: -9700304.857 | O77: -193410572.5 | P77: 0 | Q77: 0 | R77: -11348480.63 | S77: =IF(B77="","",IF($B$31=0,"",-'Debt Financing Calculations'!E26)) ->  | T77: 51558196.51 | U77: =IF(C77="","",IF(C77<-1,0,IF(C77=anal_period,-LOOKUP(C77,depr_yr,depr_cost)-Depreciation!$C$141-Depreciation!$B$166,-LOOKUP(C77,depr_yr,depr_cost)))) -> -10559240.71 | V77: 40998955.81 | W77: 0.389 | X77: -15948593.81 | Y77: 35609602.7 | Z77: =IF(C77="","",IF($B$31=0,"",-'Debt Financing Calculations'!F26)) ->  | AA77: 32630399.89 | AB77: 152727551.2 | AC77: 48578993.7 | AE77: 124628629.5 | AF77: 0
A78: 2020 | B78: =IF(MAX($B$65:B77)<(construct+anal_period),B77+1,"") -> 14 | C78: 11 | D78: 11 | E78: 1.207096081 | F78: 271071888 | H78: 0 | I78: =IF(OR(C78<0,C78=""),"",-E78*INDEX('Replacement Costs'!$A$16:$G$57,MATCH(C78,'Replacement Costs'!$C$16:$C$57,0),MATCH("Total Yearly Replacement Costs",'Replacement Costs'!$A$16:$G$16,0))) -> -1383333.922 | J78: =IF(AND(C78>=1,C78<anal_period),WorkingCap*SUM(N78:R78)-WorkingCap*SUM(N77:R77),IF(C78<0,0,IF(B78="","",-SUM(J$65:J77)))) -> -1932356.214 | N78: -9884610.649 | O78: -205786047.8 | P78: 0 | Q78: 0 | R78: -11671074.29 | S78: =IF(B78="","",IF($B$31=0,"",-'Debt Financing Calculations'!E27)) ->  | T78: 43730155.29 | U78: =IF(C78="","",IF(C78<-1,0,IF(C78=anal_period,-LOOKUP(C78,depr_yr,depr_cost)-Depreciation!$C$141-Depreciation!$B$166,-LOOKUP(C78,depr_yr,depr_cost)))) -> -10625269 | V78: 33104886.29 | W78: 0.389 | X78: -12877800.77 | Y78: 30852354.52 | Z78: =IF(C78="","",IF($B$31=0,"",-'Debt Financing Calculations'!F27)) ->  | AA78: 27536664.39 | AB78: 180264215.6 | AC78: 40414465.15 | AE78: 124628629.5 | AF78: 0
A79: 2021 | B79: =IF(MAX($B$65:B78)<(construct+anal_period),B78+1,"") -> 15 | C79: 12 | D79: 12 | E79: 1.230030907 | F79: 276222253.9 | H79: 0 | I79: =IF(OR(C79<0,C79=""),"",-E79*INDEX('Replacement Costs'!$A$16:$G$57,MATCH(C79,'Replacement Costs'!$C$16:$C$57,0),MATCH("Total Yearly Replacement Costs",'Replacement Costs'!$A$16:$G$16,0))) -> -1409617.266 | J79: =IF(AND(C79>=1,C79<anal_period),WorkingCap*SUM(N79:R79)-WorkingCap*SUM(N78:R78),IF(C79<0,0,IF(B79="","",-SUM(J$65:J78)))) -> -1545998.458 | N79: -10072418.25 | O79: -215594270.2 | P79: 0 | Q79: 0 | R79: -11981700.66 | S79: =IF(B79="","",IF($B$31=0,"",-'Debt Financing Calculations'!E28)) ->  | T79: 38573864.78 | U79: =IF(C79="","",IF(C79<-1,0,IF(C79=anal_period,-LOOKUP(C79,depr_yr,depr_cost)-Depreciation!$C$141-Depreciation!$B$166,-LOOKUP(C79,depr_yr,depr_cost)))) -> -10688063.32 | V79: 27885801.46 | W79: 0.389 | X79: -10847576.77 | Y79: 27726288.01 | Z79: =IF(C79="","",IF($B$31=0,"",-'Debt Financing Calculations'!F28)) ->  | AA79: 24770672.29 | AB79: 205034887.9 | AC79: 35618249.05 | AE79: 124628629.5 | AF79: 0
A80: 2022 | B80: =IF(MAX($B$65:B79)<(construct+anal_period),B79+1,"") -> 16 | C80: 13 | D80: 13 | E80: 1.253401494 | F80: 281470476.7 | H80: 0 | I80: =IF(OR(C80<0,C80=""),"",-E80*INDEX('Replacement Costs'!$A$16:$G$57,MATCH(C80,'Replacement Costs'!$C$16:$C$57,0),MATCH("Total Yearly Replacement Costs",'Replacement Costs'!$A$16:$G$16,0))) -> -1436399.994 | J80: =IF(AND(C80>=1,C80<anal_period),WorkingCap*SUM(N80:R80)-WorkingCap*SUM(N79:R79),IF(C80<0,0,IF(B80="","",-SUM(J$65:J79)))) -> -1010357.247 | N80: -10263794.2 | O80: -221840051.7 | P80: 0 | Q80: 0 | R80: -12280258.12 | S80: =IF(B80="","",IF($B$31=0,"",-'Debt Financing Calculations'!E29)) ->  | T80: 37086372.62 | U80: =IF(C80="","",IF(C80<-1,0,IF(C80=anal_period,-LOOKUP(C80,depr_yr,depr_cost)-Depreciation!$C$141-Depreciation!$B$166,-LOOKUP(C80,depr_yr,depr_cost)))) -> -10756539.24 | V80: 26329833.38 | W80: 0.389 | X80: -10242305.18 | Y80: 26844067.44 | Z80: =IF(C80="","",IF($B$31=0,"",-'Debt Financing Calculations'!F29)) ->  | AA80: 24397310.19 | AB80: 229432198.1 | AC80: 34639615.38 | AE80: 124628629.5 | AF80: 0
A81: 2023 | B81: =IF(MAX($B$65:B80)<(construct+anal_period),B80+1,"") -> 17 | C81: 14 | D81: 14 | E81: 1.277216123 | F81: 286818415.7 | H81: 0 | I81: =IF(OR(C81<0,C81=""),"",-E81*INDEX('Replacement Costs'!$A$16:$G$57,MATCH(C81,'Replacement Costs'!$C$16:$C$57,0),MATCH("Total Yearly Replacement Costs",'Replacement Costs'!$A$16:$G$16,0))) -> -1463691.594 | J81: =IF(AND(C81>=1,C81<anal_period),WorkingCap*SUM(N81:R81)-WorkingCap*SUM(N80:R80),IF(C81<0,0,IF(B81="","",-SUM(J$65:J80)))) -> 157788.6158 | N81: -10458806.29 | O81: -220360386.3 | P81: 0 | Q81: 0 | R81: -12512987.36 | S81: =IF(B81="","",IF($B$31=0,"",-'Debt Financing Calculations'!E30)) ->  | T81: 43486235.78 | U81: =IF(C81="","",IF(C81<-1,0,IF(C81=anal_period,-LOOKUP(C81,depr_yr,depr_cost)-Depreciation!$C$141-Depreciation!$B$166,-LOOKUP(C81,depr_yr,depr_cost)))) -> -10821827.7 | V81: 32664408.08 | W81: 0.389 | X81: -12706454.74 | Y81: 30779781.04 | Z81: =IF(C81="","",IF($B$31=0,"",-'Debt Financing Calculations'!F30)) ->  | AA81: 29473878.06 | AB81: 258906076.2 | AC81: 42180332.8 | AE81: 124628629.5 | AF81: 0
A82: 2024 | B82: =IF(MAX($B$65:B81)<(construct+anal_period),B81+1,"") -> 18 | C82: 15 | D82: 15 | E82: 1.301483229 | F82: 292267965.6 | H82: 0 | I82: =IF(OR(C82<0,C82=""),"",-E82*INDEX('Replacement Costs'!$A$16:$G$57,MATCH(C82,'Replacement Costs'!$C$16:$C$57,0),MATCH("Total Yearly Replacement Costs",'Replacement Costs'!$A$16:$G$16,0))) -> -1491501.734 | J82: =IF(AND(C82>=1,C82<anal_period),WorkingCap*SUM(N82:R82)-WorkingCap*SUM(N81:R81),IF(C82<0,0,IF(B82="","",-SUM(J$65:J81)))) -> -639733.7946 | N82: -10657523.61 | O82: -224181810.7 | P82: 0 | Q82: 0 | R82: -12757737.6 | S82: =IF(B82="","",IF($B$31=0,"",-'Debt Financing Calculations'!E31)) ->  | T82: 44670893.72 | U82: =IF(C82="","",IF(C82<-1,0,IF(C82=anal_period,-LOOKUP(C82,depr_yr,depr_cost)-Depreciation!$C$141-Depreciation!$B$166,-LOOKUP(C82,depr_yr,depr_cost)))) -> -10892845.14 | V82: 33778048.57 | W82: 0.389 | X82: -13139660.9 | Y82: 31531232.82 | Z82: =IF(C82="","",IF($B$31=0,"",-'Debt Financing Calculations'!F31)) ->  | AA82: 29399997.29 | AB82: 288306073.5 | AC82: 42539658.19 | AE82: 124628629.5 | AF82: 0
A83: 2025 | B83: =IF(MAX($B$65:B82)<(construct+anal_period),B82+1,"") -> 19 | C83: 16 | D83: 16 | E83: 1.32621141 | F83: 297821057 | H83: 0 | I83: =IF(OR(C83<0,C83=""),"",-E83*INDEX('Replacement Costs'!$A$16:$G$57,MATCH(C83,'Replacement Costs'!$C$16:$C$57,0),MATCH("Total Yearly Replacement Costs",'Replacement Costs'!$A$16:$G$16,0))) -> -1519840.267 | J83: =IF(AND(C83>=1,C83<anal_period),WorkingCap*SUM(N83:R83)-WorkingCap*SUM(N82:R82),IF(C83<0,0,IF(B83="","",-SUM(J$65:J82)))) -> -310991.7371 | N83: -10860016.56 | O83: -225810380.3 | P83: 0 | Q83: 0 | R83: -12999953.27 | S83: =IF(B83="","",IF($B$31=0,"",-'Debt Financing Calculations'!E32)) ->  | T83: 48150706.82 | U83: =IF(C83="","",IF(C83<-1,0,IF(C83=anal_period,-LOOKUP(C83,depr_yr,depr_cost)-Depreciation!$C$141-Depreciation!$B$166,-LOOKUP(C83,depr_yr,depr_cost)))) -> -10960723.41 | V83: 37189983.4 | W83: 0.389 | X83: -14466903.54 | Y83: 33683803.27 | Z83: =IF(C83="","",IF($B$31=0,"",-'Debt Financing Calculations'!F32)) ->  | AA83: 31852971.27 | AB83: 320159044.7 | AC83: 46319874.81 | AE83: 124628629.5 | AF83: 0
A84: 2026 | B84: =IF(MAX($B$65:B83)<(construct+anal_period),B83+1,"") -> 20 | C84: 17 | D84: 17 | E84: 1.351409427 | F84: 303479657.1 | H84: 0 | I84: =IF(OR(C84<0,C84=""),"",-E84*INDEX('Replacement Costs'!$A$16:$G$57,MATCH(C84,'Replacement Costs'!$C$16:$C$57,0),MATCH("Total Yearly Replacement Costs",'Replacement Costs'!$A$16:$G$16,0))) -> -1548717.232 | J84: =IF(AND(C84>=1,C84<anal_period),WorkingCap*SUM(N84:R84)-WorkingCap*SUM(N83:R83),IF(C84<0,0,IF(B84="","",-SUM(J$65:J83)))) -> -1365292.328 | N84: -11066356.87 | O84: -234448815.1 | P84: 0 | Q84: 0 | R84: -13257127.03 | S84: =IF(B84="","",IF($B$31=0,"",-'Debt Financing Calculations'!E33)) ->  | T84: 44707358.05 | U84: =IF(C84="","",IF(C84<-1,0,IF(C84=anal_period,-LOOKUP(C84,depr_yr,depr_cost)-Depreciation!$C$141-Depreciation!$B$166,-LOOKUP(C84,depr_yr,depr_cost)))) -> -11034379.88 | V84: 33672978.17 | W84: 0.389 | X84: -13098788.51 | Y84: 31608569.54 | Z84: =IF(C84="","",IF($B$31=0,"",-'Debt Financing Calculations'!F33)) ->  | AA84: 28694559.98 | AB84: 348853604.7 | AC84: 41793348.49 | AE84: 124628629.5 | AF84: 0
A85: 2027 | B85: =IF(MAX($B$65:B84)<(construct+anal_period),B84+1,"") -> 21 | C85: 18 | D85: 18 | E85: 1.377086206 | F85: 309245770.6 | H85: 0 | I85: =IF(OR(C85<0,C85=""),"",-E85*INDEX('Replacement Costs'!$A$16:$G$57,MATCH(C85,'Replacement Costs'!$C$16:$C$57,0),MATCH("Total Yearly Replacement Costs",'Replacement Costs'!$A$16:$G$16,0))) -> -1578142.86 | J85: =IF(AND(C85>=1,C85<anal_period),WorkingCap*SUM(N85:R85)-WorkingCap*SUM(N84:R84),IF(C85<0,0,IF(B85="","",-SUM(J$65:J84)))) -> -1974287.379 | N85: -11276617.65 | O85: -247056678.6 | P85: 0 | Q85: 0 | R85: -13600918.65 | S85: =IF(B85="","",IF($B$31=0,"",-'Debt Financing Calculations'!E34)) ->  | T85: 37311555.67 | U85: =IF(C85="","",IF(C85<-1,0,IF(C85=anal_period,-LOOKUP(C85,depr_yr,depr_cost)-Depreciation!$C$141-Depreciation!$B$166,-LOOKUP(C85,depr_yr,depr_cost)))) -> -11104947.31 | V85: 26206608.36 | W85: 0.389 | X85: -10194370.65 | Y85: 27117185.02 | Z85: =IF(C85="","",IF($B$31=0,"",-'Debt Financing Calculations'!F34)) ->  | AA85: 23564754.78 | AB85: 372418359.5 | AC85: 33759125.43 | AE85: 124628629.5 | AF85: 0
A86: 2028 | B86: =IF(MAX($B$65:B85)<(construct+anal_period),B85+1,"") -> 22 | C86: 19 | D86: 19 | E86: 1.403250844 | F86: 315121440.2 | H86: 0 | I86: =IF(OR(C86<0,C86=""),"",-E86*INDEX('Replacement Costs'!$A$16:$G$57,MATCH(C86,'Replacement Costs'!$C$16:$C$57,0),MATCH("Total Yearly Replacement Costs",'Replacement Costs'!$A$16:$G$16,0))) -> -1608127.574 | J86: =IF(AND(C86>=1,C86<anal_period),WorkingCap*SUM(N86:R86)-WorkingCap*SUM(N85:R85),IF(C86<0,0,IF(B86="","",-SUM(J$65:J85)))) -> -2401773.961 | N86: -11490873.39 | O86: -262467385 | P86: 0 | Q86: 0 | R86: -13987782.94 | S86: =IF(B86="","",IF($B$31=0,"",-'Debt Financing Calculations'!E35)) ->  | T86: 27175398.9 | U86: =IF(C86="","",IF(C86<-1,0,IF(C86=anal_period,-LOOKUP(C86,depr_yr,depr_cost)-Depreciation!$C$141-Depreciation!$B$166,-LOOKUP(C86,depr_yr,depr_cost)))) -> -11181344.02 | V86: 15994054.88 | W86: 0.389 | X86: -6221687.348 | Y86: 20953711.55 | Z86: =IF(C86="","",IF($B$31=0,"",-'Debt Financing Calculations'!F35)) ->  | AA86: 16943810.02 | AB86: 389362169.5 | AC86: 23165497.37 | AE86: 124628629.5 | AF86: 0
A87: 2029 | B87: =IF(MAX($B$65:B86)<(construct+anal_period),B86+1,"") -> 23 | C87: 20 | D87: 20 | E87: 1.42991261 | F87: 321108747.6 | H87: 0 | I87: =IF(OR(C87<0,C87=""),"",-E87*INDEX('Replacement Costs'!$A$16:$G$57,MATCH(C87,'Replacement Costs'!$C$16:$C$57,0),MATCH("Total Yearly Replacement Costs",'Replacement Costs'!$A$16:$G$16,0))) -> -1638681.998 | J87: =IF(AND(C87>=1,C87<anal_period),WorkingCap*SUM(N87:R87)-WorkingCap*SUM(N86:R86),IF(C87<0,0,IF(B87="","",-SUM(J$65:J86)))) -> -1951862.779 | N87: -11709199.98 | O87: -274877708.8 | P87: 0 | Q87: 0 | R87: -14371551 | S87: =IF(B87="","",IF($B$31=0,"",-'Debt Financing Calculations'!E36)) ->  | T87: 20150287.74 | U87: =IF(C87="","",IF(C87<-1,0,IF(C87=anal_period,-LOOKUP(C87,depr_yr,depr_cost)-Depreciation!$C$141-Depreciation!$B$166,-LOOKUP(C87,depr_yr,depr_cost)))) -> -11254703.77 | V87: 8895583.968 | W87: 0.389 | X87: -3460382.164 | Y87: 16689905.58 | Z87: =IF(C87="","",IF($B$31=0,"",-'Debt Financing Calculations'!F36)) ->  | AA87: 13099360.8 | AB87: 402461530.3 | AC87: 16559742.96 | AE87: 124628629.5 | AF87: 0
A88: 2030 | B88: =IF(MAX($B$65:B87)<(construct+anal_period),B87+1,"") -> 24 | C88: 21 | D88: 21 | E88: 1.45708095 | F88: 327209813.8 | H88: 0 | I88: =IF(OR(C88<0,C88=""),"",-E88*INDEX('Replacement Costs'!$A$16:$G$57,MATCH(C88,'Replacement Costs'!$C$16:$C$57,0),MATCH("Total Yearly Replacement Costs",'Replacement Costs'!$A$16:$G$16,0))) -> -1669816.956 | J88: =IF(AND(C88>=1,C88<anal_period),WorkingCap*SUM(N88:R88)-WorkingCap*SUM(N87:R87),IF(C88<0,0,IF(B88="","",-SUM(J$65:J87)))) -> -2229316.885 | N88: -11931674.78 | O88: -289144943 | P88: 0 | Q88: 0 | R88: -14743954.62 | S88: =IF(B88="","",IF($B$31=0,"",-'Debt Financing Calculations'!E37)) ->  | T88: 11389241.38 | U88: =IF(C88="","",IF(C88<-1,0,IF(C88=anal_period,-LOOKUP(C88,depr_yr,depr_cost)-Depreciation!$C$141-Depreciation!$B$166,-LOOKUP(C88,depr_yr,depr_cost)))) -> -6361234.951 | V88: 5028006.425 | W88: 0.389 | X88: -1955894.499 | Y88: 9433346.876 | Z88: =IF(C88="","",IF($B$31=0,"",-'Debt Financing Calculations'!F37)) ->  | AA88: 5534213.035 | AB88: 407995743.3 | AC88: 7490107.534 | AE88: 124628629.5 | AF88: 0
A89: 2031 | B89: =IF(MAX($B$65:B88)<(construct+anal_period),B88+1,"") -> 25 | C89: 22 | D89: 22 | E89: 1.484765488 | F89: 333426800.2 | H89: 0 | I89: =IF(OR(C89<0,C89=""),"",-E89*INDEX('Replacement Costs'!$A$16:$G$57,MATCH(C89,'Replacement Costs'!$C$16:$C$57,0),MATCH("Total Yearly Replacement Costs",'Replacement Costs'!$A$16:$G$16,0))) -> -1701543.478 | J89: =IF(AND(C89>=1,C89<anal_period),WorkingCap*SUM(N89:R89)-WorkingCap*SUM(N88:R88),IF(C89<0,0,IF(B89="","",-SUM(J$65:J88)))) -> -1274940.969 | N89: -12158376.6 | O89: -297140017.1 | P89: 0 | Q89: 0 | R89: -15021785.18 | S89: =IF(B89="","",IF($B$31=0,"",-'Debt Financing Calculations'!E38)) ->  | T89: 9106621.376 | U89: =IF(C89="","",IF(C89<-1,0,IF(C89=anal_period,-LOOKUP(C89,depr_yr,depr_cost)-Depreciation!$C$141-Depreciation!$B$166,-LOOKUP(C89,depr_yr,depr_cost)))) -> -1440959.068 | V89: 7665662.308 | W89: 0.389 | X89: -2981942.638 | Y89: 6124678.738 | Z89: =IF(C89="","",IF($B$31=0,"",-'Debt Financing Calculations'!F38)) ->  | AA89: 3148194.291 | AB89: 411143937.6 | AC89: 6130136.929 | AE89: 124628629.5 | AF89: 0
A90: 2032 | B90: =IF(MAX($B$65:B89)<(construct+anal_period),B89+1,"") -> 26 | C90: 23 | D90: 23 | E90: 1.512976032 | F90: 339761909.4 | H90: 0 | I90: =IF(OR(C90<0,C90=""),"",-E90*INDEX('Replacement Costs'!$A$16:$G$57,MATCH(C90,'Replacement Costs'!$C$16:$C$57,0),MATCH("Total Yearly Replacement Costs",'Replacement Costs'!$A$16:$G$16,0))) -> -1733872.804 | J90: =IF(AND(C90>=1,C90<anal_period),WorkingCap*SUM(N90:R90)-WorkingCap*SUM(N89:R89),IF(C90<0,0,IF(B90="","",-SUM(J$65:J89)))) -> -1306287.042 | N90: -12389385.76 | O90: -305334522.6 | P90: 0 | Q90: 0 | R90: -15304850.73 | S90: =IF(B90="","",IF($B$31=0,"",-'Debt Financing Calculations'!E39)) ->  | T90: 6733150.3 | U90: =IF(C90="","",IF(C90<-1,0,IF(C90=anal_period,-LOOKUP(C90,depr_yr,depr_cost)-Depreciation!$C$141-Depreciation!$B$166,-LOOKUP(C90,depr_yr,depr_cost)))) -> -1468337.29 | V90: 5264813.01 | W90: 0.389 | X90: -2048012.261 | Y90: 4685138.039 | Z90: =IF(C90="","",IF($B$31=0,"",-'Debt Financing Calculations'!F39)) ->  | AA90: 1644978.193 | AB90: 412788915.8 | AC90: 3692990.454 | AE90: 124628629.5 | AF90: 0
A91: 2033 | B91: =IF(MAX($B$65:B90)<(construct+anal_period),B90+1,"") -> 27 | C91: 24 | D91: 24 | E91: 1.541722577 | F91: 346217385.7 | H91: 0 | I91: =IF(OR(C91<0,C91=""),"",-E91*INDEX('Replacement Costs'!$A$16:$G$57,MATCH(C91,'Replacement Costs'!$C$16:$C$57,0),MATCH("Total Yearly Replacement Costs",'Replacement Costs'!$A$16:$G$16,0))) -> -1766816.388 | J91: =IF(AND(C91>=1,C91<anal_period),WorkingCap*SUM(N91:R91)-WorkingCap*SUM(N90:R90),IF(C91<0,0,IF(B91="","",-SUM(J$65:J90)))) -> -1338364.012 | N91: -12624784.09 | O91: -313733151.9 | P91: 0 | Q91: 0 | R91: -15593249.91 | S91: =IF(B91="","",IF($B$31=0,"",-'Debt Financing Calculations'!E40)) ->  | T91: 4266199.834 | U91: =IF(C91="","",IF(C91<-1,0,IF(C91=anal_period,-LOOKUP(C91,depr_yr,depr_cost)-Depreciation!$C$141-Depreciation!$B$166,-LOOKUP(C91,depr_yr,depr_cost)))) -> -1496235.699 | V91: 2769964.135 | W91: 0.389 | X91: -1077516.048 | Y91: 3188683.785 | Z91: =IF(C91="","",IF($B$31=0,"",-'Debt Financing Calculations'!F40)) ->  | AA91: 83503.38561 | AB91: 412872419.2 | AC91: 1161019.434 | AE91: 124628629.5 | AF91: 0
A92: 2034 | B92: =IF(MAX($B$65:B91)<(construct+anal_period),B91+1,"") -> 28 | C92: 25 | D92: 25 | E92: 1.571015306 | F92: 352795516 | H92: 0 | I92: =IF(OR(C92<0,C92=""),"",-E92*INDEX('Replacement Costs'!$A$16:$G$57,MATCH(C92,'Replacement Costs'!$C$16:$C$57,0),MATCH("Total Yearly Replacement Costs",'Replacement Costs'!$A$16:$G$16,0))) -> -1800385.899 | J92: =IF(AND(C92>=1,C92<anal_period),WorkingCap*SUM(N92:R92)-WorkingCap*SUM(N91:R91),IF(C92<0,0,IF(B92="","",-SUM(J$65:J91)))) -> -1371188.337 | N92: -12864654.98 | O92: -322340703.3 | P92: 0 | Q92: 0 | R92: -15887083.21 | S92: =IF(B92="","",IF($B$31=0,"",-'Debt Financing Calculations'!E41)) ->  | T92: 1703074.582 | U92: =IF(C92="","",IF(C92<-1,0,IF(C92=anal_period,-LOOKUP(C92,depr_yr,depr_cost)-Depreciation!$C$141-Depreciation!$B$166,-LOOKUP(C92,depr_yr,depr_cost)))) -> -1524664.177 | V92: 178410.4045 | W92: 0.389 | X92: -69401.64737 | Y92: 1633672.934 | Z92: =IF(C92="","",IF($B$31=0,"",-'Debt Financing Calculations'!F41)) ->  | AA92: -1537901.302 | AB92: 411334517.9 | AC92: -1468499.654 | AE92: 124628629.5 | AF92: 0
A93: 2035 | B93: =IF(MAX($B$65:B92)<(construct+anal_period),B92+1,"") -> 29 | C93: 26 | D93: 26 | E93: 1.600864596 | F93: 359498630.8 | H93: 0 | I93: =IF(OR(C93<0,C93=""),"",-E93*INDEX('Replacement Costs'!$A$16:$G$57,MATCH(C93,'Replacement Costs'!$C$16:$C$57,0),MATCH("Total Yearly Replacement Costs",'Replacement Costs'!$A$16:$G$16,0))) -> -1834593.231 | J93: =IF(AND(C93>=1,C93<anal_period),WorkingCap*SUM(N93:R93)-WorkingCap*SUM(N92:R92),IF(C93<0,0,IF(B93="","",-SUM(J$65:J92)))) -> -1404776.837 | N93: -13109083.43 | O93: -331162083.9 | P93: 0 | Q93: 0 | R93: -16186453 | S93: =IF(B93="","",IF($B$31=0,"",-'Debt Financing Calculations'!E42)) ->  | T93: -958989.528 | U93: =IF(C93="","",IF(C93<-1,0,IF(C93=anal_period,-LOOKUP(C93,depr_yr,depr_cost)-Depreciation!$C$141-Depreciation!$B$166,-LOOKUP(C93,depr_yr,depr_cost)))) -> -1553632.796 | V93: -2512622.324 | W93: 0.389 | X93: 977410.0842 | Y93: 18420.55617 | Z93: =IF(C93="","",IF($B$31=0,"",-'Debt Financing Calculations'!F42)) ->  | AA93: -3220949.512 | AB93: 408113568.4 | AC93: -4198359.596 | AE93: 124628629.5 | AF93: 0
A94: 2036 | B94: =IF(MAX($B$65:B93)<(construct+anal_period),B93+1,"") -> 30 | C94: 27 | D94: 27 | E94: 1.631281024 | F94: 366329104.8 | H94: 0 | I94: =IF(OR(C94<0,C94=""),"",-E94*INDEX('Replacement Costs'!$A$16:$G$57,MATCH(C94,'Replacement Costs'!$C$16:$C$57,0),MATCH("Total Yearly Replacement Costs",'Replacement Costs'!$A$16:$G$16,0))) -> -1869450.502 | J94: =IF(AND(C94>=1,C94<anal_period),WorkingCap*SUM(N94:R94)-WorkingCap*SUM(N93:R93),IF(C94<0,0,IF(B94="","",-SUM(J$65:J93)))) -> -1439146.701 | N94: -13358156.01 | O94: -340202312.1 | P94: 0 | Q94: 0 | R94: -16491463.62 | S94: =IF(B94="","",IF($B$31=0,"",-'Debt Financing Calculations'!E43)) ->  | T94: -3722826.884 | U94: =IF(C94="","",IF(C94<-1,0,IF(C94=anal_period,-LOOKUP(C94,depr_yr,depr_cost)-Depreciation!$C$141-Depreciation!$B$166,-LOOKUP(C94,depr_yr,depr_cost)))) -> -1583151.82 | V94: -5305978.703 | W94: 0.389 | X94: 2064025.716 | Y94: -1658801.168 | Z94: =IF(C94="","",IF($B$31=0,"",-'Debt Financing Calculations'!F43)) ->  | AA94: -4967398.372 | AB94: 403146170 | AC94: -7031424.087 | AE94: 124628629.5 | AF94: 0
A95: 2037 | B95: =IF(MAX($B$65:B94)<(construct+anal_period),B94+1,"") -> 31 | C95: 28 | D95: 28 | E95: 1.662275363 | F95: 373289357.8 | H95: 0 | I95: =IF(OR(C95<0,C95=""),"",-E95*INDEX('Replacement Costs'!$A$16:$G$57,MATCH(C95,'Replacement Costs'!$C$16:$C$57,0),MATCH("Total Yearly Replacement Costs",'Replacement Costs'!$A$16:$G$16,0))) -> -1904970.062 | J95: =IF(AND(C95>=1,C95<anal_period),WorkingCap*SUM(N95:R95)-WorkingCap*SUM(N94:R94),IF(C95<0,0,IF(B95="","",-SUM(J$65:J94)))) -> -1474315.496 | N95: -13611960.98 | O95: -349466519.4 | P95: 0 | Q95: 0 | R95: -16802221.32 | S95: =IF(B95="","",IF($B$31=0,"",-'Debt Financing Calculations'!E44)) ->  | T95: -6591343.864 | U95: =IF(C95="","",IF(C95<-1,0,IF(C95=anal_period,-LOOKUP(C95,depr_yr,depr_cost)-Depreciation!$C$141-Depreciation!$B$166,-LOOKUP(C95,depr_yr,depr_cost)))) -> -1613231.704 | V95: -8204575.568 | W95: 0.389 | X95: 3191579.896 | Y95: -3399763.968 | Z95: =IF(C95="","",IF($B$31=0,"",-'Debt Financing Calculations'!F44)) ->  | AA95: -6779049.526 | AB95: 396367120.5 | AC95: -9970629.422 | AE95: 124628629.5 | AF95: 0
A96: 2038 | B96: =IF(MAX($B$65:B95)<(construct+anal_period),B95+1,"") -> 32 | C96: 29 | D96: 29 | E96: 1.693858595 | F96: 380381855.6 | H96: 0 | I96: =IF(OR(C96<0,C96=""),"",-E96*INDEX('Replacement Costs'!$A$16:$G$57,MATCH(C96,'Replacement Costs'!$C$16:$C$57,0),MATCH("Total Yearly Replacement Costs",'Replacement Costs'!$A$16:$G$16,0))) -> -1941164.493 | J96: =IF(AND(C96>=1,C96<anal_period),WorkingCap*SUM(N96:R96)-WorkingCap*SUM(N95:R95),IF(C96<0,0,IF(B96="","",-SUM(J$65:J95)))) -> -1510301.173 | N96: -13870588.24 | O96: -358959953.5 | P96: 0 | Q96: 0 | R96: -17118834.41 | S96: =IF(B96="","",IF($B$31=0,"",-'Debt Financing Calculations'!E45)) ->  | T96: -9567520.549 | U96: =IF(C96="","",IF(C96<-1,0,IF(C96=anal_period,-LOOKUP(C96,depr_yr,depr_cost)-Depreciation!$C$141-Depreciation!$B$166,-LOOKUP(C96,depr_yr,depr_cost)))) -> -1643883.106 | V96: -11211403.66 | W96: 0.389 | X96: 4361236.022 | Y96: -5206284.527 | Z96: =IF(C96="","",IF($B$31=0,"",-'Debt Financing Calculations'!F45)) ->  | AA96: -8657750.192 | AB96: 387709370.3 | AC96: -13018986.21 | AE96: 124628629.5 | AF96: 0
A97: 2039 | B97: =IF(MAX($B$65:B96)<(construct+anal_period),B96+1,"") -> 33 | C97: 30 | D97: =IF(C97="","",IF(C97<=plant_life,C97,IF(D96=plant_life,1,D96+1))) -> 30 | E97: =IF(C97="","",(1+inflation_rate)^(A97-$B$25)) -> 1.726041908 | F97: =IF(C97="","",IF(C97<0,0,IF(AND(C97=1,start_time<1),E97*(H2_price_nominal*output_kgyear*start_time*percnt_revs+H2_price_nominal*output_kgyear*(1-start_time)),IF(C97<=start_time,H2_price_nominal*E97*output_kgyear*percnt_revs,H2_price_nominal*output_kgyear*E97)))) -> 387609110.9 | H97: 0 | I97: =IF(OR(C97<0,C97=""),"",-E97*INDEX('Replacement Costs'!$A$16:$G$57,MATCH(C97,'Replacement Costs'!$C$16:$C$57,0),MATCH("Total Yearly Replacement Costs",'Replacement Costs'!$A$16:$G$16,0))) -> -1978046.619 | J97: =IF(AND(C97>=1,C97<anal_period),WorkingCap*SUM(N97:R97)-WorkingCap*SUM(N96:R96),IF(C97<0,0,IF(B97="","",-SUM(J$65:J96)))) -> -1547122.077 | K97: =IF(C97=-construct,-E97*non_dep_infl,"") ->  | L97: =IF(C97=anal_period,salvage*E97,"") ->  | M97: =IF(D97=plant_life,-E97*decom,"") ->  | N97: =IF(C97="","",IF(C97<0,0,IF(AND(C97=1,start_time<1),-(inflated_fixed*percnt_fixed*start_time+(inflated_fixed*(1-start_time))),IF(C97<=start_time,-inflated_fixed*percnt_fixed*E97,-inflated_fixed*E97)))) -> -14134129.41 | O97: =IF(C97="","",IF(C97<0,0,IF(AND(C97=1,start_time<1),-(SUM(B171:E171)*output_kgyear*E97*percnt_var*start_time+SUM(B171:E171)*output_kgyear*E97*(1-start_time)),IF(C97<=start_time,-SUM(B171:E171)*output_kgyear*E97*percnt_var,-SUM(B171:E171)*output_kgyear*E97)))) -> -368687980.8 | P97: =IF(C97="","",IF(C97<0,0,IF(AND(C97=1,start_time<1),-(inflated_otherraw*E97*percnt_var*start_time+inflated_otherraw*E97*(1-start_time)),IF(C97<=start_time,-inflated_otherraw*E97*percnt_var,-(inflated_otherraw*E97))))) -> 0 | Q97: =IF(C97="","",IF(C97<0,0,IF(AND(C97=1,start_time<1),SUM(K171:N171,T171:V171)*output_kgyear*E97*percnt_var*start_time+SUM(K171:N171,T171:V171)*output_kgyear*E97*(1-start_time),IF(C97<=start_time,SUM(K171:N171,T171:V171)*output_kgyear*E97*percnt_var,SUM(K171:N171,T171:V171)*output_kgyear*E97)))) -> 0 | R97: =IF(C97="","",IF(C97<0,0,IF(AND(C97=1,start_time<1),-((SUM(F171:J171,P171:R171)*output_kgyear+inflated_othervar)*E97*percnt_var*start_time+(SUM(F171:J171,P171:R171)*output_kgyear+inflated_othervar)*E97*(1-start_time)),IF(C97<=start_time,-(SUM(F171:J171,P171:R171)*output_kgyear+inflated_othervar)*E97*percnt_var,-E97*(SUM(F171:J171,P171:R171)*output_kgyear+inflated_othervar))))) -> -17441413.18 | S97: =IF(B97="","",IF($B$31=0,"",-'Debt Financing Calculations'!E46)) ->  | T97: =IF(C97="","",F97+SUM(L97:S97)) -> -12654412.47 | U97: =IF(C97="","",IF(C97<-1,0,IF(C97=anal_period,-LOOKUP(C97,depr_yr,depr_cost)-Depreciation!$C$141-Depreciation!$B$166,-LOOKUP(C97,depr_yr,depr_cost)))) -> -1675116.886 | V97: =IF(C97="","",SUM(T97:U97)) -> -14329529.36 | W97: =IF(C97="","",$B$33) -> 0.389 | X97: =IF(C97="","",tax_credit-(V97*W97 +Upstream_CO2_taxpYear + Proc_CO2_taxpYear)) -> 5574186.92 | Y97: =IF(C97="","",SUM(T97,X97)) -> -7080225.552 | Z97: =IF(C97="","",IF($B$31=0,"",-'Debt Financing Calculations'!F46)) ->  | AA97: =IF(C97="","",SUM(H97,I97,J97,K97,T97,X97,Z97)) -> -10605394.25 | AB97: 377103976.1 | AC97: =IF(C97="","",SUM(H97,I97,J97,K97,T97,Z97)) -> -16179581.17 | AE97: =IF(C97="","",IF(C97<0,0,IF(AND(C97=1,start_time<1),(output_kgyear*start_time*percnt_revs+output_kgyear*(1-start_time)),IF(C97<=start_time,output_kgyear*percnt_revs,output_kgyear)))) -> 124628629.5 | AF97: =IF(C97="","",tax_credit) -> 0
A98: 2040 | B98: =IF(MAX($B$65:B97)<(construct+anal_period),B97+1,"") -> 34 | C98: 31 | D98: 31 | E98: 1.758836705 | F98: 394973684 | H98: 0 | I98: =IF(OR(C98<0,C98=""),"",-E98*INDEX('Replacement Costs'!$A$16:$G$57,MATCH(C98,'Replacement Costs'!$C$16:$C$57,0),MATCH("Total Yearly Replacement Costs",'Replacement Costs'!$A$16:$G$16,0))) -> -2015629.504 | J98: =IF(AND(C98>=1,C98<anal_period),WorkingCap*SUM(N98:R98)-WorkingCap*SUM(N97:R97),IF(C98<0,0,IF(B98="","",-SUM(J$65:J97)))) -> -1584796.957 | N98: -14402677.87 | O98: -378656088.5 | P98: 0 | Q98: 0 | R98: -17770070.05 | S98: =IF(B98="","",IF($B$31=0,"",-'Debt Financing Calculations'!E47)) ->  | T98: -15855152.41 | U98: =IF(C98="","",IF(C98<-1,0,IF(C98=anal_period,-LOOKUP(C98,depr_yr,depr_cost)-Depreciation!$C$141-Depreciation!$B$166,-LOOKUP(C98,depr_yr,depr_cost)))) -> -1706944.106 | V98: -17562096.52 | W98: 0.389 | X98: 6831655.546 | Y98: -9023496.868 | Z98: =IF(C98="","",IF($B$31=0,"",-'Debt Financing Calculations'!F47)) ->  | AA98: -12623923.33 | AB98: 364480052.7 | AC98: -19455578.88 | AE98: 124628629.5 | AF98: 0
A99: 2041 | B99: =IF(MAX($B$65:B98)<(construct+anal_period),B98+1,"") -> 35 | C99: 32 | D99: 32 | E99: 1.792254602 | F99: 402478184 | H99: 0 | I99: =IF(OR(C99<0,C99=""),"",-E99*INDEX('Replacement Costs'!$A$16:$G$57,MATCH(C99,'Replacement Costs'!$C$16:$C$57,0),MATCH("Total Yearly Replacement Costs",'Replacement Costs'!$A$16:$G$16,0))) -> -2053926.465 | J99: =IF(AND(C99>=1,C99<anal_period),WorkingCap*SUM(N99:R99)-WorkingCap*SUM(N98:R98),IF(C99<0,0,IF(B99="","",-SUM(J$65:J98)))) -> -1623344.972 | N99: -14676328.75 | O99: -388869887.9 | P99: 0 | Q99: 0 | R99: -18104919.53 | S99: =IF(B99="","",IF($B$31=0,"",-'Debt Financing Calculations'!E48)) ->  | T99: -19172952.23 | U99: =IF(C99="","",IF(C99<-1,0,IF(C99=anal_period,-LOOKUP(C99,depr_yr,depr_cost)-Depreciation!$C$141-Depreciation!$B$166,-LOOKUP(C99,depr_yr,depr_cost)))) -> -1739376.044 | V99: -20912328.28 | W99: 0.389 | X99: 8134895.699 | Y99: -11038056.53 | Z99: =IF(C99="","",IF($B$31=0,"",-'Debt Financing Calculations'!F48)) ->  | AA99: -14715327.97 | AB99: 349764724.8 | AC99: -22850223.67 | AE99: 124628629.5 | AF99: 0
A100: 2042 | B100: =IF(MAX($B$65:B99)<(construct+anal_period),B99+1,"") -> 36 | C100: 33 | D100: 33 | E100: 1.826307439 | F100: 410125269.5 | H100: 0 | I100: =IF(OR(C100<0,C100=""),"",-E100*INDEX('Replacement Costs'!$A$16:$G$57,MATCH(C100,'Replacement Costs'!$C$16:$C$57,0),MATCH("Total Yearly Replacement Costs",'Replacement Costs'!$A$16:$G$16,0))) -> -2092951.068 | J100: =IF(AND(C100>=1,C100<anal_period),WorkingCap*SUM(N100:R100)-WorkingCap*SUM(N99:R99),IF(C100<0,0,IF(B100="","",-SUM(J$65:J99)))) -> -1662785.699 | N100: -14955179 | O100: -399335116.9 | P100: 0 | Q100: 0 | R100: -18446078.3 | S100: =IF(B100="","",IF($B$31=0,"",-'Debt Financing Calculations'!E49)) ->  | T100: -22611104.73 | U100: =IF(C100="","",IF(C100<-1,0,IF(C100=anal_period,-LOOKUP(C100,depr_yr,depr_cost)-Depreciation!$C$141-Depreciation!$B$166,-LOOKUP(C100,depr_yr,depr_cost)))) -> -1772424.189 | V100: -24383528.92 | W100: 0.389 | X100: 9485192.75 | Y100: -13125911.98 | Z100: =IF(C100="","",IF($B$31=0,"",-'Debt Financing Calculations'!F49)) ->  | AA100: -16881648.75 | AB100: 332883076 | AC100: -26366841.5 | AE100: 124628629.5 | AF100: 0
A101: 2043 | B101: =IF(MAX($B$65:B100)<(construct+anal_period),B100+1,"") -> 37 | C101: 34 | D101: 34 | E101: 1.861007281 | F101: 417917649.6 | H101: 0 | I101: =IF(OR(C101<0,C101=""),"",-E101*INDEX('Replacement Costs'!$A$16:$G$57,MATCH(C101,'Replacement Costs'!$C$16:$C$57,0),MATCH("Total Yearly Replacement Costs",'Replacement Costs'!$A$16:$G$16,0))) -> -2132717.138 | J101: =IF(AND(C101>=1,C101<anal_period),WorkingCap*SUM(N101:R101)-WorkingCap*SUM(N100:R100),IF(C101<0,0,IF(B101="","",-SUM(J$65:J100)))) -> -1703139.147 | N101: -15239327.4 | O101: -410057642.6 | P101: 0 | Q101: 0 | R101: -18793665.23 | S101: =IF(B101="","",IF($B$31=0,"",-'Debt Financing Calculations'!E50)) ->  | T101: -26172985.59 | U101: =IF(C101="","",IF(C101<-1,0,IF(C101=anal_period,-LOOKUP(C101,depr_yr,depr_cost)-Depreciation!$C$141-Depreciation!$B$166,-LOOKUP(C101,depr_yr,depr_cost)))) -> -1806100.249 | V101: -27979085.84 | W101: 0.389 | X101: 10883864.39 | Y101: -15289121.2 | Z101: =IF(C101="","",IF($B$31=0,"",-'Debt Financing Calculations'!F50)) ->  | AA101: -19124977.48 | AB101: 313758098.5 | AC101: -30008841.87 | AE101: 124628629.5 | AF101: 0
A102: 2044 | B102: =IF(MAX($B$65:B101)<(construct+anal_period),B101+1,"") -> 38 | C102: 35 | D102: 35 | E102: 1.896366419 | F102: 425858084.9 | H102: 0 | I102: =IF(OR(C102<0,C102=""),"",-E102*INDEX('Replacement Costs'!$A$16:$G$57,MATCH(C102,'Replacement Costs'!$C$16:$C$57,0),MATCH("Total Yearly Replacement Costs",'Replacement Costs'!$A$16:$G$16,0))) -> -2173238.764 | J102: =IF(AND(C102>=1,C102<anal_period),WorkingCap*SUM(N102:R102)-WorkingCap*SUM(N101:R101),IF(C102<0,0,IF(B102="","",-SUM(J$65:J101)))) -> -1744425.76 | N102: -15528874.62 | O102: -421043464.2 | P102: 0 | Q102: 0 | R102: -19147801.42 | S102: =IF(B102="","",IF($B$31=0,"",-'Debt Financing Calculations'!E51)) ->  | T102: -29862055.31 | U102: =IF(C102="","",IF(C102<-1,0,IF(C102=anal_period,-LOOKUP(C102,depr_yr,depr_cost)-Depreciation!$C$141-Depreciation!$B$166,-LOOKUP(C102,depr_yr,depr_cost)))) -> -1840416.154 | V102: -31702471.47 | W102: 0.389 | X102: 12332261.4 | Y102: -17529793.91 | Z102: =IF(C102="","",IF($B$31=0,"",-'Debt Financing Calculations'!F51)) ->  | AA102: -21447458.44 | AB102: 292310640.1 | AC102: -33779719.84 | AE102: 124628629.5 | AF102: 0
A103: 2045 | B103: =IF(MAX($B$65:B102)<(construct+anal_period),B102+1,"") -> 39 | C103: 36 | D103: 36 | E103: 1.932397381 | F103: 433949388.6 | H103: 0 | I103: =IF(OR(C103<0,C103=""),"",-E103*INDEX('Replacement Costs'!$A$16:$G$57,MATCH(C103,'Replacement Costs'!$C$16:$C$57,0),MATCH("Total Yearly Replacement Costs",'Replacement Costs'!$A$16:$G$16,0))) -> -2214530.3 | J103: =IF(AND(C103>=1,C103<anal_period),WorkingCap*SUM(N103:R103)-WorkingCap*SUM(N102:R102),IF(C103<0,0,IF(B103="","",-SUM(J$65:J102)))) -> -1786666.431 | N103: -15823923.24 | O103: -432298716.3 | P103: 0 | Q103: 0 | R103: -19508610.27 | S103: =IF(B103="","",IF($B$31=0,"",-'Debt Financing Calculations'!E52)) ->  | T103: -33681861.24 | U103: =IF(C103="","",IF(C103<-1,0,IF(C103=anal_period,-LOOKUP(C103,depr_yr,depr_cost)-Depreciation!$C$141-Depreciation!$B$166,-LOOKUP(C103,depr_yr,depr_cost)))) -> -1875384.06 | V103: -35557245.3 | W103: 0.389 | X103: 13831768.42 | Y103: -19850092.82 | Z103: =IF(C103="","",IF($B$31=0,"",-'Debt Financing Calculations'!F52)) ->  | AA103: -23851289.55 | AB103: 268459350.6 | AC103: -37683057.97 | AE103: 124628629.5 | AF103: 0
A104: 2046 | B104: =IF(MAX($B$65:B103)<(construct+anal_period),B103+1,"") -> 40 | C104: 37 | D104: 37 | E104: 1.969112931 | F104: 442194426.9 | H104: 0 | I104: =IF(OR(C104<0,C104=""),"",-E104*INDEX('Replacement Costs'!$A$16:$G$57,MATCH(C104,'Replacement Costs'!$C$16:$C$57,0),MATCH("Total Yearly Replacement Costs",'Replacement Costs'!$A$16:$G$16,0))) -> -2256606.376 | J104: =IF(AND(C104>=1,C104<anal_period),WorkingCap*SUM(N104:R104)-WorkingCap*SUM(N103:R103),IF(C104<0,0,IF(B104="","",-SUM(J$65:J103)))) -> -1829882.51 | N104: -16124577.78 | O104: -443829671.2 | P104: 0 | Q104: 0 | R104: -19876217.51 | S104: =IF(B104="","",IF($B$31=0,"",-'Debt Financing Calculations'!E53)) ->  | T104: -37636039.58 | U104: =IF(C104="","",IF(C104<-1,0,IF(C104=anal_period,-LOOKUP(C104,depr_yr,depr_cost)-Depreciation!$C$141-Depreciation!$B$166,-LOOKUP(C104,depr_yr,depr_cost)))) -> -1911016.358 | V104: -39547055.94 | W104: 0.389 | X104: 15383804.76 | Y104: -22252234.82 | Z104: =IF(C104="","",IF($B$31=0,"",-'Debt Financing Calculations'!F53)) ->  | AA104: -26338723.71 | AB104: 242120626.8 | AC104: -41722528.47 | AE104: 124628629.5 | AF104: 0
A105: 2047 | B105: =IF(MAX($B$65:B104)<(construct+anal_period),B104+1,"") -> 41 | C105: 38 | D105: 38 | E105: 2.006526077 | F105: 450596121 | H105: 0 | I105: =IF(OR(C105<0,C105=""),"",-E105*INDEX('Replacement Costs'!$A$16:$G$57,MATCH(C105,'Replacement Costs'!$C$16:$C$57,0),MATCH("Total Yearly Replacement Costs",'Replacement Costs'!$A$16:$G$16,0))) -> -2299481.897 | J105: =IF(AND(C105>=1,C105<anal_period),WorkingCap*SUM(N105:R105)-WorkingCap*SUM(N104:R104),IF(C105<0,0,IF(B105="","",-SUM(J$65:J104)))) -> -1874095.813 | N105: -16430944.76 | O105: -455642742.6 | P105: 0 | Q105: 0 | R105: -20250751.21 | S105: =IF(B105="","",IF($B$31=0,"",-'Debt Financing Calculations'!E54)) ->  | T105: -41728317.56 | U105: =IF(C105="","",IF(C105<-1,0,IF(C105=anal_period,-LOOKUP(C105,depr_yr,depr_cost)-Depreciation!$C$141-Depreciation!$B$166,-LOOKUP(C105,depr_yr,depr_cost)))) -> -1947325.668 | V105: -43675643.23 | W105: 0.389 | X105: 16989825.21 | Y105: -24738492.34 | Z105: =IF(C105="","",IF($B$31=0,"",-'Debt Financing Calculations'!F54)) ->  | AA105: -28912070.05 | AB105: 213208556.8 | AC105: -45901895.27 | AE105: 124628629.5 | AF105: 0
A106: 2048 | B106: =IF(MAX($B$65:B105)<(construct+anal_period),B105+1,"") -> 42 | C106: 39 | D106: 39 | E106: 2.044650072 | F106: 459157447.3 | H106: 0 | I106: =IF(OR(C106<0,C106=""),"",-E106*INDEX('Replacement Costs'!$A$16:$G$57,MATCH(C106,'Replacement Costs'!$C$16:$C$57,0),MATCH("Total Yearly Replacement Costs",'Replacement Costs'!$A$16:$G$16,0))) -> -2343172.053 | J106: =IF(AND(C106>=1,C106<anal_period),WorkingCap*SUM(N106:R106)-WorkingCap*SUM(N105:R105),IF(C106<0,0,IF(B106="","",-SUM(J$65:J105)))) -> -1919328.634 | N106: -16743132.71 | O106: -467744488.2 | P106: 0 | Q106: 0 | R106: -20632341.88 | S106: =IF(B106="","",IF($B$31=0,"",-'Debt Financing Calculations'!E55)) ->  | T106: -45962515.48 | U106: =IF(C106="","",IF(C106<-1,0,IF(C106=anal_period,-LOOKUP(C106,depr_yr,depr_cost)-Depreciation!$C$141-Depreciation!$B$166,-LOOKUP(C106,depr_yr,depr_cost)))) -> -1984324.856 | V106: -47946840.34 | W106: 0.389 | X106: 18651320.89 | Y106: -27311194.59 | Z106: =IF(C106="","",IF($B$31=0,"",-'Debt Financing Calculations'!F55)) ->  | AA106: -31573695.28 | AB106: 181634861.5 | AC106: -50225016.17 | AE106: 124628629.5 | AF106: 0
A107: 2049 | B107: =IF(MAX($B$65:B106)<(construct+anal_period),B106+1,"") -> 43 | C107: 40 | D107: 40 | E107: 2.083498424 | F107: 467881438.8 | H107: 0 | I107: =IF(OR(C107<0,C107=""),"",-E107*INDEX('Replacement Costs'!$A$16:$G$57,MATCH(C107,'Replacement Costs'!$C$16:$C$57,0),MATCH("Total Yearly Replacement Costs",'Replacement Costs'!$A$16:$G$16,0))) -> -2387692.322 | J107: =IF(AND(C107>=1,C107<anal_period),WorkingCap*SUM(N107:R107)-WorkingCap*SUM(N106:R106),IF(C107<0,0,IF(B107="","",-SUM(J$65:J106)))) -> 75767994.42 | L107: 47859844.24 | M107: -47753846.44 | N107: -17061252.23 | O107: -480141613.2 | P107: 0 | Q107: 0 | R107: -21021122.47 | S107: =IF(B107="","",IF($B$31=0,"",-'Debt Financing Calculations'!E56)) ->  | T107: -50236551.21 | U107: =IF(C107="","",IF(C107<-1,0,IF(C107=anal_period,-LOOKUP(C107,depr_yr,depr_cost)-Depreciation!$C$141-Depreciation!$B$166,-LOOKUP(C107,depr_yr,depr_cost)))) -> -21633234.09 | V107: -71869785.3 | W107: 0.389 | X107: 27957346.48 | Y107: -22279204.72 | Z107: =IF(C107="","",IF($B$31=0,"",-'Debt Financing Calculations'!F56)) ->  | AA107: 51101097.38 | AB107: 232735958.9 | AC107: 23143750.9 | AE107: 124628629.5 | AF107: 0
B108: =IF(MAX($B$65:B107)<(construct+anal_period),B107+1,"") ->  | I108: =IF(OR(C108<0,C108=""),"",-E108*INDEX('Replacement Costs'!$A$16:$G$57,MATCH(C108,'Replacement Costs'!$C$16:$C$57,0),MATCH("Total Yearly Replacement Costs",'Replacement Costs'!$A$16:$G$16,0))) ->  | J108: =IF(AND(C108>=1,C108<anal_period),WorkingCap*SUM(N108:R108)-WorkingCap*SUM(N107:R107),IF(C108<0,0,IF(B108="","",-SUM(J$65:J107)))) ->  | S108: =IF(B108="","",IF($B$31=0,"",-'Debt Financing Calculations'!E57)) ->  | U108: =IF(C108="","",IF(C108<-1,0,IF(C108=anal_period,-LOOKUP(C108,depr_yr,depr_cost)-Depreciation!$C$141-Depreciation!$B$166,-LOOKUP(C108,depr_yr,depr_cost)))) ->  | Z108: =IF(C108="","",IF($B$31=0,"",-'Debt Financing Calculations'!F57)) -> 
B109: =IF(MAX($B$65:B108)<(construct+anal_period),B108+1,"") ->  | I109: =IF(OR(C109<0,C109=""),"",-E109*INDEX('Replacement Costs'!$A$16:$G$57,MATCH(C109,'Replacement Costs'!$C$16:$C$57,0),MATCH("Total Yearly Replacement Costs",'Replacement Costs'!$A$16:$G$16,0))) ->  | J109: =IF(AND(C109>=1,C109<anal_period),WorkingCap*SUM(N109:R109)-WorkingCap*SUM(N108:R108),IF(C109<0,0,IF(B109="","",-SUM(J$65:J108)))) ->  | S109: =IF(B109="","",IF($B$31=0,"",-'Debt Financing Calculations'!E58)) ->  | U109: =IF(C109="","",IF(C109<-1,0,IF(C109=anal_period,-LOOKUP(C109,depr_yr,depr_cost)-Depreciation!$C$141-Depreciation!$B$166,-LOOKUP(C109,depr_yr,depr_cost)))) ->  | Z109: =IF(C109="","",IF($B$31=0,"",-'Debt Financing Calculations'!F58)) -> 
B110: =IF(MAX($B$65:B109)<(construct+anal_period),B109+1,"") ->  | I110: =IF(OR(C110<0,C110=""),"",-E110*INDEX('Replacement Costs'!$A$16:$G$57,MATCH(C110,'Replacement Costs'!$C$16:$C$57,0),MATCH("Total Yearly Replacement Costs",'Replacement Costs'!$A$16:$G$16,0))) ->  | J110: =IF(AND(C110>=1,C110<anal_period),WorkingCap*SUM(N110:R110)-WorkingCap*SUM(N109:R109),IF(C110<0,0,IF(B110="","",-SUM(J$65:J109)))) ->  | O110: =IF(C110="","",IF(C110<0,0,IF(AND(C110=1,start_time<1),-(SUM(B185:E185)*output_kgyear*E110*percnt_var*start_time+SUM(B185:E185)*output_kgyear*E110*(1-start_time)),IF(C110<=start_time,-SUM(B185:E185)*output_kgyear*E110*percnt_var,-SUM(B185:E185)*output_kgyear*E110)))) ->  | Q110: =IF(C110="","",IF(C110<0,0,IF(AND(C110=1,start_time<1),SUM(K185:N185,T185:V185)*output_kgyear*E110*percnt_var*start_time+SUM(K185:N185,T185:V185)*output_kgyear*E110*(1-start_time),IF(C110<=start_time,SUM(K185:N185,T185:V185)*output_kgyear*E110*percnt_var,SUM(K185:N185,T185:V185)*output_kgyear*E110)))) ->  | R110: =IF(C110="","",IF(C110<0,0,IF(AND(C110=1,start_time<1),-((SUM(F185:J185,P185:R185)*output_kgyear+inflated_othervar)*E110*percnt_var*start_time+(SUM(F185:J185,P185:R185)*output_kgyear+inflated_othervar)*E110*(1-start_time)),IF(C110<=start_time,-(SUM(F185:J185,P185:R185)*output_kgyear+inflated_othervar)*E110*percnt_var,-E110*(SUM(F185:J185,P185:R185)*output_kgyear+inflated_othervar))))) ->  | S110: =IF(B110="","",IF($B$31=0,"",-'Debt Financing Calculations'!E59)) ->  | U110: =IF(C110="","",IF(C110<-1,0,IF(C110=anal_period,-LOOKUP(C110,depr_yr,depr_cost)-Depreciation!$C$141-Depreciation!$B$166,-LOOKUP(C110,depr_yr,depr_cost)))) ->  | Z110: =IF(C110="","",IF($B$31=0,"",-'Debt Financing Calculations'!F59)) -> 
B111: =IF(MAX($B$65:B110)<(construct+anal_period),B110+1,"") ->  | I111: =IF(OR(C111<0,C111=""),"",-E111*INDEX('Replacement Costs'!$A$16:$G$57,MATCH(C111,'Replacement Costs'!$C$16:$C$57,0),MATCH("Total Yearly Replacement Costs",'Replacement Costs'!$A$16:$G$16,0))) ->  | J111: =IF(AND(C111>=1,C111<anal_period),WorkingCap*SUM(N111:R111)-WorkingCap*SUM(N110:R110),IF(C111<0,0,IF(B111="","",-SUM(J$65:J110)))) ->  | O111: =IF(C111="","",IF(C111<0,0,IF(AND(C111=1,start_time<1),-(SUM(B278:E278)*output_kgyear*E111*percnt_var*start_time+SUM(B278:E278)*output_kgyear*E111*(1-start_time)),IF(C111<=start_time,-SUM(B278:E278)*output_kgyear*E111*percnt_var,-SUM(B278:E278)*output_kgyear*E111)))) ->  | Q111: =IF(C111="","",IF(C111<0,0,IF(AND(C111=1,start_time<1),SUM(K278:N278,T278:V278)*output_kgyear*E111*percnt_var*start_time+SUM(K278:N278,T278:V278)*output_kgyear*E111*(1-start_time),IF(C111<=start_time,SUM(K278:N278,T278:V278)*output_kgyear*E111*percnt_var,SUM(K278:N278,T278:V278)*output_kgyear*E111)))) ->  | R111: =IF(C111="","",IF(C111<0,0,IF(AND(C111=1,start_time<1),-((SUM(F278:J278,P278:R278)*output_kgyear+inflated_othervar)*E111*percnt_var*start_time+(SUM(F278:J278,P278:R278)*output_kgyear+inflated_othervar)*E111*(1-start_time)),IF(C111<=start_time,-(SUM(F278:J278,P278:R278)*output_kgyear+inflated_othervar)*E111*percnt_var,-E111*(SUM(F278:J278,P278:R278)*output_kgyear+inflated_othervar))))) ->  | S111: =IF(B111="","",IF($B$31=0,"",-'Debt Financing Calculations'!E60)) ->  | U111: =IF(C111="","",IF(C111<-1,0,IF(C111=anal_period,-LOOKUP(C111,depr_yr,depr_cost)-Depreciation!$C$141-Depreciation!$B$166,-LOOKUP(C111,depr_yr,depr_cost)))) ->  | Z111: =IF(C111="","",IF($B$31=0,"",-'Debt Financing Calculations'!F60)) -> 
B112: =IF(MAX($B$65:B111)<(construct+anal_period),B111+1,"") ->  | I112: =IF(OR(C112<0,C112=""),"",-E112*INDEX('Replacement Costs'!$A$16:$G$57,MATCH(C112,'Replacement Costs'!$C$16:$C$57,0),MATCH("Total Yearly Replacement Costs",'Replacement Costs'!$A$16:$G$16,0))) ->  | J112: =IF(AND(C112>=1,C112<anal_period),WorkingCap*SUM(N112:R112)-WorkingCap*SUM(N111:R111),IF(C112<0,0,IF(B112="","",-SUM(J$65:J111)))) ->  | O112: =IF(C112="","",IF(C112<0,0,IF(AND(C112=1,start_time<1),-(SUM(B279:E279)*output_kgyear*E112*percnt_var*start_time+SUM(B279:E279)*output_kgyear*E112*(1-start_time)),IF(C112<=start_time,-SUM(B279:E279)*output_kgyear*E112*percnt_var,-SUM(B279:E279)*output_kgyear*E112)))) ->  | Q112: =IF(C112="","",IF(C112<0,0,IF(AND(C112=1,start_time<1),SUM(K279:N279,T279:V279)*output_kgyear*E112*percnt_var*start_time+SUM(K279:N279,T279:V279)*output_kgyear*E112*(1-start_time),IF(C112<=start_time,SUM(K279:N279,T279:V279)*output_kgyear*E112*percnt_var,SUM(K279:N279,T279:V279)*output_kgyear*E112)))) ->  | R112: =IF(C112="","",IF(C112<0,0,IF(AND(C112=1,start_time<1),-((SUM(F279:J279,P279:R279)*output_kgyear+inflated_othervar)*E112*percnt_var*start_time+(SUM(F279:J279,P279:R279)*output_kgyear+inflated_othervar)*E112*(1-start_time)),IF(C112<=start_time,-(SUM(F279:J279,P279:R279)*output_kgyear+inflated_othervar)*E112*percnt_var,-E112*(SUM(F279:J279,P279:R279)*output_kgyear+inflated_othervar))))) ->  | S112: =IF(B112="","",IF($B$31=0,"",-'Debt Financing Calculations'!E61)) ->  | U112: =IF(C112="","",IF(C112<-1,0,IF(C112=anal_period,-LOOKUP(C112,depr_yr,depr_cost)-Depreciation!$C$141-Depreciation!$B$166,-LOOKUP(C112,depr_yr,depr_cost)))) ->  | Z112: =IF(C112="","",IF($B$31=0,"",-'Debt Financing Calculations'!F61)) -> 
B113: =IF(MAX($B$65:B112)<(construct+anal_period),B112+1,"") ->  | I113: =IF(OR(C113<0,C113=""),"",-E113*INDEX('Replacement Costs'!$A$16:$G$57,MATCH(C113,'Replacement Costs'!$C$16:$C$57,0),MATCH("Total Yearly Replacement Costs",'Replacement Costs'!$A$16:$G$16,0))) ->  | J113: =IF(AND(C113>=1,C113<anal_period),WorkingCap*SUM(N113:R113)-WorkingCap*SUM(N112:R112),IF(C113<0,0,IF(B113="","",-SUM(J$65:J112)))) ->  | O113: =IF(C113="","",IF(C113<0,0,IF(AND(C113=1,start_time<1),-(SUM(B280:E280)*output_kgyear*E113*percnt_var*start_time+SUM(B280:E280)*output_kgyear*E113*(1-start_time)),IF(C113<=start_time,-SUM(B280:E280)*output_kgyear*E113*percnt_var,-SUM(B280:E280)*output_kgyear*E113)))) ->  | Q113: =IF(C113="","",IF(C113<0,0,IF(AND(C113=1,start_time<1),SUM(K280:N280,T280:V280)*output_kgyear*E113*percnt_var*start_time+SUM(K280:N280,T280:V280)*output_kgyear*E113*(1-start_time),IF(C113<=start_time,SUM(K280:N280,T280:V280)*output_kgyear*E113*percnt_var,SUM(K280:N280,T280:V280)*output_kgyear*E113)))) ->  | R113: =IF(C113="","",IF(C113<0,0,IF(AND(C113=1,start_time<1),-((SUM(F280:J280,P280:R280)*output_kgyear+inflated_othervar)*E113*percnt_var*start_time+(SUM(F280:J280,P280:R280)*output_kgyear+inflated_othervar)*E113*(1-start_time)),IF(C113<=start_time,-(SUM(F280:J280,P280:R280)*output_kgyear+inflated_othervar)*E113*percnt_var,-E113*(SUM(F280:J280,P280:R280)*output_kgyear+inflated_othervar))))) ->  | S113: =IF(B113="","",IF($B$31=0,"",-'Debt Financing Calculations'!E62)) ->  | U113: =IF(C113="","",IF(C113<-1,0,IF(C113=anal_period,-LOOKUP(C113,depr_yr,depr_cost)-Depreciation!$C$141-Depreciation!$B$166,-LOOKUP(C113,depr_yr,depr_cost)))) ->  | Z113: =IF(C113="","",IF($B$31=0,"",-'Debt Financing Calculations'!F62)) -> 
E114: Cumulative Total | F114: =SUM(F65:F113) -> 1.316171161e+10 | G114: 0 | H114: -221745567.8 | I114: -67739840.77 | J114: 0 | K114: -480818.4571 | L114: 47859844.24 | M114: -47753846.44 | N114: -481987751.7 | O114: -1.142554134e+10 | P114: 0 | Q114: 0 | R114: -583106254.4 | S114: 0 | T114: 671182261.9 | U114: -289485408.6 | V114: 381696853.3 | W114: 16.727 | X114: -148480075.9 | Y114: 522702185.9 | Z114: 0 | AA114: 232735958.9 | AB114: 9137929407 | AC114: 381216034.8
E115: PV of Cash Flow | F115: =NPV(nominal_irr,F65:F113) -> 1459128860 | G115: 0 | H115: -171979007.3 | I115: -7809209.856 | J115: -18938424.02 | K115: -428957.4958 | L115: 353668.1143 | M115: -352884.8262 | N115: -54503846.83 | O115: -1056390806 | P115: 0 | Q115: 0 | R115: -63493407.27 | S115: 0 | T115: 284741583.3 | U115: -64726198.54 | V115: 220015384.7 | W115: 3.193758653 | X115: -85585984.67 | Y115: 199155598.6 | Z115: 0 | AA115: 1.157662044e-06 | AB115: -14225312.45 | AC115: 85585984.67
E116: Discounted Values | F116: =+F65+NPV($X$59,F66:F113) -> 1635537539 | G116: 0 | H116: -192771269.2 | I116: -8753343.327 | J116: -21228079.48 | K116: -480818.4571 | L116: 396426.5893 | M116: -395548.6017 | N116: -61093361.91 | O116: -1184108455 | P116: 0 | Q116: 0 | R116: -71169760.21 | S116: 0 | T116: 319166840.7 | U116: -72551595.95 | V116: 246615244.8 | W116: 3.579884074 | X116: -95933330.21 | Y116: 223233510.5 | Z116: 0 | AA116: 1.322478056e-06 | AB116: -15945152.73 | AC116: 95933330.21 | AE116: =+AE65+NPV(real_irr,AE66:AE113) -> 960413480.8 | AF116: =+AF65+NPV($X$59,AF66:AF113) -> 0
A117: Specific Item Cost Calculation | E117: Expenses $/kg H2 | H117: =-H116/$AE$116*(1+inflation_rate)^construct/INFLATION_FACTOR -> 0.2007169548 | I117: =-I116/$AE$116*(1+inflation_rate)^construct/INFLATION_FACTOR -> 0.009114140422 | J117: =-J116/$AE$116*(1+inflation_rate)^construct/INFLATION_FACTOR -> 0.0221030628 | K117: =-K116/$AE$116*(1+inflation_rate)^construct/INFLATION_FACTOR -> 0.0005006369305 | M117: =-M116/$AE$116*(1+inflation_rate)^construct/INFLATION_FACTOR -> 0.0004118524049 | N117: =-N116/$AE$116*(1+inflation_rate)^construct/INFLATION_FACTOR -> 0.06361152059 | O117: =-O116/$AE$116*(1+inflation_rate)^construct/INFLATION_FACTOR -> 1.232915279 | P117: =-P116/$AE$116*(1+inflation_rate)^construct/INFLATION_FACTOR -> 0 | R117: =-R116/$AE$116*(1+inflation_rate)^construct/INFLATION_FACTOR -> 0.07410324993 | S117: =-S116/$AE$116*(1+inflation_rate)^construct/INFLATION_FACTOR -> 0 | X117: =-X116/$AE$116*(1+inflation_rate)^construct/INFLATION_FACTOR -> 0.09988752983 | Z117: =-Z116/$AE$116*(1+inflation_rate)^construct/INFLATION_FACTOR -> 0 | AG117: =+SUM(F117:AC117) -> 1.703364227
A118: Cost Component | B118: After Tax Present Value | C118: % of Total | D118: $/kg of H2 | E118: Revenues $/kg H2 | F118: =F116/$AE$116*(1+inflation_rate)^construct/INFLATION_FACTOR -> 1.70295146 | L118: =L116/$AE$116*(1+inflation_rate)^construct/INFLATION_FACTOR -> 0.0004127665815 | Q118: =Q116/$AE$116*(1+inflation_rate)^construct/INFLATION_FACTOR -> 0 | AG118: =+SUM(F118:AC118) -> 1.703364227
A119: Capital-Related Costs | B119: =(SUM(H115:K115)+L115*(1-total_tax_rate)+S115*(1-total_tax_rate)+U115*(-total_tax_rate)+Z115)/(1-total_tax_rate) -> -284387915.2 | C119: =B119/SUM($B$118:$B$125) -> 0.194902536 | D119: =H2_price_real*C119 -> 0.3319095582
A120: Decommissioning Costs | B120: =M115 -> -352884.8262 | C120: 0.0002418462384 | D120: 0.0004118524049
A121: Fixed O&M | B121: =N115 -> -54503846.83 | C121: 0.0373536898 | D121: 0.06361152059
A122: Feedstock Costs | B122: =O115 -> -1056390806 | C122: 0.723987329 | D122: 1.232915279
A123: Other Raw Material Costs | B123: =P115 -> 0 | C123: 0 | D123: 0
A124: Byproduct Credits | B124: =Q115 -> 0 | C124: 0 | D124: 0
A125: Other Variable Costs (including utilities) | B125: =R115 -> -63493407.27 | C125: 0.04351459902 | D125: 0.07410324993
A128: INFLATION FACTOR (1 + inflation rate)^(startup year - reference year) = | B128: =(1+inflation_rate)^(startup_year-ref_year) -> 1.058089859
A129: Feedstock, Utility and Byproduct Cost Information (Start-Up Year $)
B130: Energy Feedstocks | F130: Energy Utilities | J130: Carbon Sequestration Electricity Usage | K130: Energy Byproducts | O130: Other Material Inputs | S130: Other Material Byproducts
A131: Feedstock Name | B131: =Input_Sheet_Template!$B$75 -> Industrial Natural Gas | F131: =Input_Sheet_Template!$B$78 -> Industrial Electricity | J131: =IF(CO2_CashFlow_eUse>0,'HyARC Physical Property Data'!A77,"") ->  | O131: Type | P131: =Input_Sheet_Template!$B$138 -> Demineralized Water | Q131: =Input_Sheet_Template!$B$140 -> Cooling Water | S131: Type
A132: LHV (GJ or mmBtu/usage unit) | B132: =Input_Sheet_Template!$C$75 -> 1.055 | F132: =Input_Sheet_Template!$C$78 -> 0.0036 | J132: =IF(J131="",0,VLOOKUP(J131,MASTER_PROPERTY_TABLE,9,FALSE)) -> 0 | O132: Usage (/kg H2) | P132: =Input_Sheet_Template!$D$138 -> 3.355 | Q132: =Input_Sheet_Template!$D$140 -> 1.495 | S132: Usage (/kg H2)
A133: Usage (/kg H2) | B133: =feedstockIndustrial_Natural_Gas_Usage -> 0.15625 | F133: =utilityIndustrial_Electricity_Usage -> 0.569 | O133: Cost (/usage unit) | P133: =Input_Sheet_Template!$C$138 -> 0.005422997651 | Q133: =Input_Sheet_Template!$C$140 -> 8.627496263e-05 | S133: Price (/usage unit)
A134: Price ($/ usage unit) | B134: =feedstockIndustrial_Natural_Gas_Price -> 5.730142136 | F134: =utilityIndustrial_Electricity_Price -> 0.05742314849 | J134: =IF(J131="",0,CO2_eCost) -> 0 | O134: Lookup Price? | P134: =Input_Sheet_Template!$F$138 -> Yes | Q134: =Input_Sheet_Template!$F$140 -> Yes | S134: Lookup Price?
A135: Lookup Price? | B135: =Input_Sheet_Template!$G$75 -> yes | F135: =Input_Sheet_Template!$G$78 -> yes | J135: =IF(J131="","","yes") -> 
A136: CO2 Emissions (kg CO2/kg H2) | B136: =IF(B131="",0,VLOOKUP(B131,MASTER_PROPERTY_TABLE,11,FALSE)*B132*B133) -> 9.283231604 | C136: =IF(C131="",0,VLOOKUP(C131,MASTER_PROPERTY_TABLE,11,FALSE)*C132*C133) -> 0 | D136: =IF(D131="",0,VLOOKUP(D131,MASTER_PROPERTY_TABLE,11,FALSE)*D132*D133) -> 0 | E136: =IF(E131="",0,VLOOKUP(E131,MASTER_PROPERTY_TABLE,11,FALSE)*E132*E133) -> 0 | F136: =IF(F131="",,VLOOKUP(F131,MASTER_PROPERTY_TABLE,11,FALSE)*F132*F133) -> 0 | G136: =IF(G131="",,VLOOKUP(G131,MASTER_PROPERTY_TABLE,11,FALSE)*G132*G133) -> 0 | H136: =IF(H131="",,VLOOKUP(H131,MASTER_PROPERTY_TABLE,11,FALSE)*H132*H133) -> 0 | I136: =IF(I131="",,VLOOKUP(I131,MASTER_PROPERTY_TABLE,11,FALSE)*I132*I133) -> 0 | J136: =IF($J$131="",0,VLOOKUP($J$131,MASTER_PROPERTY_TABLE,12,FALSE)*$J$132*$J$133) -> 0
A137: Unit System Conversion Factor | B137: =IF(B131="",0,IF(VLOOKUP(B131,MASTER_PROPERTY_TABLE,12,FALSE)="English",mmBTU_to_GJ,1)) -> 1 | C137: =IF(C131="",0,IF(VLOOKUP(C131,MASTER_PROPERTY_TABLE,12,FALSE)="English",mmBTU_to_GJ,1)) -> 0 | D137: =IF(D131="",0,IF(VLOOKUP(D131,MASTER_PROPERTY_TABLE,12,FALSE)="English",mmBTU_to_GJ,1)) -> 0 | E137: =IF(E131="",,IF(VLOOKUP(E131,MASTER_PROPERTY_TABLE,12,FALSE)="English",mmBTU_to_GJ,1)) -> 0 | F137: =IF(F131="",,IF(VLOOKUP(F131,MASTER_PROPERTY_TABLE,12,FALSE)="English",mmBTU_to_GJ,1)) -> 1 | G137: =IF(G131="",,IF(VLOOKUP(G131,MASTER_PROPERTY_TABLE,12,FALSE)="English",mmBTU_to_GJ,1)) -> 0 | H137: =IF(H131="",,IF(VLOOKUP(H131,MASTER_PROPERTY_TABLE,12,FALSE)="English",mmBTU_to_GJ,1)) -> 0 | I137: =IF(I131="",,IF(VLOOKUP(I131,MASTER_PROPERTY_TABLE,12,FALSE)="English",mmBTU_to_GJ,1)) -> 0 | J137: =IF($J$131="",0,IF(VLOOKUP($J$131,MASTER_PROPERTY_TABLE,12,FALSE)="English",mmBTU_to_GJ,1)) -> 0 | K137: =IF(K131="",,IF(VLOOKUP(K131,MASTER_PROPERTY_TABLE,12,FALSE)="English",mmBTU_to_GJ,1)) -> 0 | L137: =IF(L131="",,IF(VLOOKUP(L131,MASTER_PROPERTY_TABLE,12,FALSE)="English",mmBTU_to_GJ,1)) -> 0 | M137: =IF(M131="",,IF(VLOOKUP(M131,MASTER_PROPERTY_TABLE,12,FALSE)="English",mmBTU_to_GJ,1)) -> 0 | N137: =IF(N131="",,IF(VLOOKUP(N131,MASTER_PROPERTY_TABLE,12,FALSE)="English",mmBTU_to_GJ,1)) -> 0
A138: Actual Year | B138: =IF(B$131="","",B$131&" ($/kg of H2)") -> Industrial Natural Gas ($/kg of H2) | F138: Industrial Electricity ($/kg of H2) | P138: =IF(P$131="","",P$131&" ($/kg of H2)") -> Demineralized Water ($/kg of H2) | Q138: =IF(Q$131="","",Q$131&" ($/kg of H2)") -> Cooling Water ($/kg of H2) | R138: =IF(R$131="","",R$131&" ($/kg of H2)") ->  | T138: =IF(T$131="","",T$131&" ($/kg of H2)") ->  | U138: =IF(U$131="","",U$131&" ($/kg of H2)") ->  | V138: =IF(V$131="","",V$131&" ($/kg of H2)") -> 
A139: =IF(A65="","",A65) -> 2007 | B139: =IF($A139="","",IF($B$131="","",IF($B$135="no",INFLATION_FACTOR*$B$133*$B$134,INFLATION_FACTOR*$B$133*$B$132*INDEX(FEEDPRICETABLE,MATCH($B$131,List_Energy_Feedstocks,0),MATCH($A139,Feedstock_Year,0))))) -> 1.376450085 | C139: =IF($A139="","",IF($C$131="","",IF($C$135="no",INFLATION_FACTOR*$C$133*$C$134,INFLATION_FACTOR*$C$133*$C$132*INDEX(FEEDPRICETABLE,MATCH($C$131,List_Energy_Feedstocks,0),MATCH($A139,Feedstock_Year,0))))) ->  | D139: =IF($A139="","",IF($D$131="","",IF($D$135="no",INFLATION_FACTOR*$D$133*$D$134,INFLATION_FACTOR*$D$133*$D$132*INDEX(FEEDPRICETABLE,MATCH($D$131,List_Energy_Feedstocks,0),MATCH($A139,Feedstock_Year,0))))) ->  | E139: =IF($A139="","",IF($E$131="","",IF($E$135="no",INFLATION_FACTOR*$E$133*$E$134,INFLATION_FACTOR*$E$133*$E$132*INDEX(FEEDPRICETABLE,MATCH($E$131,List_Energy_Feedstocks,0),MATCH($A139,Feedstock_Year,0))))) ->  | F139: =IF($A139="","",IF($F$131="","",IF($F$135="no",INFLATION_FACTOR*$F$133*$F$134,INFLATION_FACTOR*$F$133*$F$132*INDEX(FEEDPRICETABLE,MATCH($F$131,List_Energy_Feedstocks,0),MATCH($A139,Feedstock_Year,0))))) -> 0.03825844573 | G139: =IF($A139="","",IF($G$131="","",IF($G$135="no",INFLATION_FACTOR*$G$133*$G$134,INFLATION_FACTOR*$G$133*$G$132*INDEX(FEEDPRICETABLE,MATCH($G$131,List_Energy_Feedstocks,0),MATCH($A139,Feedstock_Year,0))))) ->  | H139: =IF($A139="","",IF($H$131="","",IF($H$135="no",INFLATION_FACTOR*$H$133*$H$134,INFLATION_FACTOR*$H$133*$H$132*INDEX(FEEDPRICETABLE,MATCH(H$131,List_Energy_Feedstocks,0),MATCH($A139,Feedstock_Year,0))))) ->  | I139: =IF($A139="","",IF($I$131="","",IF($I$135="no",INFLATION_FACTOR*$I$133*$I$134,INFLATION_FACTOR*$I$133*$I$132*INDEX(FEEDPRICETABLE,MATCH($I$131,List_Energy_Feedstocks,0),MATCH($A139,Feedstock_Year,0))))) ->  | J139: =IF($A139="","",IF($J$131="","",IF($J$135="no",INFLATION_FACTOR*$J$133*$J$134,INFLATION_FACTOR*$J$133*$J$132*INDEX(FEEDPRICETABLE,MATCH($J$131,List_Energy_Feedstocks,0),MATCH($A139,Feedstock_Year,0))))) ->  | K139: =IF($A139="","",IF($K$131="","",IF($K$135="no",INFLATION_FACTOR*$K$133*$K$134,INFLATION_FACTOR*$K$133*$K$132*INDEX(FEEDPRICETABLE,MATCH($K$131,List_Energy_Feedstocks,0),MATCH($A139,Feedstock_Year,0))))) ->  | L139: =IF($A139="","",IF($L$131="","",IF($L$135="no",INFLATION_FACTOR*$L$133*$L$134,INFLATION_FACTOR*$L$133*$L$132*INDEX(FEEDPRICETABLE,MATCH($L$131,List_Energy_Feedstocks,0),MATCH($A139,Feedstock_Year,0))))) ->  | M139: =IF($A139="","",IF(M$131="","",IF($M$135="no",INFLATION_FACTOR*$M$133*$M$134,INFLATION_FACTOR*$M$133*$M$132*INDEX(FEEDPRICETABLE,MATCH($M$131,List_Energy_Feedstocks,0),MATCH($A139,Feedstock_Year,0))))) ->  | N139: =IF($A139="","",IF($N$131="","",IF($N$135="no",INFLATION_FACTOR*$N$133*$N$134,INFLATION_FACTOR*$N$133*$N$132*INDEX(FEEDPRICETABLE,MATCH($N$131,List_Energy_Feedstocks,0),MATCH($A139,Feedstock_Year,0))))) ->  | P139: =IF(OR($A139="",$P$131=""),"",IF($P$134="No",INFLATION_FACTOR*$P$132*$P$133,INFLATION_FACTOR*$P$132*INDEX(Tbl_Other_Inputs_and_Byproducts,MATCH($P$131,Other_Inputs_List,0),MATCH($A139,Other_Inputs_years,0)))) -> 0.01925105314 | Q139: =IF(OR($A139="",$Q$131=""),"",IF($Q$134="No",INFLATION_FACTOR*$Q$132*$Q$133,INFLATION_FACTOR*$Q$132*INDEX(Tbl_Other_Inputs_and_Byproducts,MATCH($Q$131,Other_Inputs_List,0),MATCH($A139,Other_Inputs_years,0)))) -> 0.0001364735612 | R139: =IF(OR($A139="",$R$131=""),"",IF($R$134="No",INFLATION_FACTOR*$R$132*$R$133,INFLATION_FACTOR*$R$132*INDEX(Tbl_Other_Inputs_and_Byproducts,MATCH($R$131,Other_Inputs_List,0),MATCH($A139,Other_Inputs_years,0)))) ->  | T139: =IF(OR($A139="",$T$131=""),"",IF($T$134="No",INFLATION_FACTOR*$T$132*$T$133,INFLATION_FACTOR*$T$132*INDEX(Tbl_Other_Inputs_and_Byproducts,MATCH($T$131,Other_Inputs_List,0),MATCH($A139,Other_Inputs_years,0)))) ->  | U139: =IF(OR($A139="",$U$131=""),"",IF($U$134="No",INFLATION_FACTOR*$U$132*$U$133,INFLATION_FACTOR*$U$132*INDEX(Tbl_Other_Inputs_and_Byproducts,MATCH($U$131,Other_Inputs_List,0),MATCH($A139,Other_Inputs_years,0)))) ->  | V139: =IF(OR($A139="",$V$131=""),"",IF($V$134="No",INFLATION_FACTOR*$V$132*$V$133,INFLATION_FACTOR*$V$132*INDEX(Tbl_Other_Inputs_and_Byproducts,MATCH($V$131,Other_Inputs_List,0),MATCH($A139,Other_Inputs_years,0)))) -> 
A140: 2008 | B140: =IF($A140="","",IF($B$131="","",IF($B$135="no",INFLATION_FACTOR*$B$133*$B$134,INFLATION_FACTOR*$B$133*$B$132*INDEX(FEEDPRICETABLE,MATCH($B$131,List_Energy_Feedstocks,0),MATCH($A140,Feedstock_Year,0))))) -> 1.611990219 | F140: 0.04177499719 | P140: =IF(OR($A140="",$P$131=""),"",IF($P$134="No",INFLATION_FACTOR*$P$132*$P$133,INFLATION_FACTOR*$P$132*INDEX(Tbl_Other_Inputs_and_Byproducts,MATCH($P$131,Other_Inputs_List,0),MATCH($A140,Other_Inputs_years,0)))) -> 0.01925105314 | Q140: =IF(OR($A140="",$Q$131=""),"",IF($Q$134="No",INFLATION_FACTOR*$Q$132*$Q$133,INFLATION_FACTOR*$Q$132*INDEX(Tbl_Other_Inputs_and_Byproducts,MATCH($Q$131,Other_Inputs_List,0),MATCH($A140,Other_Inputs_years,0)))) -> 0.0001364735612
A141: 2009 | B141: 0.8880357046 | F141: 0.03936123631 | P141: 0.01925105314 | Q141: 0.0001364735612
A142: 2010 | B142: 1.007150421 | F142: 0.03457178627 | P142: 0.01925105314 | Q142: 0.0001364735612
A143: 2011 | B143: 1.067086594 | F143: 0.03546778427 | P143: 0.01925105314 | Q143: 0.0001364735612
A144: 2012 | B144: 1.076541365 | F144: 0.03524541975 | P144: 0.01925105314 | Q144: 0.0001364735612
A145: 2013 | B145: 1.090470819 | F145: 0.03509654586 | P145: 0.01925105314 | Q145: 0.0001364735612
A146: 2014 | B146: 1.119046135 | F146: 0.03533327153 | P146: 0.01925105314 | Q146: 0.0001364735612
A147: 2015 | B147: 1.159271818 | F147: 0.03557838268 | P147: 0.01925105314 | Q147: 0.0001364735612
A148: 2016 | B148: 1.192806786 | F148: 0.03618839611 | P148: 0.01925105314 | Q148: 0.0001364735612
A149: 2017 | B149: 1.227633347 | F149: 0.03679460864 | P149: 0.01925105314 | Q149: 0.0001364735612
A150: 2018 | B150: 1.263557357 | F150: 0.03741096213 | P150: 0.01925105314 | Q150: 0.0001364735612
A151: 2019 | B151: 1.310070704 | F151: 0.03791780262 | P151: 0.01925105314 | Q151: 0.0001364735612
A152: 2020 | B152: 1.36790604 | F152: 0.03862887302 | P152: 0.01925105314 | Q152: 0.0001364735612
A153: 2021 | B153: 1.406382233 | F153: 0.03920863597 | P153: 0.01925105314 | Q153: 0.0001364735612
A154: 2022 | B154: 1.42014252 | F154: 0.03966254596 | P154: 0.01925105314 | Q154: 0.0001364735612
A155: 2023 | B155: 1.384367241 | F155: 0.03965880384 | P155: 0.01925105314 | Q155: 0.0001364735612
A156: 2024 | B156: 1.382114354 | F156: 0.0397019813 | P156: 0.01925105314 | Q156: 0.0001364735612
A157: 2025 | B157: 1.366196986 | F157: 0.03970088414 | P157: 0.01925105314 | Q157: 0.0001364735612
A158: 2026 | B158: 1.392012961 | F158: 0.03976129497 | P158: 0.01925105314 | Q158: 0.0001364735612
A159: 2027 | B159: 1.439519828 | F159: 0.04029680288 | P159: 0.01925105314 | Q159: 0.0001364735612
A160: 2028 | B160: 1.500797899 | F160: 0.04103126646 | P160: 0.01925105314 | Q160: 0.0001364735612
A161: 2029 | B161: 1.542453949 | F161: 0.04169341494 | P161: 0.01925105314 | Q161: 0.0001364735612
A162: 2030 | B162: 1.592260428 | F162: 0.0422404823 | P162: 0.01925105314 | Q162: 0.0001364735612
A163: 2031 | B163: 1.605777841 | F163: 0.04222802809 | P163: 0.01925105314 | Q163: 0.0001364735612
A164: 2032 | B164: 1.619295255 | F164: 0.04221557389 | P164: 0.01925105314 | Q164: 0.0001364735612
A165: 2033 | B165: 1.632812668 | F165: 0.04220311968 | P165: 0.01925105314 | Q165: 0.0001364735612
A166: 2034 | B166: 1.646330082 | F166: 0.04219066547 | P166: 0.01925105314 | Q166: 0.0001364735612
A167: 2035 | B167: 1.659847495 | F167: 0.04217821127 | P167: 0.01925105314 | Q167: 0.0001364735612
A168: 2036 | B168: 1.673364909 | F168: 0.04216575706 | P168: 0.01925105314 | Q168: 0.0001364735612
A169: 2037 | B169: 1.686882322 | F169: 0.04215330285 | P169: 0.01925105314 | Q169: 0.0001364735612
A170: 2038 | B170: 1.700399736 | F170: 0.04214084864 | P170: 0.01925105314 | Q170: 0.0001364735612
A171: 2039 | B171: 1.71391715 | F171: 0.04212839444 | P171: 0.01925105314 | Q171: 0.0001364735612
A172: 2040 | B172: 1.727434563 | F172: 0.04211594023 | P172: 0.01925105314 | Q172: 0.0001364735612
A173: 2041 | B173: 1.740951977 | F173: 0.04210348602 | P173: 0.01925105314 | Q173: 0.0001364735612
A174: 2042 | B174: 1.75446939 | F174: 0.04209103182 | P174: 0.01925105314 | Q174: 0.0001364735612
A175: 2043 | B175: 1.767986804 | F175: 0.04207857761 | P175: 0.01925105314 | Q175: 0.0001364735612
A176: 2044 | B176: 1.781504217 | F176: 0.0420661234 | P176: 0.01925105314 | Q176: 0.0001364735612
A177: 2045 | B177: 1.795021631 | F177: 0.0420536692 | P177: 0.01925105314 | Q177: 0.0001364735612
A178: 2046 | B178: 1.808539044 | F178: 0.04204121499 | P178: 0.01925105314 | Q178: 0.0001364735612
A179: 2047 | B179: 1.822056458 | F179: 0.04202876078 | P179: 0.01925105314 | Q179: 0.0001364735612
A180: 2048 | B180: 1.835573872 | F180: 0.04201630658 | P180: 0.01925105314 | Q180: 0.0001364735612
A181: 2049 | B181: 1.849091285 | F181: 0.04200385237 | P181: 0.01925105314 | Q181: 0.0001364735612
A184: Tables to calculate equivalent price in startup year
A185: Actual Year | B185: =IF(B$131="","",B$131&" ($/year)") -> Industrial Natural Gas ($/year) | C185: =IF(C$131="","",C$131&" ($/year)") ->  | F185: Industrial Electricity ($/year)
A186: =+A139 -> 2007 | B186: =IF($C65="","",IF($C65<0,0,IF(AND($C65=1,start_time<1),-(SUM(B139)*output_kgyear*$E65*percnt_var*start_time+SUM(B139)*output_kgyear*$E65*(1-start_time)),IF($C65<=start_time,-SUM(B139)*output_kgyear*$E65*percnt_var,-SUM(B139)*output_kgyear*$E65)))) -> 0 | C186: 0 | D186: 0 | E186: 0 | F186: 0 | G186: 0 | H186: 0 | I186: 0 | J186: 0 | K186: 0 | L186: 0 | M186: 0 | N186: 0
A187: =+A140 -> 2008 | B187: =IF($C66="","",IF($C66<0,0,IF(AND($C66=1,start_time<1),-(SUM(B140)*output_kgyear*$E66*percnt_var*start_time+SUM(B140)*output_kgyear*$E66*(1-start_time)),IF($C66<=start_time,-SUM(B140)*output_kgyear*$E66*percnt_var,-SUM(B140)*output_kgyear*$E66)))) -> 0 | C187: 0 | D187: 0 | E187: 0 | F187: 0 | G187: 0 | H187: 0 | I187: 0 | J187: 0 | K187: 0 | L187: 0 | M187: 0 | N187: 0
A188: 2009 | B188: =IF($C67="","",IF($C67<0,0,IF(AND($C67=1,start_time<1),-(SUM(B141)*output_kgyear*$E67*percnt_var*start_time+SUM(B141)*output_kgyear*$E67*(1-start_time)),IF($C67<=start_time,-SUM(B141)*output_kgyear*$E67*percnt_var,-SUM(B141)*output_kgyear*$E67)))) -> 0 | C188: 0 | D188: 0 | E188: 0 | F188: 0 | G188: 0 | H188: 0 | I188: 0 | J188: 0 | K188: 0 | L188: 0 | M188: 0 | N188: 0
A189: 2010 | B189: =IF($C68="","",IF($C68<0,0,IF(AND($C68=1,start_time<1),-(SUM(B142)*output_kgyear*$E68*percnt_var*start_time+SUM(B142)*output_kgyear*$E68*(1-start_time)),IF($C68<=start_time,-SUM(B142)*output_kgyear*$E68*percnt_var,-SUM(B142)*output_kgyear*$E68)))) -> -94139832.5 | C189: 0 | D189: 0 | E189: 0 | F189: -3231475.757 | G189: 0 | H189: 0 | I189: 0 | J189: 0 | K189: 0 | L189: 0 | M189: 0 | N189: 0
A190: 2011 | B190: =IF($C69="","",IF($C69<0,0,IF(AND($C69=1,start_time<1),-(SUM(B143)*output_kgyear*$E69*percnt_var*start_time+SUM(B143)*output_kgyear*$E69*(1-start_time)),IF($C69<=start_time,-SUM(B143)*output_kgyear*$E69*percnt_var,-SUM(B143)*output_kgyear*$E69)))) -> -135516341 | C190: 0 | D190: 0 | E190: 0 | F190: -4504287.071 | G190: 0 | H190: 0 | I190: 0 | J190: 0 | K190: 0 | L190: 0 | M190: 0 | N190: 0
A191: 2012 | B191: =IF($C70="","",IF($C70<0,0,IF(AND($C70=1,start_time<1),-(SUM(B144)*output_kgyear*$E70*percnt_var*start_time+SUM(B144)*output_kgyear*$E70*(1-start_time)),IF($C70<=start_time,-SUM(B144)*output_kgyear*$E70*percnt_var,-SUM(B144)*output_kgyear*$E70)))) -> -139314688.8 | C191: 0 | D191: 0 | E191: 0 | F191: -4561092.441 | G191: 0 | H191: 0 | I191: 0 | J191: 0 | K191: 0 | L191: 0 | M191: 0 | N191: 0
A192: 2013 | B192: =IF($C71="","",IF($C71<0,0,IF(AND($C71=1,start_time<1),-(SUM(B145)*output_kgyear*$E71*percnt_var*start_time+SUM(B145)*output_kgyear*$E71*(1-start_time)),IF($C71<=start_time,-SUM(B145)*output_kgyear*$E71*percnt_var,-SUM(B145)*output_kgyear*$E71)))) -> -143798521.2 | C192: 0 | D192: 0 | E192: 0 | F192: -4628121.453 | G192: 0 | H192: 0 | I192: 0 | J192: 0 | K192: 0 | L192: 0 | M192: 0 | N192: 0
A193: 2014 | B193: =IF($C72="","",IF($C72<0,0,IF(AND($C72=1,start_time<1),-(SUM(B146)*output_kgyear*$E72*percnt_var*start_time+SUM(B146)*output_kgyear*$E72*(1-start_time)),IF($C72<=start_time,-SUM(B146)*output_kgyear*$E72*percnt_var,-SUM(B146)*output_kgyear*$E72)))) -> -150370466.4 | C193: 0 | D193: 0 | E193: 0 | F193: -4747865.484 | G193: 0 | H193: 0 | I193: 0 | J193: 0 | K193: 0 | L193: 0 | M193: 0 | N193: 0
A194: 2015 | B194: =IF($C73="","",IF($C73<0,0,IF(AND($C73=1,start_time<1),-(SUM(B147)*output_kgyear*$E73*percnt_var*start_time+SUM(B147)*output_kgyear*$E73*(1-start_time)),IF($C73<=start_time,-SUM(B147)*output_kgyear*$E73*percnt_var,-SUM(B147)*output_kgyear*$E73)))) -> -158735482.8 | C194: 0 | D194: 0 | E194: 0 | F194: -4871637.237 | G194: 0 | H194: 0 | I194: 0 | J194: 0 | K194: 0 | L194: 0 | M194: 0 | N194: 0
A195: 2016 | B195: =IF($C74="","",IF($C74<0,0,IF(AND($C74=1,start_time<1),-(SUM(B148)*output_kgyear*$E74*percnt_var*start_time+SUM(B148)*output_kgyear*$E74*(1-start_time)),IF($C74<=start_time,-SUM(B148)*output_kgyear*$E74*percnt_var,-SUM(B148)*output_kgyear*$E74)))) -> -166430540.8 | C195: 0 | D195: 0 | E195: 0 | F195: -5049312.603 | G195: 0 | H195: 0 | I195: 0 | J195: 0 | K195: 0 | L195: 0 | M195: 0 | N195: 0
A196: 2017 | B196: =IF($C75="","",IF($C75<0,0,IF(AND($C75=1,start_time<1),-(SUM(B149)*output_kgyear*$E75*percnt_var*start_time+SUM(B149)*output_kgyear*$E75*(1-start_time)),IF($C75<=start_time,-SUM(B149)*output_kgyear*$E75*percnt_var,-SUM(B149)*output_kgyear*$E75)))) -> -174544345.6 | C196: 0 | D196: 0 | E196: 0 | F196: -5231440.561 | G196: 0 | H196: 0 | I196: 0 | J196: 0 | K196: 0 | L196: 0 | M196: 0 | N196: 0
A197: 2018 | B197: =IF($C76="","",IF($C76<0,0,IF(AND($C76=1,start_time<1),-(SUM(B150)*output_kgyear*$E76*percnt_var*start_time+SUM(B150)*output_kgyear*$E76*(1-start_time)),IF($C76<=start_time,-SUM(B150)*output_kgyear*$E76*percnt_var,-SUM(B150)*output_kgyear*$E76)))) -> -183065392.9 | C197: 0 | D197: 0 | E197: 0 | F197: -5420135.812 | G197: 0 | H197: 0 | I197: 0 | J197: 0 | K197: 0 | L197: 0 | M197: 0 | N197: 0
A198: 2019 | B198: =IF($C77="","",IF($C77<0,0,IF(AND($C77=1,start_time<1),-(SUM(B151)*output_kgyear*$E77*percnt_var*start_time+SUM(B151)*output_kgyear*$E77*(1-start_time)),IF($C77<=start_time,-SUM(B151)*output_kgyear*$E77*percnt_var,-SUM(B151)*output_kgyear*$E77)))) -> -193410572.5 | C198: 0 | D198: 0 | E198: 0 | F198: -5597945.125 | G198: 0 | H198: 0 | I198: 0 | J198: 0 | K198: 0 | L198: 0 | M198: 0 | N198: 0
A199: 2020 | B199: =IF($C78="","",IF($C78<0,0,IF(AND($C78=1,start_time<1),-(SUM(B152)*output_kgyear*$E78*percnt_var*start_time+SUM(B152)*output_kgyear*$E78*(1-start_time)),IF($C78<=start_time,-SUM(B152)*output_kgyear*$E78*percnt_var,-SUM(B152)*output_kgyear*$E78)))) -> -205786047.8 | C199: 0 | D199: 0 | E199: 0 | F199: -5811278.61 | G199: 0 | H199: 0 | I199: 0 | J199: 0 | K199: 0 | L199: 0 | M199: 0 | N199: 0
A200: 2021 | B200: =IF($C79="","",IF($C79<0,0,IF(AND($C79=1,start_time<1),-(SUM(B153)*output_kgyear*$E79*percnt_var*start_time+SUM(B153)*output_kgyear*$E79*(1-start_time)),IF($C79<=start_time,-SUM(B153)*output_kgyear*$E79*percnt_var,-SUM(B153)*output_kgyear*$E79)))) -> -215594270.2 | C200: 0 | D200: 0 | E200: 0 | F200: -6010568.863 | G200: 0 | H200: 0 | I200: 0 | J200: 0 | K200: 0 | L200: 0 | M200: 0 | N200: 0
A201: 2022 | B201: =IF($C80="","",IF($C80<0,0,IF(AND($C80=1,start_time<1),-(SUM(B154)*output_kgyear*$E80*percnt_var*start_time+SUM(B154)*output_kgyear*$E80*(1-start_time)),IF($C80<=start_time,-SUM(B154)*output_kgyear*$E80*percnt_var,-SUM(B154)*output_kgyear*$E80)))) -> -221840051.7 | C201: 0 | D201: 0 | E201: 0 | F201: -6195674.82 | G201: 0 | H201: 0 | I201: 0 | J201: 0 | K201: 0 | L201: 0 | M201: 0 | N201: 0
A202: 2023 | B202: =IF($C81="","",IF($C81<0,0,IF(AND($C81=1,start_time<1),-(SUM(B155)*output_kgyear*$E81*percnt_var*start_time+SUM(B155)*output_kgyear*$E81*(1-start_time)),IF($C81<=start_time,-SUM(B155)*output_kgyear*$E81*percnt_var,-SUM(B155)*output_kgyear*$E81)))) -> -220360386.3 | C202: 0 | D202: 0 | E202: 0 | F202: -6312796.979 | G202: 0 | H202: 0 | I202: 0 | J202: 0 | K202: 0 | L202: 0 | M202: 0 | N202: 0
A203: 2024 | B203: =IF($C82="","",IF($C82<0,0,IF(AND($C82=1,start_time<1),-(SUM(B156)*output_kgyear*$E82*percnt_var*start_time+SUM(B156)*output_kgyear*$E82*(1-start_time)),IF($C82<=start_time,-SUM(B156)*output_kgyear*$E82*percnt_var,-SUM(B156)*output_kgyear*$E82)))) -> -224181810.7 | C203: 0 | D203: 0 | E203: 0 | F203: -6439743.595 | G203: 0 | H203: 0 | I203: 0 | J203: 0 | K203: 0 | L203: 0 | M203: 0 | N203: 0
A204: 2025 | B204: =IF($C83="","",IF($C83<0,0,IF(AND($C83=1,start_time<1),-(SUM(B157)*output_kgyear*$E83*percnt_var*start_time+SUM(B157)*output_kgyear*$E83*(1-start_time)),IF($C83<=start_time,-SUM(B157)*output_kgyear*$E83*percnt_var,-SUM(B157)*output_kgyear*$E83)))) -> -225810380.3 | C204: 0 | D204: 0 | E204: 0 | F204: -6561917.379 | G204: 0 | H204: 0 | I204: 0 | J204: 0 | K204: 0 | L204: 0 | M204: 0 | N204: 0
A205: 2026 | B205: =IF($C84="","",IF($C84<0,0,IF(AND($C84=1,start_time<1),-(SUM(B158)*output_kgyear*$E84*percnt_var*start_time+SUM(B158)*output_kgyear*$E84*(1-start_time)),IF($C84<=start_time,-SUM(B158)*output_kgyear*$E84*percnt_var,-SUM(B158)*output_kgyear*$E84)))) -> -234448815.1 | C205: 0 | D205: 0 | E205: 0 | F205: -6696768.462 | G205: 0 | H205: 0 | I205: 0 | J205: 0 | K205: 0 | L205: 0 | M205: 0 | N205: 0
A206: 2027 | B206: =IF($C85="","",IF($C85<0,0,IF(AND($C85=1,start_time<1),-(SUM(B159)*output_kgyear*$E85*percnt_var*start_time+SUM(B159)*output_kgyear*$E85*(1-start_time)),IF($C85<=start_time,-SUM(B159)*output_kgyear*$E85*percnt_var,-SUM(B159)*output_kgyear*$E85)))) -> -247056678.6 | C206: 0 | D206: 0 | E206: 0 | F206: -6915913.269 | G206: 0 | H206: 0 | I206: 0 | J206: 0 | K206: 0 | L206: 0 | M206: 0 | N206: 0
A207: 2028 | B207: =IF($C86="","",IF($C86<0,0,IF(AND($C86=1,start_time<1),-(SUM(B160)*output_kgyear*$E86*percnt_var*start_time+SUM(B160)*output_kgyear*$E86*(1-start_time)),IF($C86<=start_time,-SUM(B160)*output_kgyear*$E86*percnt_var,-SUM(B160)*output_kgyear*$E86)))) -> -262467385 | C207: 0 | D207: 0 | E207: 0 | F207: -7175762.453 | G207: 0 | H207: 0 | I207: 0 | J207: 0 | K207: 0 | L207: 0 | M207: 0 | N207: 0
A208: 2029 | B208: =IF($C87="","",IF($C87<0,0,IF(AND($C87=1,start_time<1),-(SUM(B161)*output_kgyear*$E87*percnt_var*start_time+SUM(B161)*output_kgyear*$E87*(1-start_time)),IF($C87<=start_time,-SUM(B161)*output_kgyear*$E87*percnt_var,-SUM(B161)*output_kgyear*$E87)))) -> -274877708.8 | C208: 0 | D208: 0 | E208: 0 | F208: -7430102.129 | G208: 0 | H208: 0 | I208: 0 | J208: 0 | K208: 0 | L208: 0 | M208: 0 | N208: 0
A209: 2030 | B209: =IF($C88="","",IF($C88<0,0,IF(AND($C88=1,start_time<1),-(SUM(B162)*output_kgyear*$E88*percnt_var*start_time+SUM(B162)*output_kgyear*$E88*(1-start_time)),IF($C88<=start_time,-SUM(B162)*output_kgyear*$E88*percnt_var,-SUM(B162)*output_kgyear*$E88)))) -> -289144943 | C209: 0 | D209: 0 | E209: 0 | F209: -7670618.22 | G209: 0 | H209: 0 | I209: 0 | J209: 0 | K209: 0 | L209: 0 | M209: 0 | N209: 0
A210: 2031 | B210: =IF($C89="","",IF($C89<0,0,IF(AND($C89=1,start_time<1),-(SUM(B163)*output_kgyear*$E89*percnt_var*start_time+SUM(B163)*output_kgyear*$E89*(1-start_time)),IF($C89<=start_time,-SUM(B163)*output_kgyear*$E89*percnt_var,-SUM(B163)*output_kgyear*$E89)))) -> -297140017.1 | C210: 0 | D210: 0 | E210: 0 | F210: -7814055.386 | G210: 0 | H210: 0 | I210: 0 | J210: 0 | K210: 0 | L210: 0 | M210: 0 | N210: 0
A211: 2032 | B211: =IF($C90="","",IF($C90<0,0,IF(AND($C90=1,start_time<1),-(SUM(B164)*output_kgyear*$E90*percnt_var*start_time+SUM(B164)*output_kgyear*$E90*(1-start_time)),IF($C90<=start_time,-SUM(B164)*output_kgyear*$E90*percnt_var,-SUM(B164)*output_kgyear*$E90)))) -> -305334522.6 | C211: 0 | D211: 0 | E211: 0 | F211: -7960174.072 | G211: 0 | H211: 0 | I211: 0 | J211: 0 | K211: 0 | L211: 0 | M211: 0 | N211: 0
A212: 2033 | B212: =IF($C91="","",IF($C91<0,0,IF(AND($C91=1,start_time<1),-(SUM(B165)*output_kgyear*$E91*percnt_var*start_time+SUM(B165)*output_kgyear*$E91*(1-start_time)),IF($C91<=start_time,-SUM(B165)*output_kgyear*$E91*percnt_var,-SUM(B165)*output_kgyear*$E91)))) -> -313733151.9 | C212: 0 | D212: 0 | E212: 0 | F212: -8109024.393 | G212: 0 | H212: 0 | I212: 0 | J212: 0 | K212: 0 | L212: 0 | M212: 0 | N212: 0
A213: 2034 | B213: =IF($C92="","",IF($C92<0,0,IF(AND($C92=1,start_time<1),-(SUM(B166)*output_kgyear*$E92*percnt_var*start_time+SUM(B166)*output_kgyear*$E92*(1-start_time)),IF($C92<=start_time,-SUM(B166)*output_kgyear*$E92*percnt_var,-SUM(B166)*output_kgyear*$E92)))) -> -322340703.3 | C213: 0 | D213: 0 | E213: 0 | F213: -8260657.404 | G213: 0 | H213: 0 | I213: 0 | J213: 0 | K213: 0 | L213: 0 | M213: 0 | N213: 0
A214: 2035 | B214: =IF($C93="","",IF($C93<0,0,IF(AND($C93=1,start_time<1),-(SUM(B167)*output_kgyear*$E93*percnt_var*start_time+SUM(B167)*output_kgyear*$E93*(1-start_time)),IF($C93<=start_time,-SUM(B167)*output_kgyear*$E93*percnt_var,-SUM(B167)*output_kgyear*$E93)))) -> -331162083.9 | C214: 0 | D214: 0 | E214: 0 | F214: -8415125.112 | G214: 0 | H214: 0 | I214: 0 | J214: 0 | K214: 0 | L214: 0 | M214: 0 | N214: 0
A215: 2036 | B215: =IF($C94="","",IF($C94<0,0,IF(AND($C94=1,start_time<1),-(SUM(B168)*output_kgyear*$E94*percnt_var*start_time+SUM(B168)*output_kgyear*$E94*(1-start_time)),IF($C94<=start_time,-SUM(B168)*output_kgyear*$E94*percnt_var,-SUM(B168)*output_kgyear*$E94)))) -> -340202312.1 | C215: 0 | D215: 0 | E215: 0 | F215: -8572480.495 | G215: 0 | H215: 0 | I215: 0 | J215: 0 | K215: 0 | L215: 0 | M215: 0 | N215: 0
A216: 2037 | B216: =IF($C95="","",IF($C95<0,0,IF(AND($C95=1,start_time<1),-(SUM(B169)*output_kgyear*$E95*percnt_var*start_time+SUM(B169)*output_kgyear*$E95*(1-start_time)),IF($C95<=start_time,-SUM(B169)*output_kgyear*$E95*percnt_var,-SUM(B169)*output_kgyear*$E95)))) -> -349466519.4 | C216: 0 | D216: 0 | E216: 0 | F216: -8732777.522 | G216: 0 | H216: 0 | I216: 0 | J216: 0 | K216: 0 | L216: 0 | M216: 0 | N216: 0
A217: 2038 | B217: =IF($C96="","",IF($C96<0,0,IF(AND($C96=1,start_time<1),-(SUM(B170)*output_kgyear*$E96*percnt_var*start_time+SUM(B170)*output_kgyear*$E96*(1-start_time)),IF($C96<=start_time,-SUM(B170)*output_kgyear*$E96*percnt_var,-SUM(B170)*output_kgyear*$E96)))) -> -358959953.5 | C217: 0 | D217: 0 | E217: 0 | F217: -8896071.171 | G217: 0 | H217: 0 | I217: 0 | J217: 0 | K217: 0 | L217: 0 | M217: 0 | N217: 0
A218: 2039 | B218: =IF($C97="","",IF($C97<0,0,IF(AND($C97=1,start_time<1),-(SUM(B171)*output_kgyear*$E97*percnt_var*start_time+SUM(B171)*output_kgyear*$E97*(1-start_time)),IF($C97<=start_time,-SUM(B171)*output_kgyear*$E97*percnt_var,-SUM(B171)*output_kgyear*$E97)))) -> -368687980.8 | C218: 0 | D218: 0 | E218: 0 | F218: -9062417.446 | G218: 0 | H218: 0 | I218: 0 | J218: 0 | K218: 0 | L218: 0 | M218: 0 | N218: 0
A219: 2040 | B219: =IF($C98="","",IF($C98<0,0,IF(AND($C98=1,start_time<1),-(SUM(B172)*output_kgyear*$E98*percnt_var*start_time+SUM(B172)*output_kgyear*$E98*(1-start_time)),IF($C98<=start_time,-SUM(B172)*output_kgyear*$E98*percnt_var,-SUM(B172)*output_kgyear*$E98)))) -> -378656088.5 | C219: 0 | D219: 0 | E219: 0 | F219: -9231873.398 | G219: 0 | H219: 0 | I219: 0 | J219: 0 | K219: 0 | L219: 0 | M219: 0 | N219: 0
... 17 more rows

Sheet Energy Feed & Utility Prices
A4: AEO_2009_Reference_Case | B4: ="Prices are in $(" & ref_year&")/GJ LHV" -> Prices are in $(2007)/GJ LHV | AH4: Except as noted,values are extrapolated based on PNNL mini-CAM model (see AEO Data tab)
A5: Year | B5: Source Data Year | C5: Reference year Conversion | D5: Display Units | E5: Use Category | F5: LHV (MJ/kg) | G5: HHV (MJ/kg) | H5: 2004 | I5: 2005 | J5: 2006 | K5: 2007 | L5: 2008 | M5: 2009 | N5: 2010 | O5: 2011 | P5: 2012 | Q5: 2013 | R5: 2014 | S5: 2015 | T5: 2016 | U5: 2017 | V5: 2018 | W5: 2019 | X5: 2020 | Y5: 2021 | Z5: 2022 | AA5: 2023 | AB5: 2024 | AC5: 2025 | AD5: 2026 | AE5: 2027 | AF5: 2028 | AG5: 2029 | AH5: 2030 | AI5: 2031 | AJ5: 2032 | AK5: 2033 | AL5: 2034 | AM5: 2035 | AN5: 2036 | AO5: 2037 | AP5: 2038 | AQ5: 2039 | AR5: 2040 | AS5: 2041 | AT5: 2042 | AU5: 2043 | AV5: 2044 | AW5: 2045 | AX5: 2046 | AY5: 2047 | AZ5: 2048 | BA5: 2049 | BB5: 2050 | BC5: 2051 | BD5: 2052 | BE5: 2053 | BF5: 2054 | BG5: 2055 | BH5: 2056 | BI5: 2057 | BJ5: 2058 | BK5: 2059 | BL5: 2060 | BM5: 2061 | BN5: 2062 | BO5: 2063 | BP5: 2064 | BQ5: 2065 | BR5: 2066 | BS5: 2067 | BT5: 2068 | BU5: 2069 | BV5: 2070
A6: Feedstock Type
A7: ='HyARC Physical Property Data'!A73 -> Residential Natural Gas | B7: 2007 | C7: =VLOOKUP(ref_year,DeflatorTable,2,FALSE)/VLOOKUP(B7,DeflatorTable,2,FALSE) -> 1 | D7: ='HyARC Physical Property Data'!H73 -> mmBtu | E7: Feed Utility | F7: ='HyARC Physical Property Data'!$E$6 -> 47.14126905 | G7: ='HyARC Physical Property Data'!$I$6 -> 52.22466124 | H7: =((13.7000589370728/(mmBTU_to_GJ))*($C$7))*($G$7/$F$7) -> 14.38614184 | I7: =((13.7000589370728/(mmBTU_to_GJ))*($C$7))*($G$7/$F$7) -> 14.38614184 | J7: =((13.7000589370728/(mmBTU_to_GJ))*($C$7))*($G$7/$F$7) -> 14.38614184 | K7: =((12.6911582946777/(mmBTU_to_GJ))*($C$7))*($G$7/$F$7) -> 13.32671663 | L7: =((12.9778490066528/(mmBTU_to_GJ))*($C$7))*($G$7/$F$7) -> 13.62776448 | M7: =((10.7176141738892/(mmBTU_to_GJ))*($C$7))*($G$7/$F$7) -> 11.25433973 | N7: =((11.192774772644/(mmBTU_to_GJ))*($C$7))*($G$7/$F$7) -> 11.75329582 | O7: =((11.4872808456421/(mmBTU_to_GJ))*($C$7))*($G$7/$F$7) -> 12.06255041 | P7: =((11.3991556167603/(mmBTU_to_GJ))*($C$7))*($G$7/$F$7) -> 11.97001197 | Q7: =((11.3077983856201/(mmBTU_to_GJ))*($C$7))*($G$7/$F$7) -> 11.87407968 | R7: =((11.2896461486816/(mmBTU_to_GJ))*($C$7))*($G$7/$F$7) -> 11.8550184 | S7: =((11.3454151153564/(mmBTU_to_GJ))*($C$7))*($G$7/$F$7) -> 11.91358021 | T7: =((11.5382986068726/(mmBTU_to_GJ))*($C$7))*($G$7/$F$7) -> 12.11612308 | U7: =((11.7583208084106/(mmBTU_to_GJ))*($C$7))*($G$7/$F$7) -> 12.34716374 | V7: =((11.9751005172729/(mmBTU_to_GJ))*($C$7))*($G$7/$F$7) -> 12.57479952 | W7: =((12.23952293396/(mmBTU_to_GJ))*($C$7))*($G$7/$F$7) -> 12.8524639 | X7: =((12.557071685791/(mmBTU_to_GJ))*($C$7))*($G$7/$F$7) -> 13.18591512 | Y7: =((12.7957820892334/(mmBTU_to_GJ))*($C$7))*($G$7/$F$7) -> 13.43657986 | Z7: =((12.8716516494751/(mmBTU_to_GJ))*($C$7))*($G$7/$F$7) -> 13.51624888 | AA7: =((12.6602811813354/(mmBTU_to_GJ))*($C$7))*($G$7/$F$7) -> 13.29429323 | AB7: =((12.6240320205688/(mmBTU_to_GJ))*($C$7))*($G$7/$F$7) -> 13.25622875 | AC7: =((12.5992183685303/(mmBTU_to_GJ))*($C$7))*($G$7/$F$7) -> 13.23017246 | AD7: =((12.7868556976318/(mmBTU_to_GJ))*($C$7))*($G$7/$F$7) -> 13.42720645 | AE7: =((13.07555103302/(mmBTU_to_GJ))*($C$7))*($G$7/$F$7) -> 13.73035931 | AF7: =((13.407883644104/(mmBTU_to_GJ))*($C$7))*($G$7/$F$7) -> 14.07933475 | AG7: =((13.6725673675537/(mmBTU_to_GJ))*($C$7))*($G$7/$F$7) -> 14.35727352 | AH7: =((13.9620389938354/(mmBTU_to_GJ))*($C$7))*($G$7/$F$7) -> 14.66124155 | AI7: =($BB7-$AH7)/20+AH7 -> 14.78570741 | AJ7: =($BB7-$AH7)/20+AI7 -> 14.91017327 | AK7: 15.03463913 | AL7: 15.15910499 | AM7: 15.28357085 | AN7: 15.40803671 | AO7: 15.53250257 | AP7: 15.65696844 | AQ7: 15.7814343 | AR7: 15.90590016 | AS7: 16.03036602 | AT7: 16.15483188 | AU7: 16.27929774 | AV7: 16.4037636 | AW7: 16.52822946 | AX7: 16.65269532 | AY7: 16.77716119 | AZ7: =($BB7-$AH7)/20+AY7 -> 16.90162705 | BA7: 17.02609291 | BB7: =1.16978897829057*AH7 -> 17.15055877 | BC7: =($BQ7-$BB7)/15+BB7 -> 17.32037937 | BD7: =($BQ7-$BB7)/15+BC7 -> 17.49019997 | BE7: 17.66002057 | BF7: 17.82984117 | BG7: 17.99966178 | BH7: 18.16948238 | BI7: 18.33930298 | BJ7: 18.50912358 | BK7: 18.67894418 | BL7: 18.84876478 | BM7: 19.01858539 | BN7: 19.18840599 | BO7: 19.35822659 | BP7: 19.52804719 | BQ7: =1.14852629914794*BB7 -> 19.69786779 | BR7: =($BV7-$BQ7)/5+BQ7 -> 19.89291122 | BS7: =($BV7-$BQ7)/5+BR7 -> 20.08795465 | BT7: =($BV7-$BQ7)/5+BS7 -> 20.28299807 | BU7: =($BV7-$BQ7)/5+BT7 -> 20.4780415 | BV7: =1.04950876638265*BQ7 -> 20.67308493
A8: ='HyARC Physical Property Data'!A71 -> Commercial Natural Gas | B8: 2007 | C8: =VLOOKUP(ref_year,DeflatorTable,2,FALSE)/VLOOKUP(B8,DeflatorTable,2,FALSE) -> 1 | D8: ='HyARC Physical Property Data'!H71 -> mmBtu | E8: Feed Utility | F8: ='HyARC Physical Property Data'!$E$6 -> 47.14126905 | G8: ='HyARC Physical Property Data'!$I$6 -> 52.22466124 | H8: =((11.8960943222046/(mmBTU_to_GJ))*($C$8))*($G$8/$F$8) -> 12.49183679 | I8: =((11.8960943222046/(mmBTU_to_GJ))*($C$8))*($G$8/$F$8) -> 12.49183679 | J8: =((11.8960943222046/(mmBTU_to_GJ))*($C$8))*($G$8/$F$8) -> 12.49183679 | K8: =((10.9898433685303/(mmBTU_to_GJ))*($C$8))*($G$8/$F$8) -> 11.54020185 | L8: =((11.3387994766235/(mmBTU_to_GJ))*($C$8))*($G$8/$F$8) -> 11.90663327 | M8: =((8.90759468078613/(mmBTU_to_GJ))*($C$8))*($G$8/$F$8) -> 9.353676585 | N8: =((9.46560573577881/(mmBTU_to_GJ))*($C$8))*($G$8/$F$8) -> 9.93963218 | O8: =((9.74632167816162/(mmBTU_to_GJ))*($C$8))*($G$8/$F$8) -> 10.23440605 | P8: =((9.72109222412109/(mmBTU_to_GJ))*($C$8))*($G$8/$F$8) -> 10.20791313 | Q8: =((9.67193412780762/(mmBTU_to_GJ))*($C$8))*($G$8/$F$8) -> 10.15629326 | R8: =((9.71388721466064/(mmBTU_to_GJ))*($C$8))*($G$8/$F$8) -> 10.2003473 | S8: =((9.83065605163574/(mmBTU_to_GJ))*($C$8))*($G$8/$F$8) -> 10.32296379 | T8: =((10.0382099151611/(mmBTU_to_GJ))*($C$8))*($G$8/$F$8) -> 10.54091171 | U8: =((10.2545003890991/(mmBTU_to_GJ))*($C$8))*($G$8/$F$8) -> 10.76803375 | V8: =((10.476261138916/(mmBTU_to_GJ))*($C$8))*($G$8/$F$8) -> 11.00090002 | W8: =((10.746561050415/(mmBTU_to_GJ))*($C$8))*($G$8/$F$8) -> 11.28473624 | X8: =((11.0803880691528/(mmBTU_to_GJ))*($C$8))*($G$8/$F$8) -> 11.63528092 | Y8: =((11.3143692016602/(mmBTU_to_GJ))*($C$8))*($G$8/$F$8) -> 11.88097955 | Z8: =((11.4017143249512/(mmBTU_to_GJ))*($C$8))*($G$8/$F$8) -> 11.97269882 | AA8: =((11.2125005722046/(mmBTU_to_GJ))*($C$8))*($G$8/$F$8) -> 11.77400946 | AB8: =((11.1975994110107/(mmBTU_to_GJ))*($C$8))*($G$8/$F$8) -> 11.75836207 | AC8: =((11.159740447998/(mmBTU_to_GJ))*($C$8))*($G$8/$F$8) -> 11.71860717 | AD8: =((11.3503875732422/(mmBTU_to_GJ))*($C$8))*($G$8/$F$8) -> 11.91880168 | AE8: =((11.6409521102905/(mmBTU_to_GJ))*($C$8))*($G$8/$F$8) -> 12.22391735 | AF8: =((11.9785671234131/(mmBTU_to_GJ))*($C$8))*($G$8/$F$8) -> 12.57843973 | AG8: =((12.2332496643066/(mmBTU_to_GJ))*($C$8))*($G$8/$F$8) -> 12.84587647 | AH8: =((12.5188312530518/(mmBTU_to_GJ))*($C$8))*($G$8/$F$8) -> 13.14575965 | AI8: =($BB8-$AH8)/20+AH8 -> 13.25735991 | AJ8: 13.36896016 | AK8: 13.48056042 | AL8: 13.59216067 | AM8: 13.70376093 | AN8: 13.81536118 | AO8: 13.92696144 | AP8: 14.03856169 | AQ8: 14.15016195 | AR8: 14.2617622 | AS8: 14.37336246 | AT8: 14.48496271 | AU8: 14.59656297 | AV8: 14.70816322 | AW8: 14.81976348 | AX8: 14.93136373 | AY8: 15.04296399 | AZ8: 15.15456424 | BA8: 15.2661645 | BB8: =1.16978897829057*AH8 -> 15.37776475 | BC8: =($BQ8-$BB8)/15+BB8 -> 15.53003159 | BD8: 15.68229842 | BE8: 15.83456525 | BF8: 15.98683208 | BG8: 16.13909892 | BH8: 16.29136575 | BI8: 16.44363258 | BJ8: 16.59589941 | BK8: 16.74816625 | BL8: 16.90043308 | BM8: 17.05269991 | BN8: 17.20496674 | BO8: 17.35723358 | BP8: 17.50950041 | BQ8: =1.14852629914794*BB8 -> 17.66176724 | BR8: =($BV8-$BQ8)/5+BQ8 -> 17.8366497 | BS8: 18.01153216 | BT8: 18.18641463 | BU8: 18.36129709 | BV8: =1.04950876638265*BQ8 -> 18.53617955
A9: ='HyARC Physical Property Data'!A72 -> Industrial Natural Gas | B9: 2007 | C9: =VLOOKUP(ref_year,DeflatorTable,2,FALSE)/VLOOKUP(B9,DeflatorTable,2,FALSE) -> 1 | D9: ='HyARC Physical Property Data'!H72 -> mmBtu | E9: Feed Utility | F9: ='HyARC Physical Property Data'!$E$6 -> 47.14126905 | G9: ='HyARC Physical Property Data'!$I$6 -> 52.22466124 | H9: =((7.95407009124756/(mmBTU_to_GJ))*($C$9))*($G$9/$F$9) -> 8.352400601 | I9: =((7.95407009124756/(mmBTU_to_GJ))*($C$9))*($G$9/$F$9) -> 8.352400601 | J9: =((7.95407009124756/(mmBTU_to_GJ))*($C$9))*($G$9/$F$9) -> 8.352400601 | K9: =((7.51525163650513/(mmBTU_to_GJ))*($C$9))*($G$9/$F$9) -> 7.891606632 | L9: =((8.80127239227294/(mmBTU_to_GJ))*($C$9))*($G$9/$F$9) -> 9.242029801 | M9: =((4.84856796264648/(mmBTU_to_GJ))*($C$9))*($G$9/$F$9) -> 5.091378565 | N9: =((5.49891996383666/(mmBTU_to_GJ))*($C$9))*($G$9/$F$9) -> 5.774299432 | O9: =((5.82616424560547/(mmBTU_to_GJ))*($C$9))*($G$9/$F$9) -> 6.117931724 | P9: =((5.87778615951538/(mmBTU_to_GJ))*($C$9))*($G$9/$F$9) -> 6.172138803 | Q9: =((5.95383930206299/(mmBTU_to_GJ))*($C$9))*($G$9/$F$9) -> 6.252000598 | R9: =((6.10985708236694/(mmBTU_to_GJ))*($C$9))*($G$9/$F$9) -> 6.415831566 | S9: =((6.32948446273804/(mmBTU_to_GJ))*($C$9))*($G$9/$F$9) -> 6.646457628 | T9: =((6.51258134841919/(mmBTU_to_GJ))*($C$9))*($G$9/$F$9) -> 6.838723791 | U9: =((6.70273017883301/(mmBTU_to_GJ))*($C$9))*($G$9/$F$9) -> 7.038395052 | V9: =((6.89887094497681/(mmBTU_to_GJ))*($C$9))*($G$9/$F$9) -> 7.244358318 | W9: =((7.15282821655273/(mmBTU_to_GJ))*($C$9))*($G$9/$F$9) -> 7.511033472 | X9: =((7.46860218048096/(mmBTU_to_GJ))*($C$9))*($G$9/$F$9) -> 7.842621026 | Y9: =((7.67867755889893/(mmBTU_to_GJ))*($C$9))*($G$9/$F$9) -> 8.063216733 | Z9: =((7.75380706787109/(mmBTU_to_GJ))*($C$9))*($G$9/$F$9) -> 8.14210864 | AA9: =((7.55847835540771/(mmBTU_to_GJ))*($C$9))*($G$9/$F$9) -> 7.936998095 | AB9: =((7.54617786407471/(mmBTU_to_GJ))*($C$9))*($G$9/$F$9) -> 7.924081609 | AC9: =((7.45927095413208/(mmBTU_to_GJ))*($C$9))*($G$9/$F$9) -> 7.832822503 | AD9: =((7.60022306442261/(mmBTU_to_GJ))*($C$9))*($G$9/$F$9) -> 7.98083333 | AE9: =((7.85960483551025/(mmBTU_to_GJ))*($C$9))*($G$9/$F$9) -> 8.253204636 | AF9: =((8.19417572021484/(mmBTU_to_GJ))*($C$9))*($G$9/$F$9) -> 8.604530439 | AG9: =((8.42161273956299/(mmBTU_to_GJ))*($C$9))*($G$9/$F$9) -> 8.843357237 | AH9: =((8.69355010986328/(mmBTU_to_GJ))*($C$9))*($G$9/$F$9) -> 9.128912913 | AI9: =($BB9-$AH9)/20+AH9 -> 9.206412352 | AJ9: 9.283911792 | AK9: 9.361411232 | AL9: 9.438910672 | AM9: 9.516410112 | AN9: 9.593909551 | AO9: 9.671408991 | AP9: 9.748908431 | AQ9: 9.826407871 | AR9: 9.903907311 | AS9: 9.981406751 | AT9: 10.05890619 | AU9: 10.13640563 | AV9: 10.21390507 | AW9: 10.29140451 | AX9: 10.36890395 | AY9: 10.44640339 | AZ9: 10.52390283 | BA9: 10.60140227 | BB9: =1.16978897829057*AH9 -> 10.67890171 | BC9: 10.78464156 | BD9: 10.89038141 | BE9: 10.99612126 | BF9: 11.10186111 | BG9: 11.20760096 | BH9: 11.31334081 | BI9: 11.41908066 | BJ9: 11.52482051 | BK9: 11.63056036 | BL9: 11.73630021 | BM9: 11.84204006 | BN9: 11.94777991 | BO9: 12.05351976 | BP9: 12.15925961 | BQ9: =1.14852629914794*BB9 -> 12.26499946 | BR9: 12.38644446 | BS9: 12.50788946 | BT9: 12.62933445 | BU9: 12.75077945 | BV9: =1.04950876638265*BQ9 -> 12.87222445
A10: ='HyARC Physical Property Data'!A74 -> Electric Utility Natural Gas | B10: 2007 | C10: 1 | D10: ='HyARC Physical Property Data'!H74 -> mmBtu | E10: Feed Utility | F10: ='HyARC Physical Property Data'!$E$6 -> 47.14126905 | G10: ='HyARC Physical Property Data'!$I$6 -> 52.22466124 | H10: =((7.05463790893555/(mmBTU_to_GJ))*($C$10))*($G$10/$F$10) -> 7.407925909 | I10: =((7.05463790893555/(mmBTU_to_GJ))*($C$10))*($G$10/$F$10) -> 7.407925909 | J10: =((7.05463790893555/(mmBTU_to_GJ))*($C$10))*($G$10/$F$10) -> 7.407925909 | K10: =((7.01915979385375/(mmBTU_to_GJ))*($C$10))*($G$10/$F$10) -> 7.370671092 | L10: =((8.87161254882813/(mmBTU_to_GJ))*($C$10))*($G$10/$F$10) -> 9.31589251 | M10: =((4.55562210083008/(mmBTU_to_GJ))*($C$10))*($G$10/$F$10) -> 4.783762318 | N10: =((5.12931346893311/(mmBTU_to_GJ))*($C$10))*($G$10/$F$10) -> 5.386183477 | O10: =((5.45354604721069/(mmBTU_to_GJ))*($C$10))*($G$10/$F$10) -> 5.726653243 | P10: =((5.51876354217529/(mmBTU_to_GJ))*($C$10))*($G$10/$F$10) -> 5.795136754 | Q10: =((5.53977298736572/(mmBTU_to_GJ))*($C$10))*($G$10/$F$10) -> 5.817198327 | R10: =((5.68350362777709/(mmBTU_to_GJ))*($C$10))*($G$10/$F$10) -> 5.96812683 | S10: =((5.8920464515686/(mmBTU_to_GJ))*($C$10))*($G$10/$F$10) -> 6.187113234 | T10: =((6.08193254470825/(mmBTU_to_GJ))*($C$10))*($G$10/$F$10) -> 6.3865086 | U10: =((6.26939964294434/(mmBTU_to_GJ))*($C$10))*($G$10/$F$10) -> 6.583363831 | V10: =((6.47751331329346/(mmBTU_to_GJ))*($C$10))*($G$10/$F$10) -> 6.80189959 | W10: =((6.73541975021362/(mmBTU_to_GJ))*($C$10))*($G$10/$F$10) -> 7.072721679 | X10: =((7.02784395217896/(mmBTU_to_GJ))*($C$10))*($G$10/$F$10) -> 7.379790142 | Y10: =((7.25390911102295/(mmBTU_to_GJ))*($C$10))*($G$10/$F$10) -> 7.617176379 | Z10: =((7.3283839225769/(mmBTU_to_GJ))*($C$10))*($G$10/$F$10) -> 7.695380802 | AA10: =((7.15062761306763/(mmBTU_to_GJ))*($C$10))*($G$10/$F$10) -> 7.508722665 | AB10: =((7.19241189956665/(mmBTU_to_GJ))*($C$10))*($G$10/$F$10) -> 7.55259946 | AC10: =((7.13988399505615/(mmBTU_to_GJ))*($C$10))*($G$10/$F$10) -> 7.497441019 | AD10: =((7.28062534332275/(mmBTU_to_GJ))*($C$10))*($G$10/$F$10) -> 7.645230529 | AE10: =((7.5354790687561/(mmBTU_to_GJ))*($C$10))*($G$10/$F$10) -> 7.912847031 | AF10: =((7.86007928848267/(mmBTU_to_GJ))*($C$10))*($G$10/$F$10) -> 8.253702849 | AG10: =((8.07421207427979/(mmBTU_to_GJ))*($C$10))*($G$10/$F$10) -> 8.478559154 | AH10: =((8.33951759338379/(mmBTU_to_GJ))*($C$10))*($G$10/$F$10) -> 8.757150862 | AI10: =($BB10-$AH10)/20+AH10 -> 8.831494247 | AJ10: 8.905837632 | AK10: 8.980181017 | AL10: 9.054524402 | AM10: 9.128867787 | AN10: 9.203211172 | AO10: 9.277554557 | AP10: 9.351897942 | AQ10: 9.426241326 | AR10: 9.500584711 | AS10: 9.574928096 | AT10: 9.649271481 | AU10: 9.723614866 | AV10: 9.797958251 | AW10: 9.872301636 | AX10: 9.946645021 | AY10: 10.02098841 | AZ10: 10.09533179 | BA10: 10.16967518 | BB10: =1.16978897829057*AH10 -> 10.24401856 | BC10: 10.3454523 | BD10: 10.44688605 | BE10: 10.54831979 | BF10: 10.64975354 | BG10: 10.75118728 | BH10: 10.85262103 | BI10: 10.95405477 | BJ10: 11.05548851 | BK10: 11.15692226 | BL10: 11.258356 | BM10: 11.35978975 | BN10: 11.46122349 | BO10: 11.56265724 | BP10: 11.66409098 | BQ10: =1.14852629914794*BB10 -> 11.76552473 | BR10: 11.88202405 | BS10: 11.99852337 | BT10: 12.11502269 | BU10: 12.23152202 | BV10: =1.04950876638265*BQ10 -> 12.34802134
A11: ='HyARC Physical Property Data'!A75 -> Bio Methane | B11: 2007 | C11: 1 | D11: ='HyARC Physical Property Data'!H75 -> mmBtu | E11: Feed Utility | F11: ='HyARC Physical Property Data'!$E$6 -> 47.14126905 | G11: ='HyARC Physical Property Data'!$I$6 -> 52.22466124 | H11: =13.11*($C$11/mmBTU_to_GJ) -> 12.42654028 | I11: 12.42654028 | J11: 12.42654028 | K11: 12.42654028 | L11: 12.42654028 | M11: 12.42654028 | N11: 12.42654028 | O11: 12.42654028 | P11: 12.42654028 | Q11: 12.42654028 | R11: 12.42654028 | S11: 12.42654028 | T11: 12.42654028 | U11: 12.42654028 | V11: 12.42654028 | W11: 12.42654028 | X11: 12.42654028 | Y11: 12.42654028 | Z11: 12.42654028 | AA11: 12.42654028 | AB11: 12.42654028 | AC11: 12.42654028 | AD11: 12.42654028 | AE11: 12.42654028 | AF11: 12.42654028 | AG11: 12.42654028 | AH11: 12.42654028 | AI11: 12.42654028 | AJ11: 12.42654028 | AK11: 12.42654028 | AL11: 12.42654028 | AM11: 12.42654028 | AN11: =13.11*($C$11/mmBTU_to_GJ) -> 12.42654028 | AO11: 12.42654028 | AP11: 12.42654028 | AQ11: 12.42654028 | AR11: 12.42654028 | AS11: 12.42654028 | AT11: 12.42654028 | AU11: 12.42654028 | AV11: 12.42654028 | AW11: 12.42654028 | AX11: 12.42654028 | AY11: 12.42654028 | AZ11: 12.42654028 | BA11: 12.42654028 | BB11: 12.42654028 | BC11: 12.42654028 | BD11: 12.42654028 | BE11: 12.42654028 | BF11: 12.42654028 | BG11: 12.42654028 | BH11: 12.42654028 | BI11: 12.42654028 | BJ11: 12.42654028 | BK11: 12.42654028 | BL11: 12.42654028 | BM11: 12.42654028 | BN11: 12.42654028 | BO11: 12.42654028 | BP11: 12.42654028 | BQ11: 12.42654028 | BR11: 12.42654028 | BS11: 12.42654028 | BT11: 12.42654028 | BU11: 12.42654028 | BV11: 12.42654028
A12: ='HyARC Physical Property Data'!A85 -> Woody Biomass | B12: 2005 | C12: =VLOOKUP(ref_year,DeflatorTable,2,FALSE)/VLOOKUP(B12,DeflatorTable,2,FALSE) -> 1.0581968 | D12: =+'HyARC Physical Property Data'!$H$85 -> kg | E12: Feed | F12: ='HyARC Physical Property Data'!$E$45 -> 19.55106924 | G12: ='HyARC Physical Property Data'!$I$45 -> 20.58865638 | H12: =1.27*($C$12) -> 1.343909936 | I12: 1.343909936 | J12: 1.343909936 | K12: 1.343909936 | L12: 1.343909936 | M12: 1.343909936 | N12: 1.343909936 | O12: 1.343909936 | P12: =1.28*($C$12) -> 1.354491904 | Q12: =1.32*($C$12) -> 1.396819776 | R12: =1.32*($C$12) -> 1.396819776 | S12: =1.34*($C$12) -> 1.417983712 | T12: =1.34*($C$12) -> 1.417983712 | U12: =1.36*($C$12) -> 1.439147648 | V12: =1.36*($C$12) -> 1.439147648 | W12: =1.38*($C$12) -> 1.460311584 | X12: =1.4*($C$12) -> 1.48147552 | Y12: =1.46*($C$12) -> 1.544967328 | Z12: =1.48*($C$12) -> 1.566131264 | AA12: =1.48*($C$12) -> 1.566131264 | AB12: =1.51*($C$12) -> 1.597877168 | AC12: =1.52*($C$12) -> 1.608459136 | AD12: =1.62*($C$12) -> 1.714278816 | AE12: =1.72*($C$12) -> 1.820098496 | AF12: =1.82*($C$12) -> 1.925918176 | AG12: =1.91*($C$12) -> 2.021155888 | AH12: =2.01*($C$12) -> 2.126975568 | AI12: =2.11*($C$12) -> 2.232795248 | AJ12: =2.2*($C$12) -> 2.32803296 | AK12: =2.3*($C$12) -> 2.43385264 | AL12: =2.4*($C$12) -> 2.53967232 | AM12: =2.5*($C$12) -> 2.645492 | AN12: =2.57*($C$12) -> 2.719565776 | AO12: =2.64*($C$12) -> 2.793639552 | AP12: =2.71*($C$12) -> 2.867713328 | AQ12: =2.78*($C$12) -> 2.941787104 | AR12: =2.85*($C$12) -> 3.01586088 | AS12: =2.92*($C$12) -> 3.089934656 | AT12: =2.99*($C$12) -> 3.164008432 | AU12: =3.07*($C$12) -> 3.248664176 | AV12: =3.14*($C$12) -> 3.322737952 | AW12: =3.21*($C$12) -> 3.396811728 | AX12: =3.28*($C$12) -> 3.470885504 | AY12: =3.35*($C$12) -> 3.54495928 | AZ12: =3.42*($C$12) -> 3.619033056 | BA12: =3.49*($C$12) -> 3.693106832 | BB12: =3.56*($C$12) -> 3.767180608 | BC12: =3.64*($C$12) -> 3.851836352 | BD12: =3.71*($C$12) -> 3.925910128 | BE12: =3.78*($C$12) -> 3.999983904 | BF12: =3.85*($C$12) -> 4.07405768 | BG12: =3.92*($C$12) -> 4.148131456 | BH12: =3.99*($C$12) -> 4.222205232 | BI12: =4.06*($C$12) -> 4.296279008 | BJ12: =4.14*($C$12) -> 4.380934752 | BK12: =4.21*($C$12) -> 4.455008528 | BL12: =4.28*($C$12) -> 4.529082304 | BM12: =4.35*($C$12) -> 4.60315608 | BN12: =4.42*($C$12) -> 4.677229856 | BO12: =4.49*($C$12) -> 4.751303632 | BP12: =4.56*($C$12) -> 4.825377408 | BQ12: =4.63*($C$12) -> 4.899451184 | BR12: =4.71*($C$12) -> 4.984106928 | BS12: =4.78*($C$12) -> 5.058180704 | BT12: =4.85*($C$12) -> 5.13225448 | BU12: =4.92*($C$12) -> 5.206328256 | BV12: =4.99*($C$12) -> 5.280402032
A13: ='HyARC Physical Property Data'!A86 -> Woody Biomass B2A | B13: 2007 | C13: =VLOOKUP(ref_year,DeflatorTable,2,FALSE)/VLOOKUP(B13,DeflatorTable,2,FALSE) -> 1 | D13: =+'HyARC Physical Property Data'!$H$86 -> kg | E13: Feed | F13: ='HyARC Physical Property Data'!$E$45 -> 19.55106924 | G13: ='HyARC Physical Property Data'!$I$45 -> 20.58865638 | H13: =3.80872262322035*($C$13) -> 3.808722623 | I13: =3.80872262322035*($C$13) -> 3.808722623 | J13: =3.80872262322035*($C$13) -> 3.808722623 | K13: =3.80872262322035*($C$13) -> 3.808722623 | L13: =3.58036841709093*($C$13) -> 3.580368417 | M13: =3.28153451771169*($C$13) -> 3.281534518 | N13: =3.05599949931226*($C$13) -> 3.055999499 | O13: =2.9206784882726*($C$13) -> 2.920678488 | P13: =2.85865635821276*($C$13) -> 2.858656358 | Q13: 2.858656358 | R13: 2.858656358 | S13: 2.858656358 | T13: 2.858656358 | U13: 2.858656358 | V13: 2.858656358 | W13: 2.858656358 | X13: 2.858656358 | Y13: 2.858656358 | Z13: 2.858656358 | AA13: 2.858656358 | AB13: 2.858656358 | AC13: 2.858656358 | AD13: 2.858656358 | AE13: 2.858656358 | AF13: 2.858656358 | AG13: 2.858656358 | AH13: 2.858656358 | AI13: 2.858656358 | AJ13: 2.858656358 | AK13: 2.858656358 | AL13: 2.858656358 | AM13: 2.858656358 | AN13: 2.858656358 | AO13: 2.858656358 | AP13: 2.858656358 | AQ13: 2.858656358 | AR13: 2.858656358 | AS13: 2.858656358 | AT13: 2.858656358 | AU13: 2.858656358 | AV13: 2.858656358 | AW13: 2.858656358 | AX13: 2.858656358 | AY13: 2.858656358 | AZ13: 2.858656358 | BA13: 2.858656358 | BB13: 2.858656358 | BC13: 2.858656358 | BD13: 2.858656358 | BE13: 2.858656358 | BF13: 2.858656358 | BG13: 2.858656358 | BH13: 2.858656358 | BI13: 2.858656358 | BJ13: 2.858656358 | BK13: 2.858656358 | BL13: 2.858656358 | BM13: 2.858656358 | BN13: 2.858656358 | BO13: 2.858656358 | BP13: 2.858656358 | BQ13: 2.858656358 | BR13: 2.858656358 | BS13: 2.858656358 | BT13: 2.858656358 | BU13: 2.858656358 | BV13: 2.858656358
A14: ='HyARC Physical Property Data'!$A$87 -> Woody Biomass MYPP | B14: 2007 | C14: =VLOOKUP(ref_year,DeflatorTable,2,FALSE)/VLOOKUP(B14,DeflatorTable,2,FALSE) -> 1 | D14: =+'HyARC Physical Property Data'!$H$87 -> kg | E14: Feed | F14: 18.608 | H14: =4.44432502149613*$C$14 -> 4.444325021 | I14: =4.44432502149613*$C$14 -> 4.444325021 | J14: 4.444325021 | K14: 4.444325021 | L14: 4.444325021 | M14: 4.444325021 | N14: 4.444325021 | O14: =N14-($N$14-$U$14)/7 -> 4.338917209 | P14: 4.233509397 | Q14: 4.128101585 | R14: 4.022693772 | S14: 3.91728596 | T14: 3.811878148 | U14: =3.70647033533964*$C$14 -> 3.706470335 | V14: =3.70647033533964*$C$14 -> 3.706470335 | W14: 3.706470335 | X14: 3.706470335 | Y14: 3.706470335 | Z14: 3.706470335 | AA14: 3.706470335 | AB14: 3.706470335 | AC14: 3.706470335 | AD14: 3.706470335 | AE14: 3.706470335 | AF14: 3.706470335 | AG14: 3.706470335 | AH14: 3.706470335 | AI14: 3.706470335 | AJ14: 3.706470335 | AK14: 3.706470335 | AL14: 3.706470335 | AM14: 3.706470335 | AN14: 3.706470335 | AO14: 3.706470335 | AP14: 3.706470335 | AQ14: 3.706470335 | AR14: 3.706470335 | AS14: 3.706470335 | AT14: 3.706470335 | AU14: 3.706470335 | AV14: 3.706470335 | AW14: 3.706470335 | AX14: 3.706470335 | AY14: 3.706470335 | AZ14: 3.706470335 | BA14: 3.706470335 | BB14: 3.706470335 | BC14: 3.706470335 | BD14: 3.706470335 | BE14: 3.706470335 | BF14: 3.706470335 | BG14: 3.706470335 | BH14: 3.706470335 | BI14: 3.706470335 | BJ14: 3.706470335 | BK14: 3.706470335 | BL14: 3.706470335 | BM14: 3.706470335 | BN14: 3.706470335 | BO14: 3.706470335 | BP14: 3.706470335 | BQ14: 3.706470335 | BR14: 3.706470335 | BS14: 3.706470335 | BT14: 3.706470335 | BU14: 3.706470335 | BV14: 3.706470335
A15: ='HyARC Physical Property Data'!A79 -> Electric Utility Steam Coal | B15: 2007 | C15: =VLOOKUP(ref_year,DeflatorTable,2,FALSE)/VLOOKUP(B15,DeflatorTable,2,FALSE) -> 1 | D15: =+'HyARC Physical Property Data'!$H$79 -> kg | E15: Feed | F15: ='HyARC Physical Property Data'!E42 -> 22.732203 | G15: ='HyARC Physical Property Data'!I42 -> 23.96761519 | H15: =1.73552525043488*($C$15/mmBTU_to_GJ*$G$15/$F$15) -> 1.73444996 | I15: =1.73552525043488*($C$15/mmBTU_to_GJ*$G$15/$F$15) -> 1.73444996 | J15: =1.73552525043488*($C$15/mmBTU_to_GJ*$G$15/$F$15) -> 1.73444996 | K15: =1.78000020980835*($C$15/mmBTU_to_GJ*$G$15/$F$15) -> 1.778897364 | L15: =1.9310736656189*($C$15/mmBTU_to_GJ*$G$15/$F$15) -> 1.929877218 | M15: =1.98230564594269*($C$15/mmBTU_to_GJ*$G$15/$F$15) -> 1.981077456 | N15: =1.86225914955139*($C$15/mmBTU_to_GJ*$G$15/$F$15) -> 1.861105338 | O15: =1.87335216999054*($C$15/mmBTU_to_GJ*$G$15/$F$15) -> 1.872191485 | P15: =1.85759365558624*($C$15/mmBTU_to_GJ*$G$15/$F$15) -> 1.856442734 | Q15: =1.88174879550934*($C$15/mmBTU_to_GJ*$G$15/$F$15) -> 1.880582908 | R15: =1.90431761741638*($C$15/mmBTU_to_GJ*$G$15/$F$15) -> 1.903137747 | S15: =1.90719401836395*($C$15/mmBTU_to_GJ*$G$15/$F$15) -> 1.906012366 | T15: =1.91704928874969*($C$15/mmBTU_to_GJ*$G$15/$F$15) -> 1.91586153 | U15: =1.92595064640045*($C$15/mmBTU_to_GJ*$G$15/$F$15) -> 1.924757373 | V15: =1.94080138206482*($C$15/mmBTU_to_GJ*$G$15/$F$15) -> 1.939598907 | W15: =1.94636797904968*($C$15/mmBTU_to_GJ*$G$15/$F$15) -> 1.945162055 | X15: =1.95628917217255*($C$15/mmBTU_to_GJ*$G$15/$F$15) -> 1.955077102 | Y15: =1.96225011348724*($C$15/mmBTU_to_GJ*$G$15/$F$15) -> 1.96103435 | Z15: =1.97535526752472*($C$15/mmBTU_to_GJ*$G$15/$F$15) -> 1.974131384 | AA15: =1.98115420341492*($C$15/mmBTU_to_GJ*$G$15/$F$15) -> 1.979926727 | AB15: =1.98549652099609*($C$15/mmBTU_to_GJ*$G$15/$F$15) -> 1.984266354 | AC15: =1.98988306522369*($C$15/mmBTU_to_GJ*$G$15/$F$15) -> 1.988650181 | AD15: =1.99634909629822*($C$15/mmBTU_to_GJ*$G$15/$F$15) -> 1.995112205 | AE15: =2.00744533538818*($C$15/mmBTU_to_GJ*$G$15/$F$15) -> 2.00620157 | AF15: =2.02021908760071*($C$15/mmBTU_to_GJ*$G$15/$F$15) -> 2.018967407 | AG15: =2.03361201286316*($C$15/mmBTU_to_GJ*$G$15/$F$15) -> 2.032352035 | AH15: =2.04451942443848*($C$15/mmBTU_to_GJ*$G$15/$F$15) -> 2.043252688 | AI15: =(($BB$15-$AH$15)/20+AH15) -> 2.047745543 | AJ15: =(($BB$15-$AH$15)/20+AI15) -> 2.052238398 | AK15: 2.056731252 | AL15: 2.061224107 | AM15: 2.065716961 | AN15: 2.070209816 | AO15: 2.074702671 | AP15: 2.079195525 | AQ15: 2.08368838 | AR15: 2.088181234 | AS15: 2.092674089 | AT15: 2.097166944 | AU15: 2.101659798 | AV15: 2.106152653 | AW15: 2.110645507 | AX15: 2.115138362 | AY15: 2.119631217 | AZ15: 2.124124071 | BA15: 2.128616926 | BB15: =(1.04397747398165*AH15) -> 2.13310978 | BC15: =(($BQ$15-$BB$15)/15+BB15) -> 2.137155382 | BD15: =(($BQ$15-$BB$15)/15+BC15) -> 2.141200985 | BE15: 2.145246587 | BF15: 2.149292189 | BG15: 2.153337791 | BH15: 2.157383393 | BI15: 2.161428995 | BJ15: 2.165474597 | BK15: 2.169520199 | BL15: 2.173565801 | BM15: 2.177611403 | BN15: 2.181657006 | BO15: 2.185702608 | BP15: 2.18974821 | BQ15: =(1.02844862093285*BB15) -> 2.193793812 | BR15: =(($BV$15-$BQ$15)/5+BQ15) -> 2.197954506 | BS15: =(($BV$15-$BQ$15)/5+BR15) -> 2.2021152 | BT15: =(($BV$15-$BQ$15)/5+BS15) -> 2.206275894 | BU15: =(($BV$15-$BQ$15)/5+BT15) -> 2.210436588 | BV15: =(1.00948287364428*BQ15) -> 2.214597281
A16: ='HyARC Physical Property Data'!A76 -> Commercial Electricity | B16: 2007 | C16: 1 | D16: ='HyARC Physical Property Data'!$H$76 -> kWh | E16: Feed Utility Byprod | H16: =(28.3762531280518/(mmBTU_to_GJ))*($C$16) -> 26.8969224 | I16: =(28.3762531280518/(mmBTU_to_GJ))*($C$16) -> 26.8969224 | J16: =(28.3762531280518/(mmBTU_to_GJ))*($C$16) -> 26.8969224 | K16: =(28.0297355651855/(mmBTU_to_GJ))*($C$16) -> 26.56846973 | L16: =(29.057315826416/(mmBTU_to_GJ))*($C$16) -> 27.54247946 | M16: =(27.6067714691162/(mmBTU_to_GJ))*($C$16) -> 26.16755589 | N16: =(24.8355846405029/(mmBTU_to_GJ))*($C$16) -> 23.54083852 | O16: =(25.5812511444092/(mmBTU_to_GJ))*($C$16) -> 24.24763142 | P16: =(25.4402256011963/(mmBTU_to_GJ))*($C$16) -> 24.11395792 | Q16: =(25.4701290130615/(mmBTU_to_GJ))*($C$16) -> 24.14230238 | R16: =(25.6722831726074/(mmBTU_to_GJ))*($C$16) -> 24.3339177 | S16: =(25.7632827758789/(mmBTU_to_GJ))*($C$16) -> 24.42017325 | T16: =(26.1006698608398/(mmBTU_to_GJ))*($C$16) -> 24.73997143 | U16: =(26.4680442810059/(mmBTU_to_GJ))*($C$16) -> 25.08819363 | V16: =(26.885612487793/(mmBTU_to_GJ))*($C$16) -> 25.48399288 | W16: =(27.1694507598877/(mmBTU_to_GJ))*($C$16) -> 25.7530339 | X16: =(27.6201095581055/(mmBTU_to_GJ))*($C$16) -> 26.18019863 | Y16: =(28.0024471282958/(mmBTU_to_GJ))*($C$16) -> 26.54260391 | Z16: =(28.2454071044922/(mmBTU_to_GJ))*($C$16) -> 26.77289773 | AA16: =(28.1863746643066/(mmBTU_to_GJ))*($C$16) -> 26.71694281 | AB16: =(28.2032489776611/(mmBTU_to_GJ))*($C$16) -> 26.73293742 | AC16: =(28.1397113800049/(mmBTU_to_GJ))*($C$16) -> 26.67271221 | AD16: =(28.178466796875/(mmBTU_to_GJ))*($C$16) -> 26.7094472 | AE16: =(28.4951820373535/(mmBTU_to_GJ))*($C$16) -> 27.00965122 | AF16: =(28.9155654907227/(mmBTU_to_GJ))*($C$16) -> 27.40811895 | AG16: =(29.2894115447998/(mmBTU_to_GJ))*($C$16) -> 27.7624754 | AH16: =(29.6516952514648/(mmBTU_to_GJ))*($C$16) -> 28.10587228 | AI16: =($BB16-$AH16)/20+AH16 -> 28.09758553 | AJ16: 28.08929877 | AK16: 28.08101202 | AL16: 28.07272527 | AM16: 28.06443852 | AN16: 28.05615177 | AO16: 28.04786502 | AP16: 28.03957827 | AQ16: 28.03129152 | AR16: 28.02300477 | AS16: 28.01471802 | AT16: 28.00643127 | AU16: 27.99814452 | AV16: 27.98985777 | AW16: 27.98157101 | AX16: 27.97328426 | AY16: 27.96499751 | AZ16: 27.95671076 | BA16: 27.94842401 | BB16: =0.994103189054944*AH16 -> 27.94013726 | BC16: =($BQ16-$BB16)/15+BB16 -> 27.95788616 | BD16: 27.97563506 | BE16: 27.99338397 | BF16: 28.01113287 | BG16: 28.02888177 | BH16: 28.04663067 | BI16: 28.06437957 | BJ16: 28.08212847 | BK16: 28.09987738 | BL16: 28.11762628 | BM16: 28.13537518 | BN16: 28.15312408 | BO16: 28.17087298 | BP16: 28.18862188 | BQ16: =1.00952871208344*BB16 -> 28.20637078 | BR16: =($BV16-$BQ16)/5+BQ16 -> 28.22428881 | BS16: 28.24220684 | BT16: 28.26012486 | BU16: 28.27804289 | BV16: =1.00317623736115*BQ16 -> 28.29596091
A17: ='HyARC Physical Property Data'!A77 -> Industrial Electricity | B17: 2007 | C17: 1 | D17: ='HyARC Physical Property Data'!$H$77 -> kWh | E17: Feed Utility Byprod | H17: =(18.4008941650391/(mmBTU_to_GJ))*($C$17) -> 17.44160584 | I17: =(18.4008941650391/(mmBTU_to_GJ))*($C$17) -> 17.44160584 | J17: =(18.4008941650391/(mmBTU_to_GJ))*($C$17) -> 17.44160584 | K17: =(18.6226921081543/(mmBTU_to_GJ))*($C$17) -> 17.65184086 | L17: =(20.3344097137451/(mmBTU_to_GJ))*($C$17) -> 19.274322 | M17: =(19.1594867706299/(mmBTU_to_GJ))*($C$17) -> 18.16065097 | N17: =(16.8281726837158/(mmBTU_to_GJ))*($C$17) -> 15.95087458 | O17: =(17.2643089294434/(mmBTU_to_GJ))*($C$17) -> 16.36427387 | P17: =(17.1560707092285/(mmBTU_to_GJ))*($C$17) -> 16.2616784 | Q17: =(17.0836048126221/(mmBTU_to_GJ))*($C$17) -> 16.19299034 | R17: =(17.1988334655762/(mmBTU_to_GJ))*($C$17) -> 16.30221182 | S17: =(17.3181438446045/(mmBTU_to_GJ))*($C$17) -> 16.41530222 | T17: =(17.6150741577148/(mmBTU_to_GJ))*($C$17) -> 16.69675276 | U17: =(17.9101543426514/(mmBTU_to_GJ))*($C$17) -> 16.97644961 | V17: =(18.2101707458496/(mmBTU_to_GJ))*($C$17) -> 17.26082535 | W17: =(18.456880569458/(mmBTU_to_GJ))*($C$17) -> 17.49467353 | X17: =(18.8030014038086/(mmBTU_to_GJ))*($C$17) -> 17.82275015 | Y17: =(19.0852069854736/(mmBTU_to_GJ))*($C$17) -> 18.09024359 | Z17: =(19.30615234375/(mmBTU_to_GJ))*($C$17) -> 18.29967047 | AA17: =(19.3043308258057/(mmBTU_to_GJ))*($C$17) -> 18.29794391 | AB17: =(19.3253479003906/(mmBTU_to_GJ))*($C$17) -> 18.31786531 | AC17: =(19.3248138427734/(mmBTU_to_GJ))*($C$17) -> 18.31735909 | AD17: =(19.3542194366455/(mmBTU_to_GJ))*($C$17) -> 18.34523169 | AE17: =(19.6148834228516/(mmBTU_to_GJ))*($C$17) -> 18.59230656 | AF17: =(19.97239112854/(mmBTU_to_GJ))*($C$17) -> 18.93117643 | AG17: =(20.29469871521/(mmBTU_to_GJ))*($C$17) -> 19.23668125 | AH17: =(20.5609893798828/(mmBTU_to_GJ))*($C$17) -> 19.48908946 | AI17: 19.48334329 | AJ17: 19.47759711 | AK17: 19.47185094 | AL17: 19.46610476 | AM17: 19.46035859 | AN17: 19.45461242 | AO17: 19.44886624 | AP17: 19.44312007 | AQ17: 19.4373739 | AR17: 19.43162772 | AS17: 19.42588155 | AT17: 19.42013537 | AU17: 19.4143892 | AV17: 19.40864303 | AW17: 19.40289685 | AX17: 19.39715068 | AY17: 19.3914045 | AZ17: 19.38565833 | BA17: 19.37991216 | BB17: =0.994103189054944*AH17 -> 19.37416598 | BC17: 19.38647337 | BD17: 19.39878076 | BE17: 19.41108815 | BF17: 19.42339554 | BG17: 19.43570293 | BH17: 19.44801032 | BI17: 19.46031771 | BJ17: 19.4726251 | BK17: 19.48493249 | BL17: 19.49723988 | BM17: 19.50954727 | BN17: 19.52185466 | BO17: 19.53416205 | BP17: 19.54646944 | BQ17: =1.00952871208344*BB17 -> 19.55877683 | BR17: 19.5712015 | BS17: 19.58362616 | BT17: 19.59605082 | BU17: 19.60847549 | BV17: =1.00317623736115*BQ17 -> 19.62090015
A18: ='HyARC Physical Property Data'!A78 -> Residential Electricity | B18: 2007 | C18: 1 | D18: ='HyARC Physical Property Data'!$H$78 -> kWh | E18: Feed Utility Byprod | H18: =(31.2067794799805/(mmBTU_to_GJ))*($C$18) -> 29.57988576 | I18: =(31.2067794799805/(mmBTU_to_GJ))*($C$18) -> 29.57988576 | J18: =(31.2067794799805/(mmBTU_to_GJ))*($C$18) -> 29.57988576 | K18: =(31.181957244873/(mmBTU_to_GJ))*($C$18) -> 29.55635758 | L18: =(31.772819519043/(mmBTU_to_GJ))*($C$18) -> 30.11641661 | M18: =(30.736837387085/(mmBTU_to_GJ))*($C$18) -> 29.13444302 | N18: =(28.6163578033447/(mmBTU_to_GJ))*($C$18) -> 27.12450977 | O18: =(29.8736190795898/(mmBTU_to_GJ))*($C$18) -> 28.31622662 | P18: =(30.101655960083/(mmBTU_to_GJ))*($C$18) -> 28.53237532 | Q18: =(30.4253902435303/(mmBTU_to_GJ))*($C$18) -> 28.83923246 | R18: =(30.7938537597656/(mmBTU_to_GJ))*($C$18) -> 29.18848698 | S18: =(30.8830280303955/(mmBTU_to_GJ))*($C$18) -> 29.27301235 | T18: =(31.1491451263428/(mmBTU_to_GJ))*($C$18) -> 29.52525604 | U18: =(31.4898681640625/(mmBTU_to_GJ))*($C$18) -> 29.84821627 | V18: =(31.8156299591064/(mmBTU_to_GJ))*($C$18) -> 30.15699522 | W18: =(32.0206985473633/(mmBTU_to_GJ))*($C$18) -> 30.35137303 | X18: =(32.4303588867188/(mmBTU_to_GJ))*($C$18) -> 30.73967667 | Y18: =(32.7907905578613/(mmBTU_to_GJ))*($C$18) -> 31.08131806 | Z18: =(32.9940071105957/(mmBTU_to_GJ))*($C$18) -> 31.27394039 | AA18: =(32.9234657287598/(mmBTU_to_GJ))*($C$18) -> 31.20707652 | AB18: =(32.9201545715332/(mmBTU_to_GJ))*($C$18) -> 31.20393798 | AC18: =(32.902271270752/(mmBTU_to_GJ))*($C$18) -> 31.18698699 | AD18: =(32.9582405090332/(mmBTU_to_GJ))*($C$18) -> 31.2400384 | AE18: =(33.321102142334/(mmBTU_to_GJ))*($C$18) -> 31.58398307 | AF18: =(33.7343635559082/(mmBTU_to_GJ))*($C$18) -> 31.97570005 | AG18: =(34.1495399475098/(mmBTU_to_GJ))*($C$18) -> 32.36923218 | AH18: =(34.4904899597167/(mmBTU_to_GJ))*($C$18) -> 32.69240754 | AI18: 32.6827685 | AJ18: 32.67312945 | AK18: 32.6634904 | AL18: 32.65385136 | AM18: 32.64421231 | AN18: 32.63457326 | AO18: 32.62493421 | AP18: 32.61529517 | AQ18: 32.60565612 | AR18: 32.59601707 | AS18: 32.58637802 | AT18: 32.57673898 | AU18: 32.56709993 | AV18: 32.55746088 | AW18: 32.54782183 | AX18: 32.53818279 | AY18: 32.52854374 | AZ18: 32.51890469 | BA18: 32.50926565 | BB18: =0.994103189054944*AH18 -> 32.4996266 | BC18: 32.5202719 | BD18: 32.54091721 | BE18: 32.56156252 | BF18: 32.58220782 | BG18: 32.60285313 | BH18: 32.62349843 | BI18: 32.64414374 | BJ18: 32.66478904 | BK18: 32.68543435 | BL18: 32.70607965 | BM18: 32.72672496 | BN18: 32.74737027 | BO18: 32.76801557 | BP18: 32.78866088 | BQ18: =1.00952871208344*BB18 -> 32.80930618 | BR18: 32.83014821 | BS18: 32.85099024 | BT18: 32.87183227 | BU18: 32.8926743 | BV18: =1.00317623736115*BQ18 -> 32.91351633
A22: AEO_2013_Reference_Case | B22: ="Prices are in $(" & ref_year&")/GJ LHV" -> Prices are in $(2007)/GJ LHV | AS22: Except as noted,values are extrapolated based on PNNL mini-CAM model (see AEO Data tab)
A23: Year | B23: Source Data Year | C23: Reference year Conversion | D23: Display Units | E23: Use Category | F23: LHV (MJ/kg) | G23: HHV (MJ/kg) | H23: 2004 | I23: 2005 | J23: 2006 | K23: 2007 | L23: 2008 | M23: 2009 | N23: 2010 | O23: 2011 | P23: 2012 | Q23: 2013 | R23: 2014 | S23: 2015 | T23: 2016 | U23: 2017 | V23: 2018 | W23: 2019 | X23: 2020 | Y23: 2021 | Z23: 2022 | AA23: 2023 | AB23: 2024 | AC23: 2025 | AD23: 2026 | AE23: 2027 | AF23: 2028 | AG23: 2029 | AH23: 2030 | AI23: 2031 | AJ23: 2032 | AK23: 2033 | AL23: 2034 | AM23: 2035 | AN23: 2036 | AO23: 2037 | AP23: 2038 | AQ23: 2039 | AR23: 2040 | AS23: 2041 | AT23: 2042 | AU23: 2043 | AV23: 2044 | AW23: 2045 | AX23: 2046 | AY23: 2047 | AZ23: 2048 | BA23: 2049 | BB23: 2050 | BC23: 2051 | BD23: 2052 | BE23: 2053 | BF23: 2054 | BG23: 2055 | BH23: 2056 | BI23: 2057 | BJ23: 2058 | BK23: 2059 | BL23: 2060 | BM23: 2061 | BN23: 2062 | BO23: 2063 | BP23: 2064 | BQ23: 2065 | BR23: 2066 | BS23: 2067 | BT23: 2068 | BU23: 2069 | BV23: 2070
A24: Feedstock Type
A25: ='HyARC Physical Property Data'!A73 -> Residential Natural Gas | B25: 2011 | C25: =VLOOKUP(ref_year,DeflatorTable,2,FALSE)/VLOOKUP(B25,DeflatorTable,2,FALSE) -> 0.94218206 | D25: ='HyARC Physical Property Data'!H73 -> mmBtu | E25: Feed Utility | F25: ='HyARC Physical Property Data'!$E$6 -> 47.14126905 | G25: ='HyARC Physical Property Data'!$I$6 -> 52.22466124 | H25: 14.38614184 | I25: 14.38614184 | J25: 14.38614184 | K25: 13.32671663 | L25: 13.62776448 | M25: 11.25433973 | N25: =((N42/(mmBTU_to_GJ))*($C25))*($G25/$F25) -> 11.23857099 | O25: 10.68746477 | P25: 10.35309684 | Q25: 10.36647702 | R25: 10.14444363 | S25: 10.04807449 | T25: 10.54938398 | U25: 10.87362673 | V25: 11.27631034 | W25: 11.50127918 | X25: 11.65100776 | Y25: 11.83281355 | Z25: 12.07340348 | AA25: 12.30005622 | AB25: 12.45069997 | AC25: 12.53953905 | AD25: 12.70533988 | AE25: 12.79584406 | AF25: 12.94641954 | AG25: 13.09364305 | AH25: 13.2268245 | AI25: 13.40302158 | AJ25: 13.57588153 | AK25: 13.7876928 | AL25: 14.0973998 | AM25: 14.4435748 | AN25: 14.86393243 | AO25: 15.25195364 | AP25: 15.67379927 | AQ25: 15.88501494 | AR25: 16.18905881 | AS25: =($BB25-$AR25)/10+AR25 -> 16.19538409 | AT25: =($BB25-$AR25)/10+AS25 -> 16.20170937 | AU25: 16.20803465 | AV25: 16.21435993 | AW25: 16.22068521 | AX25: 16.22701049 | AY25: 16.23333577 | AZ25: 16.23966105 | BA25: 16.24598633 | BB25: ='AEO Data'!$B$30*AM25 -> 16.25231161 | BC25: =($BQ25-$BB25)/15+BB25 -> 16.38474083 | BD25: =($BQ25-$BB25)/15+BC25 -> 16.51717004 | BE25: 16.64959925 | BF25: 16.78202846 | BG25: 16.91445768 | BH25: 17.04688689 | BI25: 17.1793161 | BJ25: 17.31174531 | BK25: 17.44417453 | BL25: 17.57660374 | BM25: 17.70903295 | BN25: 17.84146216 | BO25: 17.97389137 | BP25: 18.10632059 | BQ25: ='AEO Data'!$C$30*BB25 -> 18.2387498 | BR25: =($BV25-$BQ25)/5+BQ25 -> 18.34300011 | BS25: =($BV25-$BQ25)/5+BR25 -> 18.44725042 | BT25: =($BV25-$BQ25)/5+BS25 -> 18.55150074 | BU25: =($BV25-$BQ25)/5+BT25 -> 18.65575105 | BV25: ='AEO Data'!$D$30*BQ25 -> 18.76000136
A26: ='HyARC Physical Property Data'!A71 -> Commercial Natural Gas | B26: 2011 | C26: =VLOOKUP(ref_year,DeflatorTable,2,FALSE)/VLOOKUP(B26,DeflatorTable,2,FALSE) -> 0.94218206 | D26: ='HyARC Physical Property Data'!H71 -> mmBtu | E26: Feed Utility | F26: ='HyARC Physical Property Data'!$E$6 -> 47.14126905 | G26: ='HyARC Physical Property Data'!$I$6 -> 52.22466124 | H26: 12.49183679 | I26: 12.49183679 | J26: 12.49183679 | K26: 11.54020185 | L26: 11.90663327 | M26: 9.353676585 | N26: =((N43/(mmBTU_to_GJ))*($C26))*($G26/$F26) -> 9.297042245 | O26: 8.742884814 | P26: 7.986945315 | Q26: 8.372736493 | R26: 8.147683559 | S26: 8.018175624 | T26: 8.469996062 | U26: 8.730943174 | V26: 9.074736779 | W26: 9.251373137 | X26: 9.367332702 | Y26: 9.508733799 | Z26: 9.714759257 | AA26: 9.905128996 | AB26: 10.02525775 | AC26: 10.08524891 | AD26: 10.22562601 | AE26: 10.27754692 | AF26: 10.388342 | AG26: 10.49253999 | AH26: 10.58346069 | AI26: 10.71721301 | AJ26: 10.83810456 | AK26: 11.00023979 | AL26: 11.2623494 | AM26: 11.55742764 | AN26: 11.93282851 | AO26: 12.26942052 | AP26: 12.64559507 | AQ26: 12.81118813 | AR26: 13.0724083 | AS26: =($BB26-$AR26)/10+AR26 -> 13.06564134 | AT26: 13.05887437 | AU26: 13.05210741 | AV26: 13.04534044 | AW26: 13.03857348 | AX26: 13.03180651 | AY26: 13.02503955 | AZ26: 13.01827258 | BA26: 13.01150562 | BB26: ='AEO Data'!$B$30*AM26 -> 13.00473865 | BC26: =($BQ26-$BB26)/15+BB26 -> 13.11070556 | BD26: 13.21667248 | BE26: 13.32263939 | BF26: 13.4286063 | BG26: 13.53457322 | BH26: 13.64054013 | BI26: 13.74650704 | BJ26: 13.85247396 | BK26: 13.95844087 | BL26: 14.06440778 | BM26: 14.1703747 | BN26: 14.27634161 | BO26: 14.38230852 | BP26: 14.48827544 | BQ26: ='AEO Data'!$C$30*BB26 -> 14.59424235 | BR26: =($BV26-$BQ26)/5+BQ26 -> 14.67766113 | BS26: 14.76107992 | BT26: 14.8444987 | BU26: 14.92791748 | BV26: ='AEO Data'!$D$30*BQ26 -> 15.01133627
A27: ='HyARC Physical Property Data'!A72 -> Industrial Natural Gas | B27: 2011 | C27: =VLOOKUP(ref_year,DeflatorTable,2,FALSE)/VLOOKUP(B27,DeflatorTable,2,FALSE) -> 0.94218206 | D27: ='HyARC Physical Property Data'!H72 -> mmBtu | E27: Feed Utility | F27: ='HyARC Physical Property Data'!$E$6 -> 47.14126905 | G27: ='HyARC Physical Property Data'!$I$6 -> 52.22466124 | H27: 8.352400601 | I27: 8.352400601 | J27: 8.352400601 | K27: 7.891606632 | L27: 9.242029801 | M27: 5.091378565 | N27: =((N44/(mmBTU_to_GJ))*($C27))*($G27/$F27) -> 5.425640463 | O27: 4.837811959 | P27: 3.719703369 | Q27: 4.287897917 | R27: 4.328525219 | S27: 4.375503258 | T27: 4.814287817 | U27: 5.014045645 | V27: 5.264667739 | W27: 5.391841761 | X27: 5.470609101 | Y27: 5.580697771 | Z27: 5.76579914 | AA27: 5.946783758 | AB27: 6.045031703 | AC27: 6.085783665 | AD27: 6.189232705 | AE27: 6.227972298 | AF27: 6.328754997 | AG27: 6.417273522 | AH27: 6.491704473 | AI27: 6.605627924 | AJ27: 6.699125926 | AK27: 6.842443424 | AL27: 7.092517409 | AM27: 7.366236239 | AN27: 7.730114952 | AO27: 8.066949361 | AP27: 8.408536681 | AQ27: 8.547504929 | AR27: 8.786646426 | AS27: =($BB27-$AR27)/10+AR27 -> 8.736851149 | AT27: 8.687055871 | AU27: 8.637260594 | AV27: 8.587465316 | AW27: 8.537670039 | AX27: 8.487874761 | AY27: 8.438079484 | AZ27: 8.388284207 | BA27: 8.338488929 | BB27: ='AEO Data'!$B$30*AM27 -> 8.288693652 | BC27: 8.35623267 | BD27: 8.423771688 | BE27: 8.491310707 | BF27: 8.558849725 | BG27: 8.626388743 | BH27: 8.693927762 | BI27: 8.76146678 | BJ27: 8.829005798 | BK27: 8.896544817 | BL27: 8.964083835 | BM27: 9.031622853 | BN27: 9.099161871 | BO27: 9.16670089 | BP27: 9.234239908 | BQ27: ='AEO Data'!$C$30*BB27 -> 9.301778926 | BR27: 9.35494668 | BS27: 9.408114433 | BT27: 9.461282187 | BU27: 9.514449941 | BV27: ='AEO Data'!$D$30*BQ27 -> 9.567617694
A28: ='HyARC Physical Property Data'!A74 -> Electric Utility Natural Gas | B28: 2011 | C28: 0.94218206 | D28: ='HyARC Physical Property Data'!H74 -> mmBtu | E28: Feed Utility | F28: ='HyARC Physical Property Data'!$E$6 -> 47.14126905 | G28: ='HyARC Physical Property Data'!$I$6 -> 52.22466124 | H28: 7.407925909 | I28: 7.407925909 | J28: 7.407925909 | K28: 7.370671092 | L28: 9.31589251 | M28: 4.783762318 | N28: =((N45/(mmBTU_to_GJ))*($C28))*($G28/$F28) -> 5.202246695 | O28: 4.723936987 | P28: 3.286430565 | Q28: 3.676016949 | R28: 3.71825197 | S28: 3.801212241 | T28: 4.237074214 | U28: 4.401363291 | V28: 4.652600771 | W28: 4.770949653 | X28: 4.844684091 | Y28: 4.95416727 | Z28: 5.147025263 | AA28: 5.331468704 | AB28: 5.459254154 | AC28: 5.518641803 | AD28: 5.648097302 | AE28: 5.699508687 | AF28: 5.804452658 | AG28: 5.901583609 | AH28: 5.988480564 | AI28: 6.117921223 | AJ28: 6.22625278 | AK28: 6.377323935 | AL28: 6.627113973 | AM28: 6.906211983 | AN28: 7.26706027 | AO28: 7.593329245 | AP28: 7.936669721 | AQ28: 8.068263238 | AR28: 8.28868891 | AS28: =($BB28-$AR28)/10+AR28 -> 8.236926177 | AT28: 8.185163444 | AU28: 8.133400711 | AV28: 8.081637978 | AW28: 8.029875244 | AX28: 7.978112511 | AY28: 7.926349778 | AZ28: 7.874587045 | BA28: 7.822824312 | BB28: ='AEO Data'!$B$30*AM28 -> 7.771061579 | BC28: 7.83438276 | BD28: 7.897703941 | BE28: 7.961025122 | BF28: 8.024346303 | BG28: 8.087667484 | BH28: 8.150988664 | BI28: 8.214309845 | BJ28: 8.277631026 | BK28: 8.340952207 | BL28: 8.404273388 | BM28: 8.467594569 | BN28: 8.53091575 | BO28: 8.594236931 | BP28: 8.657558112 | BQ28: ='AEO Data'!$C$30*BB28 -> 8.720879293 | BR28: 8.7707267 | BS28: 8.820574107 | BT28: 8.870421514 | BU28: 8.920268921 | BV28: ='AEO Data'!$D$30*BQ28 -> 8.970116328
A29: ='HyARC Physical Property Data'!A75 -> Bio Methane | B29: 2007 | C29: 1 | D29: ='HyARC Physical Property Data'!H75 -> mmBtu | E29: Feed Utility | F29: ='HyARC Physical Property Data'!$E$6 -> 47.14126905 | G29: ='HyARC Physical Property Data'!$I$6 -> 52.22466124 | H29: 12.42654028 | I29: 12.42654028 | J29: 12.42654028 | K29: 12.42654028 | L29: 12.42654028 | M29: 12.42654028 | N29: =13.11*($C$29/mmBTU_to_GJ) -> 12.42654028 | O29: 12.42654028 | P29: 12.42654028 | Q29: 12.42654028 | R29: 12.42654028 | S29: 12.42654028 | T29: 12.42654028 | U29: 12.42654028 | V29: 12.42654028 | W29: 12.42654028 | X29: 12.42654028 | Y29: 12.42654028 | Z29: 12.42654028 | AA29: 12.42654028 | AB29: 12.42654028 | AC29: 12.42654028 | AD29: 12.42654028 | AE29: 12.42654028 | AF29: 12.42654028 | AG29: 12.42654028 | AH29: 12.42654028 | AI29: 12.42654028 | AJ29: 12.42654028 | AK29: 12.42654028 | AL29: 12.42654028 | AM29: 12.42654028 | AN29: =13.11*($C$29/mmBTU_to_GJ) -> 12.42654028 | AO29: 12.42654028 | AP29: 12.42654028 | AQ29: 12.42654028 | AR29: 12.42654028 | AS29: 12.42654028 | AT29: 12.42654028 | AU29: 12.42654028 | AV29: 12.42654028 | AW29: 12.42654028 | AX29: 12.42654028 | AY29: 12.42654028 | AZ29: 12.42654028 | BA29: 12.42654028 | BB29: 12.42654028 | BC29: 12.42654028 | BD29: 12.42654028 | BE29: 12.42654028 | BF29: 12.42654028 | BG29: 12.42654028 | BH29: 12.42654028 | BI29: 12.42654028 | BJ29: 12.42654028 | BK29: 12.42654028 | BL29: 12.42654028 | BM29: 12.42654028 | BN29: 12.42654028 | BO29: 12.42654028 | BP29: 12.42654028 | BQ29: 12.42654028 | BR29: 12.42654028 | BS29: 12.42654028 | BT29: 12.42654028 | BU29: 12.42654028 | BV29: 12.42654028
A30: ='HyARC Physical Property Data'!A85 -> Woody Biomass | B30: 2005 | C30: =VLOOKUP(ref_year,DeflatorTable,2,FALSE)/VLOOKUP(B30,DeflatorTable,2,FALSE) -> 1.0581968 | D30: =+'HyARC Physical Property Data'!$H$85 -> kg | E30: Feed | F30: ='HyARC Physical Property Data'!$E$45 -> 19.55106924 | G30: ='HyARC Physical Property Data'!$I$45 -> 20.58865638 | H30: 1.343823884 | I30: 1.343823884 | J30: 1.343823884 | K30: 1.343823884 | L30: 1.343823884 | M30: 1.343823884 | N30: =1.27*($C$30) -> 1.343909936 | O30: =1.27*($C$30) -> 1.343909936 | P30: =1.28*($C$30) -> 1.354491904 | Q30: =1.32*($C$30) -> 1.396819776 | R30: =1.32*($C$30) -> 1.396819776 | S30: =1.34*($C$30) -> 1.417983712 | T30: =1.34*($C$30) -> 1.417983712 | U30: =1.36*($C$30) -> 1.439147648 | V30: =1.36*($C$30) -> 1.439147648 | W30: =1.38*($C$30) -> 1.460311584 | X30: =1.4*($C$30) -> 1.48147552 | Y30: =1.46*($C$30) -> 1.544967328 | Z30: =1.48*($C$30) -> 1.566131264 | AA30: =1.48*($C$30) -> 1.566131264 | AB30: =1.51*($C$30) -> 1.597877168 | AC30: =1.52*($C$30) -> 1.608459136 | AD30: =1.62*($C$30) -> 1.714278816 | AE30: =1.72*($C$30) -> 1.820098496 | AF30: =1.82*($C$30) -> 1.925918176 | AG30: =1.91*($C$30) -> 2.021155888 | AH30: =2.01*($C$30) -> 2.126975568 | AI30: =2.11*($C$30) -> 2.232795248 | AJ30: =2.2*($C$30) -> 2.32803296 | AK30: =2.3*($C$30) -> 2.43385264 | AL30: =2.4*($C$30) -> 2.53967232 | AM30: =2.5*($C$30) -> 2.645492 | AN30: =2.57*($C$30) -> 2.719565776 | AO30: =2.64*($C$30) -> 2.793639552 | AP30: =2.71*($C$30) -> 2.867713328 | AQ30: =2.78*($C$30) -> 2.941787104 | AR30: =2.85*($C$30) -> 3.01586088 | AS30: =2.92*($C$30) -> 3.089934656 | AT30: =2.99*($C$30) -> 3.164008432 | AU30: =3.07*($C$30) -> 3.248664176 | AV30: =3.14*($C$30) -> 3.322737952 | AW30: =3.21*($C$30) -> 3.396811728 | AX30: =3.28*($C$30) -> 3.470885504 | AY30: =3.35*($C$30) -> 3.54495928 | AZ30: =3.42*($C$30) -> 3.619033056 | BA30: =3.49*($C$30) -> 3.693106832 | BB30: =3.56*($C$30) -> 3.767180608 | BC30: =3.64*($C$30) -> 3.851836352 | BD30: =3.71*($C$30) -> 3.925910128 | BE30: =3.78*($C$30) -> 3.999983904 | BF30: =3.85*($C$30) -> 4.07405768 | BG30: =3.92*($C$30) -> 4.148131456 | BH30: =3.99*($C$30) -> 4.222205232 | BI30: =4.06*($C$30) -> 4.296279008 | BJ30: =4.14*($C$30) -> 4.380934752 | BK30: =4.21*($C$30) -> 4.455008528 | BL30: =4.28*($C$30) -> 4.529082304 | BM30: =4.35*($C$30) -> 4.60315608 | BN30: =4.42*($C$30) -> 4.677229856 | BO30: =4.49*($C$30) -> 4.751303632 | BP30: =4.56*($C$30) -> 4.825377408 | BQ30: =4.63*($C$30) -> 4.899451184 | BR30: =4.71*($C$30) -> 4.984106928 | BS30: =4.78*($C$30) -> 5.058180704 | BT30: =4.85*($C$30) -> 5.13225448 | BU30: =4.92*($C$30) -> 5.206328256 | BV30: =4.99*($C$30) -> 5.280402032
A31: ='HyARC Physical Property Data'!$A$87 -> Woody Biomass MYPP | B31: 2007 | C31: =VLOOKUP(ref_year,DeflatorTable,2,FALSE)/VLOOKUP(B31,DeflatorTable,2,FALSE) -> 1 | D31: =+'HyARC Physical Property Data'!$H$87 -> kg | E31: Feed | F31: 18.608 | H31: 4.444325021 | I31: 4.444325021 | J31: 4.444325021 | K31: 4.444325021 | L31: 4.444325021 | M31: 4.444325021 | N31: =4.44432502149613*$C$31 -> 4.444325021 | O31: =N31-($N$31-$U$31)/7 -> 4.338917209 | P31: 4.233509397 | Q31: 4.128101585 | R31: 4.022693772 | S31: 3.91728596 | T31: 3.811878148 | U31: =3.70647033533964*$C$31 -> 3.706470335 | V31: =3.70647033533964*$C$31 -> 3.706470335 | W31: 3.706470335 | X31: 3.706470335 | Y31: 3.706470335 | Z31: 3.706470335 | AA31: 3.706470335 | AB31: 3.706470335 | AC31: 3.706470335 | AD31: 3.706470335 | AE31: 3.706470335 | AF31: 3.706470335 | AG31: 3.706470335 | AH31: 3.706470335 | AI31: 3.706470335 | AJ31: 3.706470335 | AK31: 3.706470335 | AL31: 3.706470335 | AM31: 3.706470335 | AN31: 3.706470335 | AO31: 3.706470335 | AP31: 3.706470335 | AQ31: 3.706470335 | AR31: 3.706470335 | AS31: 3.706470335 | AT31: 3.706470335 | AU31: 3.706470335 | AV31: 3.706470335 | AW31: 3.706470335 | AX31: 3.706470335 | AY31: 3.706470335 | AZ31: 3.706470335 | BA31: 3.706470335 | BB31: 3.706470335 | BC31: 3.706470335 | BD31: 3.706470335 | BE31: 3.706470335 | BF31: 3.706470335 | BG31: 3.706470335 | BH31: 3.706470335 | BI31: 3.706470335 | BJ31: 3.706470335 | BK31: 3.706470335 | BL31: 3.706470335 | BM31: 3.706470335 | BN31: 3.706470335 | BO31: 3.706470335 | BP31: 3.706470335 | BQ31: 3.706470335 | BR31: 3.706470335 | BS31: 3.706470335 | BT31: 3.706470335 | BU31: 3.706470335 | BV31: 3.706470335
A32: ='HyARC Physical Property Data'!A79 -> Electric Utility Steam Coal | B32: 2011 | C32: =VLOOKUP(ref_year,DeflatorTable,2,FALSE)/VLOOKUP(B32,DeflatorTable,2,FALSE) -> 0.94218206 | D32: =+'HyARC Physical Property Data'!$H$79 -> kg | E32: Feed | F32: ='HyARC Physical Property Data'!E42 -> 22.732203 | G32: ='HyARC Physical Property Data'!I42 -> 23.96761519 | H32: 1.73444996 | I32: 1.73444996 | J32: 1.73444996 | K32: 1.778897364 | L32: 1.929877218 | M32: 1.981077456 | N32: =N50*($C32/mmBTU_to_GJ*$G32/$F32) -> 2.16378255 | O32: 2.241003969 | P32: 2.264801924 | Q32: 2.200431439 | R32: 2.255142067 | S32: 2.256170293 | T32: 2.314735824 | U32: 2.327897485 | V32: 2.335410498 | W32: 2.338764471 | X32: 2.36911501 | Y32: 2.397738656 | Z32: 2.440113405 | AA32: 2.474593793 | AB32: 2.504083711 | AC32: 2.53444649 | AD32: 2.569227248 | AE32: 2.600579647 | AF32: 2.628933997 | AG32: 2.66308765 | AH32: 2.699647088 | AI32: 2.727810293 | AJ32: 2.753085616 | AK32: 2.781692315 | AL32: 2.813109684 | AM32: 2.853235895 | AN32: 2.887892363 | AO32: 2.920146813 | AP32: 2.951905982 | AQ32: 2.984860981 | AR32: 3.014568408 | AS32: =($BB32-$AR32)/10+AR32 -> 3.012195978 | AT32: 3.009823548 | AU32: 3.007451118 | AV32: 3.005078688 | AW32: 3.002706258 | AX32: 3.000333828 | AY32: 2.997961398 | AZ32: 2.995588968 | BA32: 2.993216538 | BB32: =('AEO Data'!$B$28*AM32) -> 2.990844108 | BC32: =(($BQ$32-$BB$32)/15+BB32) -> 3.001340285 | BD32: =(($BQ$32-$BB$32)/15+BC32) -> 3.011836463 | BE32: 3.02233264 | BF32: 3.032828818 | BG32: 3.043324995 | BH32: 3.053821173 | BI32: 3.06431735 | BJ32: 3.074813528 | BK32: 3.085309705 | BL32: 3.095805883 | BM32: 3.106302061 | BN32: 3.116798238 | BO32: 3.127294416 | BP32: 3.137790593 | BQ32: =('AEO Data'!$C$28*BB32) -> 3.148286771 | BR32: =(($BV$32-$BQ$32)/5+BQ32) -> 3.158379866 | BS32: =(($BV$32-$BQ$32)/5+BR32) -> 3.168472962 | BT32: =(($BV$32-$BQ$32)/5+BS32) -> 3.178566057 | BU32: =(($BV$32-$BQ$32)/5+BT32) -> 3.188659153 | BV32: =('AEO Data'!$D$28*BQ32) -> 3.198752248
A33: ='HyARC Physical Property Data'!A76 -> Commercial Electricity | B33: 2011 | C33: 0.94218206 | D33: ='HyARC Physical Property Data'!$H$76 -> kWh | E33: Feed Utility Byprod | H33: 26.8969224 | I33: 26.8969224 | J33: 26.8969224 | K33: 26.56846973 | L33: 27.54247946 | M33: 26.16755589 | N33: =(N51/(mmBTU_to_GJ))*($C33) -> 27.23181128 | O33: 26.77462793 | P33: 25.41968707 | Q33: 24.80081545 | R33: 24.86668693 | S33: 24.76821953 | T33: 25.21142911 | U33: 25.46817685 | V33: 25.58180311 | W33: 25.52091047 | X33: 25.51175299 | Y33: 25.60926303 | Z33: 25.59931877 | AA33: 25.56701934 | AB33: 25.5708738 | AC33: 25.43966758 | AD33: 25.34395796 | AE33: 25.33593646 | AF33: 25.43709734 | AG33: 25.52137486 | AH33: 25.58832694 | AI33: 25.70332763 | AJ33: 25.82076013 | AK33: 25.97182987 | AL33: 26.1409636 | AM33: 26.48690428 | AN33: 26.88273506 | AO33: 27.24117951 | AP33: 27.63502055 | AQ33: 28.11057064 | AR33: 28.35222025 | AS33: =($BB33-$AR33)/10+AR33 -> 28.09966086 | AT33: 27.84710147 | AU33: 27.59454208 | AV33: 27.34198269 | AW33: 27.08942331 | AX33: 26.83686392 | AY33: 26.58430453 | AZ33: 26.33174514 | BA33: 26.07918575 | BB33: ='AEO Data'!$B$33*AM33 -> 25.82662636 | BC33: =($BQ33-$BB33)/15+BB33 -> 25.84167357 | BD33: 25.85672078 | BE33: 25.87176799 | BF33: 25.88681519 | BG33: 25.9018624 | BH33: 25.91690961 | BI33: 25.93195682 | BJ33: 25.94700402 | BK33: 25.96205123 | BL33: 25.97709844 | BM33: 25.99214565 | BN33: 26.00719285 | BO33: 26.02224006 | BP33: 26.03728727 | BQ33: ='AEO Data'!$C$33*BB33 -> 26.05233448 | BR33: =($BV33-$BQ33)/5+BQ33 -> 26.03479213 | BS33: 26.01724979 | BT33: 25.99970744 | BU33: 25.9821651 | BV33: ='AEO Data'!$D$33*BQ33 -> 25.96462275
A34: ='HyARC Physical Property Data'!A77 -> Industrial Electricity | B34: 2011 | C34: 0.94218206 | D34: ='HyARC Physical Property Data'!$H$77 -> kWh | E34: Feed Utility Byprod | H34: 17.44160584 | I34: 17.44160584 | J34: 17.44160584 | K34: 17.65184086 | L34: 19.274322 | M34: 18.16065097 | N34: =(N52/(mmBTU_to_GJ))*($C34) -> 18.09386343 | O34: 17.83960556 | P34: 16.46453415 | Q34: 16.20282098 | R34: 16.1163251 | S34: 15.97198727 | T34: 16.40389246 | U34: 16.64338085 | V34: 16.7745058 | W34: 16.72452014 | X34: 16.7184098 | Y34: 16.83821428 | Z34: 16.93390872 | AA34: 17.04845216 | AB34: 17.10999585 | AC34: 17.13071045 | AD34: 17.21321524 | AE34: 17.29191914 | AF34: 17.38526929 | AG34: 17.5133105 | AH34: 17.61689158 | AI34: 17.74239202 | AJ34: 17.88752735 | AK34: 18.04418052 | AL34: 18.24410977 | AM34: 18.57127378 | AN34: 18.99007773 | AO34: 19.35341171 | AP34: 19.70764001 | AQ34: 20.08379124 | AR34: 20.31222261 | AS34: =($BB34-$AR34)/10+AR34 -> 20.09183239 | AT34: 19.87144217 | AU34: 19.65105195 | AV34: 19.43066173 | AW34: 19.2102715 | AX34: 18.98988128 | AY34: 18.76949106 | AZ34: 18.54910084 | BA34: 18.32871062 | BB34: ='AEO Data'!$B$33*AM34 -> 18.1083204 | BC34: =($BQ34-$BB34)/15+BB34 -> 18.11887074 | BD34: 18.12942108 | BE34: 18.13997141 | BF34: 18.15052175 | BG34: 18.16107209 | BH34: 18.17162243 | BI34: 18.18217277 | BJ34: 18.19272311 | BK34: 18.20327345 | BL34: 18.21382379 | BM34: 18.22437412 | BN34: 18.23492446 | BO34: 18.2454748 | BP34: 18.25602514 | BQ34: ='AEO Data'!$C$33*BB34 -> 18.26657548 | BR34: 18.25427568 | BS34: 18.24197587 | BT34: 18.22967607 | BU34: 18.21737627 | BV34: ='AEO Data'!$D$33*BQ34 -> 18.20507647
A35: ='HyARC Physical Property Data'!A78 -> Residential Electricity | B35: 2011 | C35: 0.94218206 | D35: ='HyARC Physical Property Data'!$H$78 -> kWh | E35: Feed Utility Byprod | H35: 29.57988576 | I35: 29.57988576 | J35: 29.57988576 | K35: 29.55635758 | L35: 30.11641661 | M35: 29.13444302 | N35: =(N53/(mmBTU_to_GJ))*($C35) -> 30.83107535 | O35: 30.66411979 | P35: 29.70929195 | Q35: 29.06869031 | R35: 29.47778487 | S35: 29.52679173 | T35: 29.98755984 | U35: 30.20900031 | V35: 30.21647793 | W35: 30.04497133 | X35: 30.02072822 | Y35: 30.0594595 | Z35: 30.0884278 | AA35: 30.09935622 | AB35: 30.22124421 | AC35: 30.32788225 | AD35: 30.47675506 | AE35: 30.60145263 | AF35: 30.73357781 | AG35: 30.82048719 | AH35: 30.86569853 | AI35: 30.9771609 | AJ35: 31.08522695 | AK35: 31.18910274 | AL35: 31.3309266 | AM35: 31.6334617 | AN35: 32.00380445 | AO35: 32.30744606 | AP35: 32.59932066 | AQ35: 32.9594807 | AR35: 33.13140347 | AS35: =($BB35-$AR35)/10+AR35 -> 32.90275192 | AT35: 32.67410038 | AU35: 32.44544883 | AV35: 32.21679728 | AW35: 31.98814574 | AX35: 31.75949419 | AY35: 31.53084264 | AZ35: 31.30219109 | BA35: 31.07353955 | BB35: ='AEO Data'!$B$33*AM35 -> 30.844888 | BC35: =($BQ35-$BB35)/15+BB35 -> 30.86285897 | BD35: 30.88082993 | BE35: 30.8988009 | BF35: 30.91677187 | BG35: 30.93474283 | BH35: 30.9527138 | BI35: 30.97068476 | BJ35: 30.98865573 | BK35: 31.0066267 | BL35: 31.02459766 | BM35: 31.04256863 | BN35: 31.0605396 | BO35: 31.07851056 | BP35: 31.09648153 | BQ35: ='AEO Data'!$C$33*BB35 -> 31.11445249 | BR35: 31.09350157 | BS35: 31.07255065 | BT35: 31.05159972 | BU35: 31.0306488 | BV35: ='AEO Data'!$D$33*BQ35 -> 31.00969788
A39: AEO 2013 Reference Case Values:
A40: 2011 $/MMBtu
A42: Residential Natural Gas | N42: 11.359373 | O42: 10.802343 | P42: 10.464381 | Q42: 10.477905 | R42: 10.253485 | S42: 10.15608 | T42: 10.662778 | U42: 10.990506 | V42: 11.397518 | W42: 11.624905 | X42: 11.776243 | Y42: 11.960003 | Z42: 12.203179 | AA42: 12.432268 | AB42: 12.584531 | AC42: 12.674325 | AD42: 12.841908 | AE42: 12.933385 | AF42: 13.085579 | AG42: 13.234385 | AH42: 13.368998 | AI42: 13.547089 | AJ42: 13.721807 | AK42: 13.935895 | AL42: 14.248931 | AM42: 14.598827 | AN42: 15.023703 | AO42: 15.415895 | AP42: 15.842275 | AQ42: 16.055761 | AR42: 16.363073
A43: Commercial Natural Gas | N43: 9.396975 | O43: 8.836861 | P43: 8.072796 | Q43: 8.462734 | R43: 8.235262 | S43: 8.104362 | T43: 8.561039 | U43: 8.824791 | V43: 9.17228 | W43: 9.350815 | X43: 9.468021 | Y43: 9.610942 | Z43: 9.819182 | AA43: 10.011598 | AB43: 10.133018 | AC43: 10.193654 | AD43: 10.33554 | AE43: 10.388019 | AF43: 10.500005 | AG43: 10.605323 | AH43: 10.697221 | AI43: 10.832411 | AJ43: 10.954602 | AK43: 11.11848 | AL43: 11.383407 | AM43: 11.681657 | AN43: 12.061093 | AO43: 12.401303 | AP43: 12.781521 | AQ43: 12.948894 | AR43: 13.212922
A44: Industrial Natural Gas | N44: 5.48396 | O44: 4.889813 | P44: 3.759686 | Q44: 4.333988 | R44: 4.375052 | S44: 4.422535 | T44: 4.866036 | U44: 5.067941 | V44: 5.321257 | W44: 5.449798 | X44: 5.529412 | Y44: 5.640684 | Z44: 5.827775 | AA44: 6.010705 | AB44: 6.110009 | AC44: 6.151199 | AD44: 6.25576 | AE44: 6.294916 | AF44: 6.396782 | AG44: 6.486252 | AH44: 6.561483 | AI44: 6.676631 | AJ44: 6.771134 | AK44: 6.915992 | AL44: 7.168754 | AM44: 7.445415 | AN44: 7.813205 | AO44: 8.15366 | AP44: 8.498919 | AQ44: 8.639381 | AR44: 8.881093
A45: ='HyARC Physical Property Data'!$A$74 -> Electric Utility Natural Gas | N45: 5.258165 | O45: 4.774714 | P45: 3.321756 | Q45: 3.71553 | R45: 3.758219 | S45: 3.842071 | T45: 4.282618 | U45: 4.448673 | V45: 4.702611 | W45: 4.822232 | X45: 4.896759 | Y45: 5.007419 | Z45: 5.20235 | AA45: 5.388776 | AB45: 5.517935 | AC45: 5.577961 | AD45: 5.708808 | AE45: 5.760772 | AF45: 5.866844 | AG45: 5.965019 | AH45: 6.05285 | AI45: 6.183682 | AJ45: 6.293178 | AK45: 6.445873 | AL45: 6.698348 | AM45: 6.980446 | AN45: 7.345173 | AO45: 7.674949 | AP45: 8.02198 | AQ45: 8.154988 | AR45: 8.377783
A46: ='HyARC Physical Property Data'!$A$85 -> Woody Biomass
A47: Pyrolysis Oil | N47: 13.6 | O47: 13.6 | P47: 13.6 | Q47: 13.6 | R47: 13.6 | S47: 13.6 | T47: 13.6 | U47: 14.11 | V47: 14.11 | W47: 14.11 | X47: 14.11 | Y47: 14.11 | Z47: 14.11 | AA47: 14.11 | AB47: 14.11 | AC47: 14.11 | AD47: 14.11 | AE47: 14.11 | AF47: 14.11 | AG47: 14.11 | AH47: 14.11 | AI47: 14.11 | AJ47: 14.11 | AK47: 14.11 | AL47: 14.11 | AM47: 14.11 | AN47: 14.11 | AO47: 14.11 | AP47: 14.11 | AQ47: 14.11 | AR47: 14.11 | AS47: 14.11 | AT47: 14.11 | AU47: 14.11 | AV47: 14.11 | AW47: 14.11 | AX47: 14.11 | AY47: 14.11 | AZ47: 14.11 | BA47: 14.11 | BB47: 14.11 | BC47: 14.11 | BD47: 14.11 | BE47: 14.11 | BF47: 14.11 | BG47: 14.11 | BH47: 14.11 | BI47: 14.11 | BJ47: 14.11 | BK47: 14.11 | BL47: 14.11 | BM47: 14.11 | BN47: 14.11 | BO47: 14.11 | BP47: 14.11 | BQ47: 14.11 | BR47: 14.11 | BS47: 14.11 | BT47: 14.11 | BU47: 14.11 | BV47: 14.11
A48: Methanol | N48: 23.6 | O48: 23.6 | P48: 23.6 | Q48: 23.6 | R48: 23.6 | S48: 23.6 | T48: 23.6 | U48: 23.6 | V48: 23.6 | W48: 23.6 | X48: 23.6 | Y48: 23.6 | Z48: 23.6 | AA48: 23.6 | AB48: 23.6 | AC48: 23.6 | AD48: 23.6 | AE48: 23.6 | AF48: 23.6 | AG48: 23.6 | AH48: 23.6 | AI48: 23.6 | AJ48: 23.6 | AK48: 23.6 | AL48: 23.6 | AM48: 23.6 | AN48: 23.6 | AO48: 23.6 | AP48: 23.6 | AQ48: 23.6 | AR48: 23.6 | AS48: 23.6 | AT48: 23.6 | AU48: 23.6 | AV48: 23.6 | AW48: 23.6 | AX48: 23.6 | AY48: 23.6 | AZ48: 23.6 | BA48: 23.6 | BB48: 23.6 | BC48: 23.6 | BD48: 23.6 | BE48: 23.6 | BF48: 23.6 | BG48: 23.6 | BH48: 23.6 | BI48: 23.6 | BJ48: 23.6 | BK48: 23.6 | BL48: 23.6 | BM48: 23.6 | BN48: 23.6 | BO48: 23.6 | BP48: 23.6 | BQ48: 23.6 | BR48: 23.6 | BS48: 23.6 | BT48: 23.6 | BU48: 23.6 | BV48: 23.6
A49: Ethanol (E85) | N49: 25.561684 | O49: 25.303816 | P49: 33.642014 | Q49: 31.120285 | R49: 24.805428 | S49: 24.941547 | T49: 24.510408 | U49: 24.773121 | V49: 25.840998 | W49: 26.808552 | X49: 29.644617 | Y49: 29.383793 | Z49: 28.224442 | AA49: 28.253483 | AB49: 27.145426 | AC49: 27.272446 | AD49: 27.519344 | AE49: 26.363682 | AF49: 26.241467 | AG49: 26.599018 | AH49: 26.941008 | AI49: 27.294556 | AJ49: 27.667862 | AK49: 28.194492 | AL49: 28.632065 | AM49: 29.186733 | AN49: 29.790071 | AO49: 30.397635 | AP49: 30.990225 | AQ49: 31.671036 | AR49: 30.576361
A50: Electric Utility Steam Coal | N50: 2.297989 | O50: 2.38 | P50: 2.405274 | Q50: 2.336911 | R50: 2.395015 | S50: 2.396107 | T50: 2.458305 | U50: 2.472283 | V50: 2.480262 | W50: 2.483824 | X50: 2.516057 | Y50: 2.546456 | Z50: 2.591459 | AA50: 2.628078 | AB50: 2.659397 | AC50: 2.691643 | AD50: 2.728581 | AE50: 2.761878 | AF50: 2.791991 | AG50: 2.828263 | AH50: 2.86709 | AI50: 2.897 | AJ50: 2.923843 | AK50: 2.954224 | AL50: 2.98759 | AM50: 3.030205 | AN50: 3.067011 | AO50: 3.101266 | AP50: 3.134995 | AQ50: 3.169994 | AR50: 3.201544
A51: Commercial Electricity | N51: 30.492579 | O51: 29.980652 | P51: 28.463469 | Q51: 27.770493 | R51: 27.844252 | S51: 27.733994 | T51: 28.230274 | U51: 28.517765 | V51: 28.644997 | W51: 28.576813 | X51: 28.566559 | Y51: 28.675745 | Z51: 28.66461 | AA51: 28.628443 | AB51: 28.632759 | AC51: 28.485842 | AD51: 28.378672 | AE51: 28.36969 | AF51: 28.482964 | AG51: 28.577333 | AH51: 28.652302 | AI51: 28.781073 | AJ51: 28.912567 | AK51: 29.081726 | AL51: 29.271112 | AM51: 29.658476 | AN51: 30.101704 | AO51: 30.503069 | AP51: 30.944069 | AQ51: 31.476562 | AR51: 31.747147
A52: Industrial Electricity | N52: 20.260443 | O52: 19.97574 | P52: 18.436016 | Q52: 18.142965 | R52: 18.046112 | S52: 17.884491 | T52: 18.368113 | U52: 18.636278 | V52: 18.783104 | W52: 18.727133 | X52: 18.720291 | Y52: 18.854441 | Z52: 18.961594 | AA52: 19.089853 | AB52: 19.158766 | AC52: 19.181961 | AD52: 19.274345 | AE52: 19.362473 | AF52: 19.467001 | AG52: 19.610374 | AH52: 19.726358 | AI52: 19.866886 | AJ52: 20.0294 | AK52: 20.204811 | AL52: 20.42868 | AM52: 20.795019 | AN52: 21.263971 | AO52: 21.670811 | AP52: 22.067455 | AQ52: 22.488647 | AR52: 22.744431
A53: Residential Electricity | N53: 34.522823 | O53: 34.335876 | P53: 33.266716 | Q53: 32.549408 | R53: 33.007488 | S53: 33.062363 | T53: 33.578304 | U53: 33.82626 | V53: 33.834633 | W53: 33.64259 | X53: 33.615444 | Y53: 33.658813 | Z53: 33.69125 | AA53: 33.703487 | AB53: 33.83997 | AC53: 33.959377 | AD53: 34.126076 | AE53: 34.265705 | AF53: 34.413651 | AG53: 34.510967 | AH53: 34.561592 | AI53: 34.686401 | AJ53: 34.807407 | AK53: 34.923721 | AL53: 35.082527 | AM53: 35.421288 | AN53: 35.835976 | AO53: 36.175976 | AP53: 36.5028 | AQ53: 36.906086 | AR53: 37.098595
A56: AEO_2013_High_Price_Case | B56: ="Prices are in $(" & ref_year&")/GJ LHV" -> Prices are in $(2007)/GJ LHV | AS56: Except as noted,values are extrapolated based on PNNL mini-CAM model (see AEO Data tab)
A57: Year | B57: Source Data Year | C57: Reference year Conversion | D57: Display Units | E57: Use Category | F57: LHV (MJ/kg) | G57: HHV (MJ/kg) | H57: 2004 | I57: 2005 | J57: 2006 | K57: 2007 | L57: 2008 | M57: 2009 | N57: 2010 | O57: 2011 | P57: 2012 | Q57: 2013 | R57: 2014 | S57: 2015 | T57: 2016 | U57: 2017 | V57: 2018 | W57: 2019 | X57: 2020 | Y57: 2021 | Z57: 2022 | AA57: 2023 | AB57: 2024 | AC57: 2025 | AD57: 2026 | AE57: 2027 | AF57: 2028 | AG57: 2029 | AH57: 2030 | AI57: 2031 | AJ57: 2032 | AK57: 2033 | AL57: 2034 | AM57: 2035 | AN57: 2036 | AO57: 2037 | AP57: 2038 | AQ57: 2039 | AR57: 2040 | AS57: 2041 | AT57: 2042 | AU57: 2043 | AV57: 2044 | AW57: 2045 | AX57: 2046 | AY57: 2047 | AZ57: 2048 | BA57: 2049 | BB57: 2050 | BC57: 2051 | BD57: 2052 | BE57: 2053 | BF57: 2054 | BG57: 2055 | BH57: 2056 | BI57: 2057 | BJ57: 2058 | BK57: 2059 | BL57: 2060 | BM57: 2061 | BN57: 2062 | BO57: 2063 | BP57: 2064 | BQ57: 2065 | BR57: 2066 | BS57: 2067 | BT57: 2068 | BU57: 2069 | BV57: 2070
A58: Feedstock Type
A59: ='HyARC Physical Property Data'!A73 -> Residential Natural Gas | B59: 2011 | C59: =VLOOKUP(ref_year,DeflatorTable,2,FALSE)/VLOOKUP(B59,DeflatorTable,2,FALSE) -> 0.94218206 | D59: ='HyARC Physical Property Data'!H73 -> mmBtu | E59: Feed Utility | F59: ='HyARC Physical Property Data'!$E$6 -> 47.14126905 | G59: ='HyARC Physical Property Data'!$I$6 -> 52.22466124 | H59: 13.56879652 | I59: 13.56879652 | J59: 13.56879652 | K59: 12.56956232 | L59: 12.8911545 | M59: 11.5745143 | N59: =N74*(1/mmBTU_to_GJ*$C59*$G59/$F59) -> 11.23857099 | O59: 10.68746477 | P59: 10.36238006 | Q59: 10.39025147 | R59: 10.22412416 | S59: 10.1210026 | T59: 10.63456439 | U59: 10.97437184 | V59: 11.39300995 | W59: 11.6496741 | X59: 11.86883635 | Y59: 12.07967705 | Z59: 12.3472628 | AA59: 12.59398086 | AB59: 12.71654939 | AC59: 12.87973037 | AD59: 13.07219955 | AE59: 13.22436494 | AF59: 13.45856654 | AG59: 13.63791178 | AH59: 13.84225828 | AI59: 14.08037776 | AJ59: 14.42274767 | AK59: 14.79755096 | AL59: 15.18474407 | AM59: 15.54110855 | AN59: 15.99782635 | AO59: 16.29631097 | AP59: 16.76966594 | AQ59: 17.19562931 | AR59: 17.48593683 | AS59: =($BB59-$AR59)/10+AR59 -> 17.48607186 | AT59: =($BB59-$AR59)/10+AS59 -> 17.48620688 | AU59: 17.4863419 | AV59: 17.48647693 | AW59: 17.48661195 | AX59: 17.48674698 | AY59: 17.486882 | AZ59: 17.48701703 | BA59: 17.48715205 | BB59: ='AEO Data'!$B$30*AM59 -> 17.48728707 | BC59: =($BQ59-$BB59)/15+BB59 -> 17.62977928 | BD59: =($BQ59-$BB59)/15+BC59 -> 17.77227148 | BE59: 17.91476368 | BF59: 18.05725588 | BG59: 18.19974808 | BH59: 18.34224028 | BI59: 18.48473248 | BJ59: 18.62722468 | BK59: 18.76971688 | BL59: 18.91220908 | BM59: 19.05470129 | BN59: 19.19719349 | BO59: 19.33968569 | BP59: 19.48217789 | BQ59: ='AEO Data'!$C$30*BB59 -> 19.62467009 | BR59: =($BV59-$BQ59)/5+BQ59 -> 19.73684214 | BS59: =($BV59-$BQ59)/5+BR59 -> 19.84901419 | BT59: 19.96118624 | BU59: 20.07335829 | BV59: ='AEO Data'!$D$30*BQ59 -> 20.18553035
A60: ='HyARC Physical Property Data'!A71 -> Commercial Natural Gas | B60: 2011 | C60: =VLOOKUP(ref_year,DeflatorTable,2,FALSE)/VLOOKUP(B60,DeflatorTable,2,FALSE) -> 0.94218206 | D60: ='HyARC Physical Property Data'!H71 -> mmBtu | E60: Feed Utility | F60: ='HyARC Physical Property Data'!$E$6 -> 47.14126905 | G60: ='HyARC Physical Property Data'!$I$6 -> 52.22466124 | H60: 11.78211598 | I60: 11.78211598 | J60: 11.78211598 | K60: 10.88454795 | L60: 11.41218617 | M60: 10.07575697 | N60: =N75*(1/mmBTU_to_GJ*$C60*$G60/$F60) -> 9.297042245 | O60: 8.742879868 | P60: 7.995505304 | Q60: 8.394250244 | R60: 8.22711971 | S60: 8.090341917 | T60: 8.55121406 | U60: 8.825646222 | V60: 9.182424259 | W60: 9.391103195 | X60: 9.572821923 | Y60: 9.745103094 | Z60: 9.976211934 | AA60: 10.1831387 | AB60: 10.27572451 | AC60: 10.41107168 | AD60: 10.57530931 | AE60: 10.68856989 | AF60: 10.87715382 | AG60: 11.014361 | AH60: 11.1702751 | AI60: 11.36134926 | AJ60: 11.64951976 | AK60: 11.97589657 | AL60: 12.31109853 | AM60: 12.61093562 | AN60: 13.0199383 | AO60: 13.27433581 | AP60: 13.70645303 | AQ60: 14.08841141 | AR60: 14.32689498 | AS60: =($BB60-$AR60)/10+AR60 -> 14.31322299 | AT60: 14.299551 | AU60: 14.28587901 | AV60: 14.27220702 | AW60: 14.25853503 | AX60: 14.24486305 | AY60: 14.23119106 | AZ60: 14.21751907 | BA60: 14.20384708 | BB60: ='AEO Data'!$B$30*AM60 -> 14.19017509 | BC60: =($BQ60-$BB60)/15+BB60 -> 14.30580133 | BD60: 14.42142757 | BE60: 14.53705381 | BF60: 14.65268005 | BG60: 14.7683063 | BH60: 14.88393254 | BI60: 14.99955878 | BJ60: 15.11518502 | BK60: 15.23081126 | BL60: 15.3464375 | BM60: 15.46206375 | BN60: 15.57768999 | BO60: 15.69331623 | BP60: 15.80894247 | BQ60: ='AEO Data'!$C$30*BB60 -> 15.92456871 | BR60: =($BV60-$BQ60)/5+BQ60 -> 16.01559147 | BS60: 16.10661422 | BT60: 16.19763698 | BU60: 16.28865973 | BV60: ='AEO Data'!$D$30*BQ60 -> 16.37968249
A61: ='HyARC Physical Property Data'!A72 -> Industrial Natural Gas | B61: 2011 | C61: 0.94218206 | D61: ='HyARC Physical Property Data'!H72 -> mmBtu | E61: Feed Utility | F61: ='HyARC Physical Property Data'!$E$6 -> 47.14126905 | G61: ='HyARC Physical Property Data'!$I$6 -> 52.22466124 | H61: 7.880072531 | I61: 7.880072531 | J61: 7.880072531 | K61: 7.443131598 | L61: 8.875036014 | M61: 6.558012574 | N61: =N76*(1/mmBTU_to_GJ*$C61*$G61/$F61) -> 5.425637495 | O61: 4.836995732 | P61: 3.726816907 | Q61: 4.30376437 | R61: 4.369187149 | S61: 4.406001437 | T61: 4.864227026 | U61: 5.077577746 | V61: 5.329952006 | W61: 5.49430836 | X61: 5.63880815 | Y61: 5.782277021 | Z61: 5.990967829 | AA61: 6.184053377 | AB61: 6.257697782 | AC61: 6.375829993 | AD61: 6.499089097 | AE61: 6.591604658 | AF61: 6.780512115 | AG61: 6.907848394 | AH61: 7.044655867 | AI61: 7.226046126 | AJ61: 7.508891852 | AK61: 7.826959977 | AL61: 8.153364495 | AM61: 8.43931584 | AN61: 8.806569278 | AO61: 9.014551701 | AP61: 9.390517491 | AQ61: 9.708320466 | AR61: 9.905755264 | AS61: =($BB61-$AR61)/10+AR61 -> 9.864795001 | AT61: 9.823834737 | AU61: 9.782874473 | AV61: 9.74191421 | AW61: 9.700953946 | AX61: 9.659993683 | AY61: 9.619033419 | AZ61: 9.578073155 | BA61: 9.537112892 | BB61: ='AEO Data'!$B$30*AM61 -> 9.496152628 | BC61: =($BQ61-$BB61)/15+BB61 -> 9.573530422 | BD61: 9.650908215 | BE61: 9.728286009 | BF61: 9.805663802 | BG61: 9.883041596 | BH61: 9.96041939 | BI61: 10.03779718 | BJ61: 10.11517498 | BK61: 10.19255277 | BL61: 10.26993056 | BM61: 10.34730836 | BN61: 10.42468615 | BO61: 10.50206394 | BP61: 10.57944174 | BQ61: ='AEO Data'!$C$30*BB61 -> 10.65681953 | BR61: =($BV61-$BQ61)/5+BQ61 -> 10.71773252 | BS61: 10.77864551 | BT61: 10.8395585 | BU61: 10.90047149 | BV61: ='AEO Data'!$D$30*BQ61 -> 10.96138447
A62: ='HyARC Physical Property Data'!A74 -> Electric Utility Natural Gas | B62: 2011 | C62: 0.94218206 | D62: ='HyARC Physical Property Data'!H74 -> mmBtu | E62: Feed Utility | F62: ='HyARC Physical Property Data'!$E$6 -> 47.14126905 | G62: ='HyARC Physical Property Data'!$I$6 -> 52.22466124 | H62: 6.987046316 | I62: 6.987046316 | J62: 6.987046316 | K62: 6.951907178 | L62: 9.090470738 | M62: 6.262695049 | N62: =N77*(1/mmBTU_to_GJ*$C62*$G62/$F62) -> 5.202247684 | O62: 4.723936987 | P62: 3.292621025 | Q62: 3.686579415 | R62: 3.793486286 | S62: 3.874602379 | T62: 4.300706242 | U62: 4.47540839 | V62: 4.721326051 | W62: 4.877970302 | X62: 5.012850491 | Y62: 5.147692096 | Z62: 5.356557032 | AA62: 5.552350473 | AB62: 5.657245964 | AC62: 5.787578041 | AD62: 5.932666503 | AE62: 6.048625079 | AF62: 6.214095458 | AG62: 6.34175229 | AH62: 6.479178117 | AI62: 6.659183264 | AJ62: 6.942033937 | AK62: 7.244882654 | AL62: 7.553041295 | AM62: 7.818712627 | AN62: 8.177298235 | AO62: 8.387247516 | AP62: 8.760969425 | AQ62: 9.074010585 | AR62: 9.236619719 | AS62: =($BB62-$AR62)/10+AR62 -> 9.192741013 | AT62: 9.148862306 | AU62: 9.104983599 | AV62: 9.061104893 | AW62: 9.017226186 | AX62: 8.973347479 | AY62: 8.929468773 | AZ62: 8.885590066 | BA62: 8.841711359 | BB62: ='AEO Data'!$B$30*AM62 -> 8.797832653 | BC62: =($BQ62-$BB62)/15+BB62 -> 8.869520304 | BD62: 8.941207955 | BE62: 9.012895607 | BF62: 9.084583258 | BG62: 9.156270909 | BH62: 9.227958561 | BI62: 9.299646212 | BJ62: 9.371333863 | BK62: 9.443021515 | BL62: 9.514709166 | BM62: 9.586396817 | BN62: 9.658084469 | BO62: 9.72977212 | BP62: 9.801459772 | BQ62: ='AEO Data'!$C$30*BB62 -> 9.873147423 | BR62: =($BV62-$BQ62)/5+BQ62 -> 9.929581044 | BS62: 9.986014665 | BT62: 10.04244829 | BU62: 10.09888191 | BV62: ='AEO Data'!$D$30*BQ62 -> 10.15531553
A63: ='HyARC Physical Property Data'!A75 -> Bio Methane | B63: 2007 | C63: 1 | D63: ='HyARC Physical Property Data'!H75 -> mmBtu | E63: Feed Utility | F63: ='HyARC Physical Property Data'!$E$6 -> 47.14126905 | G63: ='HyARC Physical Property Data'!$I$6 -> 52.22466124 | H63: 12.42654028 | I63: 12.42654028 | J63: 12.42654028 | K63: 12.42654028 | L63: 12.42654028 | M63: 12.42654028 | N63: =13.11*($C$63/mmBTU_to_GJ) -> 12.42654028 | O63: 12.42654028 | P63: 12.42654028 | Q63: 12.42654028 | R63: 12.42654028 | S63: 12.42654028 | T63: 12.42654028 | U63: 12.42654028 | V63: 12.42654028 | W63: 12.42654028 | X63: 12.42654028 | Y63: 12.42654028 | Z63: 12.42654028 | AA63: 12.42654028 | AB63: 12.42654028 | AC63: 12.42654028 | AD63: 12.42654028 | AE63: 12.42654028 | AF63: 12.42654028 | AG63: 12.42654028 | AH63: 12.42654028 | AI63: 12.42654028 | AJ63: 12.42654028 | AK63: 12.42654028 | AL63: 12.42654028 | AM63: 12.42654028 | AN63: =13.11*($C$63/mmBTU_to_GJ) -> 12.42654028 | AO63: 12.42654028 | AP63: 12.42654028 | AQ63: 12.42654028 | AR63: 12.42654028 | AS63: 12.42654028 | AT63: 12.42654028 | AU63: 12.42654028 | AV63: 12.42654028 | AW63: 12.42654028 | AX63: 12.42654028 | AY63: 12.42654028 | AZ63: 12.42654028 | BA63: 12.42654028 | BB63: 12.42654028 | BC63: 12.42654028 | BD63: 12.42654028 | BE63: 12.42654028 | BF63: 12.42654028 | BG63: 12.42654028 | BH63: 12.42654028 | BI63: 12.42654028 | BJ63: 12.42654028 | BK63: 12.42654028 | BL63: 12.42654028 | BM63: 12.42654028 | BN63: 12.42654028 | BO63: 12.42654028 | BP63: 12.42654028 | BQ63: 12.42654028 | BR63: 12.42654028 | BS63: 12.42654028 | BT63: 12.42654028 | BU63: 12.42654028 | BV63: 12.42654028
A64: ='HyARC Physical Property Data'!A85 -> Woody Biomass | B64: 2005 | C64: =VLOOKUP(ref_year,DeflatorTable,2,FALSE)/VLOOKUP(B64,DeflatorTable,2,FALSE) -> 1.0581968 | D64: =+'HyARC Physical Property Data'!$H$85 -> kg | E64: Feed | F64: ='HyARC Physical Property Data'!$E$45 -> 19.55106924 | G64: ='HyARC Physical Property Data'!$I$45 -> 20.58865638 | H64: 1.343823884 | I64: 1.343823884 | J64: 1.343823884 | K64: 1.343823884 | L64: 1.343823884 | M64: 1.343823884 | N64: =1.27*($C$64) -> 1.343909936 | O64: =1.27*($C$64) -> 1.343909936 | P64: =1.28*($C$64) -> 1.354491904 | Q64: =1.32*($C$64) -> 1.396819776 | R64: =1.32*($C$64) -> 1.396819776 | S64: =1.34*($C$64) -> 1.417983712 | T64: =1.34*($C$64) -> 1.417983712 | U64: =1.36*($C$64) -> 1.439147648 | V64: =1.36*($C$64) -> 1.439147648 | W64: =1.38*($C$64) -> 1.460311584 | X64: =1.4*($C$64) -> 1.48147552 | Y64: =1.46*($C$64) -> 1.544967328 | Z64: =1.48*($C$64) -> 1.566131264 | AA64: =1.48*($C$64) -> 1.566131264 | AB64: =1.51*($C$64) -> 1.597877168 | AC64: =1.52*($C$64) -> 1.608459136 | AD64: =1.62*($C$64) -> 1.714278816 | AE64: =1.72*($C$64) -> 1.820098496 | AF64: =1.82*($C$64) -> 1.925918176 | AG64: =1.91*($C$64) -> 2.021155888 | AH64: =2.01*($C$64) -> 2.126975568 | AI64: =2.11*($C$64) -> 2.232795248 | AJ64: =2.2*($C$64) -> 2.32803296 | AK64: =2.3*($C$64) -> 2.43385264 | AL64: =2.4*($C$64) -> 2.53967232 | AM64: =2.5*($C$64) -> 2.645492 | AN64: =2.57*($C$64) -> 2.719565776 | AO64: =2.64*($C$64) -> 2.793639552 | AP64: =2.71*($C$64) -> 2.867713328 | AQ64: =2.78*($C$64) -> 2.941787104 | AR64: =2.85*($C$64) -> 3.01586088 | AS64: =2.92*($C$64) -> 3.089934656 | AT64: =2.99*($C$64) -> 3.164008432 | AU64: =3.07*($C$64) -> 3.248664176 | AV64: =3.14*($C$64) -> 3.322737952 | AW64: =3.21*($C$64) -> 3.396811728 | AX64: =3.28*($C$64) -> 3.470885504 | AY64: =3.35*($C$64) -> 3.54495928 | AZ64: =3.42*($C$64) -> 3.619033056 | BA64: =3.49*($C$64) -> 3.693106832 | BB64: =3.56*($C$64) -> 3.767180608 | BC64: =3.64*($C$64) -> 3.851836352 | BD64: =3.71*($C$64) -> 3.925910128 | BE64: =3.78*($C$64) -> 3.999983904 | BF64: =3.85*($C$64) -> 4.07405768 | BG64: =3.92*($C$64) -> 4.148131456 | BH64: =3.99*($C$64) -> 4.222205232 | BI64: =4.06*($C$64) -> 4.296279008 | BJ64: =4.14*($C$64) -> 4.380934752 | BK64: =4.21*($C$64) -> 4.455008528 | BL64: =4.28*($C$64) -> 4.529082304 | BM64: =4.35*($C$64) -> 4.60315608 | BN64: =4.42*($C$64) -> 4.677229856 | BO64: =4.49*($C$64) -> 4.751303632 | BP64: =4.56*($C$64) -> 4.825377408 | BQ64: =4.63*($C$64) -> 4.899451184 | BR64: =4.71*($C$64) -> 4.984106928 | BS64: =4.78*($C$64) -> 5.058180704 | BT64: =4.85*($C$64) -> 5.13225448 | BU64: =4.92*($C$64) -> 5.206328256 | BV64: =4.99*($C$64) -> 5.280402032
A65: ='HyARC Physical Property Data'!A79 -> Electric Utility Steam Coal | B65: 2011 | C65: =VLOOKUP(ref_year,DeflatorTable,2,FALSE)/VLOOKUP(B65,DeflatorTable,2,FALSE) -> 0.94218206 | D65: =+'HyARC Physical Property Data'!$H$79 -> kg | E65: Feed | F65: ='HyARC Physical Property Data'!$E$42 -> 22.732203 | G65: ='HyARC Physical Property Data'!$I$42 -> 23.96761519 | H65: 1.635907475 | I65: 1.635907475 | J65: 1.635907475 | K65: 1.677829835 | L65: 1.831547026 | M65: 1.806014934 | N65: =N79*($C65/mmBTU_to_GJ*$G65/$F65) -> 2.16378255 | O65: 2.241003969 | P65: 2.273546548 | Q65: 2.195181087 | R65: 2.322619827 | S65: 2.344856612 | T65: 2.419961318 | U65: 2.425775688 | V65: 2.443440072 | W65: 2.45625805 | X65: 2.488981416 | Y65: 2.51483488 | Z65: 2.555703072 | AA65: 2.588623231 | AB65: 2.62560733 | AC65: 2.666489645 | AD65: 2.701647043 | AE65: 2.730103085 | AF65: 2.76528873 | AG65: 2.804194631 | AH65: 2.84169755 | AI65: 2.874450105 | AJ65: 2.909839136 | AK65: 2.9470624 | AL65: 2.985385451 | AM65: 3.028541727 | AN65: 3.061790504 | AO65: 3.086858676 | AP65: 3.118017106 | AQ65: 3.160206359 | AR65: 3.200393775 | AS65: =($BB65-$AR65)/10+AR65 -> 3.197814871 | AT65: =($BB65-$AR65)/10+AS65 -> 3.195235967 | AU65: 3.192657062 | AV65: 3.190078158 | AW65: 3.187499254 | AX65: 3.18492035 | AY65: 3.182341446 | AZ65: 3.179762541 | BA65: 3.177183637 | BB65: =('AEO Data'!$B$28*AM65) -> 3.174604733 | BC65: =($BQ65-$BB65)/15+BB65 -> 3.185745807 | BD65: =($BQ65-$BB65)/15+BC65 -> 3.19688688 | BE65: 3.208027954 | BF65: 3.219169028 | BG65: 3.230310102 | BH65: 3.241451176 | BI65: 3.252592249 | BJ65: 3.263733323 | BK65: 3.274874397 | BL65: 3.286015471 | BM65: 3.297156544 | BN65: 3.308297618 | BO65: 3.319438692 | BP65: 3.330579766 | BQ65: =('AEO Data'!$C$28*BB65) -> 3.341720839 | BR65: =($BV65-$BQ65)/5+BQ65 -> 3.352434065 | BS65: 3.363147291 | BT65: 3.373860517 | BU65: 3.384573743 | BV65: =('AEO Data'!$D$28*BQ65) -> 3.395286969
A66: ='HyARC Physical Property Data'!A76 -> Commercial Electricity | B66: 2011 | C66: 0.94218206 | D66: ='HyARC Physical Property Data'!$H$76 -> kWh | E66: Feed Utility Byprod | H66: 26.76406289 | I66: 26.76406289 | J66: 26.76406289 | K66: 26.4785211 | L66: 27.87947016 | M66: 27.8953264 | N66: =N80*($C66) -> 28.7295609 | O66: =O80*($C66) -> 28.24723246 | P66: 26.85330802 | Q66: 26.18511439 | R66: 26.54815881 | S66: 26.51249062 | T66: 27.03056262 | U66: 27.3464169 | V66: 27.42588337 | W66: 27.29972896 | X66: 27.36201379 | Y66: 27.47611015 | Z66: 27.55664033 | AA66: 27.5079559 | AB66: 27.43219976 | AC66: 27.51356471 | AD66: 27.49110309 | AE66: 27.52375347 | AF66: 27.52528828 | AG66: 27.64821478 | AH66: 27.84164099 | AI66: 28.07214394 | AJ66: 28.22512699 | AK66: 28.52514414 | AL66: 29.02052556 | AM66: 29.48193755 | AN66: 29.96794992 | AO66: 30.40283572 | AP66: 30.77871078 | AQ66: 31.30251689 | AR66: 31.63623589 | AS66: =($BB66-$AR66)/10+AR66 -> 31.34731211 | AT66: 31.05838832 | AU66: 30.76946454 | AV66: 30.48054076 | AW66: 30.19161697 | AX66: 29.90269319 | AY66: 29.6137694 | AZ66: 29.32484562 | BA66: 29.03592184 | BB66: ='AEO Data'!$B$33*AM66 -> 28.74699805 | BC66: =($BQ66-$BB66)/15+BB66 -> 28.76374674 | BD66: 28.78049542 | BE66: 28.79724411 | BF66: 28.81399279 | BG66: 28.83074148 | BH66: 28.84749017 | BI66: 28.86423885 | BJ66: 28.88098754 | BK66: 28.89773622 | BL66: 28.91448491 | BM66: 28.93123359 | BN66: 28.94798228 | BO66: 28.96473096 | BP66: 28.98147965 | BQ66: ='AEO Data'!$C$33*BB66 -> 28.99822834 | BR66: 28.97870237 | BS66: 28.95917641 | BT66: 28.93965045 | BU66: 28.92012448 | BV66: ='AEO Data'!$D$33*BQ66 -> 28.90059852
